Workbook

Sheet Summary 2188
A1: Average Investment & Depreciation Summary
A2: 2188 - Lewis County/Joe's Refuse
A3: 2020-05-31
F4: Beginning | G4: Ending | H4: Average
A5: Equipment | B5: Cost | C5: Salvage | D5: Depr | E5: Test Year | F5: Accum Depr | G5: Accum Depr | H5: Investment
D6: Cost | E6: Depr | F6: 2019-06-01 | G6: 2020-05-31 | H6: =G6 -> 2020-05-31
A7: Trucks
A8: Garbage | B8: ='Trucks 2188'!M101 -> 7735033.463 | C8: =B8-D8 -> 0 | D8: ='Trucks 2188'!N101 -> 7735033.463 | E8: ='Trucks 2188'!Q101 -> 733455.0041 | F8: ='Trucks 2188'!S101 -> 3225478.98 | G8: ='Trucks 2188'!T101 -> 3958933.985 | H8: ='Trucks 2188'!U101 -> 3776099.478
A10: Roll Off | B10: ='Trucks 2188'!M134 -> 1174256.8 | C10: =B10-D10 -> 0 | D10: ='Trucks 2188'!N134 -> 1174256.8 | E10: ='Trucks 2188'!Q134 -> 68295.63607 | F10: ='Trucks 2188'!S134 -> 974560.3468 | G10: ='Trucks 2188'!T134 -> 1042855.983 | H10: ='Trucks 2188'!U134 -> 131400.8171
A12: Residential Recycling | B12: ='Trucks 2188'!M169 -> 992500.1972 | C12: =B12-D12 -> 0 | D12: ='Trucks 2188'!N169 -> 992500.1972 | E12: ='Trucks 2188'!Q169 -> 85786.20937 | F12: ='Trucks 2188'!S169 -> 469296.9691 | G12: ='Trucks 2188'!T169 -> 555083.1784 | H12: ='Trucks 2188'!U169 -> 437417.0187
A14: MF | B14: ='Trucks 2188'!M181 -> 15451.2 | C14: =B14-D14 -> 0 | D14: ='Trucks 2188'!N181 -> 15451.2 | E14: ='Trucks 2188'!Q181 -> 1030.08 | F14: ='Trucks 2188'!S181 -> 12360.96 | G14: ='Trucks 2188'!T181 -> 13391.04 | H14: ='Trucks 2188'!U181 -> 2060.16
A16: Yard Waste | B16: ='Trucks 2188'!M193 -> 15451.2 | C16: =B16-D16 -> 0 | D16: ='Trucks 2188'!N193 -> 15451.2 | E16: ='Trucks 2188'!Q193 -> 1030.08 | F16: ='Trucks 2188'!S193 -> 12360.96 | G16: ='Trucks 2188'!T193 -> 13391.04 | H16: ='Trucks 2188'!U193 -> 2060.16
A18: Commercial Recycling | B18: ='Trucks 2188'!M206 -> 346297.32 | C18: =B18-D18 -> 68696.748 | D18: ='Trucks 2188'!N206 -> 277600.572 | E18: ='Trucks 2188'!Q206 -> 0 | F18: ='Trucks 2188'!S206 -> 277600.572 | G18: ='Trucks 2188'!T206 -> 277600.572 | H18: ='Trucks 2188'!U206 -> 68696.748
A20: Container Delivery | B20: ='Trucks 2188'!M215 -> 186330.39 | C20: =B20-D20 -> 0 | D20: ='Trucks 2188'!N215 -> 186330.39 | E20: ='Trucks 2188'!Q215 -> 27783.20869 | F20: ='Trucks 2188'!S215 -> 123686.9268 | G20: ='Trucks 2188'!T215 -> 151470.1355 | H20: ='Trucks 2188'!U215 -> 34860.25452
A22: General Recycling | B22: =+'Trucks 2188'!M225 -> 21000 | C22: =B22-D22 -> 0 | D22: =+'Trucks 2188'!N225 -> 21000 | E22: =+'Trucks 2188'!Q225 -> 0 | F22: =+'Trucks 2188'!S225 -> 21000 | G22: =+'Trucks 2188'!T225 -> 21000 | H22: =+'Trucks 2188'!U225 -> 0
A24: Total Trucks | B24: =SUM(B8:B23) -> 10486320.57 | C24: =SUM(C8:C23) -> 68696.748 | D24: 10417623.82 | E24: 917380.2182 | F24: 5116345.715 | G24: 6033725.933 | H24: 4452594.637
B25: =+B24-'Trucks 2188'!M227 -> 0 | E25: =+E24-'Trucks 2188'!Q227 -> 0 | F25: =+F24-'Trucks 2188'!S227 -> 0 | G25: =+G24-'Trucks 2188'!T227 -> 0 | H25: =+H24-'Trucks 2188'!U227 -> 0
A26: Containers:
A27: Garbage Containers | B27: ='Containers 2188'!K182 -> 1597205.93 | C27: =B27-D27 -> 0 | D27: ='Containers 2188'!L182 -> 1597205.93 | E27: ='Containers 2188'!O182 -> 62774.78926 | F27: ='Containers 2188'!P182 -> 1060754.165 | G27: ='Containers 2188'!Q182 -> 1123528.955 | H27: ='Containers 2188'!R182 -> 473676.9753
A29: Garbage Carts | B29: ='Containers 2188'!K276 -> 1938008.36 | C29: =B29-D29 -> 0 | D29: ='Containers 2188'!L276 -> 1938008.36 | E29: ='Containers 2188'!O276 -> 71220.64736 | F29: ='Containers 2188'!P276 -> 1574787.255 | G29: ='Containers 2188'!Q276 -> 1646007.902 | H29: ='Containers 2188'!R276 -> 292000.4581
A31: Drop Boxes | B31: ='Containers 2188'!K343 -> 1408633.64 | C31: =B31-D31 -> 0 | D31: ='Containers 2188'!L343 -> 1408633.64 | E31: ='Containers 2188'!O343 -> 23623.55417 | F31: ='Containers 2188'!P343 -> 1155414.722 | G31: ='Containers 2188'!Q343 -> 1179038.276 | H31: ='Containers 2188'!R343 -> 229595.3642
A33: Recycling | B33: ='Containers 2188'!K377 -> 664345.45 | C33: =B33-D33 -> 0 | D33: ='Containers 2188'!L377 -> 664345.45 | E33: ='Containers 2188'!O377 -> 48998.06655 | F33: ='Containers 2188'!P377 -> 454967.2271 | G33: ='Containers 2188'!Q377 -> 503965.2937 | H33: ='Containers 2188'!R377 -> 160380.1563
A35: Yard Waste | B35: ='Containers 2188'!K399 -> 269918.03 | C35: =B35-D35 -> 0 | D35: ='Containers 2188'!L399 -> 269918.03 | E35: ='Containers 2188'!O399 -> 7868.350714 | F35: ='Containers 2188'!P399 -> 236135.1386 | G35: ='Containers 2188'!Q399 -> 244003.4893 | H35: ='Containers 2188'!R399 -> 25914.54071
A37: Total Cont, Carts,Totes | B37: =SUM(B27:B36) -> 5878111.41 | C37: 0 | D37: 5878111.41 | E37: 214485.4081 | F37: 4482058.507 | G37: 4696543.915 | H37: 1181567.495
B38: =+B37-'Containers 2188'!K401 -> 0 | E38: =+E37-'Containers 2188'!O401 -> 0 | F38: =+F37-'Containers 2188'!P401 -> 0 | G38: =+G37-'Containers 2188'!Q401 -> 0 | H38: =+H37-'Containers 2188'!R401 -> 0
A39: Service Equipment | B39: ='OTHER EQUIP 2188'!L99 -> 76894.41 | C39: =B39-D39 -> 8825.634 | D39: ='OTHER EQUIP 2188'!M99 -> 68068.776 | E39: ='OTHER EQUIP 2188'!P99 -> 7446.611333 | F39: ='OTHER EQUIP 2188'!Q99 -> 34179.166 | G39: ='OTHER EQUIP 2188'!R99 -> 41625.77733 | H39: ='OTHER EQUIP 2188'!S99 -> 35268.63267
A41: Shop Equipment | B41: ='OTHER EQUIP 2188'!L82 -> 150246.61 | C41: =B41-D41 -> 0 | D41: ='OTHER EQUIP 2188'!M82 -> 150246.61 | E41: ='OTHER EQUIP 2188'!P82 -> 4886.05 | F41: ='OTHER EQUIP 2188'!Q82 -> 131086.04 | G41: ='OTHER EQUIP 2188'!R82 -> 135972.09 | H41: ='OTHER EQUIP 2188'!S82 -> 14274.52
A43: Office Equipment | B43: ='OTHER EQUIP 2188'!L125 -> 111860.04 | C43: =B43-D43 -> 0 | D43: ='OTHER EQUIP 2188'!M125 -> 111860.04 | E43: ='OTHER EQUIP 2188'!P125 -> 3547.382 | F43: ='OTHER EQUIP 2188'!Q125 -> 101040.14 | G43: ='OTHER EQUIP 2188'!R125 -> 104587.522 | H43: ='OTHER EQUIP 2188'!S125 -> 7272.518
A45: Software/Comp Upgrades | B45: ='OTHER EQUIP 2188'!L145 -> 33277.76 | C45: =B45-D45 -> 0 | D45: ='OTHER EQUIP 2188'!M145 -> 33277.76 | E45: ='OTHER EQUIP 2188'!P145 -> 0 | F45: ='OTHER EQUIP 2188'!Q145 -> 33277.76 | G45: ='OTHER EQUIP 2188'!R145 -> 33277.76 | H45: ='OTHER EQUIP 2188'!S145 -> 0
A47: Leasehold Improvements | B47: ='OTHER EQUIP 2188'!L51 -> 1102701.96 | C47: =B47-D47 -> 0 | D47: ='OTHER EQUIP 2188'!M51 -> 1102701.96 | E47: ='OTHER EQUIP 2188'!P51 -> 58872.57508 | F47: ='OTHER EQUIP 2188'!Q51 -> 664630.7599 | G47: ='OTHER EQUIP 2188'!R51 -> 723503.335 | H47: ='OTHER EQUIP 2188'!S51 -> 379198.625
A49: Recycling Baler | B49: ='OTHER EQUIP 2188'!L151 -> 8532.31 | C49: =B49-D49 -> 0 | D49: ='OTHER EQUIP 2188'!M151 -> 8532.31 | E49: ='OTHER EQUIP 2188'!P151 -> 0 | F49: ='OTHER EQUIP 2188'!Q151 -> 8532.31 | G49: ='OTHER EQUIP 2188'!R151 -> 8532.31 | H49: ='OTHER EQUIP 2188'!S151 -> 0
A51: Building | B51: ='OTHER EQUIP 2188'!L27 -> 658913.29 | C51: =B51-D51 -> 0 | D51: ='OTHER EQUIP 2188'!M27 -> 658913.29 | E51: ='OTHER EQUIP 2188'!P27 -> 17918.93821 | F51: ='OTHER EQUIP 2188'!Q27 -> 321501.1818 | G51: ='OTHER EQUIP 2188'!R27 -> 339420.12 | H51: ='OTHER EQUIP 2188'!S27 -> 319493.17
A53: Land | B53: =54962.41 -> 54962.41 | C53: 0 | D53: 0 | E53: 0 | F53: 0 | G53: 0 | H53: =+B53 -> 54962.41
A55: Total Other Equipment | B55: =SUM(B39:B54) -> 2197388.79 | C55: =SUM(C39:C54) -> 8825.634 | D55: 2133600.746 | E55: 92671.55662 | F55: 1294247.358 | G55: 1386918.914 | H55: 810469.8757
B56: =+B55-'OTHER EQUIP 2188'!L153-B53 -> 1.455191523e-10
A57: Total Equipment | B57: =B24+B37+B55 -> 18561820.77 | C57: 77522.382 | D57: 18429335.98 | E57: 1224537.183 | F57: 10892651.58 | G57: 12117188.76 | H57: 6444632.007
B59: =B57-'Trucks 2188'!M227-'Containers 2188'!K401-'OTHER EQUIP 2188'!L153-B53 -> -3.114109859e-09 | D59: ='Trucks 2188'!N227+'Containers 2188'!L401+'OTHER EQUIP 2188'!M153-D57 -> 0 | E59: ='Trucks 2188'!Q227+'Containers 2188'!O401+'OTHER EQUIP 2188'!P153-E57 -> 0 | F59: ='Trucks 2188'!S227+'Containers 2188'!P401+'OTHER EQUIP 2188'!Q153-F57 -> 0 | G59: ='Trucks 2188'!T227+'Containers 2188'!Q401+'OTHER EQUIP 2188'!R153-G57 -> 0 | H59: ='Trucks 2188'!U227+'Containers 2188'!R401+'OTHER EQUIP 2188'!S153-H57+H53 -> -2.008164302e-09 | I59: Check
A80: UTC Group Tracking
A82: Updated Through | B82: Updated By | C82: FAR $ | D82: UTC Sched $ | E82: Difference
A84: 1/1/2010 - 12/31/2010 | B84: HL | C84: 101214.57 | D84: 92769.64
A85: Asset #71922 | D85: 10920.23
A86: Asset #79884 | C86: 2472.3
C87: =SUM(C84:C86) -> 103686.87 | D87: =SUM(D84:D86) -> 103689.87 | E87: =D87-C87 -> 3
A88: 1/1/2011 - 12/31/2011 | B88: HL | C88: =669668.96+C86 -> 672141.26 | D88: =776571.07+2019.6+129.14 -> 778719.81 | E88: =C88-D88 -> -106578.55 | F88: =-108532.26-3443.64-129.14 -> -112105.04 | G88: Truck #3543 on 2189 FAR, on 2188 UTC.
F89: =-625.95 -> -625.95 | G89: Drive Cam for #3543 on 2189 FAR, on 2188 UTC
F90: -9450 | G90: 12/31/2011 CAPEX
F91: =13130.09 -> 13130.09 | G91: Radios on 2189
F92: =C86 -> 2472.3 | G92: 12/31/2010 CAPEX
A93: 1/1/2012 - 3/31/2012 | B93: HL | C93: 17783.19 | D93: 8333.19 | E93: =C93-D93 -> 9450 | F93: 9450 | G93: 12/31/2011 CAPEX | I93: Retirements/Transfers also updated through 3/31/2012.
A94: 1/1/2013-6/30/2013 | B94: HL | C94: 41851.44 | D94: 41851.44 | E94: 0
A95: 7/1/2013-12/31/2013 | B95: HG | C95: 545484.02 | D95: 559470.02 | E95: -13986
B96: CAP EX #111061 | C96: 13986 | E96: 13986
C97: 559470.02 | E97: 559470.02
A98: 1/1/2014-6/30/2014 | B98: HG | C98: 43543.38 | D98: 43543.38 | E98: 0
A99: 1/1/2014-12/31/2014 | B99: JB | C99: 771174.23 | D99: 770997.98 | E99: 176.25
A100: Irmgard updated Jan-June 2015, need to reconcile and do retirements/transfers. | E100: 0
A101: 1/1/2015 - 10/31/2015 | B101: HG | C101: 266133.57 | D101: 266133.57 | E101: 0
A102: 11/1/2015 - 12/31/2015 | B102: JB | C102: 513934.35 | D102: 513934.35 | E102: 0
A103: 01/01/2016 - 08/31/2016 | B103: BJT | C103: 983119.51 | D103: 983119.51 | E103: 0
A104: 09/01/2016 - 12/31/2016 | B104: BJT | C104: 125208.99 | D104: 125208.99 | E104: 0
A105: 1/1/2017-9/30/2017 | B105: LAW | C105: 212935.92 | D105: 212935.92 | E105: 0
A106: 10/1/2017-12/31/2018 | B106: CRP | C106: =SUM([1]Assets!$R$14:$R$44,[1]Assets!$R$47) -> 1598805.78 | D106: =SUM('Trucks 2188'!M83:M91,'Containers 2188'!K142:K155,'Containers 2188'!K264:K267,'Containers 2188'!K333:K334,'Containers 2188'!K370:K372,'Containers 2188'!K396) -> 1656901.95 | E106: -58096.17
A107: 1/1/2019-08/31/2019 | B107: LAW | C107: 902041.45 | D107: =+SUM('Trucks 2188'!M92,'Trucks 2188'!M319,'Trucks 2188'!M317,'Containers 2188'!K97:K102,'Containers 2188'!K108,'Containers 2188'!K114:K117,'Containers 2188'!K123:K125,'Containers 2188'!K171:K176,'Containers 2188'!K268:K271,'Containers 2188'!K329:K332,'Containers 2188'!K340,'Containers 2188'!K373:K374,'OTHER EQUIP 2188'!L76:L79,'OTHER EQUIP 2188'!L93,'OTHER EQUIP 2188'!L96:L97) -> 889266.49 | E107: 12774.96 | F107: Difference is related to FAR 209229. This was transferred from 2183 so and had salvage value to amortize. We updated the value to match 2183's Depr Schedule.
A108: 9/1/2019-12/31/2019 | B108: HMG | C108: 1155212.48 | D108: ='Trucks 2188'!M6+'Containers 2188'!K8+'OTHER EQUIP 2188'!L7+682.66 -> 1155213.48 | E108: =C108-D108 -> -1
A109: 1/1/2020-05/31/2020 | B109: LAW | C109: 811881.02 | D109: =+SUM('Trucks 2188'!M40,'Trucks 2188'!M64,'Trucks 2188'!M96:M98,'OTHER EQUIP 2188'!L49) -> 811881.02 | E109: =C109-D109 -> 0

Sheet Trucks 2188
C1: 2188 Lewis County/Joe's Refuse
C2: Depreciation Schedule | N2: 9 | O2: Effective Rate Month | AL2: CONVENTIONS
C3: 2020-05-31 | N3: 2019 | O3: First Year
N4: 2020 | O4: Second YEar | AK4: 1 | AL4: Calendar year test period: | AO4: 12 | AP4: mos in first year
G5: Last Filing | I5: 2009-12-31 | N5: =+N4+(N2/12) -> 2020.75 | O5: Rate Effective Year | AL5: 1993 | AO5: 0 | AP5: mos in 2nd year
M6: =SUM(M93:M95) -> 1034795.46 | AO6: 93 | AP6: First year
AO7: 94 | AP7: Second Year
S8: Beginning | T8: Ending
E9: GARBAGE | H9: Salvage | K9: Year | Q9: Total | S9: Accum. | T9: Accum. | U9: Average
D10: Truck | F10: Date in Service | H10: Value | I10: Method | J10: Life | K10: Fully | L10: Year/Mo | M10: Asset | N10: Depr | O10: Monthly | P10: Annual | Q10: Test yr. | S10: Depr. | T10: Depr. | U10: Investment | AK10: 2 | AL10: Dispositions must be in test period
A11: FAR # | B11: FAR | C11: Codes | D11: No | E11: Asset Description | F11: Year | G11: Mo | H11: % | I11: M | J11: Years | K11: Depr | L11: Fully Depr | M11: Cost | N11: Cost | O11: Depr | P11: Depr | Q11: Depn. | S11: =+'Summary 2188'!F6 -> 2019-06-01 | T11: =+'Summary 2188'!G6 -> 2020-05-31 | U11: =+'Summary 2188'!H6 -> 2020-05-31
C12: P/U | D12: 6205 | E12: 1986 DODGE TRUCK | F12: 1994 | G12: 3 | H12: 0 | I12: S/L | J12: 7 | K12: =F12+J12 -> 2001 | L12: =+K12+(G12/12) -> 2001.25 | M12: =+'Trucks 2188 - Original'!Q12 -> 21357.6 | N12: =M12-M12*H12 -> 21357.6 | O12: =N12/J12/12 -> 254.2571429 | P12: =+O12*12 -> 3051.085714 | Q12: =+IF(L12<=$N$5,0,IF(K12>$N$4,P12,(O12*G12))) -> 0 | S12: =+IF(Q12=0,(M12-(M12-N12)),IF($N$3-F12<1,0,(($N$3-F12)*P12))) -> 21357.6 | T12: =+IF(Q12=0,S12,S12+Q12) -> 21357.6 | U12: =+M12-T12 -> 0
D13: 6205 | E13: Truck #6205 Amort of Salvage | F13: 2019 | G13: 6 | H13: 0 | I13: S/L | J13: =+IF(K12-$N$3>=3,K12-$N$3,3) -> 3 | K13: 2022 | L13: =+K13+(G13/12) -> 2022.5 | M13: =+'Trucks 2188 - Original'!O12-'Trucks 2188'!M12 -> 5339.4 | N13: =M13-M13*H13 -> 5339.4 | O13: =N13/J13/12 -> 148.3166667 | P13: =+O13*12 -> 1779.8 | Q13: =+IF(L13<=$N$5,0,IF(K13>$N$4,P13,(O13*G13))) -> 1779.8 | S13: 0 | T13: =+IF(Q13=0,S13,S13+Q13) -> 1779.8 | U13: =+M13-T13 -> 3559.6
C14: P/U | D14: 6014 | E14: '97 FORD RANGER | F14: 1999 | G14: 1 | H14: 0 | I14: S/L | J14: 5 | K14: 2004 | L14: =+K14+(G14/12) -> 2004.083333 | M14: =+'Trucks 2188 - Original'!Q16 -> 5810.24 | N14: =M14-M14*H14 -> 5810.24 | O14: =N14/J14/12 -> 96.83733333 | P14: =+O14*12 -> 1162.048 | Q14: =+IF(L14<=$N$5,0,IF(K14>$N$4,P14,(O14*G14))) -> 0 | S14: 5810.24 | T14: =+IF(Q14=0,S14,S14+Q14) -> 5810.24 | U14: =+M14-T14 -> 0
D15: 6014 | E15: Truck #1002 Amort of Salvage | F15: 2019 | G15: 6 | H15: 0 | I15: S/L | J15: =+IF(K14-$N$3>=3,K14-$N$3,3) -> 3 | K15: =F15+J15 -> 2022 | L15: =+K15+(G15/12) -> 2022.5 | M15: =+'Trucks 2188 - Original'!O16-'Trucks 2188'!M14 -> 2861.76 | N15: =M15-M15*H15 -> 2861.76 | O15: =N15/J15/12 -> 79.49333333 | P15: =+O15*12 -> 953.92 | Q15: =+IF(L15<=$N$5,0,IF(K15>$N$4,P15,(O15*G15))) -> 953.92 | S15: =+IF(Q15=0,(M15-(M15-N15)),IF($N$3-F15<1,0,(($N$3-F15)*P15))) -> 0 | T15: =+IF(Q15=0,S15,S15+Q15) -> 953.92 | U15: =+M15-T15 -> 1907.84
C16: SL | D16: 3567 | E16: 02 PETE 320 CURBTENDER | F16: 2002 | G16: 5 | H16: 0 | I16: S/L | J16: 7 | K16: 2009 | L16: 2009.416667 | M16: =+'Trucks 2188 - Original'!Q17 -> 127759.184 | N16: 127759.184 | O16: 1520.942667 | P16: 18251.312 | Q16: 0 | S16: 127759.184 | T16: 127759.184 | U16: 0
D17: 3567 | E17: Truck #3567 Amort of Salvage | F17: 2019 | G17: 6 | H17: 0 | I17: S/L | J17: =+IF(K16-$N$3>=3,K16-$N$3,3) -> 3 | K17: =F17+J17 -> 2022 | L17: =+K17+(G17/12) -> 2022.5 | M17: =+'Trucks 2188 - Original'!O17-'Trucks 2188'!M16 -> 31939.796 | N17: =M17-M17*H17 -> 31939.796 | O17: =N17/J17/12 -> 887.2165556 | P17: =+O17*12 -> 10646.59867 | Q17: =+IF(L17<=$N$5,0,IF(K17>$N$4,P17,(O17*G17))) -> 10646.59867 | S17: 0 | T17: =+IF(Q17=0,S17,S17+Q17) -> 10646.59867 | U17: =+M17-T17 -> 21293.19733
C18: FL | D18: 2019 | E18: 03 PB 320 W/WITTKE FLC-2102 PA | F18: 2003 | G18: 5 | H18: 0 | I18: S/L | J18: 7 | K18: 2010 | L18: 2010.416667 | M18: =+'Trucks 2188 - Original'!Q18 -> 137042.712 | N18: 137042.712 | O18: 1631.460857 | P18: 19577.53029 | Q18: 0 | S18: 137042.712 | T18: 137042.712 | U18: 0
D19: 2019 | E19: Truck #2019 Amort of Salvage | F19: 2019 | G19: 6 | H19: 0 | I19: S/L | J19: =+IF(K18-$N$3>=3,K18-$N$3,3) -> 3 | K19: 2022 | L19: =+K19+(G19/12) -> 2022.5 | M19: =+'Trucks 2188 - Original'!O18-'Trucks 2188'!M18 -> 34260.678 | N19: =M19-M19*H19 -> 34260.678 | O19: =N19/J19/12 -> 951.6855 | P19: =+O19*12 -> 11420.226 | Q19: =+IF(L19<=$N$5,0,IF(K19>$N$4,P19,(O19*G19))) -> 11420.226 | S19: 0 | T19: =+IF(Q19=0,S19,S19+Q19) -> 11420.226 | U19: =+M19-T19 -> 22840.452
C20: SL | D20: 3592 | E20: '06 PETE W/27 CY CURBTENDER | F20: 2006 | G20: 4 | H20: 0 | I20: S/L | J20: 7 | K20: 2013 | L20: 2013.333333 | M20: =+'Trucks 2188 - Original'!Q19 -> 143783.984 | N20: 143783.984 | O20: 1711.714095 | P20: 20540.56914 | Q20: 0 | S20: 143783.984 | T20: 143783.984 | U20: 0
D21: 3592 | E21: Truck #3592 Amort of Salvage | F21: 2019 | G21: 6 | H21: 0 | I21: S/L | J21: =+IF(K20-$N$3>=3,K20-$N$3,3) -> 3 | K21: =F21+J21 -> 2022 | L21: =+K21+(G21/12) -> 2022.5 | M21: =+'Trucks 2188 - Original'!O19-'Trucks 2188'!M20 -> 35945.996 | N21: =M21-M21*H21 -> 35945.996 | O21: =N21/J21/12 -> 998.4998889 | P21: =+O21*12 -> 11981.99867 | Q21: =+IF(L21<=$N$5,0,IF(K21>$N$4,P21,(O21*G21))) -> 11981.99867 | S21: 0 | T21: =+IF(Q21=0,S21,S21+Q21) -> 11981.99867 | U21: =+M21-T21 -> 23963.99733
C22: SL | D22: 3592 | E22: GREASER UNIT FOR 3592 | F22: 2006 | G22: 4 | H22: 0 | I22: S/L | J22: 7 | K22: 2013 | L22: 2013.333333 | M22: =+'Trucks 2188 - Original'!Q20 -> 3058.592 | N22: 3058.592 | O22: 36.41180952 | P22: 436.9417143 | Q22: 0 | S22: 3058.592 | T22: 3058.592 | U22: 0
D23: 3592 | E23: Truck #3592 Amort of Salvage | F23: 2019 | G23: 6 | H23: 0 | I23: S/L | J23: =+IF(K22-$N$3>=3,K22-$N$3,3) -> 3 | K23: 2022 | L23: =+K23+(G23/12) -> 2022.5 | M23: =+'Trucks 2188 - Original'!O20-'Trucks 2188'!M22 -> 764.648 | N23: =M23-M23*H23 -> 764.648 | O23: =N23/J23/12 -> 21.24022222 | P23: =+O23*12 -> 254.8826667 | Q23: =+IF(L23<=$N$5,0,IF(K23>$N$4,P23,(O23*G23))) -> 254.8826667 | S23: 0 | T23: =+IF(Q23=0,S23,S23+Q23) -> 254.8826667 | U23: =+M23-T23 -> 509.7653333
C24: RL | D24: 1050 | E24: '07 INT'L W/20 YD METROPAK R/L | F24: 2006 | G24: 11 | H24: 0 | I24: S/L | J24: 7 | K24: 2013 | L24: 2013.916667 | M24: =+'Trucks 2188 - Original'!Q22 -> 101297.152 | N24: 101297.152 | O24: 1205.918476 | P24: 14471.02171 | Q24: 0 | S24: 101297.152 | T24: 101297.152 | U24: 0
D25: 1050 | E25: Truck #1050 Amort of Salvage | F25: 2019 | G25: 6 | H25: 0 | I25: S/L | J25: =+IF(K24-$N$3>=3,K24-$N$3,3) -> 3 | K25: 2022 | L25: =+K25+(G25/12) -> 2022.5 | M25: =+'Trucks 2188 - Original'!O22-'Trucks 2188'!M24 -> 25324.288 | N25: =M25-M25*H25 -> 25324.288 | O25: =N25/J25/12 -> 703.4524444 | P25: =+O25*12 -> 8441.429333 | Q25: =+IF(L25<=$N$5,0,IF(K25>$N$4,P25,(O25*G25))) -> 8441.429333 | S25: 0 | T25: =+IF(Q25=0,S25,S25+Q25) -> 8441.429333 | U25: =+M25-T25 -> 16882.85867
C26: RW | D26: 11092 | E26: ROUTWARE INSTALLATIONS (NON-REG) | F26: 2007 | G26: 4 | H26: 0 | I26: S/L | J26: 7 | K26: 2014 | L26: 2014.333333 | M26: =+'Trucks 2188 - Original'!Q26 -> 50784.872 | N26: 50784.872 | O26: 604.5818095 | P26: 7254.981714 | Q26: 0 | S26: 50784.872 | T26: 50784.872 | U26: 0
D27: 11092 | E27: Truck #11092 Amort of Salvage | F27: 2019 | G27: 6 | H27: 0 | I27: S/L | J27: =+IF(K26-$N$3>=3,K26-$N$3,3) -> 3 | K27: 2022 | L27: =+K27+(G27/12) -> 2022.5 | M27: =+'Trucks 2188 - Original'!O26-'Trucks 2188'!M26 -> 12696.218 | N27: =M27-M27*H27 -> 12696.218 | O27: =N27/J27/12 -> 352.6727222 | P27: =+O27*12 -> 4232.072667 | Q27: =+IF(L27<=$N$5,0,IF(K27>$N$4,P27,(O27*G27))) -> 4232.072667 | S27: 0 | T27: =+IF(Q27=0,S27,S27+Q27) -> 4232.072667 | U27: =+M27-T27 -> 8464.145333
C28: RL | D28: 1056 | E28: '07 INT'L W/METROPAK R/L BODY | F28: 2007 | G28: 5 | H28: 0 | I28: S/L | J28: 7 | K28: 2014 | L28: 2014.416667 | M28: =+'Trucks 2188 - Original'!Q27 -> 101874.976 | N28: 101874.976 | O28: 1212.797333 | P28: 14553.568 | Q28: 0 | S28: 101874.976 | T28: 101874.976 | U28: 0
D29: 1056 | E29: Truck #1056 Amort of Salvage | F29: 2019 | G29: 6 | H29: 0 | I29: S/L | J29: =+IF(K28-$N$3>=3,K28-$N$3,3) -> 3 | K29: =F29+J29 -> 2022 | L29: =+K29+(G29/12) -> 2022.5 | M29: =+'Trucks 2188 - Original'!O27-'Trucks 2188'!M28 -> 25468.744 | N29: =M29-M29*H29 -> 25468.744 | O29: =N29/J29/12 -> 707.4651111 | P29: =+O29*12 -> 8489.581333 | Q29: =+IF(L29<=$N$5,0,IF(K29>$N$4,P29,(O29*G29))) -> 8489.581333 | S29: 0 | T29: =+IF(Q29=0,S29,S29+Q29) -> 8489.581333 | U29: =+M29-T29 -> 16979.16267
C30: RL | D30: 1061 | E30: 07 INT'L W/METROPAK R/L BODY | F30: 2007 | G30: 5 | H30: 0 | I30: S/L | J30: 7 | K30: 2014 | L30: 2014.416667 | M30: =+'Trucks 2188 - Original'!Q28 -> 101874.976 | N30: 101874.976 | O30: 1212.797333 | P30: 14553.568 | Q30: 0 | S30: 101874.976 | T30: 101874.976 | U30: 0
D31: 1061 | E31: Truck #1061 Amort of Salvage | F31: 2019 | G31: 6 | H31: 0 | I31: S/L | J31: =+IF(K30-$N$3>=3,K30-$N$3,3) -> 3 | K31: 2022 | L31: =+K31+(G31/12) -> 2022.5 | M31: =+'Trucks 2188 - Original'!O28-'Trucks 2188'!M30 -> 25468.744 | N31: =M31-M31*H31 -> 25468.744 | O31: =N31/J31/12 -> 707.4651111 | P31: =+O31*12 -> 8489.581333 | Q31: =+IF(L31<=$N$5,0,IF(K31>$N$4,P31,(O31*G31))) -> 8489.581333 | S31: 0 | T31: =+IF(Q31=0,S31,S31+Q31) -> 8489.581333 | U31: =+M31-T31 -> 16979.16267
C32: RW | D32: 11093 | E32: ROUTWARE INSTALLATIONS | F32: 2007 | G32: 7 | H32: 0 | I32: S/L | J32: 5 | K32: 2012 | L32: 2012.583333 | M32: =+'Trucks 2188 - Original'!Q29 -> 118876.626 | N32: 118876.626 | O32: 1981.2771 | P32: 23775.3252 | Q32: 0 | S32: 118876.626 | T32: 118876.626 | U32: 0
D33: 11093 | E33: Truck #11093 Amort of Salvage | F33: 2019 | G33: 6 | H33: 0 | I33: S/L | J33: =+IF(K32-$N$3>=3,K32-$N$3,3) -> 3 | K33: =F33+J33 -> 2022 | L33: =+K33+(G33/12) -> 2022.5 | M33: =+'Trucks 2188 - Original'!O29-'Trucks 2188'!M32 -> 58551.174 | N33: =M33-M33*H33 -> 58551.174 | O33: =N33/J33/12 -> 1626.4215 | P33: =+O33*12 -> 19517.058 | Q33: =+IF(L33<=$N$5,0,IF(K33>$N$4,P33,(O33*G33))) -> 19517.058 | S33: 0 | T33: =+IF(Q33=0,S33,S33+Q33) -> 19517.058 | U33: =+M33-T33 -> 39034.116
C34: RL | D34: 1060 | E34: '07 INT'L W/METROPAK R/L BODY | F34: 2007 | G34: 7 | H34: 0 | I34: S/L | J34: 7 | K34: 2014 | L34: 2014.583333 | M34: =+'Trucks 2188 - Original'!Q30 -> 101874.976 | N34: 101874.976 | O34: 1212.797333 | P34: 14553.568 | Q34: 0 | S34: 101874.976 | T34: 101874.976 | U34: 0
D35: 1060 | E35: Truck #1060 Amort of Salvage | F35: 2019 | G35: 6 | H35: 0 | I35: S/L | J35: =+IF(K34-$N$3>=3,K34-$N$3,3) -> 3 | K35: 2022 | L35: =+K35+(G35/12) -> 2022.5 | M35: =+'Trucks 2188 - Original'!O30-'Trucks 2188'!M34 -> 25468.744 | N35: =M35-M35*H35 -> 25468.744 | O35: =N35/J35/12 -> 707.4651111 | P35: =+O35*12 -> 8489.581333 | Q35: =+IF(L35<=$N$5,0,IF(K35>$N$4,P35,(O35*G35))) -> 8489.581333 | S35: 0 | T35: =+IF(Q35=0,S35,S35+Q35) -> 8489.581333 | U35: =+M35-T35 -> 16979.16267
C36: SL | D36: 3612 | E36: 07 PB 320 W/27 CY CURBTENDER | F36: 2007 | G36: 8 | H36: 0 | I36: S/L | J36: 7 | K36: 2014 | L36: 2014.666667 | M36: =+'Trucks 2188 - Original'!Q33 -> 155764.032 | N36: 155764.032 | O36: 1854.333714 | P36: 22252.00457 | Q36: 0 | S36: 155764.032 | T36: 155764.032 | U36: 0
D37: 3612 | E37: Truck #3612 Amort of Salvage | F37: 2019 | G37: 6 | H37: 0 | I37: S/L | J37: =+IF(K36-$N$3>=3,K36-$N$3,3) -> 3 | K37: =F37+J37 -> 2022 | L37: =+K37+(G37/12) -> 2022.5 | M37: =+'Trucks 2188 - Original'!O33-'Trucks 2188'!M36 -> 38941.008 | N37: =M37-M37*H37 -> 38941.008 | O37: =N37/J37/12 -> 1081.694667 | P37: =+O37*12 -> 12980.336 | Q37: =+IF(L37<=$N$5,0,IF(K37>$N$4,P37,(O37*G37))) -> 12980.336 | S37: 0 | T37: =+IF(Q37=0,S37,S37+Q37) -> 12980.336 | U37: =+M37-T37 -> 25960.672
C38: SL | D38: 3627 | E38: 2009 PB CHASSIS FOR ASL | F38: 2008 | G38: 10 | H38: 0 | I38: S/L | J38: 7 | K38: 2015 | L38: 2015.833333 | M38: =+'Trucks 2188 - Original'!Q35 -> 101681.232 | N38: 101681.232 | O38: 1210.490857 | P38: 14525.89029 | Q38: 0 | S38: 101681.232 | T38: 101681.232 | U38: 0
D39: 3627 | E39: Truck #3627 Amort of Salvage | F39: 2019 | G39: 6 | H39: 0 | I39: S/L | J39: =+IF(K38-$N$3>=3,K38-$N$3,3) -> 3 | K39: =F39+J39 -> 2022 | L39: =+K39+(G39/12) -> 2022.5 | M39: =+'Trucks 2188 - Original'!O35-'Trucks 2188'!M38 -> 25420.308 | N39: =M39-M39*H39 -> 25420.308 | O39: =N39/J39/12 -> 706.1196667 | P39: =+O39*12 -> 8473.436 | Q39: =+IF(L39<=$N$5,0,IF(K39>$N$4,P39,(O39*G39))) -> 8473.436 | S39: 0 | T39: =+IF(Q39=0,S39,S39+Q39) -> 8473.436 | U39: =+M39-T39 -> 16946.872
A40: 227082 | D40: 2026 | E40: 2006 Type H Frontl FEL | F40: 2008 | G40: 11 | H40: 0 | I40: S/L | J40: 10 | K40: =F40+J40 -> 2018 | L40: =+K40+(G40/12) -> 2018.916667 | M40: 163500 | N40: =M40-M40*H40 -> 163500 | O40: =N40/J40/12 -> 1362.5 | P40: =+O40*12 -> 16350 | Q40: =+IF(L40<=$N$5,0,IF(K40>$N$4,P40,(O40*G40))) -> 0 | S40: 163500 | T40: =+IF(Q40=0,S40,S40+Q40) -> 163500 | U40: =+M40-T40 -> 0
C41: SL | D41: 3627 | E41: 2009 PETERBILT 320 BODY | F41: 2008 | G41: 12 | H41: 0 | I41: S/L | J41: 7 | K41: 2015 | L41: 2016 | M41: =+'Trucks 2188 - Original'!Q36 -> 80455.752 | N41: 80455.752 | O41: 957.8065714 | P41: 11493.67886 | Q41: 0 | S41: 80455.752 | T41: 80455.752 | U41: 0
D42: 3627 | E42: Truck #3627 Amort of Salvage | F42: 2019 | G42: 6 | H42: 0 | I42: S/L | J42: =+IF(K41-$N$3>=3,K41-$N$3,3) -> 3 | K42: 2022 | L42: =+K42+(G42/12) -> 2022.5 | M42: =+'Trucks 2188 - Original'!O36-'Trucks 2188'!M41 -> 20113.938 | N42: =M42-M42*H42 -> 20113.938 | O42: =N42/J42/12 -> 558.7205 | P42: =+O42*12 -> 6704.646 | Q42: =+IF(L42<=$N$5,0,IF(K42>$N$4,P42,(O42*G42))) -> 6704.646 | S42: 0 | T42: =+IF(Q42=0,S42,S42+Q42) -> 6704.646 | U42: =+M42-T42 -> 13409.292
C43: SL | D43: 3623 | E43: 2009 TYPE H TSIDE ASL | F43: 2009 | G43: 1 | H43: 0 | I43: S/L | J43: 7 | K43: 2016 | L43: 2016.083333 | M43: =+'Trucks 2188 - Original'!Q37 -> 177767.96 | N43: 177767.96 | O43: 2116.285238 | P43: 25395.42286 | Q43: 0 | S43: 177767.96 | T43: 177767.96 | U43: 0
D44: 3623 | E44: Truck #3623 Amort of Salvage | F44: 2019 | G44: 6 | H44: 0 | I44: S/L | J44: =+IF(K43-$N$3>=3,K43-$N$3,3) -> 3 | K44: =F44+J44 -> 2022 | L44: =+K44+(G44/12) -> 2022.5 | M44: =+'Trucks 2188 - Original'!O37-'Trucks 2188'!M43 -> 44441.99 | N44: =M44-M44*H44 -> 44441.99 | O44: =N44/J44/12 -> 1234.499722 | P44: =+O44*12 -> 14813.99667 | Q44: =+IF(L44<=$N$5,0,IF(K44>$N$4,P44,(O44*G44))) -> 14813.99667 | S44: 0 | T44: =+IF(Q44=0,S44,S44+Q44) -> 14813.99667 | U44: =+M44-T44 -> 29627.99333
C45: SL | D45: 3623 | E45: AUTOGREASER FOR TRUCK 3623 | F45: 2009 | G45: 1 | H45: 0 | I45: S/L | J45: 7 | K45: 2016 | L45: 2016.083333 | M45: =+'Trucks 2188 - Original'!Q38 -> 3159.552 | N45: 3159.552 | O45: 37.61371429 | P45: 451.3645714 | Q45: 0 | S45: 3159.552 | T45: 3159.552 | U45: 0
D46: 3623 | E46: Truck #3623 Amort of Salvage | F46: 2019 | G46: 6 | H46: 0 | I46: S/L | J46: =+IF(K45-$N$3>=3,K45-$N$3,3) -> 3 | K46: 2022 | L46: =+K46+(G46/12) -> 2022.5 | M46: =+'Trucks 2188 - Original'!O38-'Trucks 2188'!M45 -> 789.888 | N46: =M46-M46*H46 -> 789.888 | O46: =N46/J46/12 -> 21.94133333 | P46: =+O46*12 -> 263.296 | Q46: =+IF(L46<=$N$5,0,IF(K46>$N$4,P46,(O46*G46))) -> 263.296 | S46: 0 | T46: =+IF(Q46=0,S46,S46+Q46) -> 263.296 | U46: =+M46-T46 -> 526.592
C47: SL | D47: 3567 | E47: FLUP - 3567 - V02235852 | F47: 2009 | G47: 5 | H47: 0 | I47: S/L | J47: 3 | K47: 2012 | L47: 2012.416667 | M47: 931.18 | N47: 931.18 | O47: 25.86611111 | P47: 310.3933333 | Q47: 0 | S47: 931.18 | T47: 931.18 | U47: 0
C48: SL | D48: 3567 | E48: FLUP - 3567 - R-984978 | F48: 2009 | G48: 5 | H48: 0 | I48: S/L | J48: 3 | K48: 2012 | L48: 2012.416667 | M48: 971.25 | N48: 971.25 | O48: 26.97916667 | P48: 323.75 | Q48: 0 | S48: 971.25 | T48: 971.25 | U48: 0
C49: SL | D49: 3567 | E49: FLUP - TRUCK 3567 | F49: 2009 | G49: 5 | H49: 0 | I49: S/L | J49: 3 | K49: 2012 | L49: 2012.416667 | M49: 5281.93 | N49: 5281.93 | O49: 146.7202778 | P49: 1760.643333 | Q49: 0 | S49: 5281.93 | T49: 5281.93 | U49: 0 | AK49: 3 | AL49: Computes with one month convention
C50: SL | D50: 3592 | E50: FLUP - TRUCK 3592 | F50: 2009 | G50: 5 | H50: 0 | I50: S/L | J50: 3 | K50: 2012 | L50: 2012.416667 | M50: 2584.07 | N50: 2584.07 | O50: 71.77972222 | P50: 861.3566667 | Q50: 0 | S50: 2584.07 | T50: 2584.07 | U50: 0 | AK50: 4 | AL50: Asset put in service in first month of test
C51: SL | D51: 3612 | E51: FLUP - 3612 - V02227132 | F51: 2009 | G51: 5 | H51: 0 | I51: S/L | J51: 3 | K51: 2012 | L51: 2012.416667 | M51: 309.54 | N51: 309.54 | O51: 8.598333333 | P51: 103.18 | Q51: 0 | S51: 309.54 | T51: 309.54 | U51: 0
C52: SL | D52: 3612 | E52: FLUP - 3612 - V02243349 | F52: 2009 | G52: 5 | H52: 0 | I52: S/L | J52: 3 | K52: =F52+J52 -> 2012 | L52: 2012.416667 | M52: 580.21 | N52: 580.21 | O52: 16.11694444 | P52: 193.4033333 | Q52: 0 | S52: 580.21 | T52: 580.21 | U52: 0
C53: SL | D53: 3612 | E53: FLUP - 3612 - R-984765 | F53: 2009 | G53: 5 | H53: 0 | I53: S/L | J53: 3 | K53: 2012 | L53: 2012.416667 | M53: 700 | N53: 700 | O53: 19.44444444 | P53: 233.3333333 | Q53: 0 | S53: 700 | T53: 700 | U53: 0
C54: SL | D54: 3612 | E54: FLUP - TRUCK 3612 | F54: 2009 | G54: 5 | H54: 0 | I54: S/L | J54: 3 | K54: 2012 | L54: 2012.416667 | M54: 3610.79 | N54: 3610.79 | O54: 100.2997222 | P54: 1203.596667 | Q54: 0 | S54: 3610.79 | T54: 3610.79 | U54: 0
C55: FL | D55: 2019 | E55: FLUP - TRUCK 2019 | F55: 2009 | G55: 5 | H55: 0 | I55: S/L | J55: 3 | K55: 2012 | L55: 2012.416667 | M55: 7366.07 | N55: 7366.07 | O55: 204.6130556 | P55: 2455.356667 | Q55: 0 | S55: 7366.07 | T55: 7366.07 | U55: 0
C56: DC | D56: 67254 | E56: DRIVE CAM INSTALLATIONS (46) | F56: 2009 | G56: 6 | H56: 0 | I56: S/L | J56: 5 | K56: 2014 | L56: 2014.5 | M56: =+'Trucks 2188 - Original'!Q48 -> 8967.0589 | N56: 8967.0589 | O56: 149.4509817 | P56: 1793.41178 | Q56: 0 | S56: 8967.0589 | T56: 8967.0589 | U56: 0
D57: 67254 | E57: Truck #67254 Amort of Salvage | F57: 2019 | G57: 6 | H57: 0 | I57: S/L | J57: =+IF(K56-$N$3>=3,K56-$N$3,3) -> 3 | K57: 2022 | L57: =+K57+(G57/12) -> 2022.5 | M57: =+'Trucks 2188 - Original'!O48-M56 -> 4416.6111 | N57: =M57-M57*H57 -> 4416.6111 | O57: =N57/J57/12 -> 122.6836417 | P57: =+O57*12 -> 1472.2037 | Q57: =+IF(L57<=$N$5,0,IF(K57>$N$4,P57,(O57*G57))) -> 1472.2037 | S57: =+IF(Q57=0,(M57-(M57-N57)),IF($N$3-F57<1,0,(($N$3-F57)*P57))) -> 0 | T57: =+IF(Q57=0,S57,S57+Q57) -> 1472.2037 | U57: =+M57-T57 -> 2944.4074
C58: DC | D58: 67256 | E58: DRIVE CAM INSTALLATIONS (46) | F58: 2009 | G58: 6 | H58: 0 | I58: S/L | J58: 5 | K58: 2014 | L58: 2014.5 | M58: =+'Trucks 2188 - Original'!Q49 -> 266.2714 | N58: 266.2714 | O58: 4.437856667 | P58: 53.25428 | Q58: 0 | S58: 266.2714 | T58: 266.2714 | U58: 0
D59: 67256 | E59: Truck #67256 Amort of Salvage | F59: 2019 | G59: 6 | H59: 0 | I59: S/L | J59: =+IF(K58-$N$3>=3,K58-$N$3,3) -> 3 | K59: =F59+J59 -> 2022 | L59: =+K59+(G59/12) -> 2022.5 | M59: =+'Trucks 2188 - Original'!O49-M58 -> 131.1486 | N59: =M59-M59*H59 -> 131.1486 | O59: =N59/J59/12 -> 3.643016667 | P59: =+O59*12 -> 43.7162 | Q59: =+IF(L59<=$N$5,0,IF(K59>$N$4,P59,(O59*G59))) -> 43.7162 | S59: 0 | T59: =+IF(Q59=0,S59,S59+Q59) -> 43.7162 | U59: =+M59-T59 -> 87.4324
A60: 89106, 89107 | B60: 2189 | D60: 3543 | E60: DRIVE CAM | F60: 2011 | G60: 11 | H60: 0 | I60: S/L | J60: 7 | K60: 2018 | L60: 2018.916667 | M60: =1251.9/2 -> 625.95 | N60: 625.95 | O60: 7.451785714 | P60: 89.42142857 | Q60: 0 | S60: 625.95 | T60: 625.95 | U60: 0
D61: 88724 | E61: (16) TRUCK RADIOS | F61: 2011 | G61: 12 | H61: 0 | I61: S/L | J61: 5 | K61: 2016 | L61: 2017 | M61: =468.93*16 -> 7502.88 | N61: 7502.88 | O61: 125.048 | P61: 1500.576 | Q61: 0 | S61: 7502.88 | T61: 7502.88 | U61: 0
A62: 88662, 88898 | B62: 2189 | D62: 3543 | E62: 2012 INTERNATIONAL RETRIEVER (N) | F62: 2011 | G62: 12 | H62: 0 | I62: S/L | J62: 6.11 | K62: 2017.11 | L62: 2018.11 | M62: =108532.26+3443.64+129.14 -> 112105.04 | N62: 112105.04 | O62: 1528.983088 | P62: 18347.79705 | Q62: 0 | S62: 112105.04 | T62: 112105.04 | U62: 0
A63: 88724 | E63: (6) TRUCK RADIOS | F63: 2011 | G63: 12 | H63: 0 | I63: S/L | J63: 5 | K63: 2016 | L63: 2017 | M63: =468.93*6 -> 2813.58 | N63: 2813.58 | O63: 46.893 | P63: 562.716 | Q63: 0 | S63: 2813.58 | T63: 2813.58 | U63: 0
A64: 231838/231839 | D64: 2038 | E64: Used 2011 Autocar ACX64 FEL | F64: 2012 | G64: 3 | H64: 0 | I64: S/L | J64: 9 | K64: =F64+J64 -> 2021 | L64: =+K64+(G64/12) -> 2021.25 | M64: 268017 | N64: =M64-M64*H64 -> 268017 | O64: =N64/J64/12 -> 2481.638889 | P64: =+O64*12 -> 29779.66667 | Q64: =+IF(L64<=$N$5,0,IF(K64>$N$4,P64,(O64*G64))) -> 29779.66667 | S64: 208457.6667 | T64: =+IF(Q64=0,S64,S64+Q64) -> 238237.3333 | U64: =+M64-T64 -> 29779.66667
A65: 97260 | D65: 3567 | E65: Plastic Hopper Door for #3567 | F65: 2012 | G65: 10 | H65: 0 | I65: S/L | J65: 3 | K65: 2015 | L65: 2015.833333 | M65: 2558.53 | N65: 2558.53 | O65: 71.07027778 | P65: 852.8433333 | Q65: 0 | S65: 2558.53 | T65: 2558.53 | U65: 0
A66: 99664 | D66: 1070 | E66: 2013 PETERBILT 320 W/ NEW WAY BODY (N) | F66: 2012 | G66: 12 | H66: 0 | I66: S/L | J66: 10 | K66: 2022 | L66: 2023 | M66: 259759.91 | N66: 259759.91 | O66: 2164.665917 | P66: 25975.991 | Q66: 25975.991 | S66: 181831.937 | T66: 207807.928 | U66: 51951.982
A67: 109521 | C67: ASL | D67: 3636 | E67: 2014 Peterbilt/Wayne ASL (N) | F67: 2013 | G67: 12 | H67: 0 | I67: S/L | J67: 10 | K67: 2023 | L67: 2024 | M67: 322008.34 | N67: 322008.34 | O67: 2683.402833 | P67: 32200.834 | Q67: 32200.834 | S67: 193205.004 | T67: 225405.838 | U67: 96602.502
A68: 110129 | D68: 3636 | E68: DriveCam #3636 | F68: 2013 | G68: 12 | H68: 0 | I68: S/L | J68: 10 | K68: 2023 | L68: 2024 | M68: 632.57 | N68: 632.57 | O68: 5.271416667 | P68: 63.257 | Q68: 63.257 | S68: 379.542 | T68: 442.799 | U68: 189.771
A69: 109522 | C69: DEL | D69: 9389 | E69: 2014 Ford F-550 Cont. Del (N) | F69: 2013 | G69: 12 | H69: 0 | I69: S/L | J69: 10 | K69: 2023 | L69: 2024 | M69: 67654.96 | N69: 67654.96 | O69: 563.7913333 | P69: 6765.496 | Q69: 6765.496 | S69: 40592.976 | T69: 47358.472 | U69: 20296.488
A70: 118079 | C70: ASL | D70: 3642 | E70: 2015 ASL Truck (N) | F70: 2014 | G70: 12 | H70: 0 | I70: S/L | J70: 10 | K70: 2024 | L70: 2025 | M70: =327334.16+912.06 -> 328246.22 | N70: 328246.22 | O70: 2735.385167 | P70: 32824.622 | Q70: 32824.622 | S70: 164123.11 | T70: 196947.732 | U70: 131298.488
A71: 118254 | C71: SL | D71: 3627 | E71: Improvement - ASL Auto Hopper Cover Kit | F71: 2014 | G71: 12 | H71: 0 | I71: S/L | J71: 3 | K71: 2017 | L71: 2018 | M71: 2532.61 | N71: 2532.61 | O71: 70.35027778 | P71: 844.2033333 | Q71: 0 | S71: 2532.61 | T71: 2532.61 | U71: 0
A72: 118253 | C72: SL | D72: 3614 | E72: Improvement - ASL Auto Hopper Cover Kit | F72: 2014 | G72: 12 | H72: 0 | I72: S/L | J72: 3 | K72: 2017 | L72: 2018 | M72: 2532.61 | N72: 2532.61 | O72: 70.35027778 | P72: 844.2033333 | Q72: 0 | S72: 2532.61 | T72: 2532.61 | U72: 0
A73: 118252 | C73: SL | D73: 3612 | E73: Improvement - ASL Auto Hopper Cover Kit | F73: 2014 | G73: 12 | H73: 0 | I73: S/L | J73: 3 | K73: 2017 | L73: 2018 | M73: 2532.61 | N73: 2532.61 | O73: 70.35027778 | P73: 844.2033333 | Q73: 0 | S73: 2532.61 | T73: 2532.61 | U73: 0
A74: 118250 | C74: SL | D74: 3592 | E74: Improvement - ASL Auto Hopper Cover Kit | F74: 2014 | G74: 12 | H74: 0 | I74: S/L | J74: 3 | K74: 2017 | L74: 2018 | M74: 2532.61 | N74: 2532.61 | O74: 70.35027778 | P74: 844.2033333 | Q74: 0 | S74: 2532.61 | T74: 2532.61 | U74: 0
A75: 123521 | C75: SL | D75: 3627 | E75: Engine Repair | F75: 2015 | G75: 5 | H75: 0 | I75: S/L | J75: 3 | K75: 2018 | L75: 2018.416667 | M75: 21954.8 | N75: 21954.8 | O75: 609.8555556 | P75: 7318.266667 | Q75: 0 | S75: 21954.8 | T75: 21954.8 | U75: 0
A76: 132281/133543/139787 | E76: (34) Samsung Tablets, Hardware, & Setup | F76: 2016 | G76: 4 | H76: 0 | I76: S/L | J76: 1 | K76: 2017 | L76: 2017.333333 | M76: =((7403.89+8314.08+342)/38)*34 -> 14369.44684 | N76: 14369.44684 | O76: 1197.453904 | P76: 14369.44684 | Q76: 0 | S76: 14369.44684 | T76: 14369.44684 | U76: 0
A77: 132761/139725/132761 | C77: ASL | D77: 3655 | E77: 2016 ASL Truck (N), Decals, and Licensing | F77: 2016 | G77: 5 | H77: 0 | I77: S/L | J77: 10 | K77: 2026 | L77: 2026.416667 | M77: =323407.89+1609.81+472 -> 325489.7 | N77: 325489.7 | O77: 2712.414167 | P77: 32548.97 | Q77: 32548.97 | S77: 97646.91 | T77: 130195.88 | U77: 195293.82
A78: 133442/139726/165761 | C78: ASL | D78: 3656 | E78: 2016 ASL Truck (N), Decals, and Licensing | F78: 2016 | G78: 6 | H78: 0 | I78: S/L | J78: 10 | K78: 2026 | L78: 2026.5 | M78: =323407.89+1609.81+472 -> 325489.7 | N78: 325489.7 | O78: 2712.414167 | P78: 32548.97 | Q78: 32548.97 | S78: 97646.91 | T78: 130195.88 | U78: 195293.82
A79: 133443/139727/165760 | C79: RL | D79: 1074 | E79: 2016 REL Truck (N), Decals, and Licensing | F79: 2016 | G79: 6 | H79: 0 | I79: S/L | J79: 10 | K79: 2026 | L79: 2026.5 | M79: =284597.5+1554.65+472 -> 286624.15 | N79: 286624.15 | O79: 2388.534583 | P79: 28662.415 | Q79: 28662.415 | S79: 85987.245 | T79: 114649.66 | U79: 171974.49
A80: 167733 | E80: (5) Mounting Hardware & AC Adapters | F80: 2016 | G80: 6 | H80: 0 | I80: S/L | J80: 1 | K80: 2017 | L80: 2017.5 | M80: 472.52 | N80: 472.52 | O80: 39.37666667 | P80: 472.52 | Q80: 0 | S80: 472.52 | T80: 472.52 | U80: 0
A81: 128675 | C81: ASL | D81: 3646 | E81: 2016 ASL Truck- Resi Garbage | F81: 2016 | G81: 12 | H81: 0 | I81: S/L | J81: 10 | K81: =F81+J81 -> 2026 | L81: =+K81+(G81/12) -> 2027 | M81: 336161.88 | N81: =M81-M81*H81 -> 336161.88 | O81: =N81/J81/12 -> 2801.349 | P81: =+O81*12 -> 33616.188 | Q81: =+IF(L81<=$N$5,0,IF(K81>$N$4,P81,(O81*G81))) -> 33616.188 | S81: =+IF(Q81=0,(M81-(M81-N81)),IF($N$3-F81<1,0,(($N$3-F81)*P81))) -> 100848.564 | T81: =+IF(Q81=0,S81,S81+Q81) -> 134464.752 | U81: =+M81-T81 -> 201697.128 | V81: Changed truck number per district
A82: 128837 | C82: ASL | D82: 3646 | E82: Drive Cam/ Decals | F82: 2016 | G82: 12 | H82: 0 | I82: S/L | J82: 10 | K82: =F82+J82 -> 2026 | L82: =+K82+(G82/12) -> 2027 | M82: 1674.62 | N82: =M82-M82*H82 -> 1674.62 | O82: =N82/J82/12 -> 13.95516667 | P82: =+O82*12 -> 167.462 | Q82: =+IF(L82<=$N$5,0,IF(K82>$N$4,P82,(O82*G82))) -> 167.462 | S82: =+IF(Q82=0,(M82-(M82-N82)),IF($N$3-F82<1,0,(($N$3-F82)*P82))) -> 502.386 | T82: =+IF(Q82=0,S82,S82+Q82) -> 669.848 | U82: =+M82-T82 -> 1004.772 | V82: Changed truck number per district
A83: 187610 | D83: 3303 | E83: 2017 SL Truck | F83: 2017 | G83: 10 | H83: 0 | I83: S/L | J83: 10 | K83: 2027 | L83: 2027.833333 | M83: 135413.12 | N83: 135413.12 | O83: 1128.442667 | P83: 13541.312 | Q83: 13541.312 | S83: 27082.624 | T83: 40623.936 | U83: 94789.184
A84: 191690 | D84: 2510 | E84: 2018 FEL Truck | F84: 2018 | G84: 1 | H84: 0 | I84: S/L | J84: 10 | K84: =F84+J84 -> 2028 | L84: 2028.083333 | M84: 312655.16 | N84: 312655.16 | O84: 2605.459667 | P84: 31265.516 | Q84: 31265.516 | S84: 31265.516 | T84: 62531.032 | U84: 250124.128
A85: 193351/191690 | D85: 2510 | E85: Decals for New Truck | F85: 2018 | G85: 1 | H85: 0 | I85: S/L | J85: 10 | K85: 2028 | L85: =+K85+(G85/12) -> 2028.083333 | M85: 957.42 | N85: =M85-M85*H85 -> 957.42 | O85: =N85/J85/12 -> 7.9785 | P85: =+O85*12 -> 95.742 | Q85: =+IF(L85<=$N$5,0,IF(K85>$N$4,P85,(O85*G85))) -> 95.742 | S85: 95.742 | T85: =+IF(Q85=0,S85,S85+Q85) -> 191.484 | U85: =+M85-T85 -> 765.936
A86: 200354/61382 | D86: 2019 | E86: Cap Repair: Engine Repair Truck 2019 | F86: 2018 | G86: 6 | H86: 0 | I86: S/L | J86: 3 | K86: 2021 | L86: 2021.5 | M86: 35182.24 | N86: 35182.24 | O86: 977.2844444 | P86: 11727.41333 | Q86: 11727.41333 | S86: 11727.41333 | T86: 23454.82667 | U86: 11727.41333
A87: 207703/203826 | D87: 3688 | E87: Decals on Truck 3688 | F87: 2018 | G87: 9 | H87: 0 | I87: S/L | J87: 10 | K87: 2028 | L87: 2028.75 | M87: 1071.18 | N87: 1071.18 | O87: 8.9265 | P87: 107.118 | Q87: 107.118 | S87: 107.118 | T87: 214.236 | U87: 856.944
A88: 202837 | D88: 3684 | E88: 2019 ASL Truck | F88: 2018 | G88: 9 | H88: 0 | I88: S/L | J88: 10 | K88: 2028 | L88: 2028.75 | M88: 337246.78 | N88: 337246.78 | O88: 2810.389833 | P88: 33724.678 | Q88: 33724.678 | S88: 33724.678 | T88: 67449.356 | U88: 269797.424
A89: 204912/202837 | D89: 3684 | E89: Decals | F89: 2018 | G89: 9 | H89: 0 | I89: S/L | J89: 10 | K89: 2028 | L89: 2028.75 | M89: 1071.18 | N89: 1071.18 | O89: 8.9265 | P89: 107.118 | Q89: 107.118 | S89: 107.118 | T89: 214.236 | U89: 856.944
A90: 203826 | D90: 3688 | E90: 2019 ASL Truck | F90: 2018 | G90: 10 | H90: 0 | I90: S/L | J90: 10 | K90: 2028 | L90: 2028.833333 | M90: 336943.72 | N90: 336943.72 | O90: 2807.864333 | P90: 33694.372 | Q90: 33694.372 | S90: 33694.372 | T90: 67388.744 | U90: 269554.976
A91: 207435/61412 | D91: 3623 | E91: Capital Repair: Truck 3623 Engine Replacement | F91: 2018 | G91: 12 | H91: 0 | I91: S/L | J91: 3 | K91: 2021 | L91: 2022 | M91: 43878.52 | N91: 43878.52 | O91: 1218.847778 | P91: 14626.17333 | Q91: 14626.17333 | S91: 14626.17333 | T91: 29252.34667 | U91: 14626.17333
A92: 217463 | D92: 1082 | E92: New 2019 REL Truck | F92: 2019 | G92: 7 | H92: 0 | I92: S/L | J92: 9 | K92: 2028 | L92: 2028.583333 | M92: =217213.1+681.66 -> 217894.76 | N92: 217894.76 | O92: 2017.544074 | P92: 24210.52889 | Q92: 24210.52889 | S92: 0 | T92: 24210.52889 | U92: 193684.2311
A93: 223833 | D93: 1084 | E93: 2020 Peterbilt REL Truck | F93: 2019 | G93: 11 | H93: 0 | I93: S/L | J93: 10 | K93: 2029 | L93: 2029.916667 | M93: =304103.06+843.96 -> 304947.02 | N93: 304947.02 | O93: 2541.225167 | P93: 30494.702 | Q93: 30494.702 | S93: 0 | T93: 30494.702 | U93: 274452.318
A94: 225451 | D94: 3702 | E94: 2020 Peterbilt ASL Truck | F94: 2019 | G94: 12 | H94: 0 | I94: S/L | J94: 10 | K94: =F94+J94 -> 2029 | L94: =+K94+(G94/12) -> 2030 | M94: 364924.22 | N94: =M94-M94*H94 -> 364924.22 | O94: =N94/J94/12 -> 3041.035167 | P94: =+O94*12 -> 36492.422 | Q94: =+IF(L94<=$N$5,0,IF(K94>$N$4,P94,(O94*G94))) -> 36492.422 | S94: 0 | T94: =+IF(Q94=0,S94,S94+Q94) -> 36492.422 | U94: =+M94-T94 -> 328431.798
A95: 225452 | D95: 3701 | E95: 2020 Peterbilt ASL Truck | F95: 2019 | G95: 12 | H95: 0 | I95: S/L | J95: 10 | K95: 2029 | L95: 2030 | M95: 364924.22 | N95: 364924.22 | O95: 3041.035167 | P95: 36492.422 | Q95: 36492.422 | S95: 0 | T95: 36492.422 | U95: 328431.798
A96: 229087/225451 | D96: 3702 | E96: Truck Vinyls | F96: 2020 | G96: 3 | H96: 0 | I96: S/L | J96: 10 | K96: 2030 | L96: 2030.25 | M96: 984.62 | N96: 984.62 | O96: 8.205166667 | P96: 98.462 | Q96: 98.462 | S96: 0 | T96: 98.462 | U96: 886.158
A97: 232358/232184/90441 | D97: 3543 | E97: Capital Repair: Truck 3543 | F97: 2020 | G97: 4 | H97: 0 | I97: S/L | J97: 3 | K97: 2023 | L97: 2023.333333 | M97: =33092.15-79.22 -> 33012.93 | N97: =M97-M97*H97 -> 33012.93 | O97: =N97/J97/12 -> 917.0258333 | P97: =+O97*12 -> 11004.31 | Q97: =+IF(L97<=$N$5,0,IF(K97>$N$4,P97,(O97*G97))) -> 11004.31 | S97: 0 | T97: =+IF(Q97=0,S97,S97+Q97) -> 11004.31 | U97: =+M97-T97 -> 22008.62
A98: 232998 | D98: 1089 | E98: 2020 Peterbilt REL Truck | F98: 2020 | G98: 5 | H98: 0 | I98: S/L | J98: 10 | K98: =F98+J98 -> 2030 | L98: =+K98+(G98/12) -> 2030.416667 | M98: 312121.17 | N98: =M98-M98*H98 -> 312121.17 | O98: =N98/J98/12 -> 2601.00975 | P98: =+O98*12 -> 31212.117 | Q98: =+IF(L98<=$N$5,0,IF(K98>$N$4,P98,(O98*G98))) -> 31212.117 | S98: 0 | T98: =+IF(Q98=0,S98,S98+Q98) -> 31212.117 | U98: =+M98-T98 -> 280909.053
E99: Amortization of Salvage Value of 2019 & 2020 Retired Trucks | F99: 2019 | G99: 6 | H99: 0 | I99: S/L | J99: 3 | K99: =F99+J99 -> 2022 | L99: =+K99+(G99/12) -> 2022.5 | M99: =+M314+M312+M310+M307+M296+M294 -> 89875.096 | N99: =M99-M99*H99 -> 89875.096 | O99: =N99/J99/12 -> 2496.530444 | P99: =+O99*12 -> 29958.36533 | Q99: =+IF(L99<=$N$5,0,IF(K99>$N$4,P99,(O99*G99))) -> 29958.36533 | S99: =+IF(Q99=0,(M99-(M99-N99)),IF($N$3-F99<1,0,(($N$3-F99)*P99))) -> 0 | T99: =+IF(Q99=0,S99,S99+Q99) -> 29958.36533 | U99: =+M99-T99 -> 59916.73067
D101: 16 | E101: TOTAL GARBAGE | M101: =SUM(M12:M100) -> 7735033.463 | N101: =SUM(N12:N100) -> 7735033.463 | O101: =SUM(O12:O100) -> 86023.91373 | P101: =SUM(P12:P100) -> 1032286.965 | Q101: =SUM(Q12:Q100) -> 733455.0041 | S101: =SUM(S12:S100) -> 3225478.98 | T101: =SUM(T12:T100) -> 3958933.985 | U101: =SUM(U12:U100) -> 3776099.478 | V101: Updated Useful Lives to FAR
E104: ROLL OFF
D105: 4024 | E105: '00 INT'L 9200I SBA 6X4 CAB & CHASSIS | F105: 2000 | G105: 8 | H105: 0 | I105: S/L | J105: 7 | K105: =F105+J105 -> 2007 | L105: =+K105+(G105/12) -> 2007.666667 | M105: =+'Trucks 2188 - Original'!Q93 -> 73750.376 | N105: =M105-M105*H105 -> 73750.376 | O105: =N105/J105/12 -> 877.9806667 | P105: =+O105*12 -> 10535.768 | Q105: =+IF(L105<=$N$5,0,IF(K105>$N$4,P105,(O105*G105))) -> 0 | S105: =+IF(Q105=0,(M105-(M105-N105)),IF($N$3-F105<1,0,(($N$3-F105)*P105))) -> 73750.376 | T105: =+IF(Q105=0,S105,S105+Q105) -> 73750.376 | U105: =+M105-T105 -> 0
D106: 4024 | E106: Truck #4024 Amort of Salvage | F106: 2019 | G106: 6 | H106: 0 | I106: S/L | J106: =+IF(K105-$N$3>=3,K105-$N$3,3) -> 3 | K106: 2022 | L106: =+K106+(G106/12) -> 2022.5 | M106: =+'Trucks 2188 - Original'!O93-M105 -> 18437.594 | N106: =M106-M106*H106 -> 18437.594 | O106: =N106/J106/12 -> 512.1553889 | P106: =+O106*12 -> 6145.864667 | Q106: =+IF(L106<=$N$5,0,IF(K106>$N$4,P106,(O106*G106))) -> 6145.864667 | S106: 0 | T106: =+IF(Q106=0,S106,S106+Q106) -> 6145.864667 | U106: =+M106-T106 -> 12291.72933
C107: RO | D107: 4045 | E107: '06 VOLVO W/DROP MECHANISM | F107: 2005 | G107: 9 | H107: 0 | I107: S/L | J107: 7 | K107: 2012 | L107: 2012.75 | M107: =+'Trucks 2188 - Original'!Q96 -> 116925.504 | N107: =M107-M107*H107 -> 116925.504 | O107: =N107/J107/12 -> 1391.970286 | P107: 16703.64343 | Q107: =+IF(L107<=$N$5,0,IF(K107>$N$4,P107,(O107*G107))) -> 0 | S107: 116925.504 | T107: =+IF(Q107=0,S107,S107+Q107) -> 116925.504 | U107: =+M107-T107 -> 0
D108: 4045 | E108: Truck #4045 Amort of Salvage | F108: 2019 | G108: 6 | H108: 0 | I108: S/L | J108: =+IF(K107-$N$3>=3,K107-$N$3,3) -> 3 | K108: =F108+J108 -> 2022 | L108: =+K108+(G108/12) -> 2022.5 | M108: =+'Trucks 2188 - Original'!O96-M107 -> 29231.376 | N108: =M108-M108*H108 -> 29231.376 | O108: =N108/J108/12 -> 811.9826667 | P108: =+O108*12 -> 9743.792 | Q108: =+IF(L108<=$N$5,0,IF(K108>$N$4,P108,(O108*G108))) -> 9743.792 | S108: 0 | T108: =+IF(Q108=0,S108,S108+Q108) -> 9743.792 | U108: =+M108-T108 -> 19487.584
C109: RO | D109: 4043 | E109: '06 VOLVO ROLLOFF | F109: 2005 | G109: 12 | H109: 0 | I109: S/L | J109: 7 | K109: 2012 | L109: 2013 | M109: =+'Trucks 2188 - Original'!Q97 -> 116339.08 | N109: 116339.08 | O109: 1384.989048 | P109: 16619.86857 | Q109: 0 | S109: 116339.08 | T109: 116339.08 | U109: 0
D110: 4043 | E110: Truck #4043 Amort of Salvage | F110: 2019 | G110: 6 | H110: 0 | I110: S/L | J110: =+IF(K109-$N$3>=3,K109-$N$3,3) -> 3 | K110: 2022 | L110: =+K110+(G110/12) -> 2022.5 | M110: =+'Trucks 2188 - Original'!O97-M109 -> 29084.77 | N110: =M110-M110*H110 -> 29084.77 | O110: =N110/J110/12 -> 807.9102778 | P110: =+O110*12 -> 9694.923333 | Q110: =+IF(L110<=$N$5,0,IF(K110>$N$4,P110,(O110*G110))) -> 9694.923333 | S110: 0 | T110: =+IF(Q110=0,S110,S110+Q110) -> 9694.923333 | U110: =+M110-T110 -> 19389.84667
C111: RO | D111: 4057 | E111: '07 VOLVO W/HELM DROP | F111: 2007 | G111: 5 | H111: 0 | I111: S/L | J111: 7 | K111: 2014 | L111: 2014.416667 | M111: =+'Trucks 2188 - Original'!Q98 -> 125666.272 | N111: 125666.272 | O111: 1496.027048 | P111: 17952.32457 | Q111: 0 | S111: 125666.272 | T111: 125666.272 | U111: 0
D112: 4057 | E112: Truck #4057 Amort of Salvage | F112: 2019 | G112: 6 | H112: 0 | I112: S/L | J112: =+IF(K111-$N$3>=3,K111-$N$3,3) -> 3 | K112: =F112+J112 -> 2022 | L112: =+K112+(G112/12) -> 2022.5 | M112: =+'Trucks 2188 - Original'!O98-M111 -> 31416.568 | N112: =M112-M112*H112 -> 31416.568 | O112: =N112/J112/12 -> 872.6824444 | P112: =+O112*12 -> 10472.18933 | Q112: =+IF(L112<=$N$5,0,IF(K112>$N$4,P112,(O112*G112))) -> 10472.18933 | S112: 0 | T112: =+IF(Q112=0,S112,S112+Q112) -> 10472.18933 | U112: =+M112-T112 -> 20944.37867
C113: RO | D113: 11095 | E113: ROUTWARE INSTALLATIONS (NON-REG) | F113: 2008 | G113: 1 | H113: 0 | I113: S/L | J113: 7 | K113: 2015 | L113: 2015.083333 | M113: =+'Trucks 2188 - Original'!Q99 -> 48001.32 | N113: 48001.32 | O113: 571.4442857 | P113: 6857.331429 | Q113: 0 | S113: 48001.32 | T113: 48001.32 | U113: 0
D114: 11095 | E114: Truck #11095 Amort of Salvage | F114: 2019 | G114: 6 | H114: 0 | I114: S/L | J114: =+IF(K113-$N$3>=3,K113-$N$3,3) -> 3 | K114: 2022 | L114: =+K114+(G114/12) -> 2022.5 | M114: =+'Trucks 2188 - Original'!O99-M113 -> 12000.33 | N114: =M114-M114*H114 -> 12000.33 | O114: =N114/J114/12 -> 333.3425 | P114: =+O114*12 -> 4000.11 | Q114: =+IF(L114<=$N$5,0,IF(K114>$N$4,P114,(O114*G114))) -> 4000.11 | S114: 0 | T114: =+IF(Q114=0,S114,S114+Q114) -> 4000.11 | U114: =+M114-T114 -> 8000.22
C115: RO | D115: 4066 | E115: '09 VOLVO VNM84T W/HELM BOOM | F115: 2008 | G115: 10 | H115: 0 | I115: S/L | J115: 7 | K115: 2015 | L115: 2015.833333 | M115: =+'Trucks 2188 - Original'!Q100 -> 135504.632 | N115: 135504.632 | O115: 1613.150381 | P115: 19357.80457 | Q115: 0 | S115: 135504.632 | T115: 135504.632 | U115: 0
D116: 4066 | E116: Truck #4066 Amort of Salvage | F116: 2019 | G116: 6 | H116: 0 | I116: S/L | J116: =+IF(K115-$N$3>=3,K115-$N$3,3) -> 3 | K116: =F116+J116 -> 2022 | L116: =+K116+(G116/12) -> 2022.5 | M116: =+'Trucks 2188 - Original'!O100-M115 -> 33876.158 | N116: =M116-M116*H116 -> 33876.158 | O116: =N116/J116/12 -> 941.0043889 | P116: =+O116*12 -> 11292.05267 | Q116: =+IF(L116<=$N$5,0,IF(K116>$N$4,P116,(O116*G116))) -> 11292.05267 | S116: 0 | T116: =+IF(Q116=0,S116,S116+Q116) -> 11292.05267 | U116: =+M116-T116 -> 22584.10533
C117: RO | D117: 4071 | E117: 2009 VOLVO TYPE: H DROP | F117: 2008 | G117: 10 | H117: 0 | I117: S/L | J117: 7 | K117: 2015 | L117: 2015.833333 | M117: =+'Trucks 2188 - Original'!Q101 -> 132388.56 | N117: 132388.56 | O117: 1576.054286 | P117: 18912.65143 | Q117: 0 | S117: 132388.56 | T117: 132388.56 | U117: 0
D118: 4071 | E118: Truck #4071 Amort of Salvage | F118: 2019 | G118: 6 | H118: 0 | I118: S/L | J118: =+IF(K117-$N$3>=3,K117-$N$3,3) -> 3 | K118: 2022 | L118: =+K118+(G118/12) -> 2022.5 | M118: =+'Trucks 2188 - Original'!O101-M117 -> 33097.14 | N118: =M118-M118*H118 -> 33097.14 | O118: =N118/J118/12 -> 919.365 | P118: =+O118*12 -> 11032.38 | Q118: =+IF(L118<=$N$5,0,IF(K118>$N$4,P118,(O118*G118))) -> 11032.38 | S118: 0 | T118: =+IF(Q118=0,S118,S118+Q118) -> 11032.38 | U118: =+M118-T118 -> 22064.76
D119: 4065 | E119: 2009 VOLVO VNM84T200 TYPE: H DROP | F119: 2008 | G119: 10 | H119: 0 | I119: S/L | J119: 7 | K119: 2015 | L119: 2015.833333 | M119: 127101.54 | N119: 127101.54 | O119: 1513.113571 | P119: 18157.36286 | Q119: 0 | S119: 127101.54 | T119: 127101.54 | U119: 0
C120: RO | D120: 4071 | E120: AUTOGREASER | F120: 2009 | G120: 1 | H120: 0 | I120: S/L | J120: 7 | K120: 2016 | L120: 2016.083333 | M120: =+'Trucks 2188 - Original'!Q103 -> 3121.784 | N120: 3121.784 | O120: 37.16409524 | P120: 445.9691429 | Q120: 0 | S120: 3121.784 | T120: 3121.784 | U120: 0
D121: 4071 | E121: Truck #4071 Amort of Salvage | F121: 2019 | G121: 6 | H121: 0 | I121: S/L | J121: =+IF(K120-$N$3>=3,K120-$N$3,3) -> 3 | K121: =F121+J121 -> 2022 | L121: =+K121+(G121/12) -> 2022.5 | M121: =+'Trucks 2188 - Original'!O103-'Trucks 2188'!M120 -> 780.446 | N121: =M121-M121*H121 -> 780.446 | O121: =N121/J121/12 -> 21.67905556 | P121: =+O121*12 -> 260.1486667 | Q121: =+IF(L121<=$N$5,0,IF(K121>$N$4,P121,(O121*G121))) -> 260.1486667 | S121: 0 | T121: =+IF(Q121=0,S121,S121+Q121) -> 260.1486667 | U121: =+M121-T121 -> 520.2973333
C122: DC | D122: 4024 | E122: FLUP 4024 | F122: 2009 | G122: 6 | H122: 0 | I122: S/L | J122: 3 | K122: 2012 | L122: 2012.5 | M122: 2534.42 | N122: 2534.42 | O122: 70.40055556 | P122: 844.8066667 | Q122: 0 | S122: 2534.42 | T122: 2534.42 | U122: 0
A123: 68607 | E123: DRIVE CAMS | F123: 2009 | G123: 7 | H123: 0 | I123: S/L | J123: 5 | K123: 2014 | L123: 2014.583333 | M123: =+'Trucks 2188 - Original'!Q105 -> 2824.4788 | N123: 2824.4788 | O123: 47.07464667 | P123: 564.89576 | Q123: 0 | S123: 2824.4788 | T123: 2824.4788 | U123: 0
E124: Drive Cams Amort of Salvage | F124: 2019 | G124: 6 | H124: 0 | I124: S/L | J124: =+IF(K123-$N$3>=3,K123-$N$3,3) -> 3 | K124: 2022 | L124: =+K124+(G124/12) -> 2022.5 | M124: =+'Trucks 2188 - Original'!O105-'Trucks 2188'!M123 -> 1391.1612 | N124: =M124-M124*H124 -> 1391.1612 | O124: =N124/J124/12 -> 38.64336667 | P124: =+O124*12 -> 463.7204 | Q124: =+IF(L124<=$N$5,0,IF(K124>$N$4,P124,(O124*G124))) -> 463.7204 | S124: 0 | T124: =+IF(Q124=0,S124,S124+Q124) -> 463.7204 | U124: =+M124-T124 -> 927.4408
C125: RO | D125: 8715 | E125: 2012 R/O SKID TRAILER (N) | F125: 2011 | G125: 7 | H125: 0 | I125: S/L | J125: 10 | K125: 2021 | L125: 2021.583333 | M125: 51904.55 | N125: 51904.55 | O125: 432.5379167 | P125: 5190.455 | Q125: 5190.455 | S125: 41523.64 | T125: 46714.095 | U125: 5190.455
D126: 88724 | E126: (6) TRUCK RADIOS | F126: 2011 | G126: 12 | H126: 0 | I126: S/L | J126: 5 | K126: 2016 | L126: 2017 | M126: =468.93*6 -> 2813.58 | N126: 2813.58 | O126: 46.893 | P126: 562.716 | Q126: 0 | S126: 2813.58 | T126: 2813.58 | U126: 0
A127: 88724 | E127: (4) TRUCK RADIOS | F127: 2011 | G127: 12 | H127: 0 | I127: S/L | J127: 5 | K127: 2016 | L127: 2017 | M127: =468.93*4 -> 1875.72 | N127: 1875.72 | O127: 31.262 | P127: 375.144 | Q127: 0 | S127: 1875.72 | T127: 1875.72 | U127: 0
A128: 100082 | D128: 4065 | E128: Automatic Tarp Unit #4065 | F128: 2012 | G128: 12 | H128: 0 | I128: S/L | J128: 3 | K128: 2015 | L128: 2016 | M128: 8838 | N128: 8838 | O128: 245.5 | P128: 2946 | Q128: 0 | S128: 8838 | T128: 8838 | U128: 0
A129: 101833 | D129: 4057 | E129: AA Welding Automatic Tarp Unit | F129: 2013 | G129: 1 | H129: 0 | I129: S/L | J129: 3 | K129: 2016 | L129: 2016.083333 | M129: 8837.86 | N129: 8837.86 | O129: 245.4961111 | P129: 2945.953333 | Q129: 0 | S129: 8837.86 | T129: 8837.86 | U129: 0
A130: 102419 | D130: 4066 | E130: AA Welding Automatic Tarp Unit | F130: 2013 | G130: 2 | H130: 0 | I130: S/L | J130: 3 | K130: 2016 | L130: 2016.166667 | M130: 8837.86 | N130: 8837.86 | O130: 245.4961111 | P130: 2945.953333 | Q130: 0 | S130: 8837.86 | T130: 8837.86 | U130: 0
A131: 102420 | D131: 4071 | E131: AA Welding Automatic Tarp Unit | F131: 2013 | G131: 2 | H131: 0 | I131: S/L | J131: 3 | K131: 2016 | L131: 2016.166667 | M131: 8837.86 | N131: 8837.86 | O131: 245.4961111 | P131: 2945.953333 | Q131: 0 | S131: 8837.86 | T131: 8837.86 | U131: 0
A132: 102418 | D132: 4045 | E132: AA Welding Automatic Tarp Unit | F132: 2013 | G132: 2 | H132: 0 | I132: S/L | J132: 3 | K132: 2016 | L132: 2016.166667 | M132: 8837.86 | N132: 8837.86 | O132: 245.4961111 | P132: 2945.953333 | Q132: 0 | S132: 8837.86 | T132: 8837.86 | U132: 0
D134: 6 | E134: TOTAL ROLL OFF | M134: =SUM(M105:M133) -> 1174256.8 | N134: =SUM(N105:N133) -> 1174256.8 | O134: =SUM(O105:O133) -> 17576.31132 | P134: =SUM(P105:P133) -> 210915.7358 | Q134: =SUM(Q105:Q133) -> 68295.63607 | S134: =SUM(S105:S133) -> 974560.3468 | T134: =SUM(T105:T133) -> 1042855.983 | U134: =SUM(U105:U133) -> 131400.8171 | V134: Updated Useful Lives to FAR
E137: RESI RECYCLE
C138: SL | D138: 3555 | E138: VIDEO CAMERA | F138: 1999 | G138: 10 | H138: 0 | I138: S/L | J138: 7 | K138: =F138+J138 -> 2006 | L138: =+K138+(G138/12) -> 2006.833333 | M138: =+'Trucks 2188 - Original'!Q124 -> 1225.624 | N138: =M138-M138*H138 -> 1225.624 | O138: =N138/J138/12 -> 14.5907619 | P138: =+O138*12 -> 175.0891429 | Q138: =+IF(L138<=$N$5,0,IF(K138>$N$4,P138,(O138*G138))) -> 0 | S138: =+IF(Q138=0,(M138-(M138-N138)),IF($N$3-F138<1,0,(($N$3-F138)*P138))) -> 1225.624 | T138: =+IF(Q138=0,S138,S138+Q138) -> 1225.624 | U138: =+M138-T138 -> 0
D139: 3555 | E139: Truck #3555 Amort of Salvage | F139: 2019 | G139: 6 | H139: 0 | I139: S/L | J139: =+IF(K138-$N$3>=3,K138-$N$3,3) -> 3 | K139: 2022 | L139: =+K139+(G139/12) -> 2022.5 | M139: =+'Trucks 2188 - Original'!O124-'Trucks 2188'!M138 -> 306.406 | N139: =M139-M139*H139 -> 306.406 | O139: =N139/J139/12 -> 8.511277778 | P139: =+O139*12 -> 102.1353333 | Q139: =+IF(L139<=$N$5,0,IF(K139>$N$4,P139,(O139*G139))) -> 102.1353333 | S139: 0 | T139: =+IF(Q139=0,S139,S139+Q139) -> 102.1353333 | U139: =+M139-T139 -> 204.2706667
C140: SL | D140: 3555 | E140: 2000 PETERBILT 320 | F140: 1999 | G140: 11 | H140: 0 | I140: S/L | J140: 7 | K140: 2006 | L140: 2006.916667 | M140: =+'Trucks 2188 - Original'!Q125 -> 68378.04 | N140: =M140-M140*H140 -> 68378.04 | O140: =N140/J140/12 -> 814.0242857 | P140: 9768.291429 | Q140: =+IF(L140<=$N$5,0,IF(K140>$N$4,P140,(O140*G140))) -> 0 | S140: 68378.04 | T140: =+IF(Q140=0,S140,S140+Q140) -> 68378.04 | U140: =+M140-T140 -> 0
D141: 3555 | E141: Truck #3555 Amort of Salvage | F141: 2019 | G141: 6 | H141: 0 | I141: S/L | J141: =+IF(K140-$N$3>=3,K140-$N$3,3) -> 3 | K141: =F141+J141 -> 2022 | L141: =+K141+(G141/12) -> 2022.5 | M141: =+'Trucks 2188 - Original'!O125-'Trucks 2188'!M140 -> 17094.51 | N141: =M141-M141*H141 -> 17094.51 | O141: =N141/J141/12 -> 474.8475 | P141: =+O141*12 -> 5698.17 | Q141: =+IF(L141<=$N$5,0,IF(K141>$N$4,P141,(O141*G141))) -> 5698.17 | S141: 0 | T141: =+IF(Q141=0,S141,S141+Q141) -> 5698.17 | U141: =+M141-T141 -> 11396.34
C142: SL | D142: 3555 | E142: 27 CY LEACH CURBTENDER | F142: 1999 | G142: 12 | H142: 0 | I142: S/L | J142: 7 | K142: 2006 | L142: 2007 | M142: =+'Trucks 2188 - Original'!Q126 -> 49773.688 | N142: 49773.688 | O142: 592.5439048 | P142: 7110.526857 | Q142: 0 | S142: 49773.688 | T142: 49773.688 | U142: 0
D143: 3555 | E143: Truck #3555 Amort of Salvage | F143: 2019 | G143: 6 | H143: 0 | I143: S/L | J143: =+IF(K142-$N$3>=3,K142-$N$3,3) -> 3 | K143: 2022 | L143: =+K143+(G143/12) -> 2022.5 | M143: =+'Trucks 2188 - Original'!O126-'Trucks 2188'!M142 -> 12443.422 | N143: =M143-M143*H143 -> 12443.422 | O143: =N143/J143/12 -> 345.6506111 | P143: =+O143*12 -> 4147.807333 | Q143: =+IF(L143<=$N$5,0,IF(K143>$N$4,P143,(O143*G143))) -> 4147.807333 | S143: 0 | T143: =+IF(Q143=0,S143,S143+Q143) -> 4147.807333 | U143: =+M143-T143 -> 8295.614667
C144: SL | D144: 3555 | E144: TRAVEL ON 3555 | F144: 2000 | G144: 1 | H144: 0 | I144: S/L | J144: 7 | K144: 2007 | L144: 2007.083333 | M144: =+'Trucks 2188 - Original'!Q127 -> 1496 | N144: 1496 | O144: 17.80952381 | P144: 213.7142857 | Q144: 0 | S144: 1496 | T144: 1496 | U144: 0
D145: 3555 | E145: Truck #3555 Amort of Salvage | F145: 2019 | G145: 6 | H145: 0 | I145: S/L | J145: =+IF(K144-$N$3>=3,K144-$N$3,3) -> 3 | K145: =F145+J145 -> 2022 | L145: =+K145+(G145/12) -> 2022.5 | M145: =+'Trucks 2188 - Original'!O127-'Trucks 2188'!M144 -> 374 | N145: =M145-M145*H145 -> 374 | O145: =N145/J145/12 -> 10.38888889 | P145: =+O145*12 -> 124.6666667 | Q145: =+IF(L145<=$N$5,0,IF(K145>$N$4,P145,(O145*G145))) -> 124.6666667 | S145: 0 | T145: =+IF(Q145=0,S145,S145+Q145) -> 124.6666667 | U145: =+M145-T145 -> 249.3333333
C146: SL | D146: 3555 | E146: INSTALL/PAINTING ON 3555 | F146: 2000 | G146: 2 | H146: 0 | I146: S/L | J146: 7 | K146: 2007 | L146: 2007.166667 | M146: =+'Trucks 2188 - Original'!Q128 -> 3031.36 | N146: 3031.36 | O146: 36.08761905 | P146: 433.0514286 | Q146: 0 | S146: 3031.36 | T146: 3031.36 | U146: 0
D147: 3555 | E147: Truck #3555 Amort of Salvage | F147: 2019 | G147: 6 | H147: 0 | I147: S/L | J147: =+IF(K146-$N$3>=3,K146-$N$3,3) -> 3 | K147: 2022 | L147: =+K147+(G147/12) -> 2022.5 | M147: =+'Trucks 2188 - Original'!O128-'Trucks 2188'!M146 -> 757.84 | N147: =M147-M147*H147 -> 757.84 | O147: =N147/J147/12 -> 21.05111111 | P147: =+O147*12 -> 252.6133333 | Q147: =+IF(L147<=$N$5,0,IF(K147>$N$4,P147,(O147*G147))) -> 252.6133333 | S147: 0 | T147: =+IF(Q147=0,S147,S147+Q147) -> 252.6133333 | U147: =+M147-T147 -> 505.2266667
C148: SL | D148: 3562 | E148: 01 PB W/ LEACH 27YD CURBTENDER | F148: 2001 | G148: 4 | H148: 0 | I148: S/L | J148: 7 | K148: 2008 | L148: 2008.333333 | M148: =+'Trucks 2188 - Original'!Q129 -> 124885.656 | N148: 124885.656 | O148: 1486.734 | P148: 17840.808 | Q148: 0 | S148: 124885.656 | T148: 124885.656 | U148: 0
D149: 3562 | E149: Truck #3562 Amort of Salvage | F149: 2019 | G149: 6 | H149: 0 | I149: S/L | J149: =+IF(K148-$N$3>=3,K148-$N$3,3) -> 3 | K149: =F149+J149 -> 2022 | L149: =+K149+(G149/12) -> 2022.5 | M149: =+'Trucks 2188 - Original'!O129-'Trucks 2188'!M148 -> 31221.414 | N149: =M149-M149*H149 -> 31221.414 | O149: =N149/J149/12 -> 867.2615 | P149: =+O149*12 -> 10407.138 | Q149: =+IF(L149<=$N$5,0,IF(K149>$N$4,P149,(O149*G149))) -> 10407.138 | S149: 0 | T149: =+IF(Q149=0,S149,S149+Q149) -> 10407.138 | U149: =+M149-T149 -> 20814.276
C150: SL | D150: 3613 | E150: 07 PB 320 W/27 CY CURBTENDER | F150: 2007 | G150: 8 | H150: 0 | I150: S/L | J150: 7 | K150: 2014 | L150: 2014.666667 | M150: =+'Trucks 2188 - Original'!Q131 -> 155764.032 | N150: 155764.032 | O150: 1854.333714 | P150: 22252.00457 | Q150: 0 | S150: 155764.032 | T150: 155764.032 | U150: 0
D151: 3613 | E151: Truck #3613 Amort of Salvage | F151: 2019 | G151: 6 | H151: 0 | I151: S/L | J151: =+IF(K150-$N$3>=3,K150-$N$3,3) -> 3 | K151: =F151+J151 -> 2022 | L151: =+K151+(G151/12) -> 2022.5 | M151: =+'Trucks 2188 - Original'!O131-'Trucks 2188'!M150 -> 38941.008 | N151: =M151-M151*H151 -> 38941.008 | O151: =N151/J151/12 -> 1081.694667 | P151: =+O151*12 -> 12980.336 | Q151: =+IF(L151<=$N$5,0,IF(K151>$N$4,P151,(O151*G151))) -> 12980.336 | S151: 0 | T151: =+IF(Q151=0,S151,S151+Q151) -> 12980.336 | U151: =+M151-T151 -> 25960.672
C152: RW | D152: 11094 | E152: ROUTWARE INSTALLATIONS | F152: 2007 | G152: 9 | H152: 0 | I152: S/L | J152: 7 | K152: 2014 | L152: 2014.75 | M152: =+'Trucks 2188 - Original'!Q132 -> 26695.296 | N152: 26695.296 | O152: 317.8011429 | P152: 3813.613714 | Q152: 0 | S152: 26695.296 | T152: 26695.296 | U152: 0
D153: 11094 | E153: Truck #11094 Amort of Salvage | F153: 2019 | G153: 6 | H153: 0 | I153: S/L | J153: =+IF(K152-$N$3>=3,K152-$N$3,3) -> 3 | K153: 2022 | L153: =+K153+(G153/12) -> 2022.5 | M153: =+'Trucks 2188 - Original'!O132-'Trucks 2188'!M152 -> 6673.824 | N153: =M153-M153*H153 -> 6673.824 | O153: =N153/J153/12 -> 185.384 | P153: =+O153*12 -> 2224.608 | Q153: =+IF(L153<=$N$5,0,IF(K153>$N$4,P153,(O153*G153))) -> 2224.608 | S153: 0 | T153: =+IF(Q153=0,S153,S153+Q153) -> 2224.608 | U153: =+M153-T153 -> 4449.216
C154: SL | D154: 3555 | E154: FLUP - TRUCK 3555 | F154: 2009 | G154: 6 | H154: 0 | I154: S/L | J154: 3 | K154: 2012 | L154: 2012.5 | M154: 3305.27 | N154: 3305.27 | O154: 91.81305556 | P154: 1101.756667 | Q154: 0 | S154: 3305.27 | T154: 3305.27 | U154: 0
C155: SL | D155: 3562 | E155: FLUP - TRUCK 3562 | F155: 2009 | G155: 6 | H155: 0 | I155: S/L | J155: 3 | K155: 2012 | L155: 2012.5 | M155: 4621.29 | N155: 4621.29 | O155: 128.3691667 | P155: 1540.43 | Q155: 0 | S155: 4621.29 | T155: 4621.29 | U155: 0
C156: SL | D156: 3562 | E156: TO REPAIR TRUCK # 3562 | F156: 2009 | G156: 7 | H156: 0 | I156: S/L | J156: 7 | K156: 2016 | L156: 2016.583333 | M156: =+'Trucks 2188 - Original'!Q136 -> 11735.952 | N156: 11735.952 | O156: 139.7137143 | P156: 1676.564571 | Q156: 0 | S156: 11735.952 | T156: 11735.952 | U156: 0
D157: 3562 | E157: Truck #3562 Amort of Salvage | F157: 2019 | G157: 6 | H157: 0 | I157: S/L | J157: =+IF(K156-$N$3>=3,K156-$N$3,3) -> 3 | K157: =F157+J157 -> 2022 | L157: =+K157+(G157/12) -> 2022.5 | M157: =+'Trucks 2188 - Original'!O136-'Trucks 2188'!M156 -> 2933.988 | N157: =M157-M157*H157 -> 2933.988 | O157: =N157/J157/12 -> 81.49966667 | P157: =+O157*12 -> 977.996 | Q157: =+IF(L157<=$N$5,0,IF(K157>$N$4,P157,(O157*G157))) -> 977.996 | S157: 0 | T157: =+IF(Q157=0,S157,S157+Q157) -> 977.996 | U157: =+M157-T157 -> 1955.992
C158: DC | D158: 68606 | E158: DRIVE CAMS (ONSITE TECHNICIANS) | F158: 2009 | G158: 7 | H158: 0 | I158: S/L | J158: 5 | K158: 2014 | L158: 2014.583333 | M158: =+'Trucks 2188 - Original'!Q137 -> 2958.9679 | N158: 2958.9679 | O158: 49.31613167 | P158: 591.79358 | Q158: 0 | S158: 2958.9679 | T158: 2958.9679 | U158: 0
D159: 68606 | E159: Truck #68606 Amort of Salvage | F159: 2019 | G159: 6 | H159: 0 | I159: S/L | J159: =+IF(K158-$N$3>=3,K158-$N$3,3) -> 3 | K159: 2022 | L159: =+K159+(G159/12) -> 2022.5 | M159: =+'Trucks 2188 - Original'!O137-'Trucks 2188'!M158 -> 1457.4021 | N159: =M159-M159*H159 -> 1457.4021 | O159: =N159/J159/12 -> 40.48339167 | P159: =+O159*12 -> 485.8007 | Q159: =+IF(L159<=$N$5,0,IF(K159>$N$4,P159,(O159*G159))) -> 485.8007 | S159: 0 | T159: =+IF(Q159=0,S159,S159+Q159) -> 485.8007 | U159: =+M159-T159 -> 971.6014
D160: 88724 | E160: (5) TRUCK RADIOS | F160: 2011 | G160: 12 | H160: 0 | I160: S/L | J160: 5 | K160: 2016 | L160: 2017 | M160: =468.93*5 -> 2344.65 | N160: 2344.65 | O160: 39.0775 | P160: 468.93 | Q160: 0 | S160: 2344.65 | T160: 2344.65 | U160: 0
A161: 97261 | D161: 3613 | E161: Plastic Hopper Door for #3613 | F161: 2012 | G161: 10 | H161: 0 | I161: S/L | J161: 3 | K161: 2015 | L161: 2015.833333 | M161: 2558.53 | N161: 2558.53 | O161: 71.07027778 | P161: 852.8433333 | Q161: 0 | S161: 2558.53 | T161: 2558.53 | U161: 0
A162: 88724 | E162: (2) TRUCK RADIOS | F162: 2011 | G162: 12 | H162: 0 | I162: S/L | J162: 5 | K162: 2016 | L162: 2017 | M162: =468.93*2 -> 937.86 | N162: =M162-M162*H162 -> 937.86 | O162: =N162/J162/12 -> 15.631 | P162: 187.572 | Q162: =+IF(L162<=$N$5,0,IF(K162>$N$4,P162,(O162*G162))) -> 0 | S162: 937.86 | T162: =+IF(Q162=0,S162,S162+Q162) -> 937.86 | U162: =+M162-T162 -> 0
A163: 113491 | D163: 3562 | E163: Transmission Repair #3562 | F163: 2014 | G163: 4 | H163: 0 | I163: S/L | J163: 3 | K163: 2017 | L163: 2017.333333 | M163: 5361.62 | N163: 5361.62 | O163: 148.9338889 | P163: 1787.206667 | Q163: 0 | S163: 5361.62 | T163: 5361.62 | U163: 0
A164: 118251 | C164: SL | D164: 3562 | E164: Improvement - ASL Auto Hopper Cover Kit | F164: 2014 | G164: 12 | H164: 0 | I164: S/L | J164: 3 | K164: 2017 | L164: 2018 | M164: 2532.61 | N164: 2532.61 | O164: 70.35027778 | P164: 844.2033333 | Q164: 0 | S164: 2532.61 | T164: 2532.61 | U164: 0
A165: 132281/133543/139787 | E165: (4) Samsung Tablets, Hardware, & Setup | F165: 2016 | G165: 4 | H165: 0 | I165: S/L | J165: 1 | K165: 2017 | L165: 2017.333333 | M165: =((7403.89+8314.08+342)/38)*4 -> 1690.523158 | N165: 1690.523158 | O165: 140.8769298 | P165: 1690.523158 | Q165: 0 | S165: 1690.523158 | T165: 1690.523158 | U165: 0
A166: PROFORMA | C166: ASL | E166: 2020 ASL Pete 520/ Labrie 29 YD | F166: 2020 | G166: 8 | H166: 0 | I166: S/L | J166: 10 | K166: 2030 | L166: 2030.666667 | M166: 379778 | N166: 379778 | O166: 3164.816667 | P166: =+O166*12 -> 37977.8 | Q166: 37977.8 | S166: =+IF(Q166=0,(M166-(M166-N166)),IF($N$3-F166<1,0,(($N$3-F166)*P166))) -> 0 | T166: 37977.8 | U166: 341800.2
E167: Amortization of Salvage Value of 2019 & 2020 Retired Trucks | F167: 2019 | G167: 6 | H167: 0 | I167: S/L | J167: 3 | K167: =F167+J167 -> 2022 | L167: =+K167+(G167/12) -> 2022.5 | M167: =+M298 -> 31221.414 | N167: 31221.414 | O167: 867.2615 | P167: =+O167*12 -> 10407.138 | Q167: 10407.138 | S167: 0 | T167: 10407.138 | U167: 20814.276
D169: 5 | E169: TOTAL RESI RECYCLE | M169: =SUM(M138:M168) -> 992500.1972 | N169: =SUM(N138:N168) -> 992500.1972 | O169: =SUM(O138:O168) -> 13177.92768 | P169: =SUM(P138:P168) -> 158135.1321 | Q169: =SUM(Q138:Q168) -> 85786.20937 | S169: =SUM(S138:S168) -> 469296.9691 | T169: =SUM(T138:T168) -> 555083.1784 | U169: =SUM(U138:U168) -> 437417.0187 | V169: Updated Useful Lives to FAR
E172: MF
C174: RL - SP | D174: 1002 | E174: TYRONE UNITS (20%) | F174: 1995 | G174: 9 | H174: 0 | I174: S/L | J174: 7 | K174: =F174+J174 -> 2002 | L174: =+K174+(G174/12) -> 2002.75 | M174: =+'Trucks 2188 - Original'!Q153 -> 61.76 | N174: =M174-M174*H174 -> 61.76 | O174: =N174/J174/12 -> 0.7352380952 | P174: =+O174*12 -> 8.822857143 | Q174: =+IF(L174<=$N$5,0,IF(K174>$N$4,P174,(O174*G174))) -> 0 | S174: =+IF(Q174=0,(M174-(M174-N174)),IF($N$3-F174<1,0,(($N$3-F174)*P174))) -> 61.76 | T174: =+IF(Q174=0,S174,S174+Q174) -> 61.76 | U174: =+M174-T174 -> 0 | AK174: 3 | AL174: Computes with one month convention
D175: 1002 | E175: Truck #1002 Amort of Salvage | F175: 2019 | G175: 6 | H175: 0 | I175: S/L | J175: =+IF(K174-$N$3>=3,K174-$N$3,3) -> 3 | K175: =F175+J175 -> 2022 | L175: 2022.5 | M175: =+'Trucks 2188 - Original'!O153-'Trucks 2188'!M174 -> 15.44 | N175: 15.44 | O175: 0.4288888889 | P175: 5.146666667 | Q175: 5.146666667 | S175: 0 | T175: 5.146666667 | U175: 10.29333333
C176: RL - SP | D176: 1002 | E176: 20YD ALPHA BODY (20%) | F176: 1995 | G176: 10 | H176: 0 | I176: S/L | J176: 7 | K176: =F176+J176 -> 2002 | L176: 2002.833333 | M176: =+'Trucks 2188 - Original'!Q154 -> 4347.2 | N176: 4347.2 | O176: 51.75238095 | P176: 621.0285714 | Q176: 0 | S176: 4347.2 | T176: 4347.2 | U176: 0 | AL176: i.e. whole month depreciation no
D177: 1002 | E177: Truck #1002 Amort of Salvage | F177: 2019 | G177: 6 | H177: 0 | I177: S/L | J177: =+IF(K176-$N$3>=3,K176-$N$3,3) -> 3 | K177: =F177+J177 -> 2022 | L177: 2022.5 | M177: =+'Trucks 2188 - Original'!O154-'Trucks 2188'!M176 -> 1086.8 | N177: 1086.8 | O177: 30.18888889 | P177: 362.2666667 | Q177: 362.2666667 | S177: 0 | T177: 362.2666667 | U177: 724.5333333
C178: RL - SP | D178: 1002 | E178: 1996 VOLVO FE42 (20%) | F178: 1995 | G178: 10 | H178: 0 | I178: S/L | J178: 7 | K178: =F178+J178 -> 2002 | L178: 2002.833333 | M178: =+'Trucks 2188 - Original'!Q155 -> 7952 | N178: 7952 | O178: 94.66666667 | P178: 1136 | Q178: 0 | S178: 7952 | T178: 7952 | U178: 0 | AL178: matter what day of month put on
D179: 1002 | E179: Truck #1002 Amort of Salvage | F179: 2019 | G179: 6 | H179: 0 | I179: S/L | J179: =+IF(K178-$N$3>=3,K178-$N$3,3) -> 3 | K179: =F179+J179 -> 2022 | L179: 2022.5 | M179: =+'Trucks 2188 - Original'!O155-'Trucks 2188'!M178 -> 1988 | N179: 1988 | O179: 55.22222222 | P179: 662.6666667 | Q179: 662.6666667 | S179: 0 | T179: 662.6666667 | U179: 1325.333333
E181: TOTAL MF | M181: =SUM(M174:M180) -> 15451.2 | N181: =SUM(N174:N180) -> 15451.2 | O181: =SUM(O174:O180) -> 232.9942857 | P181: =SUM(P174:P180) -> 2795.931429 | Q181: =SUM(Q174:Q180) -> 1030.08 | S181: =SUM(S174:S180) -> 12360.96 | T181: =SUM(T174:T180) -> 13391.04 | U181: =SUM(U174:U180) -> 2060.16
E184: YARD WASTE
C186: RL - SP | D186: 1002 | E186: TYRONE UNITS (20%) | F186: 1995 | G186: 9 | H186: 0 | I186: S/L | J186: 7 | K186: =F186+J186 -> 2002 | L186: =+K186+(G186/12) -> 2002.75 | M186: =+'Trucks 2188 - Original'!Q162 -> 61.76 | N186: =M186-M186*H186 -> 61.76 | O186: =N186/J186/12 -> 0.7352380952 | P186: =+O186*12 -> 8.822857143 | Q186: =+IF(L186<=$N$5,0,IF(K186>$N$4,P186,(O186*G186))) -> 0 | S186: =+IF(Q186=0,(M186-(M186-N186)),IF($N$3-F186<1,0,(($N$3-F186)*P186))) -> 61.76 | T186: =+IF(Q186=0,S186,S186+Q186) -> 61.76 | U186: =+M186-T186 -> 0 | AK186: 3 | AL186: Computes with one month convention
D187: 1002 | E187: Truck #1002 Amort of Salvage | F187: 2019 | G187: 6 | H187: 0 | I187: S/L | J187: =+IF(K186-$N$3>=3,K186-$N$3,3) -> 3 | K187: =F187+J187 -> 2022 | L187: 2022.5 | M187: =+'Trucks 2188 - Original'!O162-'Trucks 2188'!M186 -> 15.44 | N187: 15.44 | O187: 0.4288888889 | P187: 5.146666667 | Q187: 5.146666667 | S187: 0 | T187: 5.146666667 | U187: 10.29333333
C188: RL - SP | D188: 1002 | E188: 20YD ALPHA BODY (20%) | F188: 1995 | G188: 10 | H188: 0 | I188: S/L | J188: 7 | K188: =F188+J188 -> 2002 | L188: 2002.833333 | M188: =+'Trucks 2188 - Original'!Q163 -> 4347.2 | N188: 4347.2 | O188: 51.75238095 | P188: 621.0285714 | Q188: 0 | S188: 4347.2 | T188: 4347.2 | U188: 0 | AL188: i.e. whole month depreciation no
D189: 1002 | E189: Truck #1002 Amort of Salvage | F189: 2019 | G189: 6 | H189: 0 | I189: S/L | J189: =+IF(K188-$N$3>=3,K188-$N$3,3) -> 3 | K189: =F189+J189 -> 2022 | L189: 2022.5 | M189: =+'Trucks 2188 - Original'!O163-'Trucks 2188'!M188 -> 1086.8 | N189: 1086.8 | O189: 30.18888889 | P189: 362.2666667 | Q189: 362.2666667 | S189: 0 | T189: 362.2666667 | U189: 724.5333333
C190: RL - SP | D190: 1002 | E190: 1996 VOLVO FE42 (20%) | F190: 1995 | G190: 10 | H190: 0 | I190: S/L | J190: 7 | K190: =F190+J190 -> 2002 | L190: 2002.833333 | M190: =+'Trucks 2188 - Original'!Q164 -> 7952 | N190: 7952 | O190: 94.66666667 | P190: 1136 | Q190: 0 | S190: 7952 | T190: 7952 | U190: 0 | AL190: matter what day of month put on
D191: 1002 | E191: Truck #1002 Amort of Salvage | F191: 2019 | G191: 6 | H191: 0 | I191: S/L | J191: =+IF(K190-$N$3>=3,K190-$N$3,3) -> 3 | K191: =F191+J191 -> 2022 | L191: 2022.5 | M191: =+'Trucks 2188 - Original'!O164-'Trucks 2188'!M190 -> 1988 | N191: 1988 | O191: 55.22222222 | P191: 662.6666667 | Q191: 662.6666667 | S191: 0 | T191: 662.6666667 | U191: 1325.333333
E193: TOTAL YARD WASTE | M193: =SUM(M186:M192) -> 15451.2 | N193: =SUM(N186:N192) -> 15451.2 | O193: =SUM(O186:O192) -> 232.9942857 | P193: =SUM(P186:P192) -> 2795.931429 | Q193: =SUM(Q186:Q192) -> 1030.08 | S193: =SUM(S186:S192) -> 12360.96 | T193: =SUM(T186:T192) -> 13391.04 | U193: =SUM(U186:U192) -> 2060.16
E196: Commercial Recycling
C198: TRL | D198: 8707 | E198: S828 PEERLESS TRAILER | F198: 1997 | G198: 5 | H198: 0.2 | I198: S/L | J198: 7 | K198: =F198+J198 -> 2004 | L198: =+K198+(G198/12) -> 2004.416667 | M198: 3000 | N198: =M198-M198*H198 -> 2400 | O198: =N198/J198/12 -> 28.57142857 | P198: =+O198*12 -> 342.8571429 | Q198: =+IF(L198<=$N$5,0,IF(K198>$N$4,P198,(O198*G198))) -> 0 | S198: =+IF(Q198=0,(M198-(M198-N198)),IF($N$3-F198<1,0,(($N$3-F198)*P198))) -> 2400 | T198: =+IF(Q198=0,S198,S198+Q198) -> 2400 | U198: =+M198-T198 -> 600
D199: 8707 | E199: TAX ON #8707 | F199: 1997 | G199: 6 | H199: 0.2 | I199: S/L | J199: 7 | K199: 2004 | L199: 2004.5 | M199: 280 | N199: 224 | O199: 2.666666667 | P199: 32 | Q199: 0 | S199: =+IF(Q199=0,(M199-(M199-N199)),IF($N$3-F199<1,0,(($N$3-F199)*P199))) -> 224 | T199: 224 | U199: 56
D200: 8587 | E200: S837 PEERLESS DOLLY | F200: 1997 | G200: 5 | H200: 0.2 | I200: S/L | J200: 7 | K200: 2004 | L200: 2004.416667 | M200: 3000 | N200: 2400 | O200: 28.57142857 | P200: 342.8571429 | Q200: 0 | S200: 2400 | T200: 2400 | U200: 600
D201: 8587 | E201: TAX ON #8587 | F201: 1997 | G201: 6 | H201: 0.2 | I201: S/L | J201: 7 | K201: 2004 | L201: 2004.5 | M201: 280 | N201: 224 | O201: 2.666666667 | P201: 32 | Q201: 0 | S201: 224 | T201: 224 | U201: 56
A202: 88724 | E202: (6) TRUCK RADIOS | F202: 2011 | G202: 12 | H202: 0 | I202: S/L | J202: 5 | K202: 2016 | L202: 2017 | M202: =468.93*6 -> 2813.58 | N202: 2813.58 | O202: 46.893 | P202: 562.716 | Q202: 0 | S202: 2813.58 | T202: 2813.58 | U202: 0
A203: 126242, 126243,126244,126245,126246 | D203: 1072 | E203: 2006 Int'l 7400 Chassis (N) | F203: 2006 | G203: 4 | H203: 0.2 | I203: S/L | J203: 7 | K203: =F203+J203 -> 2013 | L203: =+K203+(G203/12) -> 2013.333333 | M203: 142218.7 | N203: =M203-M203*H203 -> 113774.96 | O203: =N203/J203/12 -> 1354.46381 | P203: =+O203*12 -> 16253.56571 | Q203: =+IF(L203<=$N$5,0,IF(K203>$N$4,P203,(O203*G203))) -> 0 | S203: =+IF(Q203=0,(M203-(M203-N203)),IF($N$3-F203<1,0,(($N$3-F203)*P203))) -> 113774.96 | T203: =+IF(Q203=0,S203,S203+Q203) -> 113774.96 | U203: =+M203-T203 -> 28443.74
C204: SL | D204: 3614 | E204: 07 PB 320 W/27 CY CURBTENDER | F204: 2007 | G204: 8 | H204: 0.2 | I204: S/L | J204: 7 | K204: =F204+J204 -> 2014 | L204: =+K204+(G204/12) -> 2014.666667 | M204: 194705.04 | N204: =M204-M204*H204 -> 155764.032 | O204: =N204/J204/12 -> 1854.333714 | P204: =+O204*12 -> 22252.00457 | Q204: =+IF(L204<=$N$5,0,IF(K204>$N$4,P204,(O204*G204))) -> 0 | S204: =+IF(Q204=0,(M204-(M204-N204)),IF($N$3-F204<1,0,(($N$3-F204)*P204))) -> 155764.032 | T204: =+IF(Q204=0,S204,S204+Q204) -> 155764.032 | U204: =+M204-T204 -> 38941.008
E206: TOTAL COMMERCIAL RECYCLING | M206: =SUM(M198:M205) -> 346297.32 | N206: =SUM(N198:N205) -> 277600.572 | O206: =SUM(O198:O205) -> 3318.166714 | P206: =SUM(P198:P205) -> 39818.00057 | Q206: =SUM(Q198:Q205) -> 0 | S206: =SUM(S198:S205) -> 277600.572 | T206: =SUM(T198:T205) -> 277600.572 | U206: =SUM(U198:U205) -> 68696.748
E208: Container Delivery
A210: 79653 | C210: DEL | D210: 9571 | E210: 2005 ISUZU DELIVERY TRUCK (U) | F210: 2007 | G210: 2 | H210: 0 | I210: S/L | J210: 5 | K210: =F210+J210 -> 2012 | L210: =+K210+(G210/12) -> 2012.166667 | M210: =+'Trucks 2188 - Original'!Q184 -> 20156.1125 | N210: =M210-M210*H210 -> 20156.1125 | O210: =N210/J210/12 -> 335.9352083 | P210: =+O210*12 -> 4031.2225 | Q210: =+IF(L210<=$N$5,0,IF(K210>$N$4,P210,(O210*G210))) -> 0 | S210: =+IF(Q210=0,(M210-(M210-N210)),IF($N$3-F210<1,0,(($N$3-F210)*P210))) -> 20156.1125 | T210: =+IF(Q210=0,S210,S210+Q210) -> 20156.1125 | U210: =+M210-T210 -> 0
D211: 9571 | E211: Truck #9571 Amort of Salvage | F211: 2019 | G211: 6 | H211: 0 | I211: S/L | J211: =+IF(K210-$N$3>=3,K210-$N$3,3) -> 3 | K211: =F211+J211 -> 2022 | L211: 2022.5 | M211: =+'Trucks 2188 - Original'!O184-'Trucks 2188'!M210 -> 9927.6375 | N211: 9927.6375 | O211: 275.7677083 | P211: 3309.2125 | Q211: 3309.2125 | S211: 0 | T211: 3309.2125 | U211: 6618.425
A212: 118080 | C212: DEL | D212: 9388 | E212: 2012 Container Delivery Truck (U) | F212: 2014 | G212: 12 | H212: 0 | I212: S/L | J212: 7 | K212: =F212+J212 -> 2021 | L212: 2022 | M212: 144943.14 | N212: 144943.14 | O212: 1725.513571 | P212: 20706.16286 | Q212: 20706.16286 | S212: 103530.8143 | T212: 124236.9771 | U212: 20706.16286
E213: Amortization of Salvage Value of 2019 & 2020 Retired Trucks | F213: 2019 | G213: 6 | H213: 0 | I213: S/L | J213: 3 | K213: =F213+J213 -> 2022 | L213: =+K213+(G213/12) -> 2022.5 | M213: =+M286+M288 -> 11303.5 | N213: =M213-M213*H213 -> 11303.5 | O213: =N213/J213/12 -> 313.9861111 | P213: =+O213*12 -> 3767.833333 | Q213: =+IF(L213<=$N$5,0,IF(K213>$N$4,P213,(O213*G213))) -> 3767.833333 | S213: 0 | T213: =+IF(Q213=0,S213,S213+Q213) -> 3767.833333 | U213: =+M213-T213 -> 7535.666667
E215: TOTAL CONTAINER DELIVERY | M215: =SUM(M210:M214) -> 186330.39 | N215: =SUM(N210:N214) -> 186330.39 | O215: =SUM(O210:O214) -> 2651.202599 | P215: =SUM(P210:P214) -> 31814.43119 | Q215: =SUM(Q210:Q214) -> 27783.20869 | S215: =SUM(S210:S214) -> 123686.9268 | T215: =SUM(T210:T214) -> 151470.1355 | U215: =SUM(U210:U214) -> 34860.25452 | V215: Updated Useful Lives to FAR
E217: General Recycling
A218: 67022 | C218: LH | D218: 5600 | E218: 2001 Type H Trac Tr | F218: 2008 | G218: 11 | H218: 0 | I218: S/L | J218: 3 | K218: =F218+J218 -> 2011 | L218: =+K218+(G218/12) -> 2011.916667 | M218: 15000 | N218: =M218-M218*H218 -> 15000 | O218: =N218/J218/12 -> 416.6666667 | P218: =+O218*12 -> 5000 | Q218: =+IF(L218<=$N$5,0,IF(K218>$N$4,P218,(O218*G218))) -> 0 | S218: =+IF(Q218=0,(M218-(M218-N218)),IF($N$3-F218<1,0,(($N$3-F218)*P218))) -> 15000 | T218: =+IF(Q218=0,S218,S218+Q218) -> 15000 | U218: =+M218-T218 -> 0 | V218: 2189 FAR
A219: 86922 | C219: LH | D219: 8142 | E219: 1990 Type HT D-V Trailer | F219: 2008 | G219: 11 | H219: 0 | I219: S/L | J219: 3 | K219: 2011 | L219: =+K219+(G219/12) -> 2011.916667 | M219: 2500 | N219: =M219-M219*H219 -> 2500 | O219: =N219/J219/12 -> 69.44444444 | P219: =+O219*12 -> 833.3333333 | Q219: =+IF(L219<=$N$5,0,IF(K219>$N$4,P219,(O219*G219))) -> 0 | S219: =+IF(Q219=0,(M219-(M219-N219)),IF($N$3-F219<1,0,(($N$3-F219)*P219))) -> 2500 | T219: =+IF(Q219=0,S219,S219+Q219) -> 2500 | U219: =+M219-T219 -> 0 | V219: 2189 FAR
A220: 90985 | C220: LH | D220: 8141 | E220: 1995 Type HT D-V Trailer | F220: 2008 | G220: 11 | H220: 0 | I220: S/L | J220: 3 | K220: 2011 | L220: =+K220+(G220/12) -> 2011.916667 | M220: 2500 | N220: =M220-M220*H220 -> 2500 | O220: =N220/J220/12 -> 69.44444444 | P220: =+O220*12 -> 833.3333333 | Q220: =+IF(L220<=$N$5,0,IF(K220>$N$4,P220,(O220*G220))) -> 0 | S220: =+IF(Q220=0,(M220-(M220-N220)),IF($N$3-F220<1,0,(($N$3-F220)*P220))) -> 2500 | T220: =+IF(Q220=0,S220,S220+Q220) -> 2500 | U220: =+M220-T220 -> 0 | V220: 2189 FAR
A221: 217499 | C221: LH | D221: 8136 | E221: 53 Foot Trailer 4 axle Dry Van | F221: 2019 | G221: 7 | H221: 0 | I221: S/L | J221: 0 | K221: 2019 | L221: =+K221+(G221/12) -> 2019.583333 | M221: 0 | N221: =M221-M221*H221 -> 0 | O221: =IFERROR(N221/J221/12,0) -> 0 | P221: =+O221*12 -> 0 | Q221: =+IF(L221<=$N$5,0,IF(K221>$N$4,P221,(O221*G221))) -> 0 | S221: =+IF(Q221=0,(M221-(M221-N221)),IF($N$3-F221<1,0,(($N$3-F221)*P221))) -> 0 | T221: =+IF(Q221=0,S221,S221+Q221) -> 0 | U221: =+M221-T221 -> 0 | V221: 2189 FAR
A222: 86896 | D222: 8149 | E222: 1990 Dry Van 53' Trailer | F222: 2011 | G222: 1 | H222: 0 | I222: S/L | J222: 1 | K222: 2012 | L222: 2012.083333 | M222: 0 | N222: 0 | O222: =IFERROR(N222/J222/12,0) -> 0 | P222: =+O222*12 -> 0 | Q222: =+IF(L222<=$N$5,0,IF(K222>$N$4,P222,(O222*G222))) -> 0 | S222: =+IF(Q222=0,(M222-(M222-N222)),IF($N$3-F222<1,0,(($N$3-F222)*P222))) -> 0 | T222: =+IF(Q222=0,S222,S222+Q222) -> 0 | U222: =+M222-T222 -> 0 | V222: 2189 FAR
A223: 67700 | D223: 8394 | E223: 1964 Type HT Flat Trailer | F223: 2008 | G223: 11 | H223: 0 | I223: S/L | J223: 3 | K223: 2011 | L223: 2011.916667 | M223: 1000 | N223: 1000 | O223: =IFERROR(N223/J223/12,0) -> 27.77777778 | P223: =+O223*12 -> 333.3333333 | Q223: =+IF(L223<=$N$5,0,IF(K223>$N$4,P223,(O223*G223))) -> 0 | S223: =+IF(Q223=0,(M223-(M223-N223)),IF($N$3-F223<1,0,(($N$3-F223)*P223))) -> 1000 | T223: =+IF(Q223=0,S223,S223+Q223) -> 1000 | U223: =+M223-T223 -> 0 | V223: 2189 FAR
... 73 more rows

Sheet Containers 2188
A1: 2188 Lewis County/Joe's Refuse
A2: Depreciation Schedule | L2: ='Trucks 2188'!N2 -> 9 | M2: Effective Rate Month
A3: ='Summary 2188'!A3 -> 2020-05-31 | L3: ='Trucks 2188'!N3 -> 2019 | M3: First Year
L4: ='Trucks 2188'!N4 -> 2020 | M4: Second YEar
L5: ='Trucks 2188'!N5 -> 2020.75 | M5: Rate Effective Year
K8: =SUM(K177:K178,K272,K341) -> 108479.31 | P8: Beginning | Q8: Ending
F9: Salvage | I9: Year | O9: Total | P9: Accum. | Q9: Accum. | R9: Average
B10: Quantity | D10: Date in Service | F10: Value | G10: Method | H10: Life | I10: Fully | J10: Year/Mo | K10: Asset | L10: Depr | M10: Monthly | N10: Annual | O10: Test yr. | P10: Depr. | Q10: Depr. | R10: Investment
A11: Codes | B11: No | C11: Asset Classification | D11: Year | E11: Mo | F11: % | G11: M | H11: Years | I11: Depr | J11: Fully Depr | K11: Cost | L11: Cost | M11: Depr | N11: Depr | O11: Depn. | P11: =+'Summary 2188'!F6 -> 2019-06-01 | Q11: =+'Summary 2188'!G6 -> 2020-05-31 | R11: =+'Summary 2188'!H6 -> 2020-05-31
C12: CONTAINERS
B13: 10, 10 | C13: 1.5 YD & 2YD CONTAINERS | D13: 1997 | E13: 8 | F13: 0 | G13: S/L | H13: 10 | I13: =D13+H13 -> 2007 | J13: =+I13+(E13/12) -> 2007.666667 | K13: 6428.12 | L13: =K13-K13*F13 -> 6428.12 | M13: =L13/H13/12 -> 53.56766667 | N13: =+M13*12 -> 642.812 | O13: =+IF(J13<=$L$5,0,IF(I13>$L$4,N13,(M13*E13))) -> 0 | P13: =+IF(O13=0,(K13-(K13-L13)),IF($L$3-D13<1,0,(($L$3-D13)*N13))) -> 6428.12 | Q13: =+IF(O13=0,P13,P13+O13) -> 6428.12 | R13: =+K13-Q13 -> 0
B14: 600 | C14: FEL & REL CONTAINERS | D14: 1999 | E14: 6 | F14: 0 | G14: S/L | H14: 10 | I14: 2009 | J14: 2009.5 | K14: 36000 | L14: 36000 | M14: 300 | N14: 3600 | O14: 0 | P14: =+IF(O14=0,(K14-(K14-L14)),IF($L$3-D14<1,0,(($L$3-D14)*N14))) -> 36000 | Q14: 36000 | R14: 0
B15: 3 | C15: 1.5 YD SELF DUMP HOPPER | D15: 1999 | E15: 10 | F15: 0 | G15: S/L | H15: 10 | I15: 2009 | J15: 2009.833333 | K15: 1066.61 | L15: 1066.61 | M15: 8.888416667 | N15: 106.661 | O15: 0 | P15: 1066.61 | Q15: 1066.61 | R15: 0
B16: 34 | C16: 1.5 YD CONTAINER | D16: 2000 | E16: 4 | F16: 0 | G16: S/L | H16: 10 | I16: 2010 | J16: 2010.333333 | K16: 10860 | L16: 10860 | M16: 90.5 | N16: 1086 | O16: 0 | P16: 10860 | Q16: 10860 | R16: 0
B17: 6 | C17: 1.5 YD F/L CONTAINERS | D17: 2000 | E17: 5 | F17: 0 | G17: S/L | H17: 10 | I17: 2010 | J17: 2010.416667 | K17: 2041.68 | L17: 2041.68 | M17: 17.014 | N17: 204.168 | O17: 0 | P17: 2041.68 | Q17: 2041.68 | R17: 0
B18: 8 | C18: 5 YD F/L CONTAINERS | D18: 2001 | E18: 2 | F18: 0 | G18: S/L | H18: 10 | I18: 2011 | J18: 2011.166667 | K18: 3312.3 | L18: 3312.3 | M18: 27.6025 | N18: 331.23 | O18: 0 | P18: 3312.3 | Q18: 3312.3 | R18: 0
B19: 12 | C19: 1.5 YD F/L CONTAINERS | D19: 2001 | E19: 3 | F19: 0 | G19: S/L | H19: 10 | I19: 2011 | J19: 2011.25 | K19: 3692.4 | L19: 3692.4 | M19: 30.77 | N19: 369.24 | O19: 0 | P19: 3692.4 | Q19: 3692.4 | R19: 0
B20: 19 | C20: 1.5 YD F/L CONTAINERS | D20: 2001 | E20: 7 | F20: 0 | G20: S/L | H20: 10 | I20: 2011 | J20: 2011.583333 | K20: 5956.8 | L20: 5956.8 | M20: 49.64 | N20: 595.68 | O20: 0 | P20: 5956.8 | Q20: 5956.8 | R20: 0
B21: 5 | C21: 2 YD R/L CONTAINERS W/ LIDS | D21: 2001 | E21: 8 | F21: 0 | G21: S/L | H21: 10 | I21: 2011 | J21: 2011.666667 | K21: 1820.99 | L21: 1820.99 | M21: 15.17491667 | N21: 182.099 | O21: 0 | P21: 1820.99 | Q21: 1820.99 | R21: 0
B22: 9 | C22: 1 YD FL/RL COMBO COMMERCIAL CONTAINERS | D22: 2003 | E22: 6 | F22: 0 | G22: S/L | H22: 10 | I22: 2013 | J22: 2013.5 | K22: 3393.41 | L22: 3393.41 | M22: 28.27841667 | N22: 339.341 | O22: 0 | P22: 3393.41 | Q22: 3393.41 | R22: 0
B23: 4 | C23: 1.5 YD COMBO COMMERCIAL CONTAINERS | D23: 2003 | E23: 6 | F23: 0 | G23: S/L | H23: 10 | I23: 2013 | J23: 2013.5 | K23: 1601.24 | L23: 1601.24 | M23: 13.34366667 | N23: 160.124 | O23: 0 | P23: 1601.24 | Q23: 1601.24 | R23: 0
B24: 9 | C24: 2 YD FL/RL COMBO COMMERCIAL CONTAINERS | D24: 2003 | E24: 6 | F24: 0 | G24: S/L | H24: 10 | I24: 2013 | J24: 2013.5 | K24: 3874.69 | L24: 3874.69 | M24: 32.28908333 | N24: 387.469 | O24: 0 | P24: 3874.69 | Q24: 3874.69 | R24: 0
B25: 34 | C25: 1.5 YD CONTAINER | D25: 2003 | E25: 11 | F25: 0 | G25: S/L | H25: 10 | I25: 2013 | J25: 2013.916667 | K25: 10820 | L25: 10820 | M25: 90.16666667 | N25: 1082 | O25: 0 | P25: 10820 | Q25: 10820 | R25: 0
B26: 0 | C26: TAX - AUTOMATED CONTAINERS | D26: 2003 | E26: 12 | F26: 0 | G26: S/L | H26: 10 | I26: 2013 | J26: 2014 | K26: 39.13 | L26: 39.13 | M26: 0.3260833333 | N26: 3.913 | O26: 0 | P26: 39.13 | Q26: 39.13 | R26: 0
B27: 5 | C27: 1 YD RL CONTAINERS | D27: 2004 | E27: 3 | F27: 0 | G27: S/L | H27: 10 | I27: 2014 | J27: 2014.25 | K27: 1701.66 | L27: 1701.66 | M27: 14.1805 | N27: 170.166 | O27: 0 | P27: 1701.66 | Q27: 1701.66 | R27: 0
B28: 4 | C28: 1.5 YD RL CONTAINERS | D28: 2004 | E28: 3 | F28: 0 | G28: S/L | H28: 10 | I28: 2014 | J28: 2014.25 | K28: 1443.18 | L28: 1443.18 | M28: 12.0265 | N28: 144.318 | O28: 0 | P28: 1443.18 | Q28: 1443.18 | R28: 0
B29: 5 | C29: 2 YD R/L CONTAINERS | D29: 2004 | E29: 3 | F29: 0 | G29: S/L | H29: 10 | I29: 2014 | J29: 2014.25 | K29: 1922.45 | L29: 1922.45 | M29: 16.02041667 | N29: 192.245 | O29: 0 | P29: 1922.45 | Q29: 1922.45 | R29: 0
B30: 7 | C30: 2 YD FRONT/REAR LOAD CONTAINER | D30: 2005 | E30: 9 | F30: 0 | G30: S/L | H30: 10 | I30: 2015 | J30: 2015.75 | K30: 3164 | L30: 3164 | M30: 26.36666667 | N30: 316.4 | O30: 0 | P30: 3164 | Q30: 3164 | R30: 0
B31: 6 | C31: 5 YD F/L CONTAINERS | D31: 2006 | E31: 5 | F31: 0 | G31: S/L | H31: 10 | I31: 2016 | J31: 2016.416667 | K31: 2562.24 | L31: 2562.24 | M31: 21.352 | N31: 256.224 | O31: 0 | P31: 2562.24 | Q31: 2562.24 | R31: 0
B32: 20 | C32: 1.5 YD F/L CONTAINERS | D32: 2006 | E32: 7 | F32: 0 | G32: S/L | H32: 10 | I32: 2016 | J32: 2016.583333 | K32: 6201.6 | L32: 6201.6 | M32: 51.68 | N32: 620.16 | O32: 0 | P32: 6201.6 | Q32: 6201.6 | R32: 0
B33: 35 | C33: 4 YD F/L CONTAINERS | D33: 2006 | E33: 11 | F33: 0 | G33: S/L | H33: 10 | I33: 2016 | J33: 2016.916667 | K33: 14187.52 | L33: 14187.52 | M33: 118.2293333 | N33: 1418.752 | O33: 0 | P33: 14187.52 | Q33: 14187.52 | R33: 0
B34: 46 | C34: 1 YD R/L CONTAINER | D34: 2007 | E34: 1 | F34: 0 | G34: S/L | H34: 10 | I34: 2017 | J34: 2017.083333 | K34: 13221.38 | L34: 13221.38 | M34: 110.1781667 | N34: 1322.138 | O34: 0 | P34: 13221.38 | Q34: 13221.38 | R34: 0
B35: 26 | C35: 2 YD R/L CONTAINERS | D35: 2007 | E35: 2 | F35: 0 | G35: S/L | H35: 10 | I35: 2017 | J35: 2017.166667 | K35: 8671.92 | L35: 8671.92 | M35: 72.266 | N35: 867.192 | O35: 0 | P35: 8671.92 | Q35: 8671.92 | R35: 0
B36: 19 | C36: 3 YD F/L CONTAINERS | D36: 2007 | E36: 3 | F36: 0 | G36: S/L | H36: 10 | I36: 2017 | J36: 2017.25 | K36: 7159.04 | L36: 7159.04 | M36: 59.65866667 | N36: 715.904 | O36: 0 | P36: 7159.04 | Q36: 7159.04 | R36: 0
B37: 32 | C37: 2 YD F/L CONTAINERS | D37: 2007 | E37: 4 | F37: 0 | G37: S/L | H37: 10 | I37: 2017 | J37: 2017.333333 | K37: 10998.9 | L37: 10998.9 | M37: 91.6575 | N37: 1099.89 | O37: 0 | P37: 10998.9 | Q37: 10998.9 | R37: 0
B38: 19 | C38: 4 YD AND 6 YD F/L CONTAINERS | D38: 2007 | E38: 4 | F38: 0 | G38: S/L | H38: 10 | I38: 2017 | J38: 2017.333333 | K38: 7670.4 | L38: 7670.4 | M38: 63.92 | N38: 767.04 | O38: 0 | P38: 7670.4 | Q38: 7670.4 | R38: 0
B39: 52 | C39: 6 YD F/L CONTAINERS | D39: 2007 | E39: 4 | F39: 0 | G39: S/L | H39: 10 | I39: 2017 | J39: 2017.333333 | K39: 23500.8 | L39: 23500.8 | M39: 195.84 | N39: 2350.08 | O39: 0 | P39: 23500.8 | Q39: 23500.8 | R39: 0
B40: 25 | C40: 1.5 YD F/L CONTAINERS | D40: 2007 | E40: 5 | F40: 0 | G40: S/L | H40: 10 | I40: 2017 | J40: 2017.416667 | K40: 7759.13 | L40: 7759.13 | M40: 64.65941667 | N40: 775.913 | O40: 0 | P40: 7759.13 | Q40: 7759.13 | R40: 0
B41: 26 | C41: 2 YD R/L CONTAINERS | D41: 2007 | E41: 5 | F41: 0 | G41: S/L | H41: 10 | I41: 2017 | J41: 2017.416667 | K41: 8739.9 | L41: 8739.9 | M41: 72.8325 | N41: 873.99 | O41: 0 | P41: 8739.9 | Q41: 8739.9 | R41: 0
B42: 43 | C42: 4 YD TIPPER CONTAINERS | D42: 2007 | E42: 5 | F42: 0 | G42: S/L | H42: 10 | I42: 2017 | J42: 2017.416667 | K42: 17516.8 | L42: 17516.8 | M42: 145.9733333 | N42: 1751.68 | O42: 0 | P42: 17516.8 | Q42: 17516.8 | R42: 0
B43: 43 | C43: 1 YD F/L CONTAINERS | D43: 2007 | E43: 6 | F43: 0 | G43: S/L | H43: 10 | I43: 2017 | J43: 2017.5 | K43: 12115.12 | L43: 12115.12 | M43: 100.9593333 | N43: 1211.512 | O43: 0 | P43: 12115.12 | Q43: 12115.12 | R43: 0
B44: 26 | C44: 1 YD R/L CONTAINER | D44: 2007 | E44: 6 | F44: 0 | G44: S/L | H44: 10 | I44: 2017 | J44: 2017.5 | K44: 7361.64 | L44: 7361.64 | M44: 61.347 | N44: 736.164 | O44: 0 | P44: 7361.64 | Q44: 7361.64 | R44: 0
B45: 19 | C45: 2 YD F/L CONTAINERS | D45: 2007 | E45: 6 | F45: 0 | G45: S/L | H45: 10 | I45: =D45+H45 -> 2017 | J45: =+I45+(E45/12) -> 2017.5 | K45: 6573.2 | L45: =K45-K45*F45 -> 6573.2 | M45: =L45/H45/12 -> 54.77666667 | N45: =+M45*12 -> 657.32 | O45: =+IF(J45<=$L$5,0,IF(I45>$L$4,N45,(M45*E45))) -> 0 | P45: 6573.2 | Q45: =+IF(O45=0,P45,P45+O45) -> 6573.2 | R45: =+K45-Q45 -> 0
B46: 39 | C46: 2 YD R/L CONTAINERS | D46: 2007 | E46: 6 | F46: 0 | G46: S/L | H46: 10 | I46: 2017 | J46: 2017.5 | K46: 13372.92 | L46: 13372.92 | M46: 111.441 | N46: 1337.292 | O46: 0 | P46: 13372.92 | Q46: 13372.92 | R46: 0
B47: 33 | C47: 2 YD R/L CONTAINERS | D47: 2007 | E47: 6 | F47: 0 | G47: S/L | H47: 10 | I47: 2017 | J47: 2017.5 | K47: 11194.92 | L47: 11194.92 | M47: 93.291 | N47: 1119.492 | O47: 0 | P47: 11194.92 | Q47: 11194.92 | R47: 0
B48: 21 | C48: 2 YD R/L CONTAINERS | D48: 2007 | E48: 6 | F48: 0 | G48: S/L | H48: 10 | I48: 2017 | J48: 2017.5 | K48: 6989.2 | L48: 6989.2 | M48: 58.24333333 | N48: 698.92 | O48: 0 | P48: 6989.2 | Q48: 6989.2 | R48: 0
B49: 17 | C49: 3 YD F/L CONTAINERS | D49: 2007 | E49: 6 | F49: 0 | G49: S/L | H49: 10 | I49: 2017 | J49: 2017.5 | K49: 6501.33 | L49: 6501.33 | M49: 54.17775 | N49: 650.133 | O49: 0 | P49: 6501.33 | Q49: 6501.33 | R49: 0
B50: 19 | C50: 4 YD F/L CONTAINERS | D50: 2007 | E50: 6 | F50: 0 | G50: S/L | H50: 10 | I50: 2017 | J50: 2017.5 | K50: 7628.45 | L50: 7628.45 | M50: 63.57041667 | N50: 762.845 | O50: 0 | P50: 7628.45 | Q50: 7628.45 | R50: 0
B51: 20 | C51: 6 YD F/L CONTAINERS | D51: 2007 | E51: 6 | F51: 0 | G51: S/L | H51: 10 | I51: 2017 | J51: 2017.5 | K51: 9011.48 | L51: 9011.48 | M51: 75.09566667 | N51: 901.148 | O51: 0 | P51: 9011.48 | Q51: 9011.48 | R51: 0
B52: 9 | C52: 6 YD F/L CONTAINERS | D52: 2007 | E52: 6 | F52: 0 | G52: S/L | H52: 10 | I52: 2017 | J52: 2017.5 | K52: 3876.84 | L52: 3876.84 | M52: 32.307 | N52: 387.684 | O52: 0 | P52: 3876.84 | Q52: 3876.84 | R52: 0
B53: 30 | C53: 1.5 YD F/L CONTAINERS | D53: 2007 | E53: 6 | F53: 0 | G53: S/L | H53: 10 | I53: 2017 | J53: 2017.5 | K53: 9589.74 | L53: 9589.74 | M53: 79.9145 | N53: 958.974 | O53: 0 | P53: 9589.74 | Q53: 9589.74 | R53: 0
B54: 96 | C54: 1 YD R/L CONTAINER | D54: 2007 | E54: 7 | F54: 0 | G54: S/L | H54: 10 | I54: 2017 | J54: 2017.583333 | K54: 27255.58 | L54: 27255.58 | M54: 227.1298333 | N54: 2725.558 | O54: 0 | P54: 27255.58 | Q54: 27255.58 | R54: 0
B55: 4 | C55: 1.5 YD F/L CONTAINERS | D55: 2007 | E55: 7 | F55: 0 | G55: S/L | H55: 10 | I55: 2017 | J55: 2017.583333 | K55: 1115.14 | L55: 1115.14 | M55: 9.292833333 | N55: 111.514 | O55: 0 | P55: 1115.14 | Q55: 1115.14 | R55: 0
B56: 2 | C56: 6 YD F/L CONTAINERS | D56: 2007 | E56: 7 | F56: 0 | G56: S/L | H56: 10 | I56: 2017 | J56: 2017.583333 | K56: 1040 | L56: 1040 | M56: 8.666666667 | N56: 104 | O56: 0 | P56: 1040 | Q56: 1040 | R56: 0
B57: 22 | C57: 1 YD R/L CONTAINER | D57: 2007 | E57: 8 | F57: 0 | G57: S/L | H57: 10 | I57: 2017 | J57: 2017.666667 | K57: 6370.42 | L57: 6370.42 | M57: 53.08683333 | N57: 637.042 | O57: 0 | P57: 6370.42 | Q57: 6370.42 | R57: 0
B58: 8 | C58: 1 YD R/L CONTAINER | D58: 2007 | E58: 8 | F58: 0 | G58: S/L | H58: 10 | I58: 2017 | J58: 2017.666667 | K58: 2388.91 | L58: 2388.91 | M58: 19.90758333 | N58: 238.891 | O58: 0 | P58: 2388.91 | Q58: 2388.91 | R58: 0
B59: 16 | C59: 2 YD R/L CONTAINERS | D59: 2007 | E59: 8 | F59: 0 | G59: S/L | H59: 10 | I59: 2017 | J59: 2017.666667 | K59: 5334.58 | L59: 5334.58 | M59: 44.45483333 | N59: 533.458 | O59: 0 | P59: 5334.58 | Q59: 5334.58 | R59: 0
B60: 22 | C60: 6 YD F/L CONTAINERS | D60: 2007 | E60: 8 | F60: 0 | G60: S/L | H60: 10 | I60: 2017 | J60: 2017.666667 | K60: 9945.14 | L60: 9945.14 | M60: 82.87616667 | N60: 994.514 | O60: 0 | P60: 9945.14 | Q60: 9945.14 | R60: 0
B61: 17 | C61: 6 YD F/L CONTAINERS | D61: 2007 | E61: 9 | F61: 0 | G61: S/L | H61: 10 | I61: 2017 | J61: 2017.75 | K61: 7753.68 | L61: 7753.68 | M61: 64.614 | N61: 775.368 | O61: 0 | P61: 7753.68 | Q61: 7753.68 | R61: 0
B62: 5 | C62: 3 YD F/L CONTAINERS | D62: 2007 | E62: 10 | F62: 0 | G62: S/L | H62: 10 | I62: 2017 | J62: 2017.833333 | K62: 1883.97 | L62: 1883.97 | M62: 15.69975 | N62: 188.397 | O62: 0 | P62: 1883.97 | Q62: 1883.97 | R62: 0
B63: 28 | C63: 3 YD F/L CONTAINERS | D63: 2007 | E63: 10 | F63: 0 | G63: S/L | H63: 10 | I63: 2017 | J63: 2017.833333 | K63: 10361.84 | L63: 10361.84 | M63: 86.34866667 | N63: 1036.184 | O63: 0 | P63: 10361.84 | Q63: 10361.84 | R63: 0
B64: 18 | C64: 1 YD CONTAINER | D64: 2007 | E64: 11 | F64: 0 | G64: S/L | H64: 10 | I64: 2017 | J64: 2017.916667 | K64: 5194.53 | L64: 5194.53 | M64: 43.28775 | N64: 519.453 | O64: 0 | P64: 5194.53 | Q64: 5194.53 | R64: 0
B65: 21 | C65: 3 YD F/L CONTAINERS | D65: 2007 | E65: 11 | F65: 0 | G65: S/L | H65: 10 | I65: 2017 | J65: 2017.916667 | K65: 7919.21 | L65: 7919.21 | M65: 65.99341667 | N65: 791.921 | O65: 0 | P65: 7919.21 | Q65: 7919.21 | R65: 0
B66: 22 | C66: 6 YD F/L CONTAINERS | D66: 2007 | E66: 11 | F66: 0 | G66: S/L | H66: 10 | I66: 2017 | J66: 2017.916667 | K66: 10018.8 | L66: 10018.8 | M66: 83.49 | N66: 1001.88 | O66: 0 | P66: 10018.8 | Q66: 10018.8 | R66: 0
B67: 9 | C67: 3 YD F/L CONTAINERS | D67: 2007 | E67: 12 | F67: 0 | G67: S/L | H67: 10 | I67: 2017 | J67: 2018 | K67: 3332.34 | L67: 3332.34 | M67: 27.7695 | N67: 333.234 | O67: 0 | P67: 3332.34 | Q67: 3332.34 | R67: 0
B68: 10 | C68: 4 YD F/L CONTAINERS | D68: 2007 | E68: 12 | F68: 0 | G68: S/L | H68: 10 | I68: 2017 | J68: 2018 | K68: 3920.4 | L68: 3920.4 | M68: 32.67 | N68: 392.04 | O68: 0 | P68: 3920.4 | Q68: 3920.4 | R68: 0
B69: 10 | C69: 4 YD F/L CONTAINERS | D69: 2007 | E69: 12 | F69: 0 | G69: S/L | H69: 10 | I69: 2017 | J69: 2018 | K69: 3920.4 | L69: 3920.4 | M69: 32.67 | N69: 392.04 | O69: 0 | P69: 3920.4 | Q69: 3920.4 | R69: 0
B70: 17 | C70: 1.5 YD F/L CONTAINERS | D70: 2007 | E70: 12 | F70: 0 | G70: S/L | H70: 10 | I70: 2017 | J70: 2018 | K70: 5357.88 | L70: 5357.88 | M70: 44.649 | N70: 535.788 | O70: 0 | P70: 5357.88 | Q70: 5357.88 | R70: 0
B71: 11 | C71: 8 YD CONTAINERS | D71: 2007 | E71: 12 | F71: 0 | G71: S/L | H71: 10 | I71: 2017 | J71: 2018 | K71: 5417.78 | L71: 5417.78 | M71: 45.14816667 | N71: 541.778 | O71: 0 | P71: 5417.78 | Q71: 5417.78 | R71: 0
B72: 35 | C72: 1 YD F/L CONTAINERS | D72: 2008 | E72: 1 | F72: 0 | G72: S/L | H72: 10 | I72: 2018 | J72: 2018.083333 | K72: 10025.33 | L72: 10025.33 | M72: 83.54441667 | N72: 1002.533 | O72: 0 | P72: 10025.33 | Q72: 10025.33 | R72: 0
B73: 35 | C73: 1 YD F/L CONTAINERS | D73: 2008 | E73: 1 | F73: 0 | G73: S/L | H73: 10 | I73: 2018 | J73: 2018.083333 | K73: 10062.36 | L73: 10062.36 | M73: 83.853 | N73: 1006.236 | O73: 0 | P73: 10062.36 | Q73: 10062.36 | R73: 0
B74: 22 | C74: 2 YD F/L CONTAINERS | D74: 2008 | E74: 1 | F74: 0 | G74: S/L | H74: 10 | I74: 2018 | J74: 2018.083333 | K74: 7347.48 | L74: 7347.48 | M74: 61.229 | N74: 734.748 | O74: 0 | P74: 7347.48 | Q74: 7347.48 | R74: 0
B75: 20 | C75: 2 YD F/L CONTAINERS | D75: 2008 | E75: 1 | F75: 0 | G75: S/L | H75: 10 | I75: 2018 | J75: 2018.083333 | K75: 6869.41 | L75: 6869.41 | M75: 57.24508333 | N75: 686.941 | O75: 0 | P75: 6869.41 | Q75: 6869.41 | R75: 0
B76: 9 | C76: 3 YD F/L CONTAINERS | D76: 2008 | E76: 1 | F76: 0 | G76: S/L | H76: 10 | I76: 2018 | J76: 2018.083333 | K76: 3277.89 | L76: 3277.89 | M76: 27.31575 | N76: 327.789 | O76: 0 | P76: 3277.89 | Q76: 3277.89 | R76: 0
B77: 38 | C77: 1 YD R/L CONTAINER | D77: 2008 | E77: 3 | F77: 0 | G77: S/L | H77: 10 | I77: =D77+H77 -> 2018 | J77: =+I77+(E77/12) -> 2018.25 | K77: 10922.67 | L77: =K77-K77*F77 -> 10922.67 | M77: =L77/H77/12 -> 91.02225 | N77: =+M77*12 -> 1092.267 | O77: =+IF(J77<=$L$5,0,IF(I77>$L$4,N77,(M77*E77))) -> 0 | P77: 10922.67 | Q77: =+IF(O77=0,P77,P77+O77) -> 10922.67 | R77: =+K77-Q77 -> 0
B78: 6 | C78: 6 YD F/L CONTAINERS | D78: 2008 | E78: 3 | F78: 0 | G78: S/L | H78: 10 | I78: 2018 | J78: 2018.25 | K78: 2774.4 | L78: 2774.4 | M78: 23.12 | N78: 277.44 | O78: 0 | P78: =+IF(O78=0,(K78-(K78-L78)),IF($L$3-D78<1,0,(($L$3-D78)*N78))) -> 2774.4 | Q78: 2774.4 | R78: 0
B79: 18 | C79: 1.5 YD CONTAINER | D79: 2008 | E79: 3 | F79: 0 | G79: S/L | H79: 10 | I79: 2018 | J79: 2018.25 | K79: 5564.79 | L79: 5564.79 | M79: 46.37325 | N79: 556.479 | O79: 0 | P79: 5564.79 | Q79: 5564.79 | R79: 0
B80: 57 | C80: 2 YD R/L CONTAINERS | D80: 2008 | E80: 3 | F80: 0 | G80: S/L | H80: 10 | I80: 2018 | J80: 2018.25 | K80: 19476.77 | L80: 19476.77 | M80: 162.3064167 | N80: 1947.677 | O80: 0 | P80: 19476.77 | Q80: 19476.77 | R80: 0
B81: 23 | C81: 3 YD F/L CONTAINERS | D81: 2008 | E81: 3 | F81: 0 | G81: S/L | H81: 10 | I81: 2018 | J81: 2018.25 | K81: 8477.87 | L81: 8477.87 | M81: 70.64891667 | N81: 847.787 | O81: 0 | P81: 8477.87 | Q81: 8477.87 | R81: 0
B82: 34 | C82: 2 YD R/L CONTAINERS | D82: 2008 | E82: 4 | F82: 0 | G82: S/L | H82: 10 | I82: 2018 | J82: 2018.333333 | K82: 11440.64 | L82: 11440.64 | M82: 95.33866667 | N82: 1144.064 | O82: 0 | P82: 11440.64 | Q82: 11440.64 | R82: 0
B83: 40 | C83: 1 YD F/L CONTAINERS | D83: 2008 | E83: 5 | F83: 0 | G83: S/L | H83: 10 | I83: 2018 | J83: 2018.416667 | K83: 11314.2 | L83: 11314.2 | M83: 94.285 | N83: 1131.42 | O83: 0 | P83: 11314.2 | Q83: 11314.2 | R83: 0
B84: 37 | C84: 2 YD F/L CONTAINERS | D84: 2008 | E84: 5 | F84: 0 | G84: S/L | H84: 10 | I84: 2018 | J84: 2018.416667 | K84: 12731.2 | L84: 12731.2 | M84: 106.0933333 | N84: 1273.12 | O84: 0 | P84: 12731.2 | Q84: 12731.2 | R84: 0
B85: 56 | C85: 2 YD F/L CONTAINERS | D85: 2008 | E85: 5 | F85: 0 | G85: S/L | H85: 10 | I85: 2018 | J85: 2018.416667 | K85: 18911.5 | L85: 18911.5 | M85: 157.5958333 | N85: 1891.15 | O85: 0 | P85: 18911.5 | Q85: 18911.5 | R85: 0
B86: 38 | C86: 3 YD F/L CONTAINERS | D86: 2008 | E86: 5 | F86: 0 | G86: S/L | H86: 10 | I86: 2018 | J86: 2018.416667 | K86: 14300.8 | L86: 14300.8 | M86: 119.1733333 | N86: 1430.08 | O86: 0 | P86: 14300.8 | Q86: 14300.8 | R86: 0
B87: 24 | C87: 6 YD F/L CONTAINERS | D87: 2008 | E87: 5 | F87: 0 | G87: S/L | H87: 10 | I87: 2018 | J87: 2018.416667 | K87: 11052.6 | L87: 11052.6 | M87: 92.105 | N87: 1105.26 | O87: 0 | P87: 11052.6 | Q87: 11052.6 | R87: 0
B88: 12 | C88: 8 YD CONTAINERS | D88: 2008 | E88: 5 | F88: 0 | G88: S/L | H88: 10 | I88: 2018 | J88: 2018.416667 | K88: 6104 | L88: 6104 | M88: 50.86666667 | N88: 610.4 | O88: 0 | P88: 6104 | Q88: 6104 | R88: 0
B89: 117 | C89: 1 YD R/L CONTAINER | D89: 2008 | E89: 6 | F89: 0 | G89: S/L | H89: 10 | I89: 2018 | J89: 2018.5 | K89: 33332.2 | L89: 33332.2 | M89: 277.7683333 | N89: 3333.22 | O89: 0 | P89: 33332.2 | Q89: 33332.2 | R89: 0
B90: 39 | C90: 1 YD R/L CONTAINER | D90: 2008 | E90: 6 | F90: 0 | G90: S/L | H90: 10 | I90: 2018 | J90: 2018.5 | K90: 11063.5 | L90: 11063.5 | M90: 92.19583333 | N90: 1106.35 | O90: 0 | P90: 11063.5 | Q90: 11063.5 | R90: 0
B91: 38 | C91: 2 YD F/L CONTAINERS | D91: 2008 | E91: 6 | F91: 0 | G91: S/L | H91: 10 | I91: 2018 | J91: 2018.5 | K91: 12894.7 | L91: 12894.7 | M91: 107.4558333 | N91: 1289.47 | O91: 0 | P91: 12894.7 | Q91: 12894.7 | R91: 0
B92: 41 | C92: 4 YD F/L CONTAINERS | D92: 2008 | E92: 6 | F92: 0 | G92: S/L | H92: 10 | I92: 2018 | J92: 2018.5 | K92: 16764.2 | L92: 16764.2 | M92: 139.7016667 | N92: 1676.42 | O92: 0 | P92: 16764.2 | Q92: 16764.2 | R92: 0
B93: 75 | C93: 1.5 YD F/L CONTAINERS | D93: 2008 | E93: 6 | F93: 0 | G93: S/L | H93: 10 | I93: 2018 | J93: 2018.5 | K93: 23587.6 | L93: 23587.6 | M93: 196.5633333 | N93: 2358.76 | O93: 0 | P93: 23587.6 | Q93: 23587.6 | R93: 0
A94: 182399 | B94: 34 | C94: 1.5 Yard Commercial Containers | D94: 2008 | E94: 11 | F94: 0 | G94: S/L | H94: 12 | I94: 2020 | J94: 2020.916667 | K94: 4038.58 | L94: 4038.58 | M94: 28.04569444 | N94: 336.5483333 | O94: 308.5026389 | P94: 3702.031667 | Q94: 4010.534306 | R94: 28.04569444
A95: 182394 | B95: 16 | C95: 2 Yard Commercial Conatiners | D95: 2008 | E95: 11 | F95: 0 | G95: S/L | H95: 12 | I95: 2020 | J95: 2020.916667 | K95: 5041.74 | L95: 5041.74 | M95: 35.01208333 | N95: 420.145 | O95: 385.1329167 | P95: 4621.595 | Q95: 5006.727917 | R95: 35.01208333
A96: 198077 | B96: 30 | C96: 2 Yard Commercial Containers | D96: 2008 | E96: 11 | F96: 0 | G96: S/L | H96: 12 | I96: 2020 | J96: 2020.916667 | K96: 1867.5 | L96: 1867.5 | M96: 12.96875 | N96: 155.625 | O96: 142.65625 | P96: 1711.875 | Q96: 1854.53125 | R96: 12.96875
A97: 200837 | B97: 381 | C97: 2 Yd Containers | D97: 2008 | E97: 11 | F97: 0 | G97: S/L | H97: 7 | I97: 2015 | J97: 2015.916667 | K97: 26144.22 | L97: 26144.22 | M97: 311.2407143 | N97: 3734.888571 | O97: 0 | P97: 26144.22 | Q97: 26144.22 | R97: 0
A98: 200836 | B98: 30 | C98: 1 Yd Containers | D98: 2008 | E98: 11 | F98: 0 | G98: S/L | H98: 7 | I98: 2015 | J98: 2015.916667 | K98: 2058.6 | L98: 2058.6 | M98: 24.50714286 | N98: 294.0857143 | O98: 0 | P98: 2058.6 | Q98: 2058.6 | R98: 0
A99: 200576 | B99: 589 | C99: 1 Yd Containers | D99: 2008 | E99: 11 | F99: 0 | G99: S/L | H99: 7 | I99: 2015 | J99: 2015.916667 | K99: 28272 | L99: 28272 | M99: 336.5714286 | N99: 4038.857143 | O99: 0 | P99: 28272 | Q99: 28272 | R99: 0
A100: 200590 | B100: 4 | C100: 1.5 Yd Containers | D100: 2008 | E100: 11 | F100: 0 | G100: S/L | H100: 7 | I100: 2015 | J100: 2015.916667 | K100: 192 | L100: 192 | M100: 2.285714286 | N100: 27.42857143 | O100: 0 | P100: 192 | Q100: 192 | R100: 0
A101: 200596 | B101: 40 | C101: 2 Yd Containers | D101: 2008 | E101: 11 | F101: 0 | G101: S/L | H101: 7 | I101: 2015 | J101: 2015.916667 | K101: 1920 | L101: 1920 | M101: 22.85714286 | N101: 274.2857143 | O101: 0 | P101: 1920 | Q101: 1920 | R101: 0
A102: 200602 | B102: 53 | C102: 3 Yd Containers | D102: 2008 | E102: 11 | F102: 0 | G102: S/L | H102: 7 | I102: 2015 | J102: 2015.916667 | K102: 2544 | L102: 2544 | M102: 30.28571429 | N102: 363.4285714 | O102: 0 | P102: 2544 | Q102: 2544 | R102: 0
A103: 71897 | B103: 17 | C103: 3 YD F/L CONTAINERS | D103: 2010 | E103: 1 | F103: 0 | G103: S/L | H103: 10 | I103: 2020 | J103: 2020.083333 | K103: =7616+612 -> 8228 | L103: 8228 | M103: 68.56666667 | N103: 822.8 | O103: 0 | P103: 8228 | Q103: 8228 | R103: 0
A104: 71897 | B104: 55 | C104: 4 YD F/L CONTAINERS | D104: 2010 | E104: 1 | F104: 0 | G104: S/L | H104: 10 | I104: 2020 | J104: 2020.083333 | K104: =29095+1980+5871.83 -> 36946.83 | L104: 36946.83 | M104: 307.89025 | N104: 3694.683 | O104: 0 | P104: 36946.83 | Q104: 36946.83 | R104: 0
A105: 71897 | B105: 36 | C105: 6YD F/L CONTAINERS | D105: 2010 | E105: 1 | F105: 0 | G105: S/L | H105: 10 | I105: 2020 | J105: 2020.083333 | K105: =25524+9500 -> 35024 | L105: 35024 | M105: 291.8666667 | N105: 3502.4 | O105: 0 | P105: 35024 | Q105: 35024 | R105: 0
A106: 75728 | B106: 8 | C106: 3 YD F/L CONTAINERS - PLASTIC | D106: 2010 | E106: 6 | F106: 0 | G106: S/L | H106: 7 | I106: 2017 | J106: 2017.5 | K106: 5610.74 | L106: 5610.74 | M106: 66.79452381 | N106: 801.5342857 | O106: 0 | P106: 5610.74 | Q106: 5610.74 | R106: 0
A107: 75725 | B107: 7 | C107: 2 YD F/L CONTAINERS - PLASTIC | D107: 2010 | E107: 6 | F107: 0 | G107: S/L | H107: 7 | I107: 2017 | J107: 2017.5 | K107: 3838.31 | L107: 3838.31 | M107: 45.69416667 | N107: 548.33 | O107: 0 | P107: 3838.31 | Q107: 3838.31 | R107: 0
A108: 200580 | B108: 80 | C108: 1 Yd Containers (Chehalis) | D108: 2010 | E108: 1 | F108: 0 | G108: S/L | H108: 12 | I108: 2022 | J108: 2022.083333 | K108: 35644 | L108: 35644 | M108: 247.5277778 | N108: 2970.333333 | O108: 2970.333333 | P108: 26733 | Q108: 29703.33333 | R108: 5940.666667
A109: 87859 | B109: 8 | C109: 1 YD F/L CONTAINERS | D109: 2011 | E109: 11 | F109: 0 | G109: S/L | H109: 12 | I109: =D109+H109 -> 2023 | J109: =+I109+(E109/12) -> 2023.916667 | K109: =3219.74+(28.31*8)+75.99 -> 3522.21 | L109: =K109-K109*F109 -> 3522.21 | M109: =L109/H109/12 -> 24.45979167 | N109: =+M109*12 -> 293.5175 | O109: =+IF(J109<=$L$5,0,IF(I109>$L$4,N109,(M109*E109))) -> 293.5175 | P109: 2348.14 | Q109: =+IF(O109=0,P109,P109+O109) -> 2641.6575 | R109: =+K109-Q109 -> 880.5525
A110: 87859 | B110: 7 | C110: 1.5 YD F/L CONTAINERS | D110: 2011 | E110: 11 | F110: 0 | G110: S/L | H110: 12 | I110: 2023 | J110: 2023.916667 | K110: =3149.6+(28.31*7) -> 3347.77 | L110: 3347.77 | M110: 23.24840278 | N110: 278.9808333 | O110: 278.9808333 | P110: 2231.846667 | Q110: 2510.8275 | R110: 836.9425
A111: 87859 | B111: 10 | C111: 2 YD F/L CONTAINERS | D111: 2011 | E111: 11 | F111: 0 | G111: S/L | H111: 12 | I111: 2023 | J111: 2023.916667 | K111: =4779.97+(28.31*10) -> 5063.07 | L111: 5063.07 | M111: 35.16020833 | N111: 421.9225 | O111: 421.9225 | P111: 3375.38 | Q111: 3797.3025 | R111: 1265.7675
A112: 87859 | B112: 6 | C112: 4 YD F/L CONTAINERS | D112: 2011 | E112: 11 | F112: 0 | G112: S/L | H112: 12 | I112: 2023 | J112: 2023.916667 | K112: =3606.02+(28.31*6) -> 3775.88 | L112: 3775.88 | M112: 26.22138889 | N112: 314.6566667 | O112: 314.6566667 | P112: 2517.253333 | Q112: 2831.91 | R112: 943.97
A113: 87859 | B113: 3 | C113: 6 YD F/L CONTAINERS | D113: 2011 | E113: 11 | F113: 0 | G113: S/L | H113: 12 | I113: 2023 | J113: 2023.916667 | K113: =2314.46+(28.31*3) -> 2399.39 | L113: 2399.39 | M113: 16.66243056 | N113: 199.9491667 | O113: 199.9491667 | P113: 1599.593333 | Q113: 1799.5425 | R113: 599.8475
A114: 200578 | B114: 8 | C114: 1 Yd Containers | D114: 2011 | E114: 11 | F114: 0 | G114: S/L | H114: 12 | I114: 2023 | J114: 2023.916667 | K114: 4260.8 | L114: 4260.8 | M114: 29.58888889 | N114: 355.0666667 | O114: 355.0666667 | P114: 2840.533333 | Q114: 3195.6 | R114: 1065.2
A115: 200591 | B115: 7 | C115: 1.5 Yd Containers | D115: 2011 | E115: 11 | F115: 0 | G115: S/L | H115: 12 | I115: 2023 | J115: 2023.916667 | K115: 3728.2 | L115: 3728.2 | M115: 25.89027778 | N115: 310.6833333 | O115: 310.6833333 | P115: 2485.466667 | Q115: 2796.15 | R115: 932.05
A116: 200597 | B116: 10 | C116: 2 Yd Containers | D116: 2011 | E116: 11 | F116: 0 | G116: S/L | H116: 12 | I116: 2023 | J116: 2023.916667 | K116: 5326 | L116: 5326 | M116: 36.98611111 | N116: 443.8333333 | O116: 443.8333333 | P116: 3550.666667 | Q116: 3994.5 | R116: 1331.5
A117: 200603 | B117: 6 | C117: 4 Yd Containers | D117: 2011 | E117: 11 | F117: 0 | G117: S/L | H117: 12 | I117: 2023 | J117: 2023.916667 | K117: 3195.6 | L117: 3195.6 | M117: 22.19166667 | N117: 266.3 | O117: 266.3 | P117: 2130.4 | Q117: 2396.7 | R117: 798.9
A118: 90239 | B118: 4 | C118: 1 YD F/L CONTAINERS | D118: 2012 | E118: 1 | F118: 0 | G118: S/L | H118: 12 | I118: 2024 | J118: 2024.083333 | K118: 1690 | L118: 1690 | M118: 11.73611111 | N118: 140.8333333 | O118: 140.8333333 | P118: 985.8333333 | Q118: 1126.666667 | R118: 563.3333333
A119: 90239 | B119: 3 | C119: 1.5 YD F/L CONTAINERS | D119: 2012 | E119: 1 | F119: 0 | G119: S/L | H119: 12 | I119: 2024 | J119: 2024.083333 | K119: 1449 | L119: 1449 | M119: 10.0625 | N119: 120.75 | O119: 120.75 | P119: 845.25 | Q119: 966 | R119: 483
A120: 90239 | B120: 5 | C120: 2 YD F/L CONTAINERS | D120: 2012 | E120: 1 | F120: 0 | G120: S/L | H120: 12 | I120: 2024 | J120: 2024.083333 | K120: 2413 | L120: 2413 | M120: 16.75694444 | N120: 201.0833333 | O120: 201.0833333 | P120: 1407.583333 | Q120: 1608.666667 | R120: 804.3333333
A121: 90239 | B121: 2 | C121: 4 YD F/L CONTAINERS | D121: 2012 | E121: 1 | F121: 0 | G121: S/L | H121: 12 | I121: 2024 | J121: 2024.083333 | K121: 1312 | L121: 1312 | M121: 9.111111111 | N121: 109.3333333 | O121: 109.3333333 | P121: 765.3333333 | Q121: 874.6666667 | R121: 437.3333333
A122: 90239 | B122: 1 | C122: 6 YD F/L CONTAINERS | D122: 2012 | E122: 1 | F122: 0 | G122: S/L | H122: 12 | I122: 2024 | J122: 2024.083333 | K122: 913 | L122: 913 | M122: 6.340277778 | N122: 76.08333333 | O122: 76.08333333 | P122: 532.5833333 | Q122: 608.6666667 | R122: 304.3333333
A123: 200579 | B123: 4 | C123: 1 Yd Containers | D123: 2012 | E123: 1 | F123: 0 | G123: S/L | H123: 12 | I123: 2024 | J123: 2024.083333 | K123: 2392.48 | L123: 2392.48 | M123: 16.61444444 | N123: 199.3733333 | O123: 199.3733333 | P123: 1395.613333 | Q123: 1594.986667 | R123: 797.4933333
A124: 200592 | B124: 3 | C124: 1.5 Yd Containers | D124: 2012 | E124: 1 | F124: 0 | G124: S/L | H124: 12 | I124: 2024 | J124: 2024.083333 | K124: 1794.33 | L124: 1794.33 | M124: 12.460625 | N124: 149.5275 | O124: 149.5275 | P124: 1046.6925 | Q124: 1196.22 | R124: 598.11
A125: 200598 | B125: 5 | C125: 2 Yd FEL Containers | D125: 2012 | E125: 1 | F125: 0 | G125: S/L | H125: 12 | I125: 2024 | J125: 2024.083333 | K125: 2990.55 | L125: 2990.55 | M125: 20.76770833 | N125: 249.2125 | O125: 249.2125 | P125: 1744.4875 | Q125: 1993.7 | R125: 996.85
A126: 108497, 108495 | B126: =14+6 -> 20 | C126: 1 YD R/L CONTAINERS | D126: 2013 | E126: 9 | F126: 0 | G126: S/L | H126: 10 | I126: 2023 | J126: 2023.75 | K126: =6199.2+2656.8 -> 8856 | L126: 8856 | M126: 73.8 | N126: 885.6 | O126: 885.6 | P126: 5313.6 | Q126: 6199.2 | R126: 2656.8
A127: 108496, 108494 | B127: 20 | C127: 1.5 YD R/L CONTAINERS | D127: 2013 | E127: 9 | F127: 0 | G127: S/L | H127: 10 | I127: 2023 | J127: 2023.75 | K127: =3758.4+5637.6 -> 9396 | L127: 9396 | M127: 78.3 | N127: 939.6 | O127: 939.6 | P127: 5637.6 | Q127: 6577.2 | R127: 2818.8
A128: 108493 | B128: 10 | C128: 4 YD F/L CONTAINERS | D128: 2013 | E128: 9 | F128: 0 | G128: S/L | H128: 12 | I128: 2025 | J128: 2025.75 | K128: 6210 | L128: 6210 | M128: 43.125 | N128: 517.5 | O128: 517.5 | P128: 3105 | Q128: 3622.5 | R128: 2587.5
A129: 109346, 109345 | B129: =11+17 -> 28 | C129: 6 YD F/L CONTAINERS | D129: 2013 | E129: 9 | F129: 0 | G129: S/L | H129: 10 | I129: 2023 | J129: 2023.75 | K129: =8613+7047 -> 15660 | L129: 15660 | M129: 130.5 | N129: 1566 | O129: 1566 | P129: 9396 | Q129: 10962 | R129: 4698
A130: 117913 | B130: 30 | C130: 2 YD REL CONTAINERS | D130: 2014 | E130: 11 | F130: 0 | G130: S/L | H130: 12 | I130: 2026 | J130: 2026.916667 | K130: 16038 | L130: 16038 | M130: 111.375 | N130: 1336.5 | O130: 1336.5 | P130: 6682.5 | Q130: 8019 | R130: 8019
A131: 117912 | B131: 30 | C131: 1 YD REL CONTAINERS | D131: 2014 | E131: 11 | F131: 0 | G131: S/L | H131: 12 | I131: 2026 | J131: 2026.916667 | K131: 13510.8 | L131: 13510.8 | M131: 93.825 | N131: 1125.9 | O131: 1125.9 | P131: 5629.5 | Q131: 6755.4 | R131: 6755.4
A132: 115107 | B132: 6 | C132: 1.5 YD FEL CONTAINERS | D132: 2014 | E132: 7 | F132: 0 | G132: S/L | H132: 12 | I132: 2026 | J132: 2026.583333 | K132: 2941.92 | L132: 2941.92 | M132: 20.43 | N132: 245.16 | O132: 245.16 | P132: 1225.8 | Q132: 1470.96 | R132: 1470.96
A133: 115110 | B133: 5 | C133: 6 YD FEL CONTAINERS | D133: 2014 | E133: 7 | F133: 0 | G133: S/L | H133: 12 | I133: 2026 | J133: 2026.583333 | K133: 3877.2 | L133: 3877.2 | M133: 26.925 | N133: 323.1 | O133: 323.1 | P133: 1615.5 | Q133: 1938.6 | R133: 1938.6
A134: 115115 | B134: 4 | C134: 1.5 YD FEL CONTAINERS | D134: 2014 | E134: 7 | F134: 0 | G134: S/L | H134: 12 | I134: 2026 | J134: 2026.583333 | K134: 1961.28 | L134: 1961.28 | M134: 13.62 | N134: 163.44 | O134: 163.44 | P134: 817.2 | Q134: 980.64 | R134: 980.64
A135: 115105 | B135: 10 | C135: 1.5 YD FEL CONTAINERS | D135: 2014 | E135: 7 | F135: 0 | G135: S/L | H135: 12 | I135: 2026 | J135: 2026.583333 | K135: 4816.8 | L135: 4816.8 | M135: 33.45 | N135: 401.4 | O135: 401.4 | P135: 2007 | Q135: 2408.4 | R135: 2408.4
A136: 115109 | B136: 10 | C136: 3 YD FEL CONTAINERS | D136: 2014 | E136: 7 | F136: 0 | G136: S/L | H136: 12 | I136: 2026 | J136: 2026.583333 | K136: 5756.4 | L136: 5756.4 | M136: 39.975 | N136: 479.7 | O136: 479.7 | P136: 2398.5 | Q136: 2878.2 | R136: 2878.2
A137: 115108 | B137: 10 | C137: 2 YD FEL CONTAINERS | D137: 2014 | E137: 7 | F137: 0 | G137: S/L | H137: 12 | I137: 2026 | J137: 2026.583333 | K137: 5238 | L137: 5238 | M137: 36.375 | N137: 436.5 | O137: 436.5 | P137: 2182.5 | Q137: 2619 | R137: 2619
A138: 115111 | B138: 12 | C138: 2 YD REL CONTAINERS | D138: 2014 | E138: 7 | F138: 0 | G138: S/L | H138: 12 | I138: 2026 | J138: 2026.583333 | K138: 6415.2 | L138: 6415.2 | M138: 44.55 | N138: 534.6 | O138: 534.6 | P138: 2673 | Q138: 3207.6 | R138: 3207.6
A139: 115112 | B139: 13 | C139: 2 YD REL CONTAINERS | D139: 2014 | E139: 7 | F139: 0 | G139: S/L | H139: 12 | I139: 2026 | J139: 2026.583333 | K139: 6949.8 | L139: 6949.8 | M139: 48.2625 | N139: 579.15 | O139: 579.15 | P139: 2895.75 | Q139: 3474.9 | R139: 3474.9
A140: 115113 | B140: 13 | C140: 1 YD REL CONTAINERS | D140: 2014 | E140: 7 | F140: 0 | G140: S/L | H140: 12 | I140: 2026 | J140: 2026.583333 | K140: 5854.68 | L140: 5854.68 | M140: 40.6575 | N140: 487.89 | O140: 487.89 | P140: 2439.45 | Q140: 2927.34 | R140: 2927.34
A141: 115114 | B141: 12 | C141: 1 YD REL CONTAINERS | D141: 2014 | E141: 7 | F141: 0 | G141: S/L | H141: 12 | I141: =D141+H141 -> 2026 | J141: =+I141+(E141/12) -> 2026.583333 | K141: 5404.32 | L141: =K141-K141*F141 -> 5404.32 | M141: =L141/H141/12 -> 37.53 | N141: =+M141*12 -> 450.36 | O141: =+IF(J141<=$L$5,0,IF(I141>$L$4,N141,(M141*E141))) -> 450.36 | P141: 2251.8 | Q141: =+IF(O141=0,P141,P141+O141) -> 2702.16 | R141: =+K141-Q141 -> 2702.16
A142: 115200 | B142: 5 | C142: 1.5 YD REL CONTAINERS | D142: 2014 | E142: 7 | F142: 0 | G142: S/L | H142: 12 | I142: 2026 | J142: 2026.583333 | K142: 2408.4 | L142: 2408.4 | M142: 16.725 | N142: 200.7 | O142: 200.7 | P142: =+IF(O142=0,(K142-(K142-L142)),IF($L$3-D142<1,0,(($L$3-D142)*N142))) -> 1003.5 | Q142: 1204.2 | R142: 1204.2
A143: 115106 | B143: 3 | C143: 2 YD REL CONTAINERS | D143: 2014 | E143: 7 | F143: 0 | G143: S/L | H143: 12 | I143: 2026 | J143: 2026.583333 | K143: =8958.6/15*3 -> 1791.72 | L143: 1791.72 | M143: 12.4425 | N143: 149.31 | O143: 149.31 | P143: 746.55 | Q143: 895.86 | R143: 895.86
A144: 115106 | B144: 12 | C144: 2 YD REL Containers | D144: 2014 | E144: 7 | F144: 0 | G144: S/L | H144: 10 | I144: =D144+H144 -> 2024 | J144: =+I144+(E144/12) -> 2024.583333 | K144: =8952.6/15*12 -> 7162.08 | L144: =K144-K144*F144 -> 7162.08 | M144: =L144/H144/12 -> 59.684 | N144: =+M144*12 -> 716.208 | O144: =+IF(J144<=$L$5,0,IF(I144>$L$4,N144,(M144*E144))) -> 716.208 | P144: =+IF(O144=0,(K144-(K144-L144)),IF($L$3-D144<1,0,(($L$3-D144)*N144))) -> 3581.04 | Q144: =+IF(O144=0,P144,P144+O144) -> 4297.248 | R144: =+K144-Q144 -> 2864.832
A145: 118904 | B145: 10 | C145: 1 YD REL CONTAINERS | D145: 2015 | E145: 1 | F145: 0 | G145: S/L | H145: 11.1 | I145: 2026.1 | J145: 2026.183333 | K145: 4503.6 | L145: 4503.6 | M145: 33.81081081 | N145: 405.7297297 | O145: 405.7297297 | P145: 1622.918919 | Q145: 2028.648649 | R145: 2474.951351
A146: 120926 | B146: 20 | C146: 6 YD FEL CONTAINERS | D146: 2015 | E146: 1 | F146: 0 | G146: S/L | H146: 11.11 | I146: 2026.11 | J146: 2026.193333 | K146: 16092 | L146: 16092 | M146: 120.7020702 | N146: 1448.424842 | O146: 1448.424842 | P146: 5793.69937 | Q146: 7242.124212 | R146: 8849.875788
A147: 126868 | B147: 50 | C147: 1 YD REL CONTAINERS | D147: 2015 | E147: 11 | F147: 0 | G147: S/L | H147: 12 | I147: 2027 | J147: 2027.916667 | K147: 23227.18 | L147: 23227.18 | M147: 161.2998611 | N147: 1935.598333 | O147: 1935.598333 | P147: 7742.393333 | Q147: 9677.991667 | R147: 13549.18833
A148: 126869 | B148: 20 | C148: 1.5 YD REL CONTAINERS | D148: 2015 | E148: 11 | F148: 0 | G148: S/L | H148: 12 | I148: 2027 | J148: 2027.916667 | K148: 10047.02 | L148: 10047.02 | M148: 69.77097222 | N148: 837.2516667 | O148: 837.2516667 | P148: 3349.006667 | Q148: 4186.258333 | R148: 5860.761667
A149: 126870 | B149: 24 | C149: 3 YD FEL CONTAINERS | D149: 2015 | E149: 11 | F149: 0 | G149: S/L | H149: 12 | I149: 2027 | J149: 2027.916667 | K149: 14155.75 | L149: 14155.75 | M149: 98.30381944 | N149: 1179.645833 | O149: 1179.645833 | P149: 4718.583333 | Q149: 5898.229167 | R149: 8257.520833
A150: 126871 | B150: 24 | C150: 6 YD FEL CONTAINERS | D150: 2015 | E150: 11 | F150: 0 | G150: S/L | H150: 12 | I150: 2027 | J150: 2027.916667 | K150: 18925.25 | L150: 18925.25 | M150: 131.4253472 | N150: 1577.104167 | O150: 1577.104167 | P150: 6308.416667 | Q150: 7885.520833 | R150: 11039.72917
A151: 168986 | B151: 15 | C151: 2 YD PLASTIC CONTAINERS | D151: 2016 | E151: 10 | F151: 0 | G151: S/L | H151: 7 | I151: 2023 | J151: 2023.833333 | K151: 8796.66 | L151: 8796.66 | M151: 104.7221429 | N151: 1256.665714 | O151: 1256.665714 | P151: 3769.997143 | Q151: 5026.662857 | R151: 3769.997143
A152: 185772 | B152: 24 | C152: 1 YD RL Containers | D152: 2017 | E152: 8 | F152: 0 | G152: S/L | H152: 12 | I152: 2029 | J152: 2029.666667 | K152: 11815.44 | L152: 11815.44 | M152: 82.05166667 | N152: 984.62 | O152: 984.62 | P152: 1969.24 | Q152: 2953.86 | R152: 8861.58
A153: 185771 | B153: 24 | C153: 2 YD RL Containers | D153: 2017 | E153: 8 | F153: 0 | G153: S/L | H153: 12 | I153: 2029 | J153: 2029.666667 | K153: 13113.84 | L153: 13113.84 | M153: 91.06833333 | N153: 1092.82 | O153: 1092.82 | P153: 2185.64 | Q153: 3278.46 | R153: 9835.38
A154: 172849 | B154: 50 | C154: 2 Yd REL Container | D154: 2017 | E154: 1 | F154: 0 | G154: S/L | H154: 12 | I154: 2029 | J154: 2029.083333 | K154: 26954.09 | L154: 26954.09 | M154: 187.1811806 | N154: 2246.174167 | O154: 2246.174167 | P154: 4492.348333 | Q154: 6738.5225 | R154: 20215.5675
A155: 172848 | B155: 30 | C155: 1 Yd REL Container | D155: 2017 | E155: 1 | F155: 0 | G155: S/L | H155: 12 | I155: 2029 | J155: 2029.083333 | K155: 13708.81 | L155: 13708.81 | M155: 95.20006944 | N155: 1142.400833 | O155: 1142.400833 | P155: 2284.801667 | Q155: 3427.2025 | R155: 10281.6075
A156: 172847 | B156: 20 | C156: 6 Yd FEL Container | D156: 2017 | E156: 1 | F156: 0 | G156: S/L | H156: 12 | I156: 2029 | J156: 2029.083333 | K156: 15953.91 | L156: 15953.91 | M156: 110.7910417 | N156: 1329.4925 | O156: 1329.4925 | P156: 2658.985 | Q156: 3988.4775 | R156: 11965.4325
A157: 172846 | B157: 10 | C157: 4 Yd FEL Container | D157: 2017 | E157: 1 | F157: 0 | G157: S/L | H157: 12 | I157: 2029 | J157: 2029.083333 | K157: 6085.09 | L157: 6085.09 | M157: 42.25756944 | N157: 507.0908333 | O157: 507.0908333 | P157: 1014.181667 | Q157: 1521.2725 | R157: 4563.8175
A158: 188898 | B158: 14 | C158: 4 Yd Containers | D158: 2017 | E158: 11 | F158: 0 | G158: S/L | H158: 12 | I158: 2029 | J158: 2029.916667 | K158: 11053.99 | L158: 11053.99 | M158: 76.76381944 | N158: 921.1658333 | O158: 921.1658333 | P158: 1842.331667 | Q158: 2763.4975 | R158: 8290.4925
A159: 188899 | B159: 20 | C159: 6 Yd Containers | D159: 2017 | E159: 11 | F159: 0 | G159: S/L | H159: 12 | I159: 2029 | J159: 2029.916667 | K159: 18010.15 | L159: 18010.15 | M159: 125.0704861 | N159: 1500.845833 | O159: 1500.845833 | P159: 3001.691667 | Q159: 4502.5375 | R159: 13507.6125
A160: 189792 | B160: 20 | C160: 1 Yd Containers | D160: 2017 | E160: 11 | F160: 0 | G160: S/L | H160: 12 | I160: 2029 | J160: 2029.916667 | K160: 9303.25 | L160: 9303.25 | M160: 64.60590278 | N160: 775.2708333 | O160: 775.2708333 | P160: 1550.541667 | Q160: 2325.8125 | R160: 6977.4375
A161: 189793 | B161: 20 | C161: 1.5 Yd Containers | D161: 2017 | E161: 11 | F161: 0 | G161: S/L | H161: 12 | I161: 2029 | J161: 2029.916667 | K161: 9609.24 | L161: 9609.24 | M161: 66.73083333 | N161: 800.77 | O161: 800.77 | P161: 1601.54 | Q161: 2402.31 | R161: 7206.93
A162: 189794 | B162: 20 | C162: 2 Yd Containers | D162: 2017 | E162: 11 | F162: 0 | G162: S/L | H162: 12 | I162: 2029 | J162: 2029.916667 | K162: 9843.38 | L162: 9843.38 | M162: 68.35680556 | N162: 820.2816667 | O162: 820.2816667 | P162: 1640.563333 | Q162: 2460.845 | R162: 7382.535
A163: 189795 | B163: 15 | C163: 3 Yd Containers | D163: 2017 | E163: 11 | F163: 0 | G163: S/L | H163: 12 | I163: 2029 | J163: 2029.916667 | K163: 8703.01 | L163: 8703.01 | M163: 60.43756944 | N163: 725.2508333 | O163: 725.2508333 | P163: 1450.501667 | Q163: 2175.7525 | R163: 6527.2575
A164: 189796 | B164: 1 | C164: 4 Yd Containers | D164: 2017 | E164: 11 | F164: 0 | G164: S/L | H164: 12 | I164: 2029 | J164: 2029.916667 | K164: 619.94 | L164: 619.94 | M164: 4.305138889 | N164: 51.66166667 | O164: 51.66166667 | P164: 103.3233333 | Q164: 154.985 | R164: 464.955
A165: 197275 | B165: 20 | C165: 6yd FL Containers | D165: 2018 | E165: 4 | F165: 0 | G165: S/L | H165: 12 | I165: 2030 | J165: 2030.333333 | K165: 17684.02 | L165: 17684.02 | M165: 122.8056944 | N165: 1473.668333 | O165: 1473.668333 | P165: 1473.668333 | Q165: 2947.336667 | R165: 14736.68333
A166: 198695 | B166: 30 | C166: 2Yd Metal Containers | D166: 2018 | E166: 4 | F166: 0 | G166: S/L | H166: 12 | I166: 2030 | J166: 2030.333333 | K166: 17172.21 | L166: 17172.21 | M166: 119.2514583 | N166: 1431.0175 | O166: 1431.0175 | P166: 1431.0175 | Q166: 2862.035 | R166: 14310.175
A167: 198694 | B167: 40 | C167: 1Yd Metal Containers | D167: 2018 | E167: 5 | F167: 0 | G167: S/L | H167: 12 | I167: 2030 | J167: 2030.416667 | K167: 21642.89 | L167: 21642.89 | M167: 150.2978472 | N167: 1803.574167 | O167: 1803.574167 | P167: 1803.574167 | Q167: 3607.148333 | R167: 18035.74167
A168: 206417 | B168: 10 | C168: 2YD Metal OCC Container | D168: 2018 | E168: 11 | F168: 0 | G168: S/L | H168: 12 | I168: 2030 | J168: 2030.916667 | K168: 8441.24 | L168: 8441.24 | M168: 58.61972222 | N168: 703.4366667 | O168: 703.4366667 | P168: 703.4366667 | Q168: 1406.873333 | R168: 7034.366667
A169: 206418 | B169: 10 | C169: 2YD Metal Container | D169: 2018 | E169: 11 | F169: 0 | G169: S/L | H169: 12 | I169: 2030 | J169: 2030.916667 | K169: 7057.39 | L169: 7057.39 | M169: 49.00965278 | N169: 588.1158333 | O169: 588.1158333 | P169: 588.1158333 | Q169: 1176.231667 | R169: 5881.158333
A170: 206420 | B170: 16 | C170: 2yd Metal Containers | D170: 2018 | E170: 11 | F170: 0 | G170: S/L | H170: 12 | I170: 2030 | J170: 2030.916667 | K170: 10069.18 | L170: 10069.18 | M170: 69.92486111 | N170: 839.0983333 | O170: 839.0983333 | P170: 839.0983333 | Q170: 1678.196667 | R170: 8390.983333
A171: 218570 | B171: 25 | C171: 3 Yd Metal Containers | D171: 2019 | E171: 7 | F171: 0 | G171: S/L | H171: 12 | I171: 2031 | J171: 2031.583333 | K171: =15225.29 -> 15225.29 | L171: 15225.29 | M171: 105.7311806 | N171: 1268.774167 | O171: 1268.774167 | P171: 0 | Q171: 1268.774167 | R171: 13956.51583
A172: 218571 | B172: 20 | C172: 4 Yd Metal Containers | D172: 2019 | E172: 7 | F172: 0 | G172: S/L | H172: 12 | I172: 2031 | J172: 2031.583333 | K172: =12829.43 -> 12829.43 | L172: 12829.43 | M172: 89.09326389 | N172: 1069.119167 | O172: 1069.119167 | P172: 0 | Q172: 1069.119167 | R172: 11760.31083
A173: 218572 | B173: 10 | C173: 6 Yd Metal Containers | D173: 2019 | E173: 7 | F173: 0 | G173: S/L | H173: 12 | I173: 2031 | J173: 2031.583333 | K173: =8816.75 -> 8816.75 | L173: 8816.75 | M173: 61.22743056 | N173: 734.7291667 | O173: 734.7291667 | P173: 0 | Q173: 734.7291667 | R173: 8082.020833
A174: 218573 | B174: 30 | C174: 1 Yd Metail Containers | D174: 2019 | E174: 7 | F174: 0 | G174: S/L | H174: 12 | I174: =D174+H174 -> 2031 | J174: =+I174+(E174/12) -> 2031.583333 | K174: =15738.46 -> 15738.46 | L174: =K174-K174*F174 -> 15738.46 | M174: =L174/H174/12 -> 109.2948611 | N174: =+M174*12 -> 1311.538333 | O174: =+IF(J174<=$L$5,0,IF(I174>$L$4,N174,(M174*E174))) -> 1311.538333 | P174: 0 | Q174: =+IF(O174=0,P174,P174+O174) -> 1311.538333 | R174: =+K174-Q174 -> 14426.92167
A175: 218574 | B175: 20 | C175: 1.5 Yd Metal Containers | D175: 2019 | E175: 7 | F175: 0 | G175: S/L | H175: 12 | I175: 2031 | J175: 2031.583333 | K175: =11292.99 -> 11292.99 | L175: 11292.99 | M175: 78.42354167 | N175: 941.0825 | O175: 941.0825 | P175: 0 | Q175: 941.0825 | R175: 10351.9075
A176: 218575 | B176: 25 | C176: 2 Yd Metal Containers | D176: 2019 | E176: 7 | F176: 0 | G176: S/L | H176: 12 | I176: 2031 | J176: 2031.583333 | K176: =16496.64 -> 16496.64 | L176: 16496.64 | M176: 114.56 | N176: 1374.72 | O176: 1374.72 | P176: 0 | Q176: 1374.72 | R176: 15121.92
A177: 221165 | B177: 51 | C177: 1.5 Yd Metal Containers | D177: 2008 | E177: 12 | F177: 0 | G177: S/L | H177: 12 | I177: 2020 | J177: 2021 | K177: 5992.43 | L177: 5992.43 | M177: 41.61409722 | N177: 499.3691667 | O177: 499.3691667 | P177: 5493.060833 | Q177: 5992.43 | R177: 0
A178: 225391 | B178: 40 | C178: 2 Yd REL Metal Containers | D178: 2019 | E178: 12 | F178: 0 | G178: S/L | H178: 12 | I178: 2031 | J178: 2032 | K178: 26713.17 | L178: 26713.17 | M178: 185.508125 | N178: 2226.0975 | O178: 2226.0975 | P178: 0 | Q178: 2226.0975 | R178: 24487.0725
A179: 2188-20-0016 | C179: Metal Containers | D179: 2020 | E179: 5 | F179: 0 | G179: S/L | H179: 12 | I179: 2032 | J179: 2032.416667 | K179: =35950 -> 35950 | L179: =K179-K179*F179 -> 35950 | M179: =L179/H179/12 -> 249.6527778 | N179: =+M179*12 -> 2995.833333 | O179: =+IF(J179<=$L$5,0,IF(I179>$L$4,N179,(M179*E179))) -> 2995.833333 | P179: =+IF(O179=0,(K179-(K179-L179)),IF($L$3-D179<1,0,(($L$3-D179)*N179))) -> 0 | Q179: =+IF(O179=0,P179,P179+O179) -> 2995.833333 | R179: =+K179-Q179 -> 32954.16667
A180: PROFORMA | C180: Metal Containers | D180: 2020 | E180: 12 | F180: 0 | G180: S/L | H180: 12 | I180: 2032 | J180: 2033 | K180: =30000 -> 30000 | L180: =K180-K180*F180 -> 30000 | M180: =L180/H180/12 -> 208.3333333 | N180: =+M180*12 -> 2500 | O180: =+IF(J180<=$L$5,0,IF(I180>$L$4,N180,(M180*E180))) -> 2500 | P180: =+IF(O180=0,(K180-(K180-L180)),IF($L$3-D180<1,0,(($L$3-D180)*N180))) -> 0 | Q180: =+IF(O180=0,P180,P180+O180) -> 2500 | R180: =+K180-Q180 -> 27500 | S180: Put as December because they will get them throughout the year
C182: Total Containers | K182: =SUM(K13:K181) -> 1597205.93 | L182: 1597205.93 | M182: 12649.21011 | N182: 151790.5214 | O182: 62774.78926 | P182: 1060754.165 | Q182: 1123528.955 | R182: 473676.9753 | S182: Updated Useful Lives to FAR
C185: GARBAGE CARTS
B186: 534 | C186: 65 GALLON CART ASSY | D186: 1999 | E186: 3 | F186: 0 | G186: S/L | H186: 7 | I186: =D186+H186 -> 2006 | J186: =+I186+(E186/12) -> 2006.25 | K186: 23883.55 | L186: =K186-K186*F186 -> 23883.55 | M186: =L186/H186/12 -> 284.3279762 | N186: =+M186*12 -> 3411.935714 | O186: =+IF(J186<=$L$5,0,IF(I186>$L$4,N186,(M186*E186))) -> 0 | P186: =+IF(O186=0,(K186-(K186-L186)),IF($L$3-D186<1,0,(($L$3-D186)*N186))) -> 23883.55 | Q186: =+IF(O186=0,P186,P186+O186) -> 23883.55 | R186: =+K186-Q186 -> 0
B187: 534 | C187: 65 GALLON CART ASSY | D187: 1999 | E187: 3 | F187: 0 | G187: S/L | H187: 7 | I187: 2006 | J187: 2006.25 | K187: 23883.55 | L187: =K187-K187*F187 -> 23883.55 | M187: =L187/H187/12 -> 284.3279762 | N187: 3411.935714 | O187: =+IF(J187<=$L$5,0,IF(I187>$L$4,N187,(M187*E187))) -> 0 | P187: 23883.55 | Q187: =+IF(O187=0,P187,P187+O187) -> 23883.55 | R187: =+K187-Q187 -> 0
B188: 534 | C188: 65 GALLON CART ASSY | D188: 1999 | E188: 3 | F188: 0 | G188: S/L | H188: 7 | I188: 2006 | J188: 2006.25 | K188: 24663.17 | L188: 24663.17 | M188: 293.6091667 | N188: 3523.31 | O188: 0 | P188: 24663.17 | Q188: 24663.17 | R188: 0
B189: 534 | C189: 65 GALLON CART ASSY | D189: 1999 | E189: 3 | F189: 0 | G189: S/L | H189: 7 | I189: 2006 | J189: 2006.25 | K189: 23883.55 | L189: 23883.55 | M189: 284.3279762 | N189: 3411.935714 | O189: 0 | P189: 23883.55 | Q189: 23883.55 | R189: 0
B190: 534 | C190: 65 GALLON CART ASSY | D190: 1999 | E190: 3 | F190: 0 | G190: S/L | H190: 7 | I190: 2006 | J190: 2006.25 | K190: 23468.91 | L190: 23468.91 | M190: 279.3917857 | N190: 3352.701429 | O190: 0 | P190: 23468.91 | Q190: 23468.91 | R190: 0
B191: 534 | C191: 65 GALLON CART ASSY | D191: 1999 | E191: 3 | F191: 0 | G191: S/L | H191: 7 | I191: 2006 | J191: 2006.25 | K191: 24663.17 | L191: 24663.17 | M191: 293.6091667 | N191: 3523.31 | O191: 0 | P191: 24663.17 | Q191: 24663.17 | R191: 0
B192: 534 | C192: 65 GALLON CART ASSY | D192: 1999 | E192: 4 | F192: 0 | G192: S/L | H192: 7 | I192: 2006 | J192: 2006.333333 | K192: 24663.17 | L192: 24663.17 | M192: 293.6091667 | N192: 3523.31 | O192: 0 | P192: 24663.17 | Q192: 24663.17 | R192: 0
B193: 534 | C193: 65 GALLON CART ASSY | D193: 1999 | E193: 5 | F193: 0 | G193: S/L | H193: 7 | I193: 2006 | J193: 2006.416667 | K193: 24663.17 | L193: 24663.17 | M193: 293.6091667 | N193: 3523.31 | O193: 0 | P193: 24663.17 | Q193: 24663.17 | R193: 0
B194: 478 | C194: 68 GALLON GREEN CARTS | D194: 2001 | E194: 1 | F194: 0 | G194: S/L | H194: 7 | I194: 2008 | J194: 2008.083333 | K194: 22484.74 | L194: 22484.74 | M194: 267.6754762 | N194: 3212.105714 | O194: 0 | P194: 22484.74 | Q194: 22484.74 | R194: 0
B195: 958 | C195: 68 GALLON GREEN CARTS | D195: 2001 | E195: 2 | F195: 0 | G195: S/L | H195: 7 | I195: 2008 | J195: 2008.166667 | K195: 45046.09 | L195: 45046.09 | M195: 536.2629762 | N195: 6435.155714 | O195: 0 | P195: 45046.09 | Q195: 45046.09 | R195: 0
B196: 479 | C196: 68 GALLON GREEN CARTS | D196: 2001 | E196: 2 | F196: 0 | G196: S/L | H196: 7 | I196: 2008 | J196: 2008.166667 | K196: 22523.05 | L196: 22523.05 | M196: 268.1315476 | N196: 3217.578571 | O196: 0 | P196: 22523.05 | Q196: 22523.05 | R196: 0
B197: 476 | C197: 68 GALLON GREEN CARTS | D197: 2001 | E197: 3 | F197: 0 | G197: S/L | H197: 7 | I197: 2008 | J197: 2008.25 | K197: 22369.83 | L197: 22369.83 | M197: 266.3075 | N197: 3195.69 | O197: 0 | P197: 22369.83 | Q197: 22369.83 | R197: 0
B198: 476 | C198: 68 GALLON GREEN CARTS | D198: 2001 | E198: 3 | F198: 0 | G198: S/L | H198: 7 | I198: 2008 | J198: 2008.25 | K198: 22369.83 | L198: 22369.83 | M198: 266.3075 | N198: 3195.69 | O198: 0 | P198: 22369.83 | Q198: 22369.83 | R198: 0
B199: 464 | C199: 68 GALLON GREEN CARTS | D199: 2001 | E199: 3 | F199: 0 | G199: S/L | H199: 7 | I199: 2008 | J199: 2008.25 | K199: 21810.58 | L199: 21810.58 | M199: 259.6497619 | N199: 3115.797143 | O199: 0 | P199: 21810.58 | Q199: 21810.58 | R199: 0
B200: 464 | C200: 68 GALLON GREEN CARTS | D200: 2001 | E200: 3 | F200: 0 | G200: S/L | H200: 7 | I200: 2008 | J200: 2008.25 | K200: 21810.58 | L200: 21810.58 | M200: 259.6497619 | N200: 3115.797143 | O200: 0 | P200: 21810.58 | Q200: 21810.58 | R200: 0
B201: 464 | C201: 68 GALLON GREEN CARTS | D201: 2001 | E201: 3 | F201: 0 | G201: S/L | H201: 7 | I201: 2008 | J201: 2008.25 | K201: 21810.58 | L201: 21810.58 | M201: 259.6497619 | N201: 3115.797143 | O201: 0 | P201: 21810.58 | Q201: 21810.58 | R201: 0
B202: 486 | C202: 68 GALLON BLUE CARTS | D202: 2001 | E202: 5 | F202: 0 | G202: S/L | H202: 7 | I202: 2008 | J202: 2008.416667 | K202: 22993.74 | L202: 22993.74 | M202: 273.735 | N202: 3284.82 | O202: 0 | P202: 22993.74 | Q202: 22993.74 | R202: 0
B203: 526 | C203: 68 GALLON GRAY CARTS [AB] | D203: 2001 | E203: 12 | F203: 0 | G203: S/L | H203: 7 | I203: 2008 | J203: 2009 | K203: 24709.57 | L203: 24709.57 | M203: 294.1615476 | N203: 3529.938571 | O203: 0 | P203: 24709.57 | Q203: 24709.57 | R203: 0
B204: 1050 | C204: 65 GALLON GREEN CARTS | D204: 2002 | E204: 2 | F204: 0 | G204: S/L | H204: 7 | I204: 2009 | J204: 2009.166667 | K204: 49371.84 | L204: 49371.84 | M204: 587.76 | N204: 7053.12 | O204: 0 | P204: 49371.84 | Q204: 49371.84 | R204: 0
B205: 523 | C205: 65 GALLON GREEN CARTS | D205: 2002 | E205: 2 | F205: 0 | G205: S/L | H205: 7 | I205: 2009 | J205: 2009.166667 | K205: 24600.21 | L205: 24600.21 | M205: 292.8596429 | N205: 3514.315714 | O205: 0 | P205: 24600.21 | Q205: 24600.21 | R205: 0
... 183 more rows

Sheet OTHER EQUIP 2188
A1: 2188 Lewis County/Joe's Refuse
A2: Depreciation Schedule | M2: ='Trucks 2188'!N2 -> 9 | N2: Effective Rate Month
A3: ='Summary 2188'!A3 -> 2020-05-31 | M3: ='Trucks 2188'!N3 -> 2019 | N3: First Year
M4: ='Trucks 2188'!N4 -> 2020 | N4: Second YEar
M5: ='Trucks 2188'!N5 -> 2020.75 | N5: Rate Effective Year
L7: =SUM(L80) -> 11256.05
Q8: Beginning | R8: Ending
E9: Date in | G9: Salvage | J9: Year | Q9: Accum. | R9: Accum. | S9: Average
E10: Service | G10: Value | H10: Method | I10: Life | J10: Fully | K10: Year/Mo | L10: Asset | M10: Depr | N10: Monthly | O10: Annual | P10: Test yr. | Q10: Depr. | R10: Depr. | S10: Investment
A11: FAR # | B11: Codes/Parent | C11: Truck No. | D11: Asset Classification | E11: Year | F11: Mo | G11: % | H11: M | I11: Years | J11: Depr | K11: Fully Depr | L11: Cost | M11: Cost | N11: Depr | O11: Depr | P11: Depn. | Q11: =+'Summary 2188'!F6 -> 2019-06-01 | R11: =+A3 -> 2020-05-31 | S11: =R11 -> 2020-05-31
D12: BUILDING STRUCTURES
D14: BUILDINGS | E14: 1965 | F14: 6 | G14: 0 | H14: S/L | I14: 40 | J14: =E14+I14 -> 2005 | K14: =+J14+(F14/12) -> 2005.5 | L14: 13330 | M14: =L14-L14*G14 -> 13330 | N14: =M14/I14/12 -> 27.77083333 | O14: =+N14*12 -> 333.25 | P14: =+IF(K14<=$M$5,0,IF(J14>$M$4,O14,(N14*F14))) -> 0 | Q14: =+IF(P14=0,(L14-(L14-M14)),IF($M$3-E14<1,0,(($M$3-E14)*O14))) -> 13330 | R14: =+IF(P14=0,Q14,Q14+P14) -> 13330 | S14: =+L14-R14 -> 0
D15: INSTALL WINDOW RECYCLE CENTER | E15: 1998 | F15: 12 | G15: 0 | H15: S/L | I15: 39 | J15: 2037 | K15: 2038 | L15: 2744.9 | M15: =L15-L15*G15 -> 2744.9 | N15: =M15/I15/12 -> 5.86517094 | O15: =+N15*12 -> 70.38205128 | P15: =+IF(K15<=$M$5,0,IF(J15>$M$4,O15,(N15*F15))) -> 70.38205128 | Q15: =+IF(P15=0,(L15-(L15-M15)),IF($M$3-E15<1,0,(($M$3-E15)*O15))) -> 1478.023077 | R15: =+IF(P15=0,Q15,Q15+P15) -> 1548.405128 | S15: =+L15-R15 -> 1196.494872
D16: INSTALL CONCRETE @ RECYCLE CENTER | E16: 1998 | F16: 11 | G16: 0 | H16: S/L | I16: 39 | J16: 2037 | K16: 2037.916667 | L16: 4877.11 | M16: 4877.11 | N16: 10.42117521 | O16: 125.0541026 | P16: 125.0541026 | Q16: 2626.136154 | R16: 2751.190256 | S16: 2125.919744
D17: RECYCLE CENTER IMPROVEMENTS | E17: 1998 | F17: 10 | G17: 0 | H17: S/L | I17: 39 | J17: 2037 | K17: 2037.833333 | L17: 843.28 | M17: 843.28 | N17: 1.801880342 | O17: 21.6225641 | P17: 21.6225641 | Q17: 454.0738462 | R17: 475.6964103 | S17: 367.5835897
D18: RECYCLE CENTER'S ELECTRICAL IMPROVEMENT | E18: 1998 | F18: 9 | G18: 0 | H18: S/L | I18: 39 | J18: 2037 | K18: 2037.75 | L18: 10462.37 | M18: 10462.37 | N18: 22.35549145 | O18: 268.2658974 | P18: 268.2658974 | Q18: 5633.583846 | R18: 5901.849744 | S18: 4560.520256
D19: CENTRALIA RECYCLE UTILTIY | E19: 1998 | F19: 4 | G19: 0 | H19: S/L | I19: 39 | J19: 2037 | K19: 2037.333333 | L19: 61451.43 | M19: 61451.43 | N19: 131.3064744 | O19: 1575.677692 | P19: 1575.677692 | Q19: 33089.23154 | R19: 34664.90923 | S19: 26786.52077
D20: CENTRALIA RECYCLE CENTER OVERHEAD DOOR | E20: 1999 | F20: 3 | G20: 0 | H20: S/L | I20: 39 | J20: 2038 | K20: 2038.25 | L20: 4941 | M20: 4941 | N20: 10.55769231 | O20: 126.6923077 | P20: 126.6923077 | Q20: 2533.846154 | R20: 2660.538462 | S20: 2280.461538
D21: BUILDING MODIFICATIONS | E21: 2000 | F21: 4 | G21: 0 | H21: S/L | I21: 39 | J21: 2039 | K21: 2039.333333 | L21: 64424.54 | M21: 64424.54 | N21: 137.6592735 | O21: 1651.911282 | P21: 1651.911282 | Q21: 31386.31436 | R21: 33038.22564 | S21: 31386.31436
D22: CENTRALIA RECYCLE CENTER | E22: 2000 | F22: 3 | G22: 0 | H22: S/L | I22: 39 | J22: 2039 | K22: 2039.25 | L22: 33957.76 | M22: 33957.76 | N22: 72.55931624 | O22: 870.7117949 | P22: 870.7117949 | Q22: 16543.5241 | R22: 17414.2359 | S22: 16543.5241
D23: CONCRETE AT RECYCLE CENTER [CENTRALIA] | E23: 2001 | F23: 5 | G23: 0 | H23: S/L | I23: 15 | J23: 2016 | K23: 2016.416667 | L23: 9290.74 | M23: 9290.74 | N23: 51.61522222 | O23: 619.3826667 | P23: 0 | Q23: 9290.74 | R23: 9290.74 | S23: 0
D24: 1713 N. PEARL - BUILDINGS | E24: 2002 | F24: 4 | G24: 0 | H24: S/L | I24: 39 | J24: 2041 | K24: 2041.333333 | L24: 431022.56 | M24: 431022.56 | N24: 920.9883761 | O24: 11051.86051 | P24: 11051.86051 | Q24: 187881.6287 | R24: 198933.4892 | S24: 232089.0708
A25: 88676 | D25: REMODEL CENTRALIA OFFICE | E25: 2011 | F25: 12 | G25: 0 | H25: S/L | I25: 10 | J25: 2021 | K25: 2022 | L25: =12117.6+1371.6+6058.8+2019.6 -> 21567.6 | M25: 21567.6 | N25: 179.73 | O25: 2156.76 | P25: 2156.76 | Q25: 17254.08 | R25: 19410.84 | S25: 2156.76
D27: TOTAL BUILDING STRUCTURES | L27: =SUM(L14:L26) -> 658913.29 | M27: =SUM(M14:M26) -> 658913.29 | N27: 1572.630906 | O27: 18871.57087 | P27: 17918.93821 | Q27: 321501.1818 | R27: 339420.12 | S27: =SUM(S14:S26) -> 319493.17 | T27: Updated Useful Lives to FAR
D30: LEASEHOLD IMPROVEMENTS
D32: CENTRALIA RECY. CTR CON. PAD | E32: 1991 | F32: 10 | G32: 0 | H32: S/L | I32: 07 | J32: =E32+I32 -> 1998 | K32: =+J32+(F32/12) -> 1998.833333 | L32: 9054 | M32: =L32-L32*G32 -> 9054 | N32: =M32/I32/12 -> 107.7857143 | O32: =+N32*12 -> 1293.428571 | P32: =+IF(K32<=$M$5,0,IF(J32>$M$4,O32,(N32*F32))) -> 0 | Q32: =+IF(P32=0,(L32-(L32-M32)),IF($M$3-E32<1,0,(($M$3-E32)*O32))) -> 9054 | R32: =+IF(P32=0,Q32,Q32+P32) -> 9054 | S32: =+L32-R32 -> 0
D33: CENTRALIA DUMP STATION | E33: 1992 | F33: 2 | G33: 0 | H33: S/L | I33: 32 | J33: 2024 | K33: =+J33+(F33/12) -> 2024.166667 | L33: 3752 | M33: =L33-L33*G33 -> 3752 | N33: =M33/I33/12 -> 9.770833333 | O33: 117.25 | P33: =+IF(K33<=$M$5,0,IF(J33>$M$4,O33,(N33*F33))) -> 117.25 | Q33: 3165.75 | R33: =+IF(P33=0,Q33,Q33+P33) -> 3283 | S33: =+L33-R33 -> 469
D34: SLAB/PIT COVER FOR CENTRALIA BALER | E34: 1995 | F34: 12 | G34: 0 | H34: S/L | I34: 20 | J34: 2015 | K34: 2016 | L34: 8885 | M34: 8885 | N34: 37.02083333 | O34: 444.25 | P34: 0 | Q34: 8885 | R34: 8885 | S34: 0
D35: CHAIN LINK FENCE | E35: 1998 | F35: 4 | G35: 0 | H35: S/L | I35: 15 | J35: 2013 | K35: 2013.333333 | L35: 4398.36 | M35: 4398.36 | N35: 24.43533333 | O35: 293.224 | P35: 0 | Q35: 4398.36 | R35: 4398.36 | S35: 0
D36: GRADE & ROCK RELOAD - CENTRALIA | E36: 1998 | F36: 4 | G36: 0 | H36: S/L | I36: 20 | J36: 2018 | K36: 2018.333333 | L36: 19377.42 | M36: 19377.42 | N36: 80.73925 | O36: 968.871 | P36: 0 | Q36: 19377.42 | R36: 19377.42 | S36: 0
D37: 122 HALLIDY RD [LAND] | E37: 2000 | F37: 6 | G37: 0 | H37: S/L | I37: 39 | J37: 2039 | K37: 2039.5 | L37: 32450 | M37: 32450 | N37: 69.33760684 | O37: 832.0512821 | P37: 832.0512821 | Q37: 15808.97436 | R37: 16641.02564 | S37: 15808.97436
D38: 122 HALLIDAY ROAD [BUILDING] | E38: 2000 | F38: 6 | G38: 0 | H38: S/L | I38: 39 | J38: 2039 | K38: 2039.5 | L38: 92550 | M38: 92550 | N38: 197.7564103 | O38: 2373.076923 | P38: 2373.076923 | Q38: 45088.46154 | R38: 47461.53846 | S38: 45088.46154
D39: FENCE - CENTRALIA OFFICE | E39: 2002 | F39: 4 | G39: 0 | H39: S/L | I39: 15 | J39: 2017 | K39: 2017.333333 | L39: 9594.2 | M39: 9594.2 | N39: 53.30111111 | O39: 639.6133333 | P39: 0 | Q39: 9594.2 | R39: 9594.2 | S39: 0
D40: PAVING AT CENTRALIA RECYCLE CENTER | E40: 2004 | F40: 7 | G40: 0 | H40: S/L | I40: 15 | J40: 2019 | K40: 2019.583333 | L40: 4833 | M40: 4833 | N40: 26.85 | O40: 322.2 | P40: 0 | Q40: 4833 | R40: 4833 | S40: 0
D41: PAVING AT CENTRALIA SHOP | E41: 2004 | F41: 6 | G41: 0 | H41: S/L | I41: 15 | J41: 2019 | K41: 2019.5 | L41: 1312.2 | M41: 1312.2 | N41: 7.29 | O41: 87.48 | P41: 0 | Q41: 1312.2 | R41: 1312.2 | S41: 0
D42: PAVING AT CENTRALIA RECYCLE CENTER | E42: 2005 | F42: 9 | G42: 0 | H42: S/L | I42: 15 | J42: 2020 | K42: 2020.75 | L42: 3223.22 | M42: 3223.22 | N42: 17.90677778 | O42: 214.8813333 | P42: 0 | Q42: 3223.22 | R42: 3223.22 | S42: 0
D43: ACCOUNTING OFFICE | E43: 2006 | F43: 4 | G43: 0 | H43: S/L | I43: 39 | J43: 2045 | K43: 2045.333333 | L43: 166855.58 | M43: 166855.58 | N43: 356.5290171 | O43: 4278.348205 | P43: 4278.348205 | Q43: 55618.52667 | R43: 59896.87487 | S43: 106958.7051
D44: WATER UTILITIES -- 122 HALLIDAY ROAD | E44: 2006 | F44: 4 | G44: 0 | H44: S/L | I44: 15 | J44: 2021 | K44: 2021.333333 | L44: 21613.67 | M44: 21613.67 | N44: 120.0759444 | O44: 1440.911333 | P44: 1440.911333 | Q44: 18731.84733 | R44: 20172.75867 | S44: 1440.911333
D45: DRAINAGE IMPROVEMENTS -- CENT. OFFICE | E45: 2007 | F45: 8 | G45: 0 | H45: S/L | I45: 15 | J45: 2022 | K45: 2022.666667 | L45: 3943.76 | M45: 3943.76 | N45: 21.90977778 | O45: 262.9173333 | P45: 262.9173333 | Q45: 3155.008 | R45: 3417.925333 | S45: 525.8346667
A46: 71149 | D46: Paving Centralia Parking Lot - Stormwater Improvements | E46: 2009 | F46: 12 | G46: 0 | H46: S/L | I46: 15 | J46: 2024 | K46: 2025 | L46: =10920.23+2158+591301.18+41.14+35019.1+2087.87+59.9+1904.99 -> 643492.41 | M46: 643492.41 | N46: 3574.957833 | O46: 42899.494 | P46: 42899.494 | Q46: 428994.94 | R46: 471894.434 | S46: 171597.976
A47: 73292 | D47: ADDITIONAL STORMWATER IMPROVEMENTS | E47: 2010 | F47: 1 | G47: 0 | H47: S/L | I47: 10 | J47: 2020 | K47: 2020.083333 | L47: 10681.88 | M47: 10681.88 | N47: 89.01566667 | O47: 1068.188 | P47: 0 | Q47: 10681.88 | R47: 10681.88 | S47: 0
A48: 98288 | D48: CONSTRUCT SIDEWALKS | E48: 2012 | F48: 10 | G48: 0 | H48: S/L | I48: 10 | J48: 2022 | K48: 2022.833333 | L48: 32439.96 | M48: 32439.96 | N48: 270.333 | O48: 3243.996 | P48: 3243.996 | Q48: 22707.972 | R48: 25951.968 | S48: 6487.992
A49: 230534 | D49: HV/AC System | E49: 2020 | F49: 3 | G49: 0 | H49: S/L | I49: 10 | J49: 2030 | K49: 2030.25 | L49: 34245.3 | M49: 34245.3 | N49: 285.3775 | O49: 3424.53 | P49: 3424.53 | Q49: 0 | R49: 3424.53 | S49: 30820.77
D51: TOTAL LEASEHOLD IMPROVEMENTS | L51: =SUM(L32:L50) -> 1102701.96 | M51: 1102701.96 | N51: 5350.39261 | O51: 64204.71132 | P51: 58872.57508 | Q51: 664630.7599 | R51: 723503.335 | S51: 379198.625 | T51: Updated Useful Lives to FAR
D54: SHOP & GARAGE
D56: CENTRALIA SCALE | E56: 1999 | F56: 8 | G56: 0 | H56: S/L | I56: 5 | J56: =E56+I56 -> 2004 | K56: 2004.666667 | L56: 8367.73 | M56: =L56-L56*G56 -> 8367.73 | N56: =M56/I56/12 -> 139.4621667 | O56: =+N56*12 -> 1673.546 | P56: =+IF(K56<=$M$5,0,IF(J56>$M$4,O56,(N56*F56))) -> 0 | Q56: =+IF(P56=0,(L56-(L56-M56)),IF($M$3-E56<1,0,(($M$3-E56)*O56))) -> 8367.73 | R56: =+IF(P56=0,Q56,Q56+P56) -> 8367.73 | S56: =+L56-R56 -> 0
D57: TRUCK WASH SYSTEM -- CENTRALIA | E57: 2002 | F57: 6 | G57: 0 | H57: S/L | I57: 10 | J57: 2012 | K57: 2012.5 | L57: 24394.05 | M57: =L57-L57*G57 -> 24394.05 | N57: =M57/I57/12 -> 203.28375 | O57: 2439.405 | P57: =+IF(K57<=$M$5,0,IF(J57>$M$4,O57,(N57*F57))) -> 0 | Q57: 24394.05 | R57: =+IF(P57=0,Q57,Q57+P57) -> 24394.05 | S57: =+L57-R57 -> 0
D58: DIAGNOSTIC COMPUTER-CENTRALIA | E58: 2004 | F58: 5 | G58: 0 | H58: S/L | I58: 5 | J58: 2009 | K58: 2009.416667 | L58: 2174.9 | M58: 2174.9 | N58: 36.24833333 | O58: 434.98 | P58: 0 | Q58: 2174.9 | R58: 2174.9 | S58: 0
D59: MILLER BIG BLUE 400 AMP WELDER | E59: 2005 | F59: 7 | G59: 0 | H59: S/L | I59: 5 | J59: 2010 | K59: 2010.583333 | L59: 3237 | M59: 3237 | N59: 53.95 | O59: 647.4 | P59: 0 | Q59: 3237 | R59: 3237 | S59: 0
D60: WASTE OIL HEATER | E60: 2007 | F60: 5 | G60: 0 | H60: S/L | I60: 5 | J60: 2012 | K60: 2012.416667 | L60: 7439.71 | M60: 7439.71 | N60: 123.9951667 | O60: 1487.942 | P60: 0 | Q60: 7439.71 | R60: 7439.71 | S60: 0
C61: 9223 | D61: '01 FORD UTILITY TRUCK | E61: 2008 | F61: 5 | G61: 0 | H61: S/L | I61: 5 | J61: 2013 | K61: 2013.416667 | L61: =+'OTHER EQUIP 2188 - Original'!O61 -> 3621.35 | M61: 3621.35 | N61: 60.35583333 | O61: 724.27 | P61: 0 | Q61: 3621.35 | R61: 3621.35 | S61: 0
B62: 61418 | C62: 7029 | D62: 2002 Type M Forklift | E62: 2008 | F62: 11 | G62: 0 | H62: S/L | I62: 3 | J62: 2011 | K62: 2011.916667 | L62: 4500 | M62: =L62-L62*G62 -> 4500 | N62: =M62/I62/12 -> 125 | O62: =+N62*12 -> 1500 | P62: =+IF(K62<=$M$5,0,IF(J62>$M$4,O62,(N62*F62))) -> 0 | Q62: =+IF(P62=0,(L62-(L62-M62)),IF($M$3-E62<1,0,(($M$3-E62)*O62))) -> 4500 | R62: =+IF(P62=0,Q62,Q62+P62) -> 4500 | S62: =+L62-R62 -> 0 | T62: Added from 2189 per district
B63: 67697 | D63: 1997 Type S Forklift | E63: 2008 | F63: 11 | G63: 0 | H63: S/L | I63: 3 | J63: 2011 | K63: 2011.916667 | L63: 2500 | M63: 2500 | N63: 69.44444444 | O63: 833.3333333 | P63: 0 | Q63: 2500 | R63: 2500 | S63: 0 | T63: Added from 2189 per district
C64: 9223 | D64: Truck #9223 Amort of Salvage | E64: 2019 | F64: 6 | G64: 0 | H64: S/L | I64: =+IF(J61-$M$3>=3,J61-$M$3,3) -> 3 | J64: =E64+I64 -> 2022 | K64: =+J64+(F64/12) -> 2022.5 | L64: =+'OTHER EQUIP 2188 - Original'!M61-'OTHER EQUIP 2188'!L61 -> 1783.65 | M64: =L64-L64*G64 -> 1783.65 | N64: =M64/I64/12 -> 49.54583333 | O64: =+N64*12 -> 594.55 | P64: =+IF(K64<=$M$5,0,IF(J64>$M$4,O64,(N64*F64))) -> 594.55 | Q64: =+IF(P64=0,(L64-(L64-M64)),IF($M$3-E64<1,0,(($M$3-E64)*O64))) -> 0 | R64: =+IF(P64=0,Q64,Q64+P64) -> 594.55 | S64: =+L64-R64 -> 1189.1
C65: 7011 | D65: 1972 Type S Forklift - Shop | E65: 2008 | F65: 11 | G65: 0.33 | H65: S/L | I65: 5 | J65: =E65+I65 -> 2013 | K65: 2013.916667 | L65: 0 | M65: 0 | N65: 0 | O65: 0 | P65: 0 | Q65: 0 | R65: 0 | S65: 0
D66: TOOLS FOR CENTRALIA SHOP | E66: 2009 | F66: 9 | G66: 0 | H66: S/L | I66: 5 | J66: 2014 | K66: 2014.75 | L66: 5898.89 | M66: 5898.89 | N66: 98.31483333 | O66: 1179.778 | P66: 0 | Q66: 5898.89 | R66: 5898.89 | S66: 0
D67: PR WHEEL JACKS WITH MP-5/10 | E67: 2009 | F67: 12 | G67: 0 | H67: S/L | I67: 5 | J67: 2014 | K67: 2015 | L67: 7569.08 | M67: 7569.08 | N67: 126.1513333 | O67: 1513.816 | P67: 0 | Q67: 7569.08 | R67: 7569.08 | S67: 0
D68: SHOP JACKS | E68: 2009 | F68: 1 | G68: 0 | H68: S/L | I68: 4.916666667 | J68: 2013.916667 | K68: 2014 | L68: 2847 | M68: 2847 | N68: 48.25423729 | O68: 579.0508475 | P68: 0 | Q68: 2847 | R68: 2847 | S68: 0
A69: 97914 | D69: Shop Laptop | E69: 2011 | F69: 1 | G69: 0 | H69: S/L | I69: 2.11 | J69: 2013.11 | K69: 2013.193333 | L69: 1636.98 | M69: 1636.98 | N69: 64.65165877 | O69: 775.8199052 | P69: 0 | Q69: 1636.98 | R69: 1636.98 | S69: 0
A70: 97913 | D70: Shop Laptop w/ Maintenance Programs | E70: 2011 | F70: 1 | G70: 0 | H70: S/L | I70: 2.11 | J70: 2013.11 | K70: 2013.193333 | L70: 3587 | M70: 3587 | N70: 141.6666667 | O70: 1700 | P70: 0 | Q70: 3587 | R70: 3587 | S70: 0
A71: 88801 | D71: CONTAINER CLEANING SYSTEM | E71: 2011 | F71: 11 | G71: 0 | H71: S/L | I71: 5 | J71: 2016 | K71: 2016.916667 | L71: 3050.46 | M71: 3050.46 | N71: 50.841 | O71: 610.092 | P71: 0 | Q71: 3050.46 | R71: 3050.46 | S71: 0
A72: 88673 | D72: PRESSURE WASHER | E72: 2011 | F72: 12 | G72: 0 | H72: S/L | I72: 5 | J72: 2016 | K72: 2017 | L72: 9437.07 | M72: 9437.07 | N72: 157.2845 | O72: 1887.414 | P72: 0 | Q72: 9437.07 | R72: 9437.07 | S72: 0
A73: 95094 | D73: RTA EQUIPMENT | E73: 2012 | F73: 4 | G73: 0 | H73: S/L | I73: 3 | J73: 2015 | K73: 2015.333333 | L73: 1045.9 | M73: 1045.9 | N73: 29.05277778 | O73: 348.6333333 | P73: 0 | Q73: 1045.9 | R73: 1045.9 | S73: 0
A74: 110151 | D74: MILLER MATIC WELDER | E74: 2013 | F74: 12 | G74: 0 | H74: S/L | I74: 5 | J74: 2018 | K74: 2019 | L74: 2428.92 | M74: 2428.92 | N74: 40.482 | O74: 485.784 | P74: 0 | Q74: 2428.92 | R74: 2428.92 | S74: 0
A75: 111682 | C75: 7038 | D75: 2008 Genie TH5519 Reach Forklift (U) | E75: 2014 | F75: 2 | G75: 0 | H75: S/L | I75: 4 | J75: 2018 | K75: 2018.166667 | L75: 37350 | M75: 37350 | N75: 778.125 | O75: 9337.5 | P75: 0 | Q75: 37350 | R75: 37350 | S75: 0
A76: 218453 | D76: Shop Diagnostic Laptop | E76: 2019 | F76: 5 | G76: 0 | H76: S/L | I76: 3 | J76: 2022 | K76: 2022.416667 | L76: 338.68 | M76: 338.68 | N76: 9.407777778 | O76: 112.8933333 | P76: 112.8933333 | Q76: 0 | R76: 112.8933333 | S76: 225.7866667
A77: 216402 | D77: Shop Diagnostic Laptop - Detroit DDL Software | E77: 2019 | F77: 5 | G77: 0 | H77: S/L | I77: 3 | J77: 2022 | K77: =+J77+(F77/12) -> 2022.416667 | L77: 2563.37 | M77: =L77-L77*G77 -> 2563.37 | N77: =M77/I77/12 -> 71.20472222 | O77: 854.4566667 | P77: =+IF(K77<=$M$5,0,IF(J77>$M$4,O77,(N77*F77))) -> 854.4566667 | Q77: 0 | R77: =+IF(P77=0,Q77,Q77+P77) -> 854.4566667 | S77: =+L77-R77 -> 1708.913333
A78: 214376 | D78: Panasonic Toughbook 54 Lite Shop Diagnostic Laptop | E78: 2019 | F78: 5 | G78: 0 | H78: S/L | I78: 3 | J78: 2022 | K78: =+J78+(F78/12) -> 2022.416667 | L78: 1547.86 | M78: =L78-L78*G78 -> 1547.86 | N78: =M78/I78/12 -> 42.99611111 | O78: 515.9533333 | P78: =+IF(K78<=$M$5,0,IF(J78>$M$4,O78,(N78*F78))) -> 515.9533333 | Q78: 0 | R78: =+IF(P78=0,Q78,Q78+P78) -> 515.9533333 | S78: =+L78-R78 -> 1031.906667
A79: 210514 | D79: HP Probook 650 G4 | E79: 2019 | F79: 1 | G79: 0 | H79: S/L | I79: 3 | J79: 2022 | K79: =+J79+(F79/12) -> 2022.083333 | L79: 1670.96 | M79: =L79-L79*G79 -> 1670.96 | N79: =M79/I79/12 -> 46.41555556 | O79: =+N79*12 -> 556.9866667 | P79: =+IF(K79<=$M$5,0,IF(J79>$M$4,O79,(N79*F79))) -> 556.9866667 | Q79: 0 | R79: =+IF(P79=0,Q79,Q79+P79) -> 556.9866667 | S79: =+L79-R79 -> 1113.973333
A80: 222255 | D80: Clean Burn Shop Heater | E80: 2019 | F80: 10 | G80: 0 | H80: S/L | I80: 5 | J80: 2024 | K80: =+J80+(F80/12) -> 2024.833333 | L80: 11256.05 | M80: =L80-L80*G80 -> 11256.05 | N80: =M80/I80/12 -> 187.6008333 | O80: =+N80*12 -> 2251.21 | P80: =+IF(K80<=$M$5,0,IF(J80>$M$4,O80,(N80*F80))) -> 2251.21 | Q80: 0 | R80: =+IF(P80=0,Q80,Q80+P80) -> 2251.21 | S80: =+L80-R80 -> 9004.84
D82: TOTAL SHOP & GARAGE | L82: =SUM(L56:L81) -> 150246.61 | M82: 150246.61 | N82: 2753.734535 | O82: 33044.81442 | P82: 4886.05 | Q82: 131086.04 | R82: 135972.09 | S82: 14274.52 | T82: Updated Useful Lives to FAR
D85: SERVICE EQUIPMENT
A87: 126850 | C87: 6054 | D87: 2002 Ford F150 Pickup Truck | E87: 2007 | F87: 1 | G87: 0 | H87: S/L | I87: 5 | J87: =E87+I87 -> 2012 | K87: =+J87+(F87/12) -> 2012.083333 | L87: =+'OTHER EQUIP 2188 - Original'!O82 -> 11725 | M87: =L87-L87*G87 -> 11725 | N87: =M87/I87/12 -> 195.4166667 | O87: =+N87*12 -> 2345 | P87: =+IF(K87<=$M$5,0,IF(J87>$M$4,O87,(N87*F87))) -> 0 | Q87: =+IF(P87=0,(L87-(L87-M87)),IF($M$3-E87<1,0,(($M$3-E87)*O87))) -> 11725 | R87: =+IF(P87=0,Q87,Q87+P87) -> 11725 | S87: =+L87-R87 -> 0
C88: 6054 | D88: Truck #6054 Amort of Salvage | E88: 2019 | F88: 6 | G88: 0 | H88: S/L | I88: =+IF(J87-$M$3>=3,J87-$M$3,3) -> 3 | J88: =E88+I88 -> 2022 | K88: =+J88+(F88/12) -> 2022.5 | L88: =+'OTHER EQUIP 2188 - Original'!M82-'OTHER EQUIP 2188'!L87 -> 5775 | M88: =L88-L88*G88 -> 5775 | N88: =M88/I88/12 -> 160.4166667 | O88: =+N88*12 -> 1925 | P88: =+IF(K88<=$M$5,0,IF(J88>$M$4,O88,(N88*F88))) -> 1925 | Q88: =+IF(P88=0,(L88-(L88-M88)),IF($M$3-E88<1,0,(($M$3-E88)*O88))) -> 0 | R88: =+IF(P88=0,Q88,Q88+P88) -> 1925 | S88: =+L88-R88 -> 3850
A89: 126851 | C89: 6054 | D89: Sales tax and licensing (asset 126851) | E89: 2007 | F89: 4 | G89: 0 | H89: S/L | I89: 5 | J89: =E89+I89 -> 2012 | K89: =+J89+(F89/12) -> 2012.333333 | L89: =+'OTHER EQUIP 2188 - Original'!O83 -> 1066.975 | M89: =L89-L89*G89 -> 1066.975 | N89: =M89/I89/12 -> 17.78291667 | O89: 213.395 | P89: 0 | Q89: 1066.975 | R89: 1066.975 | S89: 0
C90: 6054 | D90: Truck #6054 Amort of Salvage | E90: 2019 | F90: 6 | G90: 0 | H90: S/L | I90: =+IF(J89-$M$3>=3,J89-$M$3,3) -> 3 | J90: =E90+I90 -> 2022 | K90: =+J90+(F90/12) -> 2022.5 | L90: =+'OTHER EQUIP 2188 - Original'!M83-'OTHER EQUIP 2188'!L89 -> 525.525 | M90: =L90-L90*G90 -> 525.525 | N90: =M90/I90/12 -> 14.59791667 | O90: 175.175 | P90: 175.175 | Q90: 0 | R90: 175.175 | S90: 350.35
A91: 102598 | C91: 6618 | D91: 2003 Suzuki Grand Vitara - Sales (U) | E91: 2008 | F91: 11 | G91: 0 | H91: S/L | I91: 5 | J91: =E91+I91 -> 2013 | K91: =+J91+(F91/12) -> 2013.916667 | L91: =+'OTHER EQUIP 2188 - Original'!O79 -> 4355 | M91: =L91-L91*G91 -> 4355 | N91: =M91/I91/12 -> 72.58333333 | O91: 871 | P91: 0 | Q91: 4355 | R91: 4355 | S91: 0
C92: 6618 | D92: Truck #6618 Amort of Salvage | E92: 2019 | F92: 6 | G92: 0 | H92: S/L | I92: =+IF(J91-$M$3>=3,J91-$M$3,3) -> 3 | J92: =E92+I92 -> 2022 | K92: =+J92+(F92/12) -> 2022.5 | L92: =+'OTHER EQUIP 2188 - Original'!M79-'OTHER EQUIP 2188'!L91 -> 2145 | M92: =L92-L92*G92 -> 2145 | N92: =M92/I92/12 -> 59.58333333 | O92: 715 | P92: 715 | Q92: 0 | R92: 715 | S92: 1430
A93: 213243 | C93: 6037 | D93: 2006 Type S Pick Up Cart | E93: 2008 | F93: 11 | G93: 0 | H93: S/L | I93: 3 | J93: =E93+I93 -> 2011 | K93: =+J93+(F93/12) -> 2011.916667 | L93: 12500 | M93: =L93-L93*G93 -> 12500 | N93: =M93/I93/12 -> 347.2222222 | O93: =+N93*12 -> 4166.666667 | P93: =+IF(K93<=$M$5,0,IF(J93>$M$4,O93,(N93*F93))) -> 0 | Q93: 12500 | R93: =+IF(P93=0,Q93,Q93+P93) -> 12500 | S93: =+L93-R93 -> 0
A94: 75348 | C94: 6044 | D94: USED 2007 F-150 SUPERVISOR TRUCK | E94: 2010 | F94: 6 | G94: 0.33 | H94: S/L | I94: 3 | J94: =E94+I94 -> 2013 | K94: 2013.5 | L94: 19609.8 | M94: =L94-L94*G94 -> 13138.566 | N94: =M94/I94/12 -> 364.9601667 | O94: =+N94*12 -> 4379.522 | P94: =+IF(K94<=$M$5,0,IF(J94>$M$4,O94,(N94*F94))) -> 0 | Q94: 13138.566 | R94: =+IF(P94=0,Q94,Q94+P94) -> 13138.566 | S94: =+L94-R94 -> 6471.234
A95: 128431 | C95: 7968 | D95: JLG 1932RS Scissor Lift Forklift | E95: 2015 | F95: 12 | G95: 0.2 | H95: S/L | I95: 9 | J95: =E95+I95 -> 2024 | K95: 2025 | L95: 11772 | M95: 9417.6 | N95: 87.2 | O95: 1046.4 | P95: 1046.4 | Q95: 4185.6 | R95: 5232 | S95: 6540
A96: 212515 | C96: 6061 | D96: New Ford F150 Supervisor Truck | E96: 2019 | F96: 4 | G96: 0 | H96: S/L | I96: 5 | J96: =E96+I96 -> 2024 | K96: =+J96+(F96/12) -> 2024.333333 | L96: 23642.44 | M96: =L96-L96*G96 -> 23642.44 | N96: =M96/I96/12 -> 394.0406667 | O96: 4728.488 | P96: =+IF(K96<=$M$5,0,IF(J96>$M$4,O96,(N96*F96))) -> 4728.488 | Q96: 0 | R96: =+IF(P96=0,Q96,Q96+P96) -> 4728.488 | S96: =+L96-R96 -> 18913.952
A97: 215660/216678 | B97: 212515 | C97: 6061 | D97: New Ford F150 Sup Truck - Radio & License | E97: 2019 | F97: 6 | G97: 0 | H97: S/L | I97: 3 | J97: =E97+I97 -> 2022 | K97: =+J97+(F97/12) -> 2022.5 | L97: =681.66+2188.51 -> 2870.17 | M97: =L97-L97*G97 -> 2870.17 | N97: =M97/I97/12 -> 79.72694444 | O97: 956.7233333 | P97: =+IF(K97<=$M$5,0,IF(J97>$M$4,O97,(N97*F97))) -> 956.7233333 | Q97: 0 | R97: =+IF(P97=0,Q97,Q97+P97) -> 956.7233333 | S97: =+L97-R97 -> 1913.446667
D99: TOTAL SERVICE EQUIPMENT | L99: =SUM(L91:L98) -> 76894.41 | M99: 68068.776 | N99: 1405.316667 | O99: 16863.8 | P99: 7446.611333 | Q99: 34179.166 | R99: 41625.77733 | S99: 35268.63267 | T99: Updated Useful Lives to FAR
D102: OFFICE FURNITURE & FIXTURES
D104: DELL DIMENSION [CENTRALIA] | E104: 2001 | F104: 4 | G104: 0 | H104: S/L | I104: 5 | J104: =E104+I104 -> 2006 | K104: =+J104+(F104/12) -> 2006.333333 | L104: 2322.03 | M104: =L104-L104*G104 -> 2322.03 | N104: =M104/I104/12 -> 38.7005 | O104: =+N104*12 -> 464.406 | P104: =+IF(K104<=$M$5,0,IF(J104>$M$4,O104,(N104*F104))) -> 0 | Q104: =+IF(P104=0,(L104-(L104-M104)),IF($M$3-E104<1,0,(($M$3-E104)*O104))) -> 2322.03 | R104: =+IF(P104=0,Q104,Q104+P104) -> 2322.03 | S104: =+L104-R104 -> 0
D105: COMPUTER FOR CENTRALIA | E105: 2002 | F105: 9 | G105: 0 | H105: S/L | I105: 5 | J105: 2007 | K105: 2007.75 | L105: 2230.4 | M105: =L105-L105*G105 -> 2230.4 | N105: =M105/I105/12 -> 37.17333333 | O105: 446.08 | P105: =+IF(K105<=$M$5,0,IF(J105>$M$4,O105,(N105*F105))) -> 0 | Q105: 2230.4 | R105: =+IF(P105=0,Q105,Q105+P105) -> 2230.4 | S105: =+L105-R105 -> 0
D106: HP VECTRA VL400 - CENT. COMPUTER | E106: 2002 | F106: 4 | G106: 0 | H106: S/L | I106: 5 | J106: 2007 | K106: 2007.333333 | L106: 1502.68 | M106: 1502.68 | N106: 25.04466667 | O106: 300.536 | P106: 0 | Q106: 1502.68 | R106: 1502.68 | S106: 0
D107: FURNITURE - NEW CENTRALIA OFFICE | E107: 2002 | F107: 4 | G107: 0 | H107: S/L | I107: 5 | J107: 2007 | K107: 2007.333333 | L107: 2442.29 | M107: 2442.29 | N107: 40.70483333 | O107: 488.458 | P107: 0 | Q107: 2442.29 | R107: 2442.29 | S107: 0
D108: AIR CONDITIONER - CENT. OFFICE | E108: 2003 | F108: 7 | G108: 0 | H108: S/L | I108: 5 | J108: 2008 | K108: 2008.583333 | L108: 5713.4 | M108: 5713.4 | N108: 95.22333333 | O108: 1142.68 | P108: 0 | Q108: 5713.4 | R108: 5713.4 | S108: 0
D109: SIGNAGE FOR CENTRALIA OFFICE | E109: 2003 | F109: 1 | G109: 0 | H109: S/L | I109: 5 | J109: 2008 | K109: 2008.083333 | L109: 5996.78 | M109: 5996.78 | N109: 99.94633333 | O109: 1199.356 | P109: 0 | Q109: 5996.78 | R109: 5996.78 | S109: 0
D110: HP LASERJET 9050 | E110: 2005 | F110: 8 | G110: 0 | H110: S/L | I110: 5 | J110: 2010 | K110: 2010.666667 | L110: 3923.91 | M110: 3923.91 | N110: 65.3985 | O110: 784.782 | P110: 0 | Q110: 3923.91 | R110: 3923.91 | S110: 0
D111: CENTRALIA PHONE SYSTEM | E111: 2006 | F111: 6 | G111: 0 | H111: S/L | I111: 5 | J111: 2011 | K111: 2011.5 | L111: 14165.28 | M111: 14165.28 | N111: 236.088 | O111: 2833.056 | P111: 0 | Q111: 14165.28 | R111: 14165.28 | S111: 0
D112: ALARM SYSTEM -- CENTRALIA | E112: 2007 | F112: 8 | G112: 0 | H112: S/L | I112: 5 | J112: 2012 | K112: 2012.666667 | L112: 2960.24 | M112: 2960.24 | N112: 49.33733333 | O112: 592.048 | P112: 0 | Q112: 2960.24 | R112: 2960.24 | S112: 0
D113: FIREPROOF SAFE - HR | E113: 2008 | F113: 6 | G113: 0 | H113: S/L | I113: 5 | J113: 2013 | K113: 2013.5 | L113: 1391.55 | M113: 1391.55 | N113: 23.1925 | O113: 278.31 | P113: 0 | Q113: 1391.55 | R113: 1391.55 | S113: 0
D114: ROUTEWARE SERVER | E114: 2008 | F114: 4 | G114: 0 | H114: S/L | I114: 5 | J114: 2013 | K114: 2013.333333 | L114: 19788.07 | M114: 19788.07 | N114: 329.8011667 | O114: 3957.614 | P114: 0 | Q114: 19788.07 | R114: 19788.07 | S114: 0
A115: 79491 | D115: PHONE SYSTEM - CENTRALIA | E115: 2010 | F115: 12 | G115: 0 | H115: S/L | I115: 5 | J115: 2015 | K115: 2016 | L115: =4531.45+3236.76+5178.81+409.13+357.98+2472.3 -> 16186.43 | M115: 16186.43 | N115: 269.7738333 | O115: 3237.286 | P115: 0 | Q115: 16186.43 | R115: 16186.43 | S115: 0
A116: 90479 | D116: Sony Internet TV | E116: 2012 | F116: 1 | G116: 0 | H116: S/L | I116: 5 | J116: 2017 | K116: 2017.083333 | L116: 557.73 | M116: 557.73 | N116: 9.2955 | O116: 111.546 | P116: 0 | Q116: 557.73 | R116: 557.73 | S116: 0
A117: 109578, 111060 | D117: Office Furniture | E117: 2013 | F117: 12 | G117: 0 | H117: S/L | I117: 10 | J117: 2023 | K117: 2024 | L117: =4639.68+13986 -> 18625.68 | M117: 18625.68 | N117: 155.214 | O117: 1862.568 | P117: 1862.568 | Q117: 11175.408 | R117: 13037.976 | S117: 5587.704
A118: 121105 | D118: 6 Winterms | E118: 2015 | F118: 3 | G118: 0 | H118: S/L | I118: 3 | J118: 2018 | K118: 2018.25 | L118: 1967.27 | M118: 1967.27 | N118: 54.64638889 | O118: 655.7566667 | P118: 0 | Q118: 1967.27 | R118: 1967.27 | S118: 0
A119: 133014 | D119: Phone Recorder Unit | E119: 2016 | F119: 5 | G119: 0 | H119: S/L | I119: 5 | J119: 2021 | K119: 2021.416667 | L119: 1077.29 | M119: 1077.29 | N119: 17.95483333 | O119: 215.458 | P119: 215.458 | Q119: 646.374 | R119: 861.832 | S119: 215.458
A120: 167964 | D120: Hansen Cash Call Recording System | E120: 2016 | F120: 5 | G120: 0 | H120: S/L | I120: 5 | J120: 2021 | K120: 2021.416667 | L120: 7346.78 | M120: 7346.78 | N120: 122.4463333 | O120: 1469.356 | P120: 1469.356 | Q120: 4408.068 | R120: 5877.424 | S120: 1469.356
A121: 169284 | D121: HP ProBook 640 Laptop | E121: 2016 | F121: 10 | G121: 0 | H121: S/L | I121: 3 | J121: 2019 | K121: 2019.833333 | L121: 1092.99 | M121: 1092.99 | N121: 30.36083333 | O121: 364.33 | P121: 0 | Q121: 1092.99 | R121: 1092.99 | S121: 0
A122: 182213 | D122: HP ProBook 650 G2 -15.6" | E122: 2017 | F122: 4 | G122: 0 | H122: S/L | I122: 3 | J122: 2020 | K122: 2020.333333 | L122: 1293.38 | M122: 1293.38 | N122: 35.92722222 | O122: 431.1266667 | P122: 0 | Q122: 1293.38 | R122: 1293.38 | S122: 0
A123: 174546 | D123: HP ProBook 650 G2 | E123: 2017 | F123: 1 | G123: 0 | H123: S/L | I123: 3 | J123: 2020 | K123: 2020.083333 | L123: 1275.86 | M123: 1275.86 | N123: 35.44055556 | O123: 425.2866667 | P123: 0 | Q123: 1275.86 | R123: 1275.86 | S123: 0
D125: TOTAL OFFICE FURNITURE & FIXTURES | L125: =SUM(L104:L124) -> 111860.04 | M125: 111860.04 | N125: 1771.67 | O125: 21260.04 | P125: 3547.382 | Q125: 101040.14 | R125: 104587.522 | S125: 7272.518 | T125: Updated Useful Lives to FAR
D128: SOFTWARE AND COMPUTER UPGRADES FOR OFFICE
D130: MVBASE LICENSES | E130: 2008 | F130: 8 | G130: 0 | H130: S/L | I130: 5 | J130: =E130+I130 -> 2013 | K130: 2013.666667 | L130: 7289.06 | M130: =L130-L130*G130 -> 7289.06 | N130: =M130/I130/12 -> 121.4843333 | O130: =+N130*12 -> 1457.812 | P130: =+IF(K130<=$M$5,0,IF(J130>$M$4,O130,(N130*F130))) -> 0 | Q130: =+IF(P130=0,(L130-(L130-M130)),IF($M$3-E130<1,0,(($M$3-E130)*O130))) -> 7289.06 | R130: =+IF(P130=0,Q130,Q130+P130) -> 7289.06 | S130: =+L130-R130 -> 0
D131: NETWORK LICENSES | E131: 2008 | F131: 8 | G131: 0 | H131: S/L | I131: 5 | J131: 2013 | K131: 2013.666667 | L131: 2795.18 | M131: =L131-L131*G131 -> 2795.18 | N131: =M131/I131/12 -> 46.58633333 | O131: 559.036 | P131: =+IF(K131<=$M$5,0,IF(J131>$M$4,O131,(N131*F131))) -> 0 | Q131: 2795.18 | R131: =+IF(P131=0,Q131,Q131+P131) -> 2795.18 | S131: =+L131-R131 -> 0
D132: DIAGNOSTIC SOFTWARE | E132: 2008 | F132: 5 | G132: 0 | H132: S/L | I132: 5 | J132: 2013 | K132: 2013.416667 | L132: 1689.5 | M132: 1689.5 | N132: 28.15833333 | O132: 337.9 | P132: 0 | Q132: 1689.5 | R132: 1689.5 | S132: 0
A133: 75189 | D133: RM LICENSES & 10 USERS CENTRALIA | E133: 2010 | F133: 6 | G133: 0 | H133: S/L | I133: 3 | J133: 2013 | K133: 2013.5 | L133: 11150 | M133: 11150 | N133: 309.7222222 | O133: 3716.666667 | P133: 0 | Q133: 11150 | R133: 11150 | S133: 0
A134: 85510 | D134: HP PROBOOK 6450B & DOCKING STN | E134: 2011 | F134: 7 | G134: 0 | H134: S/L | I134: 3 | J134: 2014 | K134: 2014.583333 | L134: 978.9 | M134: 978.9 | N134: 27.19166667 | O134: 326.3 | P134: 0 | Q134: 978.9 | R134: 978.9 | S134: 0
A135: 113273 | D135: Wyse Winterms D10D | E135: 2014 | F135: 4 | G135: 0 | H135: S/L | I135: 5 | J135: 2019 | K135: 2019.333333 | L135: 651.76 | M135: 651.76 | N135: 10.86266667 | O135: 130.352 | P135: 0 | Q135: 651.76 | R135: 651.76 | S135: 0
A136: 118603 | D136: Volvo Diagnostic Software | E136: 2014 | F136: 12 | G136: 0 | H136: S/L | I136: 3 | J136: 2017 | K136: 2018 | L136: 798 | M136: 798 | N136: 22.16666667 | O136: 266 | P136: 0 | Q136: 798 | R136: 798 | S136: 0
A137: 117629 | D137: Diagnostic Software for International Trucks | E137: 2014 | F137: 11 | G137: 0 | H137: S/L | I137: 3 | J137: 2017 | K137: 2017.916667 | L137: 861.84 | M137: 861.84 | N137: 23.94 | O137: 287.28 | P137: 0 | Q137: 861.84 | R137: 861.84 | S137: 0
A138: 117342 | D138: Panasonic Toughbook | E138: 2014 | F138: 11 | G138: 0 | H138: S/L | I138: 2 | J138: 2016 | K138: 2016.916667 | L138: 2051.82 | M138: 2051.82 | N138: 85.4925 | O138: 1025.91 | P138: 0 | Q138: 2051.82 | R138: 2051.82 | S138: 0
A139: 116613 | D139: Panasonic Toughbook | E139: 2014 | F139: 9 | G139: 0 | H139: S/L | I139: 2 | J139: 2016 | K139: 2016.75 | L139: 1711 | M139: 1711 | N139: 71.29166667 | O139: 855.5 | P139: 0 | Q139: 1711 | R139: 1711 | S139: 0
A140: 116111 | D140: HP Prodesk 600 G1 | E140: 2014 | F140: 9 | G140: 0 | H140: S/L | I140: 3 | J140: 2017 | K140: 2017.75 | L140: 739.01 | M140: 739.01 | N140: 20.52805556 | O140: 246.3366667 | P140: 0 | Q140: 739.01 | R140: 739.01 | S140: 0
A141: 116110 | D141: HP Prodesk 600 G1 | E141: 2014 | F141: 9 | G141: 0 | H141: S/L | I141: 3 | J141: 2017 | K141: 2017.75 | L141: 731.58 | M141: 731.58 | N141: 20.32166667 | O141: 243.86 | P141: 0 | Q141: 731.58 | R141: 731.58 | S141: 0
A142: 124988 | D142: HP Prodesk 600 G1 | E142: 2015 | F142: 8 | G142: 0 | H142: S/L | I142: 3 | J142: 2018 | K142: 2018.666667 | L142: 710.05 | M142: 710.05 | N142: 19.72361111 | O142: 236.6833333 | P142: 0 | Q142: 710.05 | R142: 710.05 | S142: 0
A143: 127549 | D143: HP Probook 640 G1 | E143: 2015 | F143: 11 | G143: 0 | H143: S/L | I143: 3 | J143: 2018 | K143: 2018.916667 | L143: 1120.06 | M143: 1120.06 | N143: 31.11277778 | O143: 373.3533333 | P143: 0 | Q143: 1120.06 | R143: 1120.06 | S143: 0
D145: TOTAL SOFTWARE AND COMPUTER UPGRADES FOR OFFICE | L145: =SUM(L130:L144) -> 33277.76 | M145: 33277.76 | N145: 838.5825 | O145: 10062.99 | P145: 0 | Q145: 33277.76 | R145: 33277.76 | S145: 0 | T145: Updated Useful Lives to FAR
D147: RECYCLING BALER
A149: 95401 | D149: Portable Loading Ramp | E149: 2012 | F149: 7 | G149: 0 | H149: d | I149: 5 | J149: =E149+I149 -> 2017 | K149: =+J149+(F149/12) -> 2017.583333 | L149: 8532.31 | M149: =L149-L149*G149 -> 8532.31 | N149: =M149/I149/12 -> 142.2051667 | O149: =+N149*12 -> 1706.462 | P149: =+IF(K149<=$M$5,0,IF(J149>$M$4,O149,(N149*F149))) -> 0 | Q149: =+IF(P149=0,(L149-(L149-M149)),IF($M$3-E149<1,0,(($M$3-E149)*O149))) -> 8532.31 | R149: =+IF(P149=0,Q149,Q149+P149) -> 8532.31 | S149: =+L149-R149 -> 0
D151: TOTAL RECYCLING BALER | L151: =SUM(L149:L150) -> 8532.31 | M151: 8532.31 | N151: 142.2051667 | O151: 1706.462 | P151: 0 | Q151: 8532.31 | R151: 8532.31 | S151: 0 | T151: Updated Useful Lives to FAR
D153: GRAND TOTAL | L153: =SUM(L145,L125,L82,L51,L27,L99,L151) -> 2142426.38 | M153: 2133600.746 | N153: 13834.53238 | O153: 166014.3886 | P153: 92671.55662 | Q153: 1294247.358 | R153: 1386918.914 | S153: 755507.4657
D165: Transferred/Retired 2015
A166: 81716 | B166: 6001 | D166: 1986 GMC PICK-UP - PARTS TRUCK (U) | E166: 2009 | F166: 1 | G166: 0.33 | H166: S/L | I166: 5 | J166: =E166+I166 -> 2014 | L166: 2500 | M166: =L166-L166*G166 -> 1675 | N166: =M166/I166/12 -> 27.91666667 | O166: =IF(#REF!>0,0,IF(OR(#REF!>#REF!,#REF!<#REF!),0,IF(AND(#REF!>=#REF!,#REF!<=#REF!),N166*((#REF!-#REF!)*12),IF(AND(#REF!<=#REF!,#REF!>=#REF!),((#REF!-#REF!)*12)*N166,IF(#REF!>#REF!,12*N166,0))))) ->  | P166: =IF(#REF!>0,#REF!,O166) ->  | Q166: =#REF!*#REF! ->  | R166: =IF(#REF!>0,0,Q166+#REF!*#REF!)*#REF! ->  | S166: =IF(#REF!>0,(L166-Q166)/2,IF(#REF!>=#REF!,(((L166*#REF!)*#REF!)-R166)/2,((((L166*#REF!)*#REF!)-Q166)+(((L166*#REF!)*#REF!)-R166))/2)) -> 
D168: Transferred/Retired 2016
A169: 125247 | B169: 6037 | D169: 2006 Chevy Colorado Supervisor Pick-UP (U) | E169: 2008 | F169: 11 | G169: 0.33 | H169: S/L | I169: 5 | J169: =E169+I169 -> 2013 | L169: 12500 | M169: =L169-L169*G169 -> 8375 | N169: =M169/I169/12 -> 139.5833333 | O169: =IF(#REF!>0,0,IF(OR(#REF!>#REF!,#REF!<#REF!),0,IF(AND(#REF!>=#REF!,#REF!<=#REF!),N169*((#REF!-#REF!)*12),IF(AND(#REF!<=#REF!,#REF!>=#REF!),((#REF!-#REF!)*12)*N169,IF(#REF!>#REF!,12*N169,0))))) ->  | P169: =IF(#REF!>0,#REF!,O169) ->  | Q169: =#REF!*#REF! ->  | R169: =IF(#REF!>0,0,Q169+#REF!*#REF!)*#REF! ->  | S169: =IF(#REF!>0,(L169-Q169)/2,IF(#REF!>=#REF!,(((L169*#REF!)*#REF!)-R169)/2,((((L169*#REF!)*#REF!)-Q169)+(((L169*#REF!)*#REF!)-R169))/2)) -> 
D171: Transferred/Retired 2019
A172: 96248 | D172: Rebuild Horizontal Baler | E172: 2012 | F172: 5 | G172: 0 | H172: S/L | I172: 3 | J172: =E172+I172 -> 2015 | K172: =+J172+(F172/12) -> 2015.416667 | L172: 10765.73 | M172: =L172-L172*G172 -> 10765.73 | N172: =M172/I172/12 -> 299.0480556 | O172: =+N172*12 -> 3588.576667 | P172: =+IF(K172<=$M$5,0,IF(J172>$M$4,O172,(N172*F172))) -> 0 | Q172: =+IF(P172=0,L172,IF($M$3-E172<1,0,(($M$3-E172)*O172))) -> 10765.73 | R172: =+IF(P172=0,Q172,Q172+P172) -> 10765.73 | S172: =+L172-R172 -> 0
D174: Transferred/Retired 2020
B175: 6203 | D175: 1983 Type S Pick Up Car | E175: 2008 | F175: 11 | G175: 0 | H175: S/L | I175: 5 | J175: =E175+I175 -> 2013 | K175: =+J175+(F175/12) -> 2013.916667 | L175: =+'OTHER EQUIP 2188 - Original'!O80 -> 0 | M175: =L175-L175*G175 -> 0 | N175: =M175/I175/12 -> 0 | O175: =+N175*12 -> 0 | P175: =+IF(K175<=$M$5,0,IF(J175>$M$4,O175,(N175*F175))) -> 0 | Q175: =+IF(P175=0,(L175-(L175-M175)),IF($M$3-E175<1,0,(($M$3-E175)*O175))) -> 0 | R175: =+IF(P175=0,Q175,Q175+P175) -> 0 | S175: =+L175-R175 -> 0
B176: 6203 | D176: Truck #9203 Amort of Salvage | E176: 2019 | F176: 6 | G176: 0 | H176: S/L | I176: =+IF(J175-$M$3>=3,J175-$M$3,3) -> 3 | J176: =E176+I176 -> 2022 | K176: =+J176+(F176/12) -> 2022.5 | L176: =+'OTHER EQUIP 2188 - Original'!M80-'OTHER EQUIP 2188'!L175 -> 0 | M176: =L176-L176*G176 -> 0 | N176: =M176/I176/12 -> 0 | O176: =+N176*12 -> 0 | P176: =+IF(K176<=$N$5,0,IF(J176>$N$4,O176,(N176*F176))) -> 0 | Q176: =+IF(P176=0,(L176-(L176-M176)),IF($M$3-E176<1,0,(($M$3-E176)*O176))) -> 0 | R176: =+IF(P176=0,L176,IF($N$3-E176<1,0,(($N$3-E176)*O176))) -> 0 | S176: =+IF(P176=0,R176,R176+P176) -> 0 | T176: =+L176-S176 -> 0
D181: ASSETS BELOW WERE DELETED IN 2011 PER CLEAN UP DONE BY DISTRICT.
D182: SLC CARD & MODEMS | E182: 1997 | F182: 3 | G182: 0 | H182: S/L | I182: 5 | J182: =E182+I182 -> 2002 | L182: 1181 | M182: =L182-L182*G182 -> 1181 | N182: =M182/I182/12 -> 19.68333333 | O182: =IF(#REF!>0,0,IF(OR(#REF!>#REF!,#REF!<#REF!),0,IF(AND(#REF!>=#REF!,#REF!<=#REF!),N182*((#REF!-#REF!)*12),IF(AND(#REF!<=#REF!,#REF!>=#REF!),((#REF!-#REF!)*12)*N182,IF(#REF!>#REF!,12*N182,0))))) ->  | P182: =IF(#REF!>0,#REF!,O182) ->  | Q182: =#REF!*#REF! ->  | R182: =IF(#REF!>0,0,Q182+#REF!*#REF!)*#REF! ->  | S182: =IF(#REF!>0,(L182-Q182)/2,IF(#REF!>=#REF!,(((L182*#REF!)*#REF!)-R182)/2,((((L182*#REF!)*#REF!)-Q182)+(((L182*#REF!)*#REF!)-R182))/2)) -> 
D183: CENTRALIA PHONE SYSTEM | E183: 2000 | F183: 5 | G183: 0 | H183: S/L | I183: 5 | J183: =E183+I183 -> 2005 | L183: 7881.34 | M183: =L183-L183*G183 -> 7881.34 | N183: =M183/I183/12 -> 131.3556667 | O183: =IF(#REF!>0,0,IF(OR(#REF!>#REF!,#REF!<#REF!),0,IF(AND(#REF!>=#REF!,#REF!<=#REF!),N183*((#REF!-#REF!)*12),IF(AND(#REF!<=#REF!,#REF!>=#REF!),((#REF!-#REF!)*12)*N183,IF(#REF!>#REF!,12*N183,0))))) ->  | P183: =IF(#REF!>0,#REF!,O183) ->  | Q183: =#REF!*#REF! ->  | R183: =IF(#REF!>0,0,Q183+#REF!*#REF!)*#REF! ->  | S183: =IF(#REF!>0,(L183-Q183)/2,IF(#REF!>=#REF!,(((L183*#REF!)*#REF!)-R183)/2,((((L183*#REF!)*#REF!)-Q183)+(((L183*#REF!)*#REF!)-R183))/2)) -> 
D184: CENTRALIA LASER PRINTER | E184: 2001 | F184: 5 | G184: 0 | H184: S/L | I184: 5 | J184: =E184+I184 -> 2006 | L184: 2783.48 | M184: =L184-L184*G184 -> 2783.48 | N184: =M184/I184/12 -> 46.39133333 | O184: =IF(#REF!>0,0,IF(OR(#REF!>#REF!,#REF!<#REF!),0,IF(AND(#REF!>=#REF!,#REF!<=#REF!),N184*((#REF!-#REF!)*12),IF(AND(#REF!<=#REF!,#REF!>=#REF!),((#REF!-#REF!)*12)*N184,IF(#REF!>#REF!,12*N184,0))))) ->  | P184: =IF(#REF!>0,#REF!,O184) ->  | Q184: =#REF!*#REF! ->  | R184: =IF(#REF!>0,0,Q184+#REF!*#REF!)*#REF! ->  | S184: =IF(#REF!>0,(L184-Q184)/2,IF(#REF!>=#REF!,(((L184*#REF!)*#REF!)-R184)/2,((((L184*#REF!)*#REF!)-Q184)+(((L184*#REF!)*#REF!)-R184))/2)) -> 
D185: MINOLTA COPIER | E185: 2004 | F185: 4 | G185: 0 | H185: S/L | I185: 5 | J185: =E185+I185 -> 2009 | L185: 2905.21 | M185: =L185-L185*G185 -> 2905.21 | N185: =M185/I185/12 -> 48.42016667 | O185: =IF(#REF!>0,0,IF(OR(#REF!>#REF!,#REF!<#REF!),0,IF(AND(#REF!>=#REF!,#REF!<=#REF!),N185*((#REF!-#REF!)*12),IF(AND(#REF!<=#REF!,#REF!>=#REF!),((#REF!-#REF!)*12)*N185,IF(#REF!>#REF!,12*N185,0))))) ->  | P185: =IF(#REF!>0,#REF!,O185) ->  | Q185: =#REF!*#REF! ->  | R185: =IF(#REF!>0,0,Q185+#REF!*#REF!)*#REF! ->  | S185: =IF(#REF!>0,(L185-Q185)/2,IF(#REF!>=#REF!,(((L185*#REF!)*#REF!)-R185)/2,((((L185*#REF!)*#REF!)-Q185)+(((L185*#REF!)*#REF!)-R185))/2)) -> 
D186: HP LASERJET 4350DTN | E186: 2005 | F186: 7 | G186: 0 | H186: S/L | I186: 5 | J186: =E186+I186 -> 2010 | L186: 2506.75 | M186: =L186-L186*G186 -> 2506.75 | N186: =M186/I186/12 -> 41.77916667 | O186: =IF(#REF!>0,0,IF(OR(#REF!>#REF!,#REF!<#REF!),0,IF(AND(#REF!>=#REF!,#REF!<=#REF!),N186*((#REF!-#REF!)*12),IF(AND(#REF!<=#REF!,#REF!>=#REF!),((#REF!-#REF!)*12)*N186,IF(#REF!>#REF!,12*N186,0))))) ->  | P186: =IF(#REF!>0,#REF!,O186) ->  | Q186: =#REF!*#REF! ->  | R186: =IF(#REF!>0,0,Q186+#REF!*#REF!)*#REF! ->  | S186: =IF(#REF!>0,(L186-Q186)/2,IF(#REF!>=#REF!,(((L186*#REF!)*#REF!)-R186)/2,((((L186*#REF!)*#REF!)-Q186)+(((L186*#REF!)*#REF!)-R186))/2)) -> 

Sheet Trucks 2188 - Original
A1: 2188 Lewis County/Joe's Refuse | AE1: ='Summary 2188'!F6 -> 43617
A2: Depreciation Schedule | Q2: 3 | R2: Months in first year | BX2: CONVENTIONS
A3: ='Summary 2188'!A3 -> 43982 | Q3: 9 | R3: Months in second year | AE3: A. | AF3: Purchase date
Q4: 2016 | R4: First year | AE4: B. | AF4: End of Test Period | BW4: 1 | BX4: Calendar year test period: | CA4: 12 | CB4: mos in first year
Q5: 2017 | R5: Second year | AE5: C | AF5: Date fully Depr | AJ5: Salvage Value Calculations | BX5: 1993 | CA5: 0 | CB5: mos in 2nd year
AE6: D. | AF6: Beg of Test Period | CA6: 93 | CB6: First year
AE7: E. | AF7: Disposition Date | CA7: 94 | CB7: Second Year
T8: Disposal | W8: Total | X8: Beginning | Y8: Allocated | AA8: Beginning | AB8: Ending | AN8: Adjustment to | AP8: Adjustment to
C9: GARBAGE | F9: Date in | H9: Salvage | L9: Year | P9: Asset | S9: Test | T9: Year | U9: Total | V9: % | W9: Allocated | X9: Accumulated | Y9: Accumulated | Z9: Branch | AA9: Accum. | AB9: Accum. | AC9: Average | AJ9: Amort of | AL9: Total Depreciation | AN9: Avg. Investment | AP9: Avg. Investment | AR9: Adjusted Avg.
B10: Truck | F10: Service | H10: Value | J10: Method | K10: Life | L10: Fully | M10: Asset | N10: Mo. | O10: Asset | P10: Disposal | Q10: Depr | R10: Monthly | S10: Year | T10: Depn | U10: Test yr. | V10: Allo. | W10: Test year | X10: Depreciation | Y10: Depreciation | Z10: Allo. | AA10: Depr. | AB10: Depr. | AC10: Investment | AD10: A. | AE10: B | AF10: C. | AG10: D. | AH10: E. | AJ10: Salvage Value | AL10: For Test Period | AN10: Fully Depr Assets | AP10: Assets w/ Depr Life | AR10: Investment | BW10: 2 | BX10: Dispositions must be in test period
A11: Codes | B11: No | C11: Asset Description | D11: FAR # | E11: FAR | F11: Year | G11: Mo | H11: % | I11: - | J11: M | K11: Years | L11: Depr | M11: Cost | N11: - | O11: Cost | P11: - | Q11: Cost | R11: Depr | S11: Depr | T11: - | U11: Depn. | V11: - | W11: Depr. | X11: =AE1 -> 43617 | Y11: =+A3 -> 43982 | Z11: % | AA11: =+X11 -> 43617 | AB11: =+A3 -> 43982 | AC11: =AB11 -> 43982
A12: P/U | B12: 6205 | C12: 1986 DODGE TRUCK | F12: 1994 | G12: 3 | H12: 0.2 | J12: S/L | K12: 7 | L12: =F12+K12 -> 2001 | O12: 26697 | Q12: =O12-O12*H12 -> 21357.6 | R12: =Q12/K12/12 -> 254.2571429 | S12: =IF(P12>0,0,IF(OR(AD12>AE12,AF12<AG12),0,IF(AND(AF12>=AG12,AF12<=AE12),R12*((AF12-AG12)*12),IF(AND(AG12<=AD12,AE12>=AD12),((AE12-AD12)*12)*R12,IF(AF12>AE12,12*R12,0))))) -> 0 | T12: =IF(P12=0,0,IF(AND(AH12>=AG12,AH12<=AF12),((AH12-AG12)*12)*R12,0)) -> 0 | U12: =IF(T12>0,T12,S12) -> 0 | V12: 1 | W12: =V12*SUM(S12:T12) -> 0 | X12: =IF(AD12>AE12,0,IF(AF12<AG12,Q12,IF(AND(AF12>=AG12,AF12<=AE12),(Q12-U12),IF(AND(AG12<=AD12,AE12>=AD12),0,IF(AF12>AE12,((AG12-AD12)*12)*R12,0))))) -> 21357.6 | Y12: =X12*V12 -> 21357.6 | Z12: 1 | AA12: =Y12*Z12 -> 21357.6 | AB12: =IF(P12>0,0,AA12+W12*Z12)*Z12 -> 21357.6 | AC12: =IF(P12>0,(O12-AA12)/2,IF(AD12>=AG12,(((O12*V12)*Z12)-AB12)/2,((((O12*V12)*Z12)-AA12)+(((O12*V12)*Z12)-AB12))/2)) -> 5339.4 | AD12: =$F12+(($G12-1)/12) -> 1994.166667 | AE12: =($Q$5+1)-($Q$2/12) -> 2017.75 | AF12: =$L12+(($G12-1)/12) -> 2001.166667 | AG12: =$Q$4+($Q$3/12) -> 2016.75 | AH12: =$M12+(($N12-1)/12) -> -0.08333333333 | AJ12: =+IF((AF12-AG12)>3,((O12-Q12)/(AF12-AG12)),(O12-Q12)/3) -> 1779.8 | AL12: =+AJ12+W12 -> 1779.8 | AN12: =+IF(AF12<AG12,-AC12,0) -> -5339.4 | AP12: =+IF(AF12>AE12,IF(AJ12>0,IF(P12>0,(O12-AA12)/2,IF(AD12>=AG12,(((O12*V12)*Z12)-(AB12+AJ12))/2,((((O12*V12)*Z12)-AA12)+(((O12*V12)*Z12)-(AB12+AJ12)))/2)),0),0) -> 0 | AR12: =+AC12+AN12+(IF(AP12>0,(AP12-AC12),0)) -> 0
A13: RL - SP | B13: 1002 | C13: TYRONE UNITS (60%) | F13: 1995 | G13: 9 | H13: 0.2 | J13: S/L | K13: 7 | L13: 2002 | O13: =0.6*386 -> 231.6 | Q13: 185.28 | R13: 2.205714286 | S13: 0 | T13: 0 | U13: 0 | V13: 1 | W13: 0 | X13: 185.28 | Y13: 185.28 | Z13: 1 | AA13: 185.28 | AB13: 185.28 | AC13: 46.32 | AD13: 1995.666667 | AE13: 2017.75 | AF13: 2002.666667 | AG13: 2016.75 | AH13: -0.08333333333 | AJ13: =+IF((AF13-AG13)>3,((O13-Q13)/(AF13-AG13)),(O13-Q13)/3) -> 15.44 | AL13: 15.44 | AN13: =+IF(AF13<AG13,-AC13,0) -> -46.32 | AP13: =+IF(AF13>AE13,IF(AJ13>0,IF(P13>0,(O13-AA13)/2,IF(AD13>=AG13,(((O13*V13)*Z13)-(AB13+AJ13))/2,((((O13*V13)*Z13)-AA13)+(((O13*V13)*Z13)-(AB13+AJ13)))/2)),0),0) -> 0 | AR13: =+AC13+AN13+(IF(AP13>0,(AP13-AC13),0)) -> 0
A14: RL - SP | B14: 1002 | C14: 20YD ALPHA BODY (60%) | F14: 1995 | G14: 10 | H14: 0.2 | J14: S/L | K14: 7 | L14: 2002 | O14: =0.6*27170 -> 16302 | Q14: 13041.6 | R14: 155.2571429 | S14: 0 | T14: 0 | U14: 0 | V14: 1 | W14: 0 | X14: 13041.6 | Y14: 13041.6 | Z14: 1 | AA14: 13041.6 | AB14: 13041.6 | AC14: 3260.4 | AD14: 1995.75 | AE14: 2017.75 | AF14: 2002.75 | AG14: 2016.75 | AH14: -0.08333333333 | AJ14: =+IF((AF14-AG14)>3,((O14-Q14)/(AF14-AG14)),(O14-Q14)/3) -> 1086.8 | AL14: 1086.8 | AN14: =+IF(AF14<AG14,-AC14,0) -> -3260.4 | AP14: 0 | AR14: =+AC14+AN14+(IF(AP14>0,(AP14-AC14),0)) -> 0
A15: RL - SP | B15: 1002 | C15: 1996 VOLVO FE42 (60%) | F15: 1995 | G15: 10 | H15: 0.2 | J15: S/L | K15: 7 | L15: 2002 | O15: =0.6*49700 -> 29820 | Q15: 23856 | R15: 284 | S15: 0 | T15: 0 | U15: 0 | V15: 1 | W15: 0 | X15: 23856 | Y15: 23856 | Z15: 1 | AA15: 23856 | AB15: 23856 | AC15: 5964 | AD15: 1995.75 | AE15: 2017.75 | AF15: 2002.75 | AG15: 2016.75 | AH15: -0.08333333333 | AJ15: 1988 | AL15: 1988 | AN15: -5964 | AP15: 0 | AR15: 0
A16: P/U | B16: 6014 | C16: '97 FORD RANGER | F16: 1999 | G16: 1 | H16: 0.33 | J16: S/L | K16: 5 | L16: 2004 | O16: 8672 | Q16: 5810.24 | R16: 96.83733333 | S16: 0 | T16: 0 | U16: 0 | V16: 1 | W16: 0 | X16: 5810.24 | Y16: 5810.24 | Z16: 1 | AA16: 5810.24 | AB16: 5810.24 | AC16: 2861.76 | AD16: 1999 | AE16: 2017.75 | AF16: 2004 | AG16: 2016.75 | AH16: -0.08333333333 | AJ16: 953.92 | AL16: 953.92 | AN16: -2861.76 | AP16: 0 | AR16: 0
A17: SL | B17: 3567 | C17: 02 PETE 320 CURBTENDER | F17: 2002 | G17: 5 | H17: 0.2 | J17: S/L | K17: 7 | L17: 2009 | O17: 159698.98 | Q17: 127759.184 | R17: 1520.942667 | S17: 0 | T17: 0 | U17: 0 | V17: 1 | W17: 0 | X17: 127759.184 | Y17: 127759.184 | Z17: 1 | AA17: 127759.184 | AB17: 127759.184 | AC17: 31939.796 | AD17: 2002.333333 | AE17: 2017.75 | AF17: 2009.333333 | AG17: 2016.75 | AH17: -0.08333333333 | AJ17: 10646.59867 | AL17: 10646.59867 | AN17: -31939.796 | AP17: 0 | AR17: 0
A18: FL | B18: 2019 | C18: 03 PB 320 W/WITTKE FLC-2102 PA | F18: 2003 | G18: 5 | H18: 0.2 | J18: S/L | K18: 7 | L18: 2010 | O18: 171303.39 | Q18: 137042.712 | R18: 1631.460857 | S18: 0 | T18: 0 | U18: 0 | V18: 1 | W18: 0 | X18: 137042.712 | Y18: 137042.712 | Z18: 1 | AA18: 137042.712 | AB18: 137042.712 | AC18: 34260.678 | AD18: 2003.333333 | AE18: 2017.75 | AF18: 2010.333333 | AG18: 2016.75 | AH18: -0.08333333333 | AJ18: 11420.226 | AL18: 11420.226 | AN18: -34260.678 | AP18: 0 | AR18: 0
A19: SL | B19: 3592 | C19: '06 PETE W/27 CY CURBTENDER | F19: 2006 | G19: 4 | H19: 0.2 | J19: S/L | K19: 7 | L19: 2013 | O19: 179729.98 | Q19: 143783.984 | R19: 1711.714095 | S19: 0 | T19: 0 | U19: 0 | V19: 1 | W19: 0 | X19: 143783.984 | Y19: 143783.984 | Z19: 1 | AA19: 143783.984 | AB19: 143783.984 | AC19: 35945.996 | AD19: 2006.25 | AE19: 2017.75 | AF19: 2013.25 | AG19: 2016.75 | AH19: -0.08333333333 | AJ19: 11981.99867 | AL19: 11981.99867 | AN19: -35945.996 | AP19: 0 | AR19: 0
A20: SL | B20: 3592 | C20: GREASER UNIT FOR 3592 | F20: 2006 | G20: 4 | H20: 0.2 | J20: S/L | K20: 7 | L20: 2013 | O20: 3823.24 | Q20: 3058.592 | R20: 36.41180952 | S20: 0 | T20: 0 | U20: 0 | V20: 1 | W20: 0 | X20: 3058.592 | Y20: 3058.592 | Z20: 1 | AA20: 3058.592 | AB20: 3058.592 | AC20: 764.648 | AD20: 2006.25 | AE20: 2017.75 | AF20: 2013.25 | AG20: 2016.75 | AH20: -0.08333333333 | AJ20: 254.8826667 | AL20: 254.8826667 | AN20: -764.648 | AP20: 0 | AR20: 0
B21: 1072 | C21: 2006 Int'l 7400 Chassis (N) | D21: 126242, 126243,126244,126245,126246 | F21: 2006 | G21: 4 | H21: 0.2 | J21: S/L | K21: 7 | L21: 2013 | O21: 142218.7 | Q21: 113774.96 | R21: 1354.46381 | S21: =IF(P21>0,0,IF(OR(AD21>AE21,AF21<AG21),0,IF(AND(AF21>=AG21,AF21<=AE21),R21*((AF21-AG21)*12),IF(AND(AG21<=AD21,AE21>=AD21),((AE21-AD21)*12)*R21,IF(AF21>AE21,12*R21,0))))) -> 0 | T21: =IF(P21=0,0,IF(AND(AH21>=AG21,AH21<=AF21),((AH21-AG21)*12)*R21,0)) -> 0 | U21: =IF(T21>0,T21,S21) -> 0 | V21: 1 | W21: =V21*SUM(S21:T21) -> 0 | X21: =IF(AD21>AE21,0,IF(AF21<AG21,Q21,IF(AND(AF21>=AG21,AF21<=AE21),(Q21-U21),IF(AND(AG21<=AD21,AE21>=AD21),0,IF(AF21>AE21,((AG21-AD21)*12)*R21,0))))) -> 113774.96 | Y21: =X21*V21 -> 113774.96 | Z21: 1 | AA21: =Y21*Z21 -> 113774.96 | AB21: =IF(P21>0,0,AA21+W21*Z21)*Z21 -> 113774.96 | AC21: =IF(P21>0,(O21-AA21)/2,IF(AD21>=AG21,(((O21*V21)*Z21)-AB21)/2,((((O21*V21)*Z21)-AA21)+(((O21*V21)*Z21)-AB21))/2)) -> 28443.74 | AD21: 2006.25 | AE21: 2017.75 | AF21: 2013.25 | AG21: 2016.75 | AH21: -0.08333333333 | AJ21: 9481.246667 | AL21: 9481.246667 | AN21: -28443.74 | AP21: 0 | AR21: 0
A22: RL | B22: 1050 | C22: '07 INT'L W/20 YD METROPAK R/L | F22: 2006 | G22: 11 | H22: 0.2 | J22: S/L | K22: 7 | L22: 2013 | O22: 126621.44 | Q22: 101297.152 | R22: 1205.918476 | S22: 0 | T22: 0 | U22: 0 | V22: 1 | W22: 0 | X22: 101297.152 | Y22: 101297.152 | Z22: 1 | AA22: 101297.152 | AB22: 101297.152 | AC22: 25324.288 | AD22: 2006.833333 | AE22: 2017.75 | AF22: 2013.833333 | AG22: 2016.75 | AH22: -0.08333333333 | AJ22: 8441.429333 | AL22: 8441.429333 | AN22: -25324.288 | AP22: 0 | AR22: 0
A23: RL | B23: 1051 | C23: '07 INT'L W/METROPAK BODY | F23: 2006 | G23: 12 | H23: 0.2 | J23: S/L | K23: 7 | L23: 2013 | O23: 122672 | Q23: 98137.6 | R23: 1168.304762 | S23: 0 | T23: 0 | U23: 0 | V23: 1 | W23: 0 | X23: 98137.6 | Y23: 98137.6 | Z23: 1 | AA23: 98137.6 | AB23: 98137.6 | AC23: 24534.4 | AD23: 2006.916667 | AE23: 2017.75 | AF23: 2013.916667 | AG23: 2016.75 | AH23: -0.08333333333 | AJ23: 8178.133333 | AL23: 8178.133333 | AN23: -24534.4 | AP23: 0 | AR23: 0
A24: FL | B24: 2031 | C24: 2007 Type H Front FEL | D24: 90793 | F24: 2007 | G24: 1 | H24: 0.2 | J24: S/L | K24: 7 | L24: 2014 | O24: 183500 | Q24: 146800 | R24: 1747.619048 | S24: 0 | T24: 0 | U24: 0 | V24: 1 | W24: 0 | X24: 146800 | Y24: 146800 | Z24: 1 | AA24: 146800 | AB24: 146800 | AC24: 36700 | AD24: 2007 | AE24: 2017.75 | AF24: 2014 | AG24: 2016.75 | AH24: -0.08333333333 | AJ24: 12233.33333 | AL24: 12233.33333 | AN24: -36700 | AP24: 0 | AR24: 0
A25: RL | B25: 1051 | C25: GREASER FOR 1051 | F25: 2007 | G25: 1 | H25: 0.2 | J25: S/L | K25: 7 | L25: 2014 | O25: 3949.44 | Q25: 3159.552 | R25: 37.61371429 | S25: 0 | T25: 0 | U25: 0 | V25: 1 | W25: 0 | X25: 3159.552 | Y25: 3159.552 | Z25: 1 | AA25: 3159.552 | AB25: 3159.552 | AC25: 789.888 | AD25: 2007 | AE25: 2017.75 | AF25: 2014 | AG25: 2016.75 | AH25: -0.08333333333 | AJ25: 263.296 | AL25: 263.296 | AN25: -789.888 | AP25: 0 | AR25: 0
A26: RW | B26: 11092 | C26: ROUTWARE INSTALLATIONS (NON-REG) | F26: 2007 | G26: 4 | H26: 0.2 | J26: S/L | K26: 7 | L26: 2014 | O26: 63481.09 | Q26: 50784.872 | R26: 604.5818095 | S26: 0 | T26: 0 | U26: 0 | V26: 1 | W26: 0 | X26: 50784.872 | Y26: 50784.872 | Z26: 1 | AA26: 50784.872 | AB26: 50784.872 | AC26: 12696.218 | AD26: 2007.25 | AE26: 2017.75 | AF26: 2014.25 | AG26: 2016.75 | AH26: -0.08333333333 | AJ26: 4232.072667 | AL26: 4232.072667 | AN26: -12696.218 | AP26: 0 | AR26: 0
A27: RL | B27: 1056 | C27: '07 INT'L W/METROPAK R/L BODY | F27: 2007 | G27: 5 | H27: 0.2 | J27: S/L | K27: 7 | L27: 2014 | O27: 127343.72 | Q27: 101874.976 | R27: 1212.797333 | S27: 0 | T27: 0 | U27: 0 | V27: 1 | W27: 0 | X27: 101874.976 | Y27: 101874.976 | Z27: 1 | AA27: 101874.976 | AB27: 101874.976 | AC27: 25468.744 | AD27: 2007.333333 | AE27: 2017.75 | AF27: 2014.333333 | AG27: 2016.75 | AH27: -0.08333333333 | AJ27: 8489.581333 | AL27: 8489.581333 | AN27: -25468.744 | AP27: 0 | AR27: 0
A28: RL | B28: 1061 | C28: 07 INT'L W/METROPAK R/L BODY | F28: 2007 | G28: 5 | H28: 0.2 | J28: S/L | K28: 7 | L28: 2014 | O28: 127343.72 | Q28: 101874.976 | R28: 1212.797333 | S28: 0 | T28: 0 | U28: 0 | V28: 1 | W28: 0 | X28: 101874.976 | Y28: 101874.976 | Z28: 1 | AA28: 101874.976 | AB28: 101874.976 | AC28: 25468.744 | AD28: 2007.333333 | AE28: 2017.75 | AF28: 2014.333333 | AG28: 2016.75 | AH28: -0.08333333333 | AJ28: 8489.581333 | AL28: 8489.581333 | AN28: -25468.744 | AP28: 0 | AR28: 0
A29: RW | B29: 11093 | C29: ROUTWARE INSTALLATIONS | F29: 2007 | G29: 7 | H29: 0.33 | J29: S/L | K29: 5 | L29: 2012 | O29: 177427.8 | Q29: 118876.626 | R29: 1981.2771 | S29: 0 | T29: 0 | U29: 0 | V29: 1 | W29: 0 | X29: 118876.626 | Y29: 118876.626 | Z29: 1 | AA29: 118876.626 | AB29: 118876.626 | AC29: 58551.174 | AD29: 2007.5 | AE29: 2017.75 | AF29: 2012.5 | AG29: 2016.75 | AH29: -0.08333333333 | AJ29: 19517.058 | AL29: 19517.058 | AN29: -58551.174 | AP29: 0 | AR29: 0
A30: RL | B30: 1060 | C30: '07 INT'L W/METROPAK R/L BODY | F30: 2007 | G30: 7 | H30: 0.2 | J30: S/L | K30: 7 | L30: 2014 | O30: 127343.72 | Q30: 101874.976 | R30: 1212.797333 | S30: 0 | T30: 0 | U30: 0 | V30: 1 | W30: 0 | X30: 101874.976 | Y30: 101874.976 | Z30: 1 | AA30: 101874.976 | AB30: 101874.976 | AC30: 25468.744 | AD30: 2007.5 | AE30: 2017.75 | AF30: 2014.5 | AG30: 2016.75 | AH30: -0.08333333333 | AJ30: 8489.581333 | AL30: 8489.581333 | AN30: -25468.744 | AP30: 0 | AR30: 0
A31: ASL | B31: 3608 | C31: '07 Pete w/27 cy Curbtender S/L Body | F31: 2007 | G31: 7 | H31: 0.2 | J31: S/L | K31: 7 | L31: 2014 | O31: 194705.04 | Q31: 155764.032 | R31: 1854.333714 | S31: 0 | T31: 0 | U31: 0 | V31: 1 | W31: 0 | X31: 155764.032 | Y31: 155764.032 | Z31: 1 | AA31: 155764.032 | AB31: 155764.032 | AC31: 38941.008 | AD31: 2007.5 | AE31: 2017.75 | AF31: 2014.5 | AG31: 2016.75 | AH31: -0.08333333333 | AJ31: 12980.336 | AL31: 12980.336 | AN31: -38941.008 | AP31: 0 | AR31: 0
A32: SL | B32: 3614 | C32: 07 PB 320 W/27 CY CURBTENDER | F32: 2007 | G32: 8 | H32: 0.2 | J32: S/L | K32: 7 | L32: 2014 | O32: 194705.04 | Q32: 155764.032 | R32: 1854.333714 | S32: 0 | T32: 0 | U32: 0 | V32: 1 | W32: 0 | X32: 155764.032 | Y32: 155764.032 | Z32: 1 | AA32: 155764.032 | AB32: 155764.032 | AC32: 38941.008 | AD32: 2007.583333 | AE32: 2017.75 | AF32: 2014.583333 | AG32: 2016.75 | AH32: -0.08333333333 | AJ32: 12980.336 | AL32: 12980.336 | AN32: -38941.008 | AP32: 0 | AR32: 0
A33: SL | B33: 3612 | C33: 07 PB 320 W/27 CY CURBTENDER | F33: 2007 | G33: 8 | H33: 0.2 | J33: S/L | K33: 7 | L33: 2014 | O33: 194705.04 | Q33: 155764.032 | R33: 1854.333714 | S33: 0 | T33: 0 | U33: 0 | V33: 1 | W33: 0 | X33: 155764.032 | Y33: 155764.032 | Z33: 1 | AA33: 155764.032 | AB33: 155764.032 | AC33: 38941.008 | AD33: 2007.583333 | AE33: 2017.75 | AF33: 2014.583333 | AG33: 2016.75 | AH33: -0.08333333333 | AJ33: 12980.336 | AL33: 12980.336 | AN33: -38941.008 | AP33: 0 | AR33: 0
A34: FL | B34: 2031 | C34: 07 AUTOCAR W/ MCNEILUS F/L BODY | F34: 2007 | G34: 8 | H34: 0.2 | J34: S/L | K34: 7 | L34: 2014 | O34: 215572.44 | Q34: 172457.952 | R34: 2053.070857 | S34: 0 | T34: 0 | U34: 0 | V34: 1 | W34: 0 | X34: 172457.952 | Y34: 172457.952 | Z34: 1 | AA34: 172457.952 | AB34: 172457.952 | AC34: 43114.488 | AD34: 2007.583333 | AE34: 2017.75 | AF34: 2014.583333 | AG34: 2016.75 | AH34: -0.08333333333 | AJ34: 14371.496 | AL34: 14371.496 | AN34: -43114.488 | AP34: 0 | AR34: 0
A35: SL | B35: 3627 | C35: 2009 PB CHASSIS FOR ASL | F35: 2008 | G35: 10 | H35: 0.2 | J35: S/L | K35: 7 | L35: 2015 | O35: 127101.54 | Q35: 101681.232 | R35: 1210.490857 | S35: 0 | T35: 0 | U35: 0 | V35: 1 | W35: 0 | X35: 101681.232 | Y35: 101681.232 | Z35: 1 | AA35: 101681.232 | AB35: 101681.232 | AC35: 25420.308 | AD35: 2008.75 | AE35: 2017.75 | AF35: 2015.75 | AG35: 2016.75 | AH35: -0.08333333333 | AJ35: 8473.436 | AL35: 8473.436 | AN35: -25420.308 | AP35: 0 | AR35: 0
A36: SL | B36: 3627 | C36: 2009 PETERBILT 320 BODY | F36: 2008 | G36: 12 | H36: 0.2 | J36: S/L | K36: 7 | L36: 2015 | O36: 100569.69 | Q36: 80455.752 | R36: 957.8065714 | S36: 0 | T36: 0 | U36: 0 | V36: 1 | W36: 0 | X36: 80455.752 | Y36: 80455.752 | Z36: 1 | AA36: 80455.752 | AB36: 80455.752 | AC36: 20113.938 | AD36: 2008.916667 | AE36: 2017.75 | AF36: 2015.916667 | AG36: 2016.75 | AH36: -0.08333333333 | AJ36: 6704.646 | AL36: 6704.646 | AN36: -20113.938 | AP36: 0 | AR36: 0
A37: SL | B37: 3623 | C37: 2009 TYPE H TSIDE ASL | F37: 2009 | G37: 1 | H37: 0.2 | J37: S/L | K37: 7 | L37: 2016 | O37: 222209.95 | Q37: 177767.96 | R37: 2116.285238 | S37: 0 | T37: 0 | U37: 0 | V37: 1 | W37: 0 | X37: 177767.96 | Y37: 177767.96 | Z37: 1 | AA37: 177767.96 | AB37: 177767.96 | AC37: 44441.99 | AD37: 2009 | AE37: 2017.75 | AF37: 2016 | AG37: 2016.75 | AH37: -0.08333333333 | AJ37: 14813.99667 | AL37: 14813.99667 | AN37: -44441.99 | AP37: 0 | AR37: 0
A38: SL | B38: 3623 | C38: AUTOGREASER FOR TRUCK 3623 | F38: 2009 | G38: 1 | H38: 0.2 | J38: S/L | K38: 7 | L38: 2016 | O38: 3949.44 | Q38: 3159.552 | R38: 37.61371429 | S38: 0 | T38: 0 | U38: 0 | V38: 1 | W38: 0 | X38: 3159.552 | Y38: 3159.552 | Z38: 1 | AA38: 3159.552 | AB38: 3159.552 | AC38: 789.888 | AD38: 2009 | AE38: 2017.75 | AF38: 2016 | AG38: 2016.75 | AH38: -0.08333333333 | AJ38: 263.296 | AL38: 263.296 | AN38: -789.888 | AP38: 0 | AR38: 0
A39: SL | B39: 3567 | C39: FLUP - 3567 - V02235852 | F39: 2009 | G39: 5 | H39: 0 | J39: S/L | K39: 3 | L39: 2012 | O39: 931.18 | Q39: 931.18 | R39: 25.86611111 | S39: 0 | T39: 0 | U39: 0 | V39: 1 | W39: 0 | X39: 931.18 | Y39: 931.18 | Z39: 1 | AA39: 931.18 | AB39: 931.18 | AC39: 0 | AD39: 2009.333333 | AE39: 2017.75 | AF39: 2012.333333 | AG39: 2016.75 | AH39: -0.08333333333 | AJ39: 0 | AL39: 0 | AN39: 0 | AP39: 0 | AR39: 0
A40: SL | B40: 3567 | C40: FLUP - 3567 - R-984978 | F40: 2009 | G40: 5 | H40: 0 | J40: S/L | K40: 3 | L40: 2012 | O40: 971.25 | Q40: 971.25 | R40: 26.97916667 | S40: 0 | T40: 0 | U40: 0 | V40: 1 | W40: 0 | X40: 971.25 | Y40: 971.25 | Z40: 1 | AA40: 971.25 | AB40: 971.25 | AC40: 0 | AD40: 2009.333333 | AE40: 2017.75 | AF40: 2012.333333 | AG40: 2016.75 | AH40: -0.08333333333 | AJ40: 0 | AL40: 0 | AN40: 0 | AP40: 0 | AR40: 0
A41: SL | B41: 3567 | C41: FLUP - TRUCK 3567 | F41: 2009 | G41: 5 | H41: 0 | J41: S/L | K41: 3 | L41: 2012 | O41: 5281.93 | Q41: 5281.93 | R41: 146.7202778 | S41: 0 | T41: 0 | U41: 0 | V41: 1 | W41: 0 | X41: 5281.93 | Y41: 5281.93 | Z41: 1 | AA41: 5281.93 | AB41: 5281.93 | AC41: 0 | AD41: 2009.333333 | AE41: 2017.75 | AF41: 2012.333333 | AG41: 2016.75 | AH41: -0.08333333333 | AJ41: 0 | AL41: 0 | AN41: 0 | AP41: 0 | AR41: 0 | BW41: 3 | BX41: Computes with one month convention
A42: SL | B42: 3592 | C42: FLUP - TRUCK 3592 | F42: 2009 | G42: 5 | H42: 0 | J42: S/L | K42: 3 | L42: 2012 | O42: 2584.07 | Q42: 2584.07 | R42: 71.77972222 | S42: 0 | T42: 0 | U42: 0 | V42: 1 | W42: 0 | X42: 2584.07 | Y42: 2584.07 | Z42: 1 | AA42: 2584.07 | AB42: 2584.07 | AC42: 0 | AD42: 2009.333333 | AE42: 2017.75 | AF42: 2012.333333 | AG42: 2016.75 | AH42: -0.08333333333 | AJ42: 0 | AL42: 0 | AN42: 0 | AP42: 0 | AR42: 0 | BW42: 4 | BX42: Asset put in service in first month of test
A43: SL | B43: 3612 | C43: FLUP - 3612 - V02227132 | F43: 2009 | G43: 5 | H43: 0 | J43: S/L | K43: 3 | L43: 2012 | O43: 309.54 | Q43: 309.54 | R43: 8.598333333 | S43: 0 | T43: 0 | U43: 0 | V43: 1 | W43: 0 | X43: 309.54 | Y43: 309.54 | Z43: 1 | AA43: 309.54 | AB43: 309.54 | AC43: 0 | AD43: 2009.333333 | AE43: 2017.75 | AF43: 2012.333333 | AG43: 2016.75 | AH43: -0.08333333333 | AJ43: 0 | AL43: 0 | AN43: 0 | AP43: 0 | AR43: 0
A44: SL | B44: 3612 | C44: FLUP - 3612 - V02243349 | F44: 2009 | G44: 5 | H44: 0 | J44: S/L | K44: 3 | L44: 2012 | O44: 580.21 | Q44: 580.21 | R44: 16.11694444 | S44: 0 | T44: 0 | U44: 0 | V44: 1 | W44: 0 | X44: 580.21 | Y44: 580.21 | Z44: 1 | AA44: 580.21 | AB44: 580.21 | AC44: 0 | AD44: 2009.333333 | AE44: 2017.75 | AF44: 2012.333333 | AG44: 2016.75 | AH44: -0.08333333333 | AJ44: 0 | AL44: 0 | AN44: 0 | AP44: 0 | AR44: 0
A45: SL | B45: 3612 | C45: FLUP - 3612 - R-984765 | F45: 2009 | G45: 5 | H45: 0 | J45: S/L | K45: 3 | L45: 2012 | O45: 700 | Q45: 700 | R45: 19.44444444 | S45: 0 | T45: 0 | U45: 0 | V45: 1 | W45: 0 | X45: 700 | Y45: 700 | Z45: 1 | AA45: 700 | AB45: 700 | AC45: 0 | AD45: 2009.333333 | AE45: 2017.75 | AF45: 2012.333333 | AG45: 2016.75 | AH45: -0.08333333333 | AJ45: 0 | AL45: 0 | AN45: 0 | AP45: 0 | AR45: 0
A46: SL | B46: 3612 | C46: FLUP - TRUCK 3612 | F46: 2009 | G46: 5 | H46: 0 | J46: S/L | K46: 3 | L46: 2012 | O46: 3610.79 | Q46: 3610.79 | R46: 100.2997222 | S46: 0 | T46: 0 | U46: 0 | V46: 1 | W46: 0 | X46: 3610.79 | Y46: 3610.79 | Z46: 1 | AA46: 3610.79 | AB46: 3610.79 | AC46: 0 | AD46: 2009.333333 | AE46: 2017.75 | AF46: 2012.333333 | AG46: 2016.75 | AH46: -0.08333333333 | AJ46: 0 | AL46: 0 | AN46: 0 | AP46: 0 | AR46: 0
A47: FL | B47: 2019 | C47: FLUP - TRUCK 2019 | F47: 2009 | G47: 5 | H47: 0 | J47: S/L | K47: 3 | L47: 2012 | O47: 7366.07 | Q47: 7366.07 | R47: 204.6130556 | S47: 0 | T47: 0 | U47: 0 | V47: 1 | W47: 0 | X47: 7366.07 | Y47: 7366.07 | Z47: 1 | AA47: 7366.07 | AB47: 7366.07 | AC47: 0 | AD47: 2009.333333 | AE47: 2017.75 | AF47: 2012.333333 | AG47: 2016.75 | AH47: -0.08333333333 | AJ47: 0 | AL47: 0 | AN47: 0 | AP47: 0 | AR47: 0
A48: DC | B48: 67254 | C48: DRIVE CAM INSTALLATIONS (46) | F48: 2009 | G48: 6 | H48: 0.33 | J48: S/L | K48: 5 | L48: 2014 | O48: 13383.67 | Q48: 8967.0589 | R48: 149.4509817 | S48: 0 | T48: 0 | U48: 0 | V48: 1 | W48: 0 | X48: 8967.0589 | Y48: 8967.0589 | Z48: 1 | AA48: 8967.0589 | AB48: 8967.0589 | AC48: 4416.6111 | AD48: 2009.416667 | AE48: 2017.75 | AF48: 2014.416667 | AG48: 2016.75 | AH48: -0.08333333333 | AJ48: 1472.2037 | AL48: 1472.2037 | AN48: -4416.6111 | AP48: 0 | AR48: 0
A49: DC | B49: 67256 | C49: DRIVE CAM INSTALLATIONS (46) | F49: 2009 | G49: 6 | H49: 0.33 | J49: S/L | K49: 5 | L49: 2014 | O49: 397.42 | Q49: 266.2714 | R49: 4.437856667 | S49: 0 | T49: 0 | U49: 0 | V49: 1 | W49: 0 | X49: 266.2714 | Y49: 266.2714 | Z49: 1 | AA49: 266.2714 | AB49: 266.2714 | AC49: 131.1486 | AD49: 2009.416667 | AE49: 2017.75 | AF49: 2014.416667 | AG49: 2016.75 | AH49: -0.08333333333 | AJ49: 43.7162 | AL49: 43.7162 | AN49: -131.1486 | AP49: 0 | AR49: 0
A50: ASL | B50: 3628 | C50: NEW 2009 ASL (CHEHALIS CONTRACT) | F50: 2009 | G50: 10 | H50: 0 | J50: S/L | K50: 10 | L50: 2019 | O50: =247594.64*0.5 -> 123797.32 | Q50: 123797.32 | R50: 1031.644333 | S50: 12379.732 | T50: 0 | U50: 12379.732 | V50: 1 | W50: 12379.732 | X50: 86658.124 | Y50: 86658.124 | Z50: 1 | AA50: 86658.124 | AB50: 99037.856 | AC50: 30949.33 | AD50: 2009.75 | AE50: 2017.75 | AF50: 2019.75 | AG50: 2016.75 | AH50: -0.08333333333 | AJ50: 0 | AL50: 12379.732 | AN50: 0 | AP50: 0 | AR50: 30949.33
A51: FL | B51: 2037 | C51: 2012 PETERBUILT FEL W/WITTKE BODY (N) | F51: 2011 | G51: 11 | H51: 0.2 | J51: S/L | K51: 7 | L51: 2018 | O51: 281004.9 | Q51: 224803.92 | R51: 2676.237143 | S51: 32114.84571 | T51: 0 | U51: 32114.84571 | V51: 1 | W51: 32114.84571 | X51: 157897.9914 | Y51: 157897.9914 | Z51: 1 | AA51: 157897.9914 | AB51: 190012.8371 | AC51: 107049.4857 | AD51: 2011.833333 | AE51: 2017.75 | AF51: 2018.833333 | AG51: 2016.75 | AH51: -0.08333333333 | AJ51: 18733.66 | AL51: 50848.50571 | AN51: 0 | AP51: 97682.65571 | AR51: 97682.65571
B52: 3543 | C52: DRIVE CAM | D52: 89106, 89107 | E52: 2189 | F52: 2011 | G52: 11 | H52: 0 | J52: S/L | K52: 7 | L52: 2018 | O52: =1251.9/2 -> 625.95 | Q52: 625.95 | R52: 7.451785714 | S52: 89.42142857 | T52: 0 | U52: 89.42142857 | V52: 1 | W52: 89.42142857 | X52: 439.6553571 | Y52: 439.6553571 | Z52: 1 | AA52: 439.6553571 | AB52: 529.0767857 | AC52: 141.5839286 | AD52: 2011.833333 | AE52: 2017.75 | AF52: 2018.833333 | AG52: 2016.75 | AH52: -0.08333333333 | AJ52: 0 | AL52: 89.42142857 | AN52: 0 | AP52: 0 | AR52: 141.5839286
B53: 88724 | C53: (16) TRUCK RADIOS | F53: 2011 | G53: 12 | H53: 0 | J53: S/L | K53: 5 | L53: 2016 | O53: =468.93*16 -> 7502.88 | Q53: 7502.88 | R53: 125.048 | S53: 250.096 | T53: 0 | U53: 250.096 | V53: 1 | W53: 250.096 | X53: 7252.784 | Y53: 7252.784 | Z53: 1 | AA53: 7252.784 | AB53: 7502.88 | AC53: 125.048 | AD53: 2011.916667 | AE53: 2017.75 | AF53: 2016.916667 | AG53: 2016.75 | AH53: -0.08333333333 | AJ53: 0 | AL53: 250.096 | AN53: 0 | AP53: 0 | AR53: 125.048
B54: 3543 | C54: 2012 INTERNATIONAL RETRIEVER (N) | D54: 88662, 88898 | E54: 2189 | F54: 2011 | G54: 12 | H54: 0.2 | J54: S/L | K54: 7 | L54: 2018 | O54: =108532.26+3443.64+129.14 -> 112105.04 | Q54: 89684.032 | R54: 1067.667048 | S54: 12812.00457 | T54: 0 | U54: 12812.00457 | V54: 1 | W54: 12812.00457 | X54: 61924.68876 | Y54: 61924.68876 | Z54: 1 | AA54: 61924.68876 | AB54: 74736.69333 | AC54: 43774.34895 | AD54: 2011.916667 | AE54: 2017.75 | AF54: 2018.916667 | AG54: 2016.75 | AH54: -0.08333333333 | AJ54: 7473.669333 | AL54: 20285.6739 | AN54: 0 | AP54: 40037.51429 | AR54: 40037.51429
C55: (6) TRUCK RADIOS | D55: 88724 | F55: 2011 | G55: 12 | H55: 0 | J55: S/L | K55: 5 | L55: 2016 | O55: =468.93*6 -> 2813.58 | Q55: 2813.58 | R55: 46.893 | S55: 93.786 | T55: 0 | U55: 93.786 | V55: 1 | W55: 93.786 | X55: 2719.794 | Y55: 2719.794 | Z55: 1 | AA55: 2719.794 | AB55: 2813.58 | AC55: 46.893 | AD55: 2011.916667 | AE55: 2017.75 | AF55: 2016.916667 | AG55: 2016.75 | AH55: -0.08333333333 | AJ55: 0 | AL55: 93.786 | AN55: 0 | AP55: 0 | AR55: 46.893
B56: 3567 | C56: Plastic Hopper Door for #3567 | D56: 97260 | F56: 2012 | G56: 10 | H56: 0 | J56: S/L | K56: 7 | L56: 2019 | O56: 2558.53 | Q56: 2558.53 | R56: 30.45869048 | S56: 365.5042857 | T56: 0 | U56: 365.5042857 | V56: 1 | W56: 365.5042857 | X56: 1462.017143 | Y56: 1462.017143 | Z56: 1 | AA56: 1462.017143 | AB56: 1827.521429 | AC56: 913.7607143 | AD56: 2012.75 | AE56: 2017.75 | AF56: 2019.75 | AG56: 2016.75 | AH56: -0.08333333333 | AJ56: 0 | AL56: 365.5042857 | AN56: 0 | AP56: 0 | AR56: 913.7607143
A57: RL | B57: 1019 | C57: 2013 PETERBILT 320 W/ NEW WAY BODY (N) | D57: 99663 | F57: 2012 | G57: 12 | H57: 0.2 | J57: S/L | K57: 7 | L57: 2019 | O57: 259690.64 | Q57: 207752.512 | R57: 2473.24419 | S57: 29678.93029 | T57: 0 | U57: 29678.93029 | V57: 1 | W57: 29678.93029 | X57: 113769.2328 | Y57: 113769.2328 | Z57: 1 | AA57: 113769.2328 | AB57: 143448.163 | AC57: 131081.9421 | AD57: 2012.916667 | AE57: 2017.75 | AF57: 2019.916667 | AG57: 2016.75 | AH57: -0.08333333333 | AJ57: 16401.51411 | AL57: 46080.44439 | AN57: 0 | AP57: 122881.185 | AR57: 122881.185
B58: 1070 | C58: 2013 PETERBILT 320 W/ NEW WAY BODY (N) | D58: 99664 | F58: 2012 | G58: 12 | H58: 0.2 | J58: S/L | K58: 7 | L58: 2019 | O58: 259759.91 | Q58: 207807.928 | R58: 2473.903905 | S58: 29686.84686 | T58: 0 | U58: 29686.84686 | V58: 1 | W58: 29686.84686 | X58: 113799.5796 | Y58: 113799.5796 | Z58: 1 | AA58: 113799.5796 | AB58: 143486.4265 | AC58: 131116.907 | AD58: 2012.916667 | AE58: 2017.75 | AF58: 2019.916667 | AG58: 2016.75 | AH58: -0.08333333333 | AJ58: 16405.88905 | AL58: 46092.73591 | AN58: 0 | AP58: 122913.9624 | AR58: 122913.9624
A59: ASL | B59: 3636 | C59: 2014 Peterbilt/Wayne ASL (N) | D59: 109521 | F59: 2013 | G59: 12 | H59: 0.2 | J59: S/L | K59: 7 | L59: 2020 | O59: 322008.34 | Q59: 257606.672 | R59: 3066.746095 | S59: 36800.95314 | T59: 0 | U59: 36800.95314 | V59: 1 | W59: 36800.95314 | X59: 104269.3672 | Y59: 104269.3672 | Z59: 1 | AA59: 104269.3672 | AB59: 141070.3204 | AC59: 199338.4962 | AD59: 2013.916667 | AE59: 2017.75 | AF59: 2020.916667 | AG59: 2016.75 | AH59: -0.08333333333 | AJ59: 15456.40032 | AL59: 52257.35346 | AN59: 0 | AP59: 191610.296 | AR59: 191610.296
B60: 3636 | C60: DriveCam #3636 | D60: 110129 | F60: 2013 | G60: 12 | H60: 0.2 | J60: S/L | K60: 7 | L60: 2020 | O60: 632.57 | Q60: 506.056 | R60: 6.02447619 | S60: 72.29371429 | T60: 0 | U60: 72.29371429 | V60: 1 | W60: 72.29371429 | X60: 204.8321905 | Y60: 204.8321905 | Z60: 1 | AA60: 204.8321905 | AB60: 277.1259048 | AC60: 391.5909524 | AD60: 2013.916667 | AE60: 2017.75 | AF60: 2020.916667 | AG60: 2016.75 | AH60: -0.08333333333 | AJ60: 30.36336 | AL60: 102.6570743 | AN60: 0 | AP60: 376.4092724 | AR60: 376.4092724
A61: DEL | B61: 9389 | C61: 2014 Ford F-550 Cont. Del (N) | D61: 109522 | F61: 2013 | G61: 12 | H61: 0.2 | J61: S/L | K61: 7 | L61: 2020 | O61: 67654.96 | Q61: 54123.968 | R61: 644.3329524 | S61: 7731.995429 | T61: 0 | U61: 7731.995429 | V61: 1 | W61: 7731.995429 | X61: 21907.32038 | Y61: 21907.32038 | Z61: 1 | AA61: 21907.32038 | AB61: 29639.31581 | AC61: 41881.6419 | AD61: 2013.916667 | AE61: 2017.75 | AF61: 2020.916667 | AG61: 2016.75 | AH61: -0.08333333333 | AJ61: 3247.43808 | AL61: 10979.43351 | AN61: 0 | AP61: 40257.92286 | AR61: 40257.92286
A62: ASL | B62: 3642 | C62: 2015 ASL Truck (N) | D62: 118079 | F62: 2014 | G62: 12 | H62: 0.2 | J62: S/L | K62: 7 | L62: 2021 | O62: =327334.16+912.06 -> 328246.22 | Q62: 262596.976 | R62: 3126.154476 | S62: 37513.85371 | T62: 0 | U62: 37513.85371 | V62: 1 | W62: 37513.85371 | X62: 68775.39848 | Y62: 68775.39848 | Z62: 1 | AA62: 68775.39848 | AB62: 106289.2522 | AC62: 240713.8947 | AD62: 2014.916667 | AE62: 2017.75 | AF62: 2021.916667 | AG62: 2016.75 | AH62: -0.08333333333 | AJ62: 12706.30529 | AL62: 50220.159 | AN62: 0 | AP62: 234360.742 | AR62: 234360.742
A63: SL | B63: 3627 | C63: Improvement - ASL Auto Hopper Cover Kit | D63: 118254 | F63: 2014 | G63: 12 | H63: 0 | J63: S/L | K63: 3 | L63: 2017 | O63: 2532.61 | Q63: 2532.61 | R63: 70.35027778 | S63: 844.2033333 | T63: 0 | U63: 844.2033333 | V63: 1 | W63: 844.2033333 | X63: 1547.706111 | Y63: 1547.706111 | Z63: 1 | AA63: 1547.706111 | AB63: 2391.909444 | AC63: 562.8022222 | AD63: 2014.916667 | AE63: 2017.75 | AF63: 2017.916667 | AG63: 2016.75 | AH63: -0.08333333333 | AJ63: 0 | AL63: 844.2033333 | AN63: 0 | AP63: 0 | AR63: 562.8022222
A64: SL | B64: 3614 | C64: Improvement - ASL Auto Hopper Cover Kit | D64: 118253 | F64: 2014 | G64: 12 | H64: 0 | J64: S/L | K64: 3 | L64: 2017 | O64: 2532.61 | Q64: 2532.61 | R64: 70.35027778 | S64: 844.2033333 | T64: 0 | U64: 844.2033333 | V64: 1 | W64: 844.2033333 | X64: 1547.706111 | Y64: 1547.706111 | Z64: 1 | AA64: 1547.706111 | AB64: 2391.909444 | AC64: 562.8022222 | AD64: 2014.916667 | AE64: 2017.75 | AF64: 2017.916667 | AG64: 2016.75 | AH64: -0.08333333333 | AJ64: 0 | AL64: 844.2033333 | AN64: 0 | AP64: 0 | AR64: 562.8022222
A65: SL | B65: 3612 | C65: Improvement - ASL Auto Hopper Cover Kit | D65: 118252 | F65: 2014 | G65: 12 | H65: 0 | J65: S/L | K65: 3 | L65: 2017 | O65: 2532.61 | Q65: 2532.61 | R65: 70.35027778 | S65: 844.2033333 | T65: 0 | U65: 844.2033333 | V65: 1 | W65: 844.2033333 | X65: 1547.706111 | Y65: 1547.706111 | Z65: 1 | AA65: 1547.706111 | AB65: 2391.909444 | AC65: 562.8022222 | AD65: 2014.916667 | AE65: 2017.75 | AF65: 2017.916667 | AG65: 2016.75 | AH65: -0.08333333333 | AJ65: 0 | AL65: 844.2033333 | AN65: 0 | AP65: 0 | AR65: 562.8022222
A66: SL | B66: 3592 | C66: Improvement - ASL Auto Hopper Cover Kit | D66: 118250 | F66: 2014 | G66: 12 | H66: 0 | J66: S/L | K66: 3 | L66: 2017 | O66: 2532.61 | Q66: 2532.61 | R66: 70.35027778 | S66: 844.2033333 | T66: 0 | U66: 844.2033333 | V66: 1 | W66: 844.2033333 | X66: 1547.706111 | Y66: 1547.706111 | Z66: 1 | AA66: 1547.706111 | AB66: 2391.909444 | AC66: 562.8022222 | AD66: 2014.916667 | AE66: 2017.75 | AF66: 2017.916667 | AG66: 2016.75 | AH66: -0.08333333333 | AJ66: 0 | AL66: 844.2033333 | AN66: 0 | AP66: 0 | AR66: 562.8022222
A67: SL | B67: 3627 | C67: Engine Repair | D67: 123521 | F67: 2015 | G67: 5 | H67: 0 | J67: S/L | K67: 3 | L67: 2018 | O67: 21954.8 | Q67: 21954.8 | R67: 609.8555556 | S67: 7318.266667 | T67: 0 | U67: 7318.266667 | V67: 1 | W67: 7318.266667 | X67: 10367.54444 | Y67: 10367.54444 | Z67: 1 | AA67: 10367.54444 | AB67: 17685.81111 | AC67: 7928.122222 | AD67: 2015.333333 | AE67: 2017.75 | AF67: 2018.333333 | AG67: 2016.75 | AH67: -0.08333333333 | AJ67: 0 | AL67: 7318.266667 | AN67: 0 | AP67: 0 | AR67: 7928.122222
A68: ASL | B68: 2522 | C68: 2016 ASL Truck- Resi Garbage | D68: 128675 | F68: 2016 | G68: 12 | H68: 0.2 | J68: S/L | K68: 7 | L68: 2023 | O68: 336161.88 | Q68: 268929.504 | R68: 3201.541714 | S68: 32015.41714 | T68: 0 | U68: 32015.41714 | V68: 1 | W68: 32015.41714 | X68: 0 | Y68: 0 | Z68: 1 | AA68: 0 | AB68: 32015.41714 | AC68: 152073.2314 | AD68: 2016.916667 | AE68: 2017.75 | AF68: 2023.916667 | AG68: 2016.75 | AH68: -0.08333333333 | AJ68: 9381.261767 | AL68: 41396.67891 | AN68: 0 | AP68: 147382.6005 | AR68: 147382.6005
A69: ASL | B69: 2522 | C69: Drive Cam/ Decals | D69: 128837 | F69: 2016 | G69: 12 | H69: 0.2 | J69: S/L | K69: 7 | L69: 2023 | O69: 1674.62 | Q69: 1339.696 | R69: 15.9487619 | S69: 159.487619 | T69: 0 | U69: 159.487619 | V69: 1 | W69: 159.487619 | X69: 0 | Y69: 0 | Z69: 1 | AA69: 0 | AB69: 159.487619 | AC69: 757.5661905 | AD69: 2016.916667 | AE69: 2017.75 | AF69: 2023.916667 | AG69: 2016.75 | AH69: -0.08333333333 | AJ69: 46.7335814 | AL69: 206.2212004 | AN69: 0 | AP69: 734.1993998 | AR69: 734.1993998
C70: (34) Samsung Tablets, Hardware, & Setup | D70: 132281/133543/139787 | F70: 2016 | G70: 4 | H70: 0 | J70: S/L | K70: 1 | L70: 2017 | O70: =((7403.89+8314.08+342)/38)*34 -> 14369.44684 | Q70: =O70-O70*H70 -> 14369.44684 | R70: =Q70/K70/12 -> 1197.453904 | S70: 7184.723421 | T70: 0 | U70: 7184.723421 | V70: 1 | W70: 7184.723421 | X70: 7184.723421 | Y70: 7184.723421 | Z70: 1 | AA70: 7184.723421 | AB70: 14369.44684 | AC70: 3592.361711 | AD70: 2016.25 | AE70: 2017.75 | AF70: 2017.25 | AG70: 2016.75 | AH70: -0.08333333333 | AJ70: 0 | AL70: 7184.723421 | AN70: 0 | AP70: 0 | AR70: 3592.361711
A71: ASL | B71: 3655 | C71: 2016 ASL Truck (N), Decals, and Licensing | D71: 132761/139725/132761 | F71: 2016 | G71: 5 | H71: 0 | J71: S/L | K71: 10 | L71: 2026 | O71: =323407.89+1609.81+472 -> 325489.7 | Q71: =O71-O71*H71 -> 325489.7 | R71: =Q71/K71/12 -> 2712.414167 | S71: 32548.97 | T71: 0 | U71: 32548.97 | V71: 1 | W71: 32548.97 | X71: 13562.07083 | Y71: 13562.07083 | Z71: 1 | AA71: 13562.07083 | AB71: 46111.04083 | AC71: 295653.1442 | AD71: 2016.333333 | AE71: 2017.75 | AF71: 2026.333333 | AG71: 2016.75 | AH71: -0.08333333333 | AJ71: 0 | AL71: 32548.97 | AN71: 0 | AP71: 0 | AR71: 295653.1442
A72: ASL | B72: 3656 | C72: 2016 ASL Truck (N), Decals, and Licensing | D72: 133442/139726/165761 | F72: 2016 | G72: 6 | H72: 0 | J72: S/L | K72: 10 | L72: 2026 | O72: =323407.89+1609.81+472 -> 325489.7 | Q72: =O72-O72*H72 -> 325489.7 | R72: =Q72/K72/12 -> 2712.414167 | S72: 32548.97 | T72: 0 | U72: 32548.97 | V72: 1 | W72: 32548.97 | X72: 10849.65667 | Y72: 10849.65667 | Z72: 1 | AA72: 10849.65667 | AB72: 43398.62667 | AC72: 298365.5583 | AD72: 2016.416667 | AE72: 2017.75 | AF72: 2026.416667 | AG72: 2016.75 | AH72: -0.08333333333 | AJ72: 0 | AL72: 32548.97 | AN72: 0 | AP72: 0 | AR72: 298365.5583
A73: RL | B73: 1074 | C73: 2016 REL Truck (N), Decals, and Licensing | D73: 133443/139727/165760 | F73: 2016 | G73: 6 | H73: 0 | J73: S/L | K73: 10 | L73: 2026 | O73: =284597.5+1554.65+472 -> 286624.15 | Q73: =O73-O73*H73 -> 286624.15 | R73: =Q73/K73/12 -> 2388.534583 | S73: 28662.415 | T73: 0 | U73: 28662.415 | V73: 1 | W73: 28662.415 | X73: 9554.138333 | Y73: 9554.138333 | Z73: 1 | AA73: 9554.138333 | AB73: 38216.55333 | AC73: 262738.8042 | AD73: 2016.416667 | AE73: 2017.75 | AF73: 2026.416667 | AG73: 2016.75 | AH73: -0.08333333333 | AJ73: 0 | AL73: 28662.415 | AN73: 0 | AP73: 0 | AR73: 262738.8042
C74: (5) Mounting Hardware & AC Adapters | D74: 167733 | F74: 2016 | G74: 6 | H74: 0 | J74: S/L | K74: 1 | L74: 2017 | O74: 472.52 | Q74: =O74-O74*H74 -> 472.52 | R74: =Q74/K74/12 -> 39.37666667 | S74: =IF(P74>0,0,IF(OR(AD74>AE74,AF74<AG74),0,IF(AND(AF74>=AG74,AF74<=AE74),R74*((AF74-AG74)*12),IF(AND(AG74<=AD74,AE74>=AD74),((AE74-AD74)*12)*R74,IF(AF74>AE74,12*R74,0))))) -> 315.0133333 | T74: =IF(P74=0,0,IF(AND(AH74>=AG74,AH74<=AF74),((AH74-AG74)*12)*R74,0)) -> 0 | U74: =IF(T74>0,T74,S74) -> 315.0133333 | V74: 1 | W74: =V74*SUM(S74:T74) -> 315.0133333 | X74: =IF(AD74>AE74,0,IF(AF74<AG74,Q74,IF(AND(AF74>=AG74,AF74<=AE74),(Q74-U74),IF(AND(AG74<=AD74,AE74>=AD74),0,IF(AF74>AE74,((AG74-AD74)*12)*R74,0))))) -> 157.5066667 | Y74: =X74*V74 -> 157.5066667 | Z74: 1 | AA74: =Y74*Z74 -> 157.5066667 | AB74: =IF(P74>0,0,AA74+W74*Z74)*Z74 -> 472.52 | AC74: =IF(P74>0,(O74-AA74)/2,IF(AD74>=AG74,(((O74*V74)*Z74)-AB74)/2,((((O74*V74)*Z74)-AA74)+(((O74*V74)*Z74)-AB74))/2)) -> 157.5066667 | AD74: 2016.416667 | AE74: 2017.75 | AF74: 2017.416667 | AG74: 2016.75 | AH74: -0.08333333333 | AJ74: 0 | AL74: 315.0133333 | AN74: 0 | AP74: 0 | AR74: 157.5066667
C75: 2017 SL Truck | D75: 187610 | F75: 2017 | G75: 10 | H75: 0 | J75: S/L | K75: 10 | L75: 2027 | O75: 135413.12 | Q75: =O75-O75*H75 -> 135413.12 | R75: =Q75/K75/12 -> 1128.442667 | S75: =IF(P75>0,0,IF(OR(AD75>AE75,AF75<AG75),0,IF(AND(AF75>=AG75,AF75<=AE75),R75*((AF75-AG75)*12),IF(AND(AG75<=AD75,AE75>=AD75),((AE75-AD75)*12)*R75,IF(AF75>AE75,12*R75,0))))) -> 0 | T75: =IF(P75=0,0,IF(AND(AH75>=AG75,AH75<=AF75),((AH75-AG75)*12)*R75,0)) -> 0 | U75: =IF(T75>0,T75,S75) -> 0 | V75: 2 | W75: =V75*SUM(S75:T75) -> 0 | X75: =IF(AD75>AE75,0,IF(AF75<AG75,Q75,IF(AND(AF75>=AG75,AF75<=AE75),(Q75-U75),IF(AND(AG75<=AD75,AE75>=AD75),0,IF(AF75>AE75,((AG75-AD75)*12)*R75,0))))) -> 0 | Y75: =X75*V75 -> 0 | Z75: 2 | AA75: =Y75*Z75 -> 0 | AB75: =IF(P75>0,0,AA75+W75*Z75)*Z75 -> 0 | AC75: =IF(P75>0,(O75-AA75)/2,IF(AD75>=AG75,(((O75*V75)*Z75)-AB75)/2,((((O75*V75)*Z75)-AA75)+(((O75*V75)*Z75)-AB75))/2)) -> 270826.24 | AD75: 2017.75 | AE75: 2017.75 | AF75: 2027.75 | AG75: 2016.75 | AH75: -0.08333333333
C76: 2018 FEL Truck | D76: 191690 | F76: 2018 | G76: 1 | H76: 0 | J76: S/L | K76: 10 | L76: =F76+K76 -> 2028 | O76: 312655.16 | Q76: 312655.16 | R76: 2605.459667 | S76: 0 | T76: 0 | U76: 0 | V76: 3 | W76: 0 | X76: 0 | Y76: 0 | Z76: 3 | AA76: 0 | AB76: 0 | AC76: 1406948.22 | AD76: =$F76+(($G76-1)/12) -> 2018 | AE76: =($Q$5+1)-($Q$2/12) -> 2017.75 | AF76: =$L76+(($G76-1)/12) -> 2028 | AG76: =$Q$4+($Q$3/12) -> 2016.75 | AH76: =$M76+(($N76-1)/12) -> -0.08333333333
C77: Decals for New Truck | D77: 193351/191690 | F77: 2018 | G77: 1 | H77: 0 | J77: S/L | K77: 10 | L77: 2028 | O77: 957.42 | Q77: 957.42 | R77: 7.9785 | S77: 0 | T77: 0 | U77: 0 | V77: 4 | W77: 0 | X77: 0 | Y77: 0 | Z77: 4 | AA77: 0 | AB77: 0 | AC77: 7659.36 | AD77: 2018 | AE77: 2017.75 | AF77: 2028 | AG77: 2016.75 | AH77: -0.08333333333
B78: 2019 | C78: Cap Repair: Engine Repair Truck 2019 | D78: 200354/61382 | F78: 2018 | G78: 6 | H78: 0 | J78: S/L | K78: 3 | L78: 2021 | O78: 35182.24 | Q78: 35182.24 | R78: 977.2844444 | S78: 0 | T78: 0 | U78: 0 | V78: 5 | W78: 0 | X78: 0 | Y78: 0 | Z78: 5 | AA78: 0 | AB78: 0 | AC78: 439778 | AD78: 2018.416667 | AE78: 2017.75 | AF78: 2021.416667 | AG78: 2016.75 | AH78: -0.08333333333
B79: 3688 | C79: Decals on Truck 3688 | D79: 207703/203826 | F79: 2018 | G79: 9 | H79: 0 | J79: S/L | K79: 10 | L79: 2028 | O79: 1071.18 | Q79: 1071.18 | R79: 8.9265 | S79: 0 | T79: 0 | U79: 0 | V79: 6 | W79: 0 | X79: 0 | Y79: 0 | Z79: 6 | AA79: 0 | AB79: 0 | AC79: 19281.24 | AD79: 2018.666667 | AE79: 2017.75 | AF79: 2028.666667 | AG79: 2016.75 | AH79: -0.08333333333
C80: 2019 ASL Truck | D80: 202837 | F80: 2018 | G80: 9 | H80: 0 | J80: S/L | K80: 10 | L80: 2028 | O80: 337246.78 | Q80: 337246.78 | R80: 2810.389833 | S80: 0 | T80: 0 | U80: 0 | V80: 7 | W80: 0 | X80: 0 | Y80: 0 | Z80: 7 | AA80: 0 | AB80: 0 | AC80: 8262546.11 | AD80: 2018.666667 | AE80: 2017.75 | AF80: 2028.666667 | AG80: 2016.75 | AH80: -0.08333333333
C81: Decals | D81: 204912/202837 | F81: 2018 | G81: 9 | H81: 0 | J81: S/L | K81: 10 | L81: 2028 | O81: 1071.18 | Q81: 1071.18 | R81: 8.9265 | S81: 0 | T81: 0 | U81: 0 | V81: 8 | W81: 0 | X81: 0 | Y81: 0 | Z81: 8 | AA81: 0 | AB81: 0 | AC81: 34277.76 | AD81: 2018.666667 | AE81: 2017.75 | AF81: 2028.666667 | AG81: 2016.75 | AH81: -0.08333333333
C82: 2019 ASL Truck | D82: 203826 | F82: 2018 | G82: 10 | H82: 0 | J82: S/L | K82: 10 | L82: 2028 | O82: 336943.72 | Q82: 336943.72 | R82: 2807.864333 | S82: 0 | T82: 0 | U82: 0 | V82: 9 | W82: 0 | X82: 0 | Y82: 0 | Z82: 9 | AA82: 0 | AB82: 0 | AC82: 13646220.66 | AD82: 2018.75 | AE82: 2017.75 | AF82: 2028.75 | AG82: 2016.75 | AH82: -0.08333333333
B83: 3623 | C83: Capital Repair: Truck 3623 Engine Replacement | D83: 207435/61412 | F83: 2018 | G83: 12 | H83: 0 | J83: S/L | K83: 3 | L83: 2021 | O83: 43878.52 | Q83: 43878.52 | R83: 1218.847778 | S83: 0 | T83: 0 | U83: 0 | V83: 10 | W83: 0 | X83: 0 | Y83: 0 | Z83: 10 | AA83: 0 | AB83: 0 | AC83: 2193926 | AD83: 2018.916667 | AE83: 2017.75 | AF83: 2021.916667 | AG83: 2016.75 | AH83: -0.08333333333
B85: 16 | C85: TOTAL GARBAGE | O85: =SUM(O12:O84) -> 7383001.547 | Q85: =SUM(Q12:Q84) -> 6350133.397 | R85: =SUM(R12:R84) -> 71652.69943 | S85: =SUM(S12:S84) -> 343720.3397 | W85: =SUM(W12:W84) -> 343720.3397 | AA85: =SUM(AA12:AA84) -> 3247681.046 | AB85: =SUM(AB12:AB84) -> 3591401.386 | AC85: =SUM(AC12:AC84) -> 28871586.35 | AJ85: =SUM(AJ12:AJ84) -> 312910.0128 | AL85: =SUM(AL12:AL84) -> 656630.3524 | AN85: -639080.3337 | AP85: 998237.4876 | AR85: 1901100.809
C88: ROLL OFF
B93: 4024 | C93: '00 INT'L 9200I SBA 6X4 CAB & CHASSIS | F93: 2000 | G93: 8 | H93: 0.2 | J93: S/L | K93: 7 | L93: =F93+K93 -> 2007 | O93: 92187.97 | Q93: =O93-O93*H93 -> 73750.376 | R93: =Q93/K93/12 -> 877.9806667 | S93: =IF(P93>0,0,IF(OR(AD93>AE93,AF93<AG93),0,IF(AND(AF93>=AG93,AF93<=AE93),R93*((AF93-AG93)*12),IF(AND(AG93<=AD93,AE93>=AD93),((AE93-AD93)*12)*R93,IF(AF93>AE93,12*R93,0))))) -> 0 | T93: =IF(P93=0,0,IF(AND(AH93>=AG93,AH93<=AF93),((AH93-AG93)*12)*R93,0)) -> 0 | U93: =IF(T93>0,T93,S93) -> 0 | V93: 1 | W93: =V93*SUM(S93:T93) -> 0 | X93: =IF(AD93>AE93,0,IF(AF93<AG93,Q93,IF(AND(AF93>=AG93,AF93<=AE93),(Q93-U93),IF(AND(AG93<=AD93,AE93>=AD93),0,IF(AF93>AE93,((AG93-AD93)*12)*R93,0))))) -> 73750.376 | Y93: =X93*V93 -> 73750.376 | Z93: 1 | AA93: =Y93*Z93 -> 73750.376 | AB93: =IF(P93>0,0,AA93+W93*Z93)*Z93 -> 73750.376 | AC93: =IF(P93>0,(O93-AA93)/2,IF(AD93>=AG93,(((O93*V93)*Z93)-AB93)/2,((((O93*V93)*Z93)-AA93)+(((O93*V93)*Z93)-AB93))/2)) -> 18437.594 | AD93: =$F93+(($G93-1)/12) -> 2000.583333 | AE93: =($Q$5+1)-($Q$2/12) -> 2017.75 | AF93: =$L93+(($G93-1)/12) -> 2007.583333 | AG93: =$Q$4+($Q$3/12) -> 2016.75 | AH93: =$M93+(($N93-1)/12) -> -0.08333333333 | AJ93: =+IF((AF93-AG93)>3,((O93-Q93)/(AF93-AG93)),(O93-Q93)/3) -> 6145.864667 | AL93: =+AJ93+W93 -> 6145.864667 | AN93: =+IF(AF93<AG93,-AC93,0) -> -18437.594 | AP93: =+IF(AF93>AE93,IF(AJ93>0,IF(P93>0,(O93-AA93)/2,IF(AD93>=AG93,(((O93*V93)*Z93)-(AB93+AJ93))/2,((((O93*V93)*Z93)-AA93)+(((O93*V93)*Z93)-(AB93+AJ93)))/2)),0),0) -> 0 | AR93: =+AC93+AN93+(IF(AP93>0,(AP93-AC93),0)) -> 0
B94: 5575 | C94: '01 INT'L 9200 6X4 | F94: 2001 | G94: 5 | H94: 0.2 | J94: S/L | K94: 7 | L94: 2008 | O94: 83081.84 | Q94: 66465.472 | R94: 791.255619 | S94: 0 | T94: 0 | U94: 0 | V94: 1 | W94: 0 | X94: 66465.472 | Y94: 66465.472 | Z94: 1 | AA94: 66465.472 | AB94: 66465.472 | AC94: 16616.368 | AD94: 2001.333333 | AE94: 2017.75 | AF94: 2008.333333 | AG94: 2016.75 | AH94: -0.08333333333 | AJ94: =+IF((AF94-AG94)>3,((O94-Q94)/(AF94-AG94)),(O94-Q94)/3) -> 5538.789333 | AL94: =+AJ94+W94 -> 5538.789333 | AN94: =+IF(AF94<AG94,-AC94,0) -> -16616.368 | AP94: =+IF(AF94>AE94,IF(AJ94>0,IF(P94>0,(O94-AA94)/2,IF(AD94>=AG94,(((O94*V94)*Z94)-(AB94+AJ94))/2,((((O94*V94)*Z94)-AA94)+(((O94*V94)*Z94)-(AB94+AJ94)))/2)),0),0) -> 0 | AR94: =+AC94+AN94+(IF(AP94>0,(AP94-AC94),0)) -> 0
A95: RW | B95: 5575 | C95: LIFT AXLES ON 5575 | F95: 2001 | G95: 7 | H95: 0.2 | J95: S/L | K95: 7 | L95: 2008 | O95: 4218.85 | Q95: 3375.08 | R95: 40.17952381 | S95: 0 | T95: 0 | U95: 0 | V95: 1 | W95: 0 | X95: 3375.08 | Y95: 3375.08 | Z95: 1 | AA95: 3375.08 | AB95: 3375.08 | AC95: 843.77 | AD95: 2001.5 | AE95: 2017.75 | AF95: 2008.5 | AG95: 2016.75 | AH95: -0.08333333333 | AJ95: 281.2566667 | AL95: 281.2566667 | AN95: -843.77 | AP95: 0 | AR95: 0
A96: RO | B96: 4045 | C96: '06 VOLVO W/DROP MECHANISM | F96: 2005 | G96: 9 | H96: 0.2 | J96: S/L | K96: 7 | L96: 2012 | O96: 146156.88 | Q96: 116925.504 | R96: 1391.970286 | S96: 0 | T96: 0 | U96: 0 | V96: 1 | W96: 0 | X96: 116925.504 | Y96: 116925.504 | Z96: 1 | AA96: 116925.504 | AB96: 116925.504 | AC96: 29231.376 | AD96: 2005.666667 | AE96: 2017.75 | AF96: 2012.666667 | AG96: 2016.75 | AH96: -0.08333333333 | AJ96: 9743.792 | AL96: 9743.792 | AN96: -29231.376 | AP96: 0 | AR96: 0
A97: RO | B97: 4043 | C97: '06 VOLVO ROLLOFF | F97: 2005 | G97: 12 | H97: 0.2 | J97: S/L | K97: 7 | L97: 2012 | O97: 145423.85 | Q97: 116339.08 | R97: 1384.989048 | S97: 0 | T97: 0 | U97: 0 | V97: 1 | W97: 0 | X97: 116339.08 | Y97: 116339.08 | Z97: 1 | AA97: 116339.08 | AB97: 116339.08 | AC97: 29084.77 | AD97: 2005.916667 | AE97: 2017.75 | AF97: 2012.916667 | AG97: 2016.75 | AH97: -0.08333333333 | AJ97: 9694.923333 | AL97: 9694.923333 | AN97: -29084.77 | AP97: 0 | AR97: 0
A98: RO | B98: 4057 | C98: '07 VOLVO W/HELM DROP | F98: 2007 | G98: 5 | H98: 0.2 | J98: S/L | K98: 7 | L98: 2014 | O98: 157082.84 | Q98: 125666.272 | R98: 1496.027048 | S98: 0 | T98: 0 | U98: 0 | V98: 1 | W98: 0 | X98: 125666.272 | Y98: 125666.272 | Z98: 1 | AA98: 125666.272 | AB98: 125666.272 | AC98: 31416.568 | AD98: 2007.333333 | AE98: 2017.75 | AF98: 2014.333333 | AG98: 2016.75 | AH98: -0.08333333333 | AJ98: 10472.18933 | AL98: 10472.18933 | AN98: -31416.568 | AP98: 0 | AR98: 0
A99: RO | B99: 11095 | C99: ROUTWARE INSTALLATIONS (NON-REG) | F99: 2008 | G99: 1 | H99: 0.2 | J99: S/L | K99: 7 | L99: 2015 | O99: 60001.65 | Q99: 48001.32 | R99: 571.4442857 | S99: 0 | T99: 0 | U99: 0 | V99: 1 | W99: 0 | X99: 48001.32 | Y99: 48001.32 | Z99: 1 | AA99: 48001.32 | AB99: 48001.32 | AC99: 12000.33 | AD99: 2008 | AE99: 2017.75 | AF99: 2015 | AG99: 2016.75 | AH99: -0.08333333333 | AJ99: 4000.11 | AL99: 4000.11 | AN99: -12000.33 | AP99: 0 | AR99: 0
A100: RO | B100: 4066 | C100: '09 VOLVO VNM84T W/HELM BOOM | F100: 2008 | G100: 10 | H100: 0.2 | J100: S/L | K100: 7 | L100: 2015 | O100: 169380.79 | Q100: 135504.632 | R100: 1613.150381 | S100: 0 | T100: 0 | U100: 0 | V100: 1 | W100: 0 | X100: 135504.632 | Y100: 135504.632 | Z100: 1 | AA100: 135504.632 | AB100: 135504.632 | AC100: 33876.158 | AD100: 2008.75 | AE100: 2017.75 | AF100: 2015.75 | AG100: 2016.75 | AH100: -0.08333333333 | AJ100: 11292.05267 | AL100: 11292.05267 | AN100: -33876.158 | AP100: 0 | AR100: 0
A101: RO | B101: 4071 | C101: 2009 VOLVO TYPE: H DROP | F101: 2008 | G101: 10 | H101: 0.2 | J101: S/L | K101: 7 | L101: 2015 | O101: 165485.7 | Q101: 132388.56 | R101: 1576.054286 | S101: 0 | T101: 0 | U101: 0 | V101: 1 | W101: 0 | X101: 132388.56 | Y101: 132388.56 | Z101: 1 | AA101: 132388.56 | AB101: 132388.56 | AC101: 33097.14 | AD101: 2008.75 | AE101: 2017.75 | AF101: 2015.75 | AG101: 2016.75 | AH101: -0.08333333333 | AJ101: 11032.38 | AL101: 11032.38 | AN101: -33097.14 | AP101: 0 | AR101: 0
B102: 4065 | C102: 2009 VOLVO VNM84T200 TYPE: H DROP | F102: 2008 | G102: 10 | H102: 0 | J102: S/L | K102: 7 | L102: 2015 | O102: 127101.54 | Q102: 127101.54 | R102: 1513.113571 | S102: 0 | T102: 0 | U102: 0 | V102: 1 | W102: 0 | X102: 127101.54 | Y102: 127101.54 | Z102: 1 | AA102: 127101.54 | AB102: 127101.54 | AC102: 0 | AD102: 2008.75 | AE102: 2017.75 | AF102: 2015.75 | AG102: 2016.75 | AH102: -0.08333333333 | AJ102: 0 | AL102: 0 | AN102: 0 | AP102: 0 | AR102: 0
A103: RO | B103: 4071 | C103: AUTOGREASER | F103: 2009 | G103: 1 | H103: 0.2 | J103: S/L | K103: 7 | L103: 2016 | O103: 3902.23 | Q103: 3121.784 | R103: 37.16409524 | S103: 0 | T103: 0 | U103: 0 | V103: 1 | W103: 0 | X103: 3121.784 | Y103: 3121.784 | Z103: 1 | AA103: 3121.784 | AB103: 3121.784 | AC103: 780.446 | AD103: 2009 | AE103: 2017.75 | AF103: 2016 | AG103: 2016.75 | AH103: -0.08333333333 | AJ103: 260.1486667 | AL103: 260.1486667 | AN103: -780.446 | AP103: 0 | AR103: 0
A104: DC | B104: 4024 | C104: FLUP 4024 | F104: 2009 | G104: 6 | H104: 0 | J104: S/L | K104: 3 | L104: 2012 | O104: 2534.42 | Q104: 2534.42 | R104: 70.40055556 | S104: 0 | T104: 0 | U104: 0 | V104: 1 | W104: 0 | X104: 2534.42 | Y104: 2534.42 | Z104: 1 | AA104: 2534.42 | AB104: 2534.42 | AC104: 0 | AD104: 2009.416667 | AE104: 2017.75 | AF104: 2012.416667 | AG104: 2016.75 | AH104: -0.08333333333 | AJ104: 0 | AL104: 0 | AN104: 0 | AP104: 0 | AR104: 0
C105: DRIVE CAMS | D105: 68607 | F105: 2009 | G105: 7 | H105: 0.33 | J105: S/L | K105: 5 | L105: 2014 | O105: 4215.64 | Q105: 2824.4788 | R105: 47.07464667 | S105: 0 | T105: 0 | U105: 0 | V105: 1 | W105: 0 | X105: 2824.4788 | Y105: 2824.4788 | Z105: 1 | AA105: 2824.4788 | AB105: 2824.4788 | AC105: 1391.1612 | AD105: 2009.5 | AE105: 2017.75 | AF105: 2014.5 | AG105: 2016.75 | AH105: -0.08333333333 | AJ105: 463.7204 | AL105: 463.7204 | AN105: -1391.1612 | AP105: 0 | AR105: 0
A106: RO | B106: 8715 | C106: 2012 R/O SKID TRAILER (N) | F106: 2011 | G106: 7 | H106: 0.2 | J106: S/L | K106: 7 | L106: 2018 | O106: 51904.55 | Q106: 41523.64 | R106: 494.3290476 | S106: 5931.948571 | T106: 0 | U106: 5931.948571 | V106: 1 | W106: 5931.948571 | X106: 31142.73 | Y106: 31142.73 | Z106: 1 | AA106: 31142.73 | AB106: 37074.67857 | AC106: 17795.84571 | AD106: 2011.5 | AE106: 2017.75 | AF106: 2018.5 | AG106: 2016.75 | AH106: -0.08333333333 | AJ106: 3460.303333 | AL106: 9392.251905 | AN106: 0 | AP106: 16065.69405 | AR106: 16065.69405
B107: 88724 | C107: (6) TRUCK RADIOS | F107: 2011 | G107: 12 | H107: 0 | J107: S/L | K107: 5 | L107: 2016 | O107: =468.93*6 -> 2813.58 | Q107: 2813.58 | R107: 46.893 | S107: 93.786 | T107: 0 | U107: 93.786 | V107: 1 | W107: 93.786 | X107: 2719.794 | Y107: 2719.794 | Z107: 1 | AA107: 2719.794 | AB107: 2813.58 | AC107: 46.893 | AD107: 2011.916667 | AE107: 2017.75 | AF107: 2016.916667 | AG107: 2016.75 | AH107: -0.08333333333 | AJ107: 0 | AL107: 93.786 | AN107: 0 | AP107: 0 | AR107: 46.893
C108: (4) TRUCK RADIOS | D108: 88724 | F108: 2011 | G108: 12 | H108: 0 | J108: S/L | K108: 5 | L108: 2016 | O108: =468.93*4 -> 1875.72 | Q108: 1875.72 | R108: 31.262 | S108: 62.524 | T108: 0 | U108: 62.524 | V108: 1 | W108: 62.524 | X108: 1813.196 | Y108: 1813.196 | Z108: 1 | AA108: 1813.196 | AB108: 1875.72 | AC108: 31.262 | AD108: 2011.916667 | AE108: 2017.75 | AF108: 2016.916667 | AG108: 2016.75 | AH108: -0.08333333333 | AJ108: 0 | AL108: 62.524 | AN108: 0 | AP108: 0 | AR108: 31.262
B109: 4065 | C109: Automatic Tarp Unit #4065 | D109: 100082 | F109: 2012 | G109: 12 | H109: 0 | J109: S/L | K109: 3 | L109: 2015 | O109: 8838 | Q109: 8838 | R109: 245.5 | S109: 0 | T109: 0 | U109: 0 | V109: 1 | W109: 0 | X109: 8838 | Y109: 8838 | Z109: 1 | AA109: 8838 | AB109: 8838 | AC109: 0 | AD109: 2012.916667 | AE109: 2017.75 | AF109: 2015.916667 | AG109: 2016.75 | AH109: -0.08333333333 | AJ109: 0 | AL109: 0 | AN109: 0 | AP109: 0 | AR109: 0
B110: 4057 | C110: AA Welding Automatic Tarp Unit | D110: 101833 | F110: 2013 | G110: 1 | H110: 0 | J110: S/L | K110: 3 | L110: 2016 | O110: 8837.86 | Q110: 8837.86 | R110: 245.4961111 | S110: 0 | T110: 0 | U110: 0 | V110: 1 | W110: 0 | X110: 8837.86 | Y110: 8837.86 | Z110: 1 | AA110: 8837.86 | AB110: 8837.86 | AC110: 0 | AD110: 2013 | AE110: 2017.75 | AF110: 2016 | AG110: 2016.75 | AH110: -0.08333333333 | AJ110: 0 | AL110: 0 | AN110: 0 | AP110: 0 | AR110: 0
B111: 4066 | C111: AA Welding Automatic Tarp Unit | D111: 102419 | F111: 2013 | G111: 2 | H111: 0 | J111: S/L | K111: 3 | L111: 2016 | O111: 8837.86 | Q111: 8837.86 | R111: 245.4961111 | S111: 0 | T111: 0 | U111: 0 | V111: 1 | W111: 0 | X111: 8837.86 | Y111: 8837.86 | Z111: 1 | AA111: 8837.86 | AB111: 8837.86 | AC111: 0 | AD111: 2013.083333 | AE111: 2017.75 | AF111: 2016.083333 | AG111: 2016.75 | AH111: -0.08333333333 | AJ111: 0 | AL111: 0 | AN111: 0 | AP111: 0 | AR111: 0
B112: 4071 | C112: AA Welding Automatic Tarp Unit | D112: 102420 | F112: 2013 | G112: 2 | H112: 0 | J112: S/L | K112: 3 | L112: 2016 | O112: 8837.86 | Q112: 8837.86 | R112: 245.4961111 | S112: 0 | T112: 0 | U112: 0 | V112: 1 | W112: 0 | X112: 8837.86 | Y112: 8837.86 | Z112: 1 | AA112: 8837.86 | AB112: 8837.86 | AC112: 0 | AD112: 2013.083333 | AE112: 2017.75 | AF112: 2016.083333 | AG112: 2016.75 | AH112: -0.08333333333 | AJ112: 0 | AL112: 0 | AN112: 0 | AP112: 0 | AR112: 0
B113: 4045 | C113: AA Welding Automatic Tarp Unit | D113: 102418 | F113: 2013 | G113: 2 | H113: 0 | J113: S/L | K113: 3 | L113: 2016 | O113: 8837.86 | Q113: 8837.86 | R113: 245.4961111 | S113: 0 | T113: 0 | U113: 0 | V113: 1 | W113: 0 | X113: 8837.86 | Y113: 8837.86 | Z113: 1 | AA113: 8837.86 | AB113: 8837.86 | AC113: 0 | AD113: 2013.083333 | AE113: 2017.75 | AF113: 2016.083333 | AG113: 2016.75 | AH113: -0.08333333333 | AJ113: 0 | AL113: 0 | AN113: 0 | AP113: 0 | AR113: 0
C114: 2009 Type H Drop R/O | D114: 195382 | F114: 2008 | G114: 11 | H114: 0 | J114: S/L | K114: 10 | L114: 2018 | O114: 165486.5 | Q114: =O114-O114*H114 -> 165486.5 | R114: =Q114/K114/12 -> 1379.054167 | S114: =IF(P114>0,0,IF(OR(AD114>AE114,AF114<AG114),0,IF(AND(AF114>=AG114,AF114<=AE114),R114*((AF114-AG114)*12),IF(AND(AG114<=AD114,AE114>=AD114),((AE114-AD114)*12)*R114,IF(AF114>AE114,12*R114,0))))) -> 16548.65 | T114: =IF(P114=0,0,IF(AND(AH114>=AG114,AH114<=AF114),((AH114-AG114)*12)*R114,0)) -> 0 | U114: =IF(T114>0,T114,S114) -> 16548.65 | V114: 2 | W114: =V114*SUM(S114:T114) -> 33097.3 | X114: =IF(AD114>AE114,0,IF(AF114<AG114,Q114,IF(AND(AF114>=AG114,AF114<=AE114),(Q114-U114),IF(AND(AG114<=AD114,AE114>=AD114),0,IF(AF114>AE114,((AG114-AD114)*12)*R114,0))))) -> 131010.1458 | Y114: =X114*V114 -> 262020.2917 | Z114: 2 | AA114: =Y114*Z114 -> 524040.5833 | AB114: =IF(P114>0,0,AA114+W114*Z114)*Z114 -> 1180470.367 | AC114: =IF(P114>0,(O114-AA114)/2,IF(AD114>=AG114,(((O114*V114)*Z114)-AB114)/2,((((O114*V114)*Z114)-AA114)+(((O114*V114)*Z114)-AB114))/2)) -> -190309.475 | AD114: 2008.833333 | AE114: 2017.75 | AF114: 2018.833333 | AG114: 2016.75 | AH114: -0.08333333333
C115: 2000 Type H Drop R/O | D115: 195384 | F115: 2008 | G115: 11 | H115: 0 | J115: S/L | K115: 3 | L115: 2011 | O115: 41500 | Q115: =O115-O115*H115 -> 41500 | R115: =Q115/K115/12 -> 1152.777778 | S115: =IF(P115>0,0,IF(OR(AD115>AE115,AF115<AG115),0,IF(AND(AF115>=AG115,AF115<=AE115),R115*((AF115-AG115)*12),IF(AND(AG115<=AD115,AE115>=AD115),((AE115-AD115)*12)*R115,IF(AF115>AE115,12*R115,0))))) -> 0 | T115: =IF(P115=0,0,IF(AND(AH115>=AG115,AH115<=AF115),((AH115-AG115)*12)*R115,0)) -> 0 | U115: =IF(T115>0,T115,S115) -> 0 | V115: 3 | W115: =V115*SUM(S115:T115) -> 0 | X115: =IF(AD115>AE115,0,IF(AF115<AG115,Q115,IF(AND(AF115>=AG115,AF115<=AE115),(Q115-U115),IF(AND(AG115<=AD115,AE115>=AD115),0,IF(AF115>AE115,((AG115-AD115)*12)*R115,0))))) -> 41500 | Y115: =X115*V115 -> 124500 | Z115: 3 | AA115: =Y115*Z115 -> 373500 | AB115: =IF(P115>0,0,AA115+W115*Z115)*Z115 -> 1120500 | AC115: =IF(P115>0,(O115-AA115)/2,IF(AD115>=AG115,(((O115*V115)*Z115)-AB115)/2,((((O115*V115)*Z115)-AA115)+(((O115*V115)*Z115)-AB115))/2)) -> -373500 | AD115: 2008.833333 | AE115: 2017.75 | AF115: 2011.833333 | AG115: 2016.75 | AH115: -0.08333333333
B119: 6 | C119: TOTAL ROLL OFF | O119: =SUM(O90:O118) -> 1468543.99 | Q119: =SUM(Q90:Q118) -> 1251387.399 | R119: =SUM(R90:R118) -> 15742.60445 | S119: =SUM(S90:S118) -> 22636.90857 | W119: =SUM(W90:W118) -> 39185.55857 | AA119: =SUM(AA90:AA118) -> 1931404.262 | AB119: =SUM(AB90:AB118) -> 3340922.304 | AC119: =SUM(AC90:AC118) -> -339159.7931 | AJ119: =SUM(AJ90:AJ118) -> 72385.5304 | AL119: 78473.78897 | AN119: -206775.6812 | AP119: 16065.69405 | AR119: 16143.84905
C122: RESI RECYCLE
A124: SL | B124: 3555 | C124: VIDEO CAMERA | F124: 1999 | G124: 10 | H124: 0.2 | J124: S/L | K124: 7 | L124: =F124+K124 -> 2006 | O124: 1532.03 | Q124: =O124-O124*H124 -> 1225.624 | R124: =Q124/K124/12 -> 14.5907619 | S124: =IF(P124>0,0,IF(OR(AD124>AE124,AF124<AG124),0,IF(AND(AF124>=AG124,AF124<=AE124),R124*((AF124-AG124)*12),IF(AND(AG124<=AD124,AE124>=AD124),((AE124-AD124)*12)*R124,IF(AF124>AE124,12*R124,0))))) -> 0 | T124: =IF(P124=0,0,IF(AND(AH124>=AG124,AH124<=AF124),((AH124-AG124)*12)*R124,0)) -> 0 | U124: =IF(T124>0,T124,S124) -> 0 | V124: 1 | W124: =V124*SUM(S124:T124) -> 0 | X124: =IF(AD124>AE124,0,IF(AF124<AG124,Q124,IF(AND(AF124>=AG124,AF124<=AE124),(Q124-U124),IF(AND(AG124<=AD124,AE124>=AD124),0,IF(AF124>AE124,((AG124-AD124)*12)*R124,0))))) -> 1225.624 | Y124: =X124*V124 -> 1225.624 | Z124: 1 | AA124: =Y124*Z124 -> 1225.624 | AB124: =IF(P124>0,0,AA124+W124*Z124)*Z124 -> 1225.624 | AC124: =IF(P124>0,(O124-AA124)/2,IF(AD124>=AG124,(((O124*V124)*Z124)-AB124)/2,((((O124*V124)*Z124)-AA124)+(((O124*V124)*Z124)-AB124))/2)) -> 306.406 | AD124: =$F124+(($G124-1)/12) -> 1999.75 | AE124: =($Q$5+1)-($Q$2/12) -> 2017.75 | AF124: =$L124+(($G124-1)/12) -> 2006.75 | AG124: =$Q$4+($Q$3/12) -> 2016.75 | AH124: =$M124+(($N124-1)/12) -> -0.08333333333 | AJ124: =+IF((AF124-AG124)>3,((O124-Q124)/(AF124-AG124)),(O124-Q124)/3) -> 102.1353333 | AL124: =+AJ124+W124 -> 102.1353333 | AN124: =+IF(AF124<AG124,-AC124,0) -> -306.406 | AP124: =+IF(AF124>AE124,IF(AJ124>0,IF(P124>0,(O124-AA124)/2,IF(AD124>=AG124,(((O124*V124)*Z124)-(AB124+AJ124))/2,((((O124*V124)*Z124)-AA124)+(((O124*V124)*Z124)-(AB124+AJ124)))/2)),0),0) -> 0 | AR124: =+AC124+AN124+(IF(AP124>0,(AP124-AC124),0)) -> 0
A125: SL | B125: 3555 | C125: 2000 PETERBILT 320 | F125: 1999 | G125: 11 | H125: 0.2 | J125: S/L | K125: 7 | L125: 2006 | O125: 85472.55 | Q125: 68378.04 | R125: 814.0242857 | S125: 0 | T125: 0 | U125: 0 | V125: 1 | W125: 0 | X125: 68378.04 | Y125: 68378.04 | Z125: 1 | AA125: 68378.04 | AB125: 68378.04 | AC125: 17094.51 | AD125: 1999.833333 | AE125: 2017.75 | AF125: 2006.833333 | AG125: 2016.75 | AH125: -0.08333333333 | AJ125: =+IF((AF125-AG125)>3,((O125-Q125)/(AF125-AG125)),(O125-Q125)/3) -> 5698.17 | AL125: =+AJ125+W125 -> 5698.17 | AN125: =+IF(AF125<AG125,-AC125,0) -> -17094.51 | AP125: =+IF(AF125>AE125,IF(AJ125>0,IF(P125>0,(O125-AA125)/2,IF(AD125>=AG125,(((O125*V125)*Z125)-(AB125+AJ125))/2,((((O125*V125)*Z125)-AA125)+(((O125*V125)*Z125)-(AB125+AJ125)))/2)),0),0) -> 0 | AR125: =+AC125+AN125+(IF(AP125>0,(AP125-AC125),0)) -> 0
A126: SL | B126: 3555 | C126: 27 CY LEACH CURBTENDER | F126: 1999 | G126: 12 | H126: 0.2 | J126: S/L | K126: 7 | L126: 2006 | O126: 62217.11 | Q126: 49773.688 | R126: 592.5439048 | S126: 0 | T126: 0 | U126: 0 | V126: 1 | W126: 0 | X126: 49773.688 | Y126: 49773.688 | Z126: 1 | AA126: 49773.688 | AB126: 49773.688 | AC126: 12443.422 | AD126: 1999.916667 | AE126: 2017.75 | AF126: 2006.916667 | AG126: 2016.75 | AH126: -0.08333333333 | AJ126: 4147.807333 | AL126: 4147.807333 | AN126: -12443.422 | AP126: 0 | AR126: 0
A127: SL | B127: 3555 | C127: TRAVEL ON 3555 | F127: 2000 | G127: 1 | H127: 0.2 | J127: S/L | K127: 7 | L127: 2007 | O127: 1870 | Q127: 1496 | R127: 17.80952381 | S127: 0 | T127: 0 | U127: 0 | V127: 1 | W127: 0 | X127: 1496 | Y127: 1496 | Z127: 1 | AA127: 1496 | AB127: 1496 | AC127: 374 | AD127: 2000 | AE127: 2017.75 | AF127: 2007 | AG127: 2016.75 | AH127: -0.08333333333 | AJ127: 124.6666667 | AL127: 124.6666667 | AN127: -374 | AP127: 0 | AR127: 0
A128: SL | B128: 3555 | C128: INSTALL/PAINTING ON 3555 | F128: 2000 | G128: 2 | H128: 0.2 | J128: S/L | K128: 7 | L128: 2007 | O128: 3789.2 | Q128: 3031.36 | R128: 36.08761905 | S128: 0 | T128: 0 | U128: 0 | V128: 1 | W128: 0 | X128: 3031.36 | Y128: 3031.36 | Z128: 1 | AA128: 3031.36 | AB128: 3031.36 | AC128: 757.84 | AD128: 2000.083333 | AE128: 2017.75 | AF128: 2007.083333 | AG128: 2016.75 | AH128: -0.08333333333 | AJ128: 252.6133333 | AL128: 252.6133333 | AN128: -757.84 | AP128: 0 | AR128: 0
A129: SL | B129: 3562 | C129: 01 PB W/ LEACH 27YD CURBTENDER | F129: 2001 | G129: 4 | H129: 0.2 | J129: S/L | K129: 7 | L129: 2008 | O129: 156107.07 | Q129: 124885.656 | R129: 1486.734 | S129: 0 | T129: 0 | U129: 0 | V129: 1 | W129: 0 | X129: 124885.656 | Y129: 124885.656 | Z129: 1 | AA129: 124885.656 | AB129: 124885.656 | AC129: 31221.414 | AD129: 2001.25 | AE129: 2017.75 | AF129: 2008.25 | AG129: 2016.75 | AH129: -0.08333333333 | AJ129: 10407.138 | AL129: 10407.138 | AN129: -31221.414 | AP129: 0 | AR129: 0
A130: SL | B130: 3563 | C130: '01 PETE W/27 YD CURBTENDER SL | F130: 2001 | G130: 5 | H130: 0.2 | J130: S/L | K130: 7 | L130: 2008 | O130: 156107.07 | Q130: 124885.656 | R130: 1486.734 | S130: 0 | T130: 0 | U130: 0 | V130: 1 | W130: 0 | X130: 124885.656 | Y130: 124885.656 | Z130: 1 | AA130: 124885.656 | AB130: 124885.656 | AC130: 31221.414 | AD130: 2001.333333 | AE130: 2017.75 | AF130: 2008.333333 | AG130: 2016.75 | AH130: -0.08333333333 | AJ130: 10407.138 | AL130: 10407.138 | AN130: -31221.414 | AP130: 0 | AR130: 0
A131: SL | B131: 3613 | C131: 07 PB 320 W/27 CY CURBTENDER | F131: 2007 | G131: 8 | H131: 0.2 | J131: S/L | K131: 7 | L131: 2014 | O131: 194705.04 | Q131: 155764.032 | R131: 1854.333714 | S131: 0 | T131: 0 | U131: 0 | V131: 1 | W131: 0 | X131: 155764.032 | Y131: 155764.032 | Z131: 1 | AA131: 155764.032 | AB131: 155764.032 | AC131: 38941.008 | AD131: 2007.583333 | AE131: 2017.75 | AF131: 2014.583333 | AG131: 2016.75 | AH131: -0.08333333333 | AJ131: 12980.336 | AL131: 12980.336 | AN131: -38941.008 | AP131: 0 | AR131: 0
A132: RW | B132: 11094 | C132: ROUTWARE INSTALLATIONS | F132: 2007 | G132: 9 | H132: 0.2 | J132: S/L | K132: 7 | L132: 2014 | O132: 33369.12 | Q132: 26695.296 | R132: 317.8011429 | S132: 0 | T132: 0 | U132: 0 | V132: 1 | W132: 0 | X132: 26695.296 | Y132: 26695.296 | Z132: 1 | AA132: 26695.296 | AB132: 26695.296 | AC132: 6673.824 | AD132: 2007.666667 | AE132: 2017.75 | AF132: 2014.666667 | AG132: 2016.75 | AH132: -0.08333333333 | AJ132: 2224.608 | AL132: 2224.608 | AN132: -6673.824 | AP132: 0 | AR132: 0
A133: SL | B133: 3555 | C133: FLUP - TRUCK 3555 | F133: 2009 | G133: 6 | H133: 0 | J133: S/L | K133: 3 | L133: 2012 | O133: 3305.27 | Q133: 3305.27 | R133: 91.81305556 | S133: 0 | T133: 0 | U133: 0 | V133: 1 | W133: 0 | X133: 3305.27 | Y133: 3305.27 | Z133: 1 | AA133: 3305.27 | AB133: 3305.27 | AC133: 0 | AD133: 2009.416667 | AE133: 2017.75 | AF133: 2012.416667 | AG133: 2016.75 | AH133: -0.08333333333 | AJ133: 0 | AL133: 0 | AN133: 0 | AP133: 0 | AR133: 0
A134: SL | B134: 3562 | C134: FLUP - TRUCK 3562 | F134: 2009 | G134: 6 | H134: 0 | J134: S/L | K134: 3 | L134: 2012 | O134: 4621.29 | Q134: 4621.29 | R134: 128.3691667 | S134: 0 | T134: 0 | U134: 0 | V134: 1 | W134: 0 | X134: 4621.29 | Y134: 4621.29 | Z134: 1 | AA134: 4621.29 | AB134: 4621.29 | AC134: 0 | AD134: 2009.416667 | AE134: 2017.75 | AF134: 2012.416667 | AG134: 2016.75 | AH134: -0.08333333333 | AJ134: 0 | AL134: 0 | AN134: 0 | AP134: 0 | AR134: 0
A135: SL | B135: 3563 | C135: FLUP - TRUCK 3563 | F135: 2009 | G135: 6 | H135: 0 | J135: S/L | K135: 3 | L135: 2012 | O135: 4295.27 | Q135: 4295.27 | R135: 119.3130556 | S135: 0 | T135: 0 | U135: 0 | V135: 1 | W135: 0 | X135: 4295.27 | Y135: 4295.27 | Z135: 1 | AA135: 4295.27 | AB135: 4295.27 | AC135: 0 | AD135: 2009.416667 | AE135: 2017.75 | AF135: 2012.416667 | AG135: 2016.75 | AH135: -0.08333333333 | AJ135: 0 | AL135: 0 | AN135: 0 | AP135: 0 | AR135: 0
A136: SL | B136: 3562 | C136: TO REPAIR TRUCK # 3562 | F136: 2009 | G136: 7 | H136: 0.2 | J136: S/L | K136: 7 | L136: 2016 | O136: 14669.94 | Q136: 11735.952 | R136: 139.7137143 | S136: 0 | T136: 0 | U136: 0 | V136: 1 | W136: 0 | X136: 11735.952 | Y136: 11735.952 | Z136: 1 | AA136: 11735.952 | AB136: 11735.952 | AC136: 2933.988 | AD136: 2009.5 | AE136: 2017.75 | AF136: 2016.5 | AG136: 2016.75 | AH136: -0.08333333333 | AJ136: 977.996 | AL136: 977.996 | AN136: -2933.988 | AP136: 0 | AR136: 0
A137: DC | B137: 68606 | C137: DRIVE CAMS (ONSITE TECHNICIANS) | F137: 2009 | G137: 7 | H137: 0.33 | J137: S/L | K137: 5 | L137: 2014 | O137: 4416.37 | Q137: 2958.9679 | R137: 49.31613167 | S137: 0 | T137: 0 | U137: 0 | V137: 1 | W137: 0 | X137: 2958.9679 | Y137: 2958.9679 | Z137: 1 | AA137: 2958.9679 | AB137: 2958.9679 | AC137: 1457.4021 | AD137: 2009.5 | AE137: 2017.75 | AF137: 2014.5 | AG137: 2016.75 | AH137: -0.08333333333 | AJ137: 485.8007 | AL137: 485.8007 | AN137: -1457.4021 | AP137: 0 | AR137: 0
B138: 88724 | C138: (5) TRUCK RADIOS | F138: 2011 | G138: 12 | H138: 0 | J138: S/L | K138: 5 | L138: 2016 | O138: =468.93*5 -> 2344.65 | Q138: 2344.65 | R138: 39.0775 | S138: 78.155 | T138: 0 | U138: 78.155 | V138: 1 | W138: 78.155 | X138: 2266.495 | Y138: 2266.495 | Z138: 1 | AA138: 2266.495 | AB138: 2344.65 | AC138: 39.0775 | AD138: 2011.916667 | AE138: 2017.75 | AF138: 2016.916667 | AG138: 2016.75 | AH138: -0.08333333333 | AJ138: 0 | AL138: 78.155 | AN138: 0 | AP138: 0 | AR138: 39.0775
B139: 3563 | C139: Plastic Hopper Door for #3563 | D139: 97259 | F139: 2012 | G139: 10 | H139: 0 | J139: S/L | K139: 7 | L139: 2019 | O139: 2558.53 | Q139: 2558.53 | R139: 30.45869048 | S139: 365.5042857 | T139: 0 | U139: 365.5042857 | V139: 1 | W139: 365.5042857 | X139: 1462.017143 | Y139: 1462.017143 | Z139: 1 | AA139: 1462.017143 | AB139: 1827.521429 | AC139: 913.7607143 | AD139: 2012.75 | AE139: 2017.75 | AF139: 2019.75 | AG139: 2016.75 | AH139: -0.08333333333 | AJ139: 0 | AL139: 365.5042857 | AN139: 0 | AP139: 0 | AR139: 913.7607143
B140: 3613 | C140: Plastic Hopper Door for #3613 | D140: 97261 | F140: 2012 | G140: 10 | H140: 0 | J140: S/L | K140: 7 | L140: 2019 | O140: 2558.53 | Q140: 2558.53 | R140: 30.45869048 | S140: 365.5042857 | T140: 0 | U140: 365.5042857 | V140: 1 | W140: 365.5042857 | X140: 1462.017143 | Y140: 1462.017143 | Z140: 1 | AA140: 1462.017143 | AB140: 1827.521429 | AC140: 913.7607143 | AD140: 2012.75 | AE140: 2017.75 | AF140: 2019.75 | AG140: 2016.75 | AH140: -0.08333333333 | AJ140: 0 | AL140: 365.5042857 | AN140: 0 | AP140: 0 | AR140: 913.7607143
A142: ASL | B142: 3628 | C142: NEW 2009 ASL (CHEHALIS CONTRACT) | F142: 2009 | G142: 10 | H142: 0 | J142: S/L | K142: 10 | L142: 2019 | O142: =247594.64*0.5 -> 123797.32 | Q142: 123797.32 | R142: 1031.644333 | S142: 12379.732 | T142: 0 | U142: 12379.732 | V142: 1 | W142: 12379.732 | X142: 86658.124 | Y142: 86658.124 | Z142: 1 | AA142: 86658.124 | AB142: 99037.856 | AC142: 30949.33 | AD142: 2009.75 | AE142: =($Q$5+1)-($Q$2/12) -> 2017.75 | AF142: 2019.75 | AG142: =$Q$4+($Q$3/12) -> 2016.75 | AH142: -0.08333333333 | AJ142: 0 | AL142: 12379.732 | AN142: 0 | AP142: 0 | AR142: 30949.33
C143: (2) TRUCK RADIOS | D143: 88724 | F143: 2011 | G143: 12 | H143: 0 | J143: S/L | K143: 5 | L143: 2016 | O143: =468.93*2 -> 937.86 | Q143: 937.86 | R143: 15.631 | S143: 31.262 | T143: 0 | U143: 31.262 | V143: 1 | W143: 31.262 | X143: 906.598 | Y143: 906.598 | Z143: 1 | AA143: 906.598 | AB143: 937.86 | AC143: 15.631 | AD143: 2011.916667 | AE143: =($Q$5+1)-($Q$2/12) -> 2017.75 | AF143: 2016.916667 | AG143: =$Q$4+($Q$3/12) -> 2016.75 | AH143: -0.08333333333 | AJ143: 0 | AL143: 31.262 | AN143: 0 | AP143: 0 | AR143: 15.631
B144: 3562 | C144: Transmission Repair #3562 | D144: 113491 | F144: 2014 | G144: 4 | H144: 0 | J144: S/L | K144: 3 | L144: 2017 | O144: 5361.62 | Q144: 5361.62 | R144: =Q144/K144/12 -> 148.9338889 | S144: =IF(P144>0,0,IF(OR(AD144>AE144,AF144<AG144),0,IF(AND(AF144>=AG144,AF144<=AE144),R144*((AF144-AG144)*12),IF(AND(AG144<=AD144,AE144>=AD144),((AE144-AD144)*12)*R144,IF(AF144>AE144,12*R144,0))))) -> 893.6033333 | T144: =IF(P144=0,0,IF(AND(AH144>=AG144,AH144<=AF144),((AH144-AG144)*12)*R144,0)) -> 0 | U144: =IF(T144>0,T144,S144) -> 893.6033333 | V144: 1 | W144: =V144*SUM(S144:T144) -> 893.6033333 | X144: =IF(AD144>AE144,0,IF(AF144<AG144,Q144,IF(AND(AF144>=AG144,AF144<=AE144),(Q144-U144),IF(AND(AG144<=AD144,AE144>=AD144),0,IF(AF144>AE144,((AG144-AD144)*12)*R144,0))))) -> 4468.016667 | Y144: =X144*V144 -> 4468.016667 | Z144: 1 | AA144: =Y144*Z144 -> 4468.016667 | AB144: =IF(P144>0,0,AA144+W144*Z144)*Z144 -> 5361.62 | AC144: =IF(P144>0,(O144-AA144)/2,IF(AD144>=AG144,(((O144*V144)*Z144)-AB144)/2,((((O144*V144)*Z144)-AA144)+(((O144*V144)*Z144)-AB144))/2)) -> 446.8016667 | AD144: 2014.25 | AE144: =($Q$5+1)-($Q$2/12) -> 2017.75 | AF144: 2017.25 | AG144: =$Q$4+($Q$3/12) -> 2016.75 | AH144: -0.08333333333 | AJ144: 0 | AL144: 893.6033333 | AN144: 0 | AP144: 0 | AR144: 446.8016667
A145: SL | B145: 3562 | C145: Improvement - ASL Auto Hopper Cover Kit | D145: 118251 | F145: 2014 | G145: 12 | H145: 0 | J145: S/L | K145: 3 | L145: 2017 | O145: 2532.61 | Q145: 2532.61 | R145: =Q145/K145/12 -> 70.35027778 | S145: =IF(P145>0,0,IF(OR(AD145>AE145,AF145<AG145),0,IF(AND(AF145>=AG145,AF145<=AE145),R145*((AF145-AG145)*12),IF(AND(AG145<=AD145,AE145>=AD145),((AE145-AD145)*12)*R145,IF(AF145>AE145,12*R145,0))))) -> 844.2033333 | T145: =IF(P145=0,0,IF(AND(AH145>=AG145,AH145<=AF145),((AH145-AG145)*12)*R145,0)) -> 0 | U145: =IF(T145>0,T145,S145) -> 844.2033333 | V145: 1 | W145: =V145*SUM(S145:T145) -> 844.2033333 | X145: =IF(AD145>AE145,0,IF(AF145<AG145,Q145,IF(AND(AF145>=AG145,AF145<=AE145),(Q145-U145),IF(AND(AG145<=AD145,AE145>=AD145),0,IF(AF145>AE145,((AG145-AD145)*12)*R145,0))))) -> 1547.706111 | Y145: =X145*V145 -> 1547.706111 | Z145: 1 | AA145: =Y145*Z145 -> 1547.706111 | AB145: =IF(P145>0,0,AA145+W145*Z145)*Z145 -> 2391.909444 | AC145: =IF(P145>0,(O145-AA145)/2,IF(AD145>=AG145,(((O145*V145)*Z145)-AB145)/2,((((O145*V145)*Z145)-AA145)+(((O145*V145)*Z145)-AB145))/2)) -> 562.8022222 | AD145: 2014.916667 | AE145: =($Q$5+1)-($Q$2/12) -> 2017.75 | AF145: 2017.916667 | AG145: =$Q$4+($Q$3/12) -> 2016.75 | AH145: -0.08333333333 | AJ145: 0 | AL145: 844.2033333 | AN145: 0 | AP145: 0 | AR145: 562.8022222
C146: (4) Samsung Tablets, Hardware, & Setup | D146: 132281/133543/139787 | F146: 2016 | G146: 4 | H146: 0 | J146: S/L | K146: 1 | L146: =F146+K146 -> 2017 | O146: =((7403.89+8314.08+342)/38)*4 -> 1690.523158 | Q146: 1690.523158 | R146: =Q146/K146/12 -> 140.8769298 | S146: =IF(P146>0,0,IF(OR(AD146>AE146,AF146<AG146),0,IF(AND(AF146>=AG146,AF146<=AE146),R146*((AF146-AG146)*12),IF(AND(AG146<=AD146,AE146>=AD146),((AE146-AD146)*12)*R146,IF(AF146>AE146,12*R146,0))))) -> 845.2615789 | T146: =IF(P146=0,0,IF(AND(AH146>=AG146,AH146<=AF146),((AH146-AG146)*12)*R146,0)) -> 0 | U146: =IF(T146>0,T146,S146) -> 845.2615789 | V146: 1 | W146: =V146*SUM(S146:T146) -> 845.2615789 | X146: =IF(AD146>AE146,0,IF(AF146<AG146,Q146,IF(AND(AF146>=AG146,AF146<=AE146),(Q146-U146),IF(AND(AG146<=AD146,AE146>=AD146),0,IF(AF146>AE146,((AG146-AD146)*12)*R146,0))))) -> 845.2615789 | Y146: =X146*V146 -> 845.2615789 | Z146: 1 | AA146: =Y146*Z146 -> 845.2615789 | AB146: =IF(P146>0,0,AA146+W146*Z146)*Z146 -> 1690.523158 | AC146: =IF(P146>0,(O146-AA146)/2,IF(AD146>=AG146,(((O146*V146)*Z146)-AB146)/2,((((O146*V146)*Z146)-AA146)+(((O146*V146)*Z146)-AB146))/2)) -> 422.6307895 | AD146: 2016.25 | AE146: =($Q$5+1)-($Q$2/12) -> 2017.75 | AF146: 2017.25 | AG146: =$Q$4+($Q$3/12) -> 2016.75 | AH146: -0.08333333333 | AJ146: 0 | AL146: 845.2615789 | AN146: 0 | AP146: 0 | AR146: 422.6307895
B148: 5 | C148: TOTAL RESI RECYCLE | O148: =SUM(O124:O147) -> 868258.9732 | Q148: =SUM(Q124:Q147) -> 724833.7451 | R148: =SUM(R124:R147) -> 8656.615387 | S148: =SUM(S124:S147) -> 15803.22582 | W148: =SUM(W124:W147) -> 15803.22582 | AA148: =SUM(AA124:AA147) -> 682668.3375 | AB148: =SUM(AB124:AB147) -> 698471.5634 | AC148: =SUM(AC124:AC147) -> 177689.0227 | AJ148: =SUM(AJ123:AJ147) -> 47808.40937 | AL148: =SUM(AL123:AL147) -> 63611.63518 | AN148: =SUM(AN123:AN147) -> -143425.2281 | AP148: =SUM(AP123:AP147) -> 0 | AR148: =SUM(AR123:AR147) -> 34263.79461
C151: MF
A153: RL - SP | B153: 1002 | C153: TYRONE UNITS (20%) | F153: 1995 | G153: 9 | H153: 0.2 | J153: S/L | K153: 7 | L153: =F153+K153 -> 2002 | O153: =0.2*386 -> 77.2 | Q153: =O153-O153*H153 -> 61.76 | R153: =Q153/K153/12 -> 0.7352380952 | S153: =IF(P153>0,0,IF(OR(AD153>AE153,AF153<AG153),0,IF(AND(AF153>=AG153,AF153<=AE153),R153*((AF153-AG153)*12),IF(AND(AG153<=AD153,AE153>=AD153),((AE153-AD153)*12)*R153,IF(AF153>AE153,12*R153,0))))) -> 0 | T153: =IF(P153=0,0,IF(AND(AH153>=AG153,AH153<=AF153),((AH153-AG153)*12)*R153,0)) -> 0 | U153: =IF(T153>0,T153,S153) -> 0 | V153: 1 | W153: =V153*SUM(S153:T153) -> 0 | X153: =IF(AD153>AE153,0,IF(AF153<AG153,Q153,IF(AND(AF153>=AG153,AF153<=AE153),(Q153-U153),IF(AND(AG153<=AD153,AE153>=AD153),0,IF(AF153>AE153,((AG153-AD153)*12)*R153,0))))) -> 61.76 | Y153: =X153*V153 -> 61.76 | Z153: 1 | AA153: =Y153*Z153 -> 61.76 | AB153: =IF(P153>0,0,AA153+W153*Z153)*Z153 -> 61.76 | AC153: =IF(P153>0,(O153-AA153)/2,IF(AD153>=AG153,(((O153*V153)*Z153)-AB153)/2,((((O153*V153)*Z153)-AA153)+(((O153*V153)*Z153)-AB153))/2)) -> 15.44 | AD153: =$F153+(($G153-1)/12) -> 1995.666667 | AE153: =($Q$5+1)-($Q$2/12) -> 2017.75 | AF153: =$L153+(($G153-1)/12) -> 2002.666667 | AG153: =$Q$4+($Q$3/12) -> 2016.75 | AH153: =$M153+(($N153-1)/12) -> -0.08333333333 | AJ153: =+IF((AF153-AG153)>3,((O153-Q153)/(AF153-AG153)),(O153-Q153)/3) -> 5.146666667 | AL153: =+AJ153+W153 -> 5.146666667 | AN153: =+IF(AF153<AG153,-AC153,0) -> -15.44 | AP153: =+IF(AF153>AE153,IF(AJ153>0,IF(P153>0,(O153-AA153)/2,IF(AD153>=AG153,(((O153*V153)*Z153)-(AB153+AJ153))/2,((((O153*V153)*Z153)-AA153)+(((O153*V153)*Z153)-(AB153+AJ153)))/2)),0),0) -> 0 | AR153: =+AC153+AN153+(IF(AP153>0,(AP153-AC153),0)) -> 0 | BW153: 3 | BX153: Computes with one month convention
A154: RL - SP | B154: 1002 | C154: 20YD ALPHA BODY (20%) | F154: 1995 | G154: 10 | H154: 0.2 | J154: S/L | K154: 7 | L154: =F154+K154 -> 2002 | O154: =0.2*27170 -> 5434 | Q154: =O154-O154*H154 -> 4347.2 | R154: =Q154/K154/12 -> 51.75238095 | S154: =IF(P154>0,0,IF(OR(AD154>AE154,AF154<AG154),0,IF(AND(AF154>=AG154,AF154<=AE154),R154*((AF154-AG154)*12),IF(AND(AG154<=AD154,AE154>=AD154),((AE154-AD154)*12)*R154,IF(AF154>AE154,12*R154,0))))) -> 0 | T154: =IF(P154=0,0,IF(AND(AH154>=AG154,AH154<=AF154),((AH154-AG154)*12)*R154,0)) -> 0 | U154: =IF(T154>0,T154,S154) -> 0 | V154: 1 | W154: =V154*SUM(S154:T154) -> 0 | X154: =IF(AD154>AE154,0,IF(AF154<AG154,Q154,IF(AND(AF154>=AG154,AF154<=AE154),(Q154-U154),IF(AND(AG154<=AD154,AE154>=AD154),0,IF(AF154>AE154,((AG154-AD154)*12)*R154,0))))) -> 4347.2 | Y154: =X154*V154 -> 4347.2 | Z154: 1 | AA154: =Y154*Z154 -> 4347.2 | AB154: =IF(P154>0,0,AA154+W154*Z154)*Z154 -> 4347.2 | AC154: =IF(P154>0,(O154-AA154)/2,IF(AD154>=AG154,(((O154*V154)*Z154)-AB154)/2,((((O154*V154)*Z154)-AA154)+(((O154*V154)*Z154)-AB154))/2)) -> 1086.8 | AD154: =$F154+(($G154-1)/12) -> 1995.75 | AE154: =($Q$5+1)-($Q$2/12) -> 2017.75 | AF154: =$L154+(($G154-1)/12) -> 2002.75 | AG154: =$Q$4+($Q$3/12) -> 2016.75 | AH154: =$M154+(($N154-1)/12) -> -0.08333333333 | AJ154: =+IF((AF154-AG154)>3,((O154-Q154)/(AF154-AG154)),(O154-Q154)/3) -> 362.2666667 | AL154: =+AJ154+W154 -> 362.2666667 | AN154: =+IF(AF154<AG154,-AC154,0) -> -1086.8 | AP154: =+IF(AF154>AE154,IF(AJ154>0,IF(P154>0,(O154-AA154)/2,IF(AD154>=AG154,(((O154*V154)*Z154)-(AB154+AJ154))/2,((((O154*V154)*Z154)-AA154)+(((O154*V154)*Z154)-(AB154+AJ154)))/2)),0),0) -> 0 | AR154: =+AC154+AN154+(IF(AP154>0,(AP154-AC154),0)) -> 0 | BX154: i.e. whole month depreciation no
A155: RL - SP | B155: 1002 | C155: 1996 VOLVO FE42 (20%) | F155: 1995 | G155: 10 | H155: 0.2 | J155: S/L | K155: 7 | L155: =F155+K155 -> 2002 | O155: =0.2*49700 -> 9940 | Q155: =O155-O155*H155 -> 7952 | R155: =Q155/K155/12 -> 94.66666667 | S155: =IF(P155>0,0,IF(OR(AD155>AE155,AF155<AG155),0,IF(AND(AF155>=AG155,AF155<=AE155),R155*((AF155-AG155)*12),IF(AND(AG155<=AD155,AE155>=AD155),((AE155-AD155)*12)*R155,IF(AF155>AE155,12*R155,0))))) -> 0 | T155: =IF(P155=0,0,IF(AND(AH155>=AG155,AH155<=AF155),((AH155-AG155)*12)*R155,0)) -> 0 | U155: =IF(T155>0,T155,S155) -> 0 | V155: 1 | W155: =V155*SUM(S155:T155) -> 0 | X155: =IF(AD155>AE155,0,IF(AF155<AG155,Q155,IF(AND(AF155>=AG155,AF155<=AE155),(Q155-U155),IF(AND(AG155<=AD155,AE155>=AD155),0,IF(AF155>AE155,((AG155-AD155)*12)*R155,0))))) -> 7952 | Y155: =X155*V155 -> 7952 | Z155: 1 | AA155: =Y155*Z155 -> 7952 | AB155: =IF(P155>0,0,AA155+W155*Z155)*Z155 -> 7952 | AC155: =IF(P155>0,(O155-AA155)/2,IF(AD155>=AG155,(((O155*V155)*Z155)-AB155)/2,((((O155*V155)*Z155)-AA155)+(((O155*V155)*Z155)-AB155))/2)) -> 1988 | AD155: =$F155+(($G155-1)/12) -> 1995.75 | AE155: =($Q$5+1)-($Q$2/12) -> 2017.75 | AF155: =$L155+(($G155-1)/12) -> 2002.75 | AG155: =$Q$4+($Q$3/12) -> 2016.75 | AH155: =$M155+(($N155-1)/12) -> -0.08333333333 | AJ155: =+IF((AF155-AG155)>3,((O155-Q155)/(AF155-AG155)),(O155-Q155)/3) -> 662.6666667 | AL155: =+AJ155+W155 -> 662.6666667 | AN155: =+IF(AF155<AG155,-AC155,0) -> -1988 | AP155: =+IF(AF155>AE155,IF(AJ155>0,IF(P155>0,(O155-AA155)/2,IF(AD155>=AG155,(((O155*V155)*Z155)-(AB155+AJ155))/2,((((O155*V155)*Z155)-AA155)+(((O155*V155)*Z155)-(AB155+AJ155)))/2)),0),0) -> 0 | AR155: =+AC155+AN155+(IF(AP155>0,(AP155-AC155),0)) -> 0 | BX155: matter what day of month put on
C157: TOTAL MF | O157: =SUM(O153:O156) -> 15451.2 | Q157: =SUM(Q153:Q156) -> 12360.96 | R157: =SUM(R153:R156) -> 147.1542857 | S157: =SUM(S153:S156) -> 0 | W157: =SUM(W153:W156) -> 0 | AA157: =SUM(AA153:AA156) -> 12360.96 | AB157: =SUM(AB153:AB156) -> 12360.96 | AC157: =SUM(AC153:AC156) -> 3090.24 | AJ157: =SUM(AJ153:AJ156) -> 1030.08 | AL157: 1030.08 | AN157: -3090.24 | AP157: 0 | AR157: 0
C160: YARD WASTE
A162: RL - SP | B162: 1002 | C162: TYRONE UNITS (20%) | F162: 1995 | G162: 9 | H162: 0.2 | J162: S/L | K162: 7 | L162: =F162+K162 -> 2002 | O162: =0.2*386 -> 77.2 | Q162: =O162-O162*H162 -> 61.76 | R162: =Q162/K162/12 -> 0.7352380952 | S162: =IF(P162>0,0,IF(OR(AD162>AE162,AF162<AG162),0,IF(AND(AF162>=AG162,AF162<=AE162),R162*((AF162-AG162)*12),IF(AND(AG162<=AD162,AE162>=AD162),((AE162-AD162)*12)*R162,IF(AF162>AE162,12*R162,0))))) -> 0 | T162: =IF(P162=0,0,IF(AND(AH162>=AG162,AH162<=AF162),((AH162-AG162)*12)*R162,0)) -> 0 | U162: =IF(T162>0,T162,S162) -> 0 | V162: 1 | W162: =V162*SUM(S162:T162) -> 0 | X162: =IF(AD162>AE162,0,IF(AF162<AG162,Q162,IF(AND(AF162>=AG162,AF162<=AE162),(Q162-U162),IF(AND(AG162<=AD162,AE162>=AD162),0,IF(AF162>AE162,((AG162-AD162)*12)*R162,0))))) -> 61.76 | Y162: =X162*V162 -> 61.76 | Z162: 1 | AA162: =Y162*Z162 -> 61.76 | AB162: =IF(P162>0,0,AA162+W162*Z162)*Z162 -> 61.76 | AC162: =IF(P162>0,(O162-AA162)/2,IF(AD162>=AG162,(((O162*V162)*Z162)-AB162)/2,((((O162*V162)*Z162)-AA162)+(((O162*V162)*Z162)-AB162))/2)) -> 15.44 | AD162: =$F162+(($G162-1)/12) -> 1995.666667 | AE162: =($Q$5+1)-($Q$2/12) -> 2017.75 | AF162: =$L162+(($G162-1)/12) -> 2002.666667 | AG162: =$Q$4+($Q$3/12) -> 2016.75 | AH162: =$M162+(($N162-1)/12) -> -0.08333333333 | AJ162: =+IF((AF162-AG162)>3,((O162-Q162)/(AF162-AG162)),(O162-Q162)/3) -> 5.146666667 | AL162: =+AJ162+W162 -> 5.146666667 | AN162: =+IF(AF162<AG162,-AC162,0) -> -15.44 | AP162: =+IF(AF162>AE162,IF(AJ162>0,IF(P162>0,(O162-AA162)/2,IF(AD162>=AG162,(((O162*V162)*Z162)-(AB162+AJ162))/2,((((O162*V162)*Z162)-AA162)+(((O162*V162)*Z162)-(AB162+AJ162)))/2)),0),0) -> 0 | AR162: =+AC162+AN162+(IF(AP162>0,(AP162-AC162),0)) -> 0 | BW162: 3 | BX162: Computes with one month convention
A163: RL - SP | B163: 1002 | C163: 20YD ALPHA BODY (20%) | F163: 1995 | G163: 10 | H163: 0.2 | J163: S/L | K163: 7 | L163: =F163+K163 -> 2002 | O163: =0.2*27170 -> 5434 | Q163: =O163-O163*H163 -> 4347.2 | R163: =Q163/K163/12 -> 51.75238095 | S163: =IF(P163>0,0,IF(OR(AD163>AE163,AF163<AG163),0,IF(AND(AF163>=AG163,AF163<=AE163),R163*((AF163-AG163)*12),IF(AND(AG163<=AD163,AE163>=AD163),((AE163-AD163)*12)*R163,IF(AF163>AE163,12*R163,0))))) -> 0 | T163: =IF(P163=0,0,IF(AND(AH163>=AG163,AH163<=AF163),((AH163-AG163)*12)*R163,0)) -> 0 | U163: =IF(T163>0,T163,S163) -> 0 | V163: 1 | W163: =V163*SUM(S163:T163) -> 0 | X163: =IF(AD163>AE163,0,IF(AF163<AG163,Q163,IF(AND(AF163>=AG163,AF163<=AE163),(Q163-U163),IF(AND(AG163<=AD163,AE163>=AD163),0,IF(AF163>AE163,((AG163-AD163)*12)*R163,0))))) -> 4347.2 | Y163: =X163*V163 -> 4347.2 | Z163: 1 | AA163: =Y163*Z163 -> 4347.2 | AB163: =IF(P163>0,0,AA163+W163*Z163)*Z163 -> 4347.2 | AC163: =IF(P163>0,(O163-AA163)/2,IF(AD163>=AG163,(((O163*V163)*Z163)-AB163)/2,((((O163*V163)*Z163)-AA163)+(((O163*V163)*Z163)-AB163))/2)) -> 1086.8 | AD163: =$F163+(($G163-1)/12) -> 1995.75 | AE163: =($Q$5+1)-($Q$2/12) -> 2017.75 | AF163: =$L163+(($G163-1)/12) -> 2002.75 | AG163: =$Q$4+($Q$3/12) -> 2016.75 | AH163: =$M163+(($N163-1)/12) -> -0.08333333333 | AJ163: =+IF((AF163-AG163)>3,((O163-Q163)/(AF163-AG163)),(O163-Q163)/3) -> 362.2666667 | AL163: =+AJ163+W163 -> 362.2666667 | AN163: =+IF(AF163<AG163,-AC163,0) -> -1086.8 | AP163: =+IF(AF163>AE163,IF(AJ163>0,IF(P163>0,(O163-AA163)/2,IF(AD163>=AG163,(((O163*V163)*Z163)-(AB163+AJ163))/2,((((O163*V163)*Z163)-AA163)+(((O163*V163)*Z163)-(AB163+AJ163)))/2)),0),0) -> 0 | AR163: =+AC163+AN163+(IF(AP163>0,(AP163-AC163),0)) -> 0 | BX163: i.e. whole month depreciation no
A164: RL - SP | B164: 1002 | C164: 1996 VOLVO FE42 (20%) | F164: 1995 | G164: 10 | H164: 0.2 | J164: S/L | K164: 7 | L164: =F164+K164 -> 2002 | O164: =0.2*49700 -> 9940 | Q164: =O164-O164*H164 -> 7952 | R164: =Q164/K164/12 -> 94.66666667 | S164: =IF(P164>0,0,IF(OR(AD164>AE164,AF164<AG164),0,IF(AND(AF164>=AG164,AF164<=AE164),R164*((AF164-AG164)*12),IF(AND(AG164<=AD164,AE164>=AD164),((AE164-AD164)*12)*R164,IF(AF164>AE164,12*R164,0))))) -> 0 | T164: =IF(P164=0,0,IF(AND(AH164>=AG164,AH164<=AF164),((AH164-AG164)*12)*R164,0)) -> 0 | U164: =IF(T164>0,T164,S164) -> 0 | V164: 1 | W164: =V164*SUM(S164:T164) -> 0 | X164: =IF(AD164>AE164,0,IF(AF164<AG164,Q164,IF(AND(AF164>=AG164,AF164<=AE164),(Q164-U164),IF(AND(AG164<=AD164,AE164>=AD164),0,IF(AF164>AE164,((AG164-AD164)*12)*R164,0))))) -> 7952 | Y164: =X164*V164 -> 7952 | Z164: 1 | AA164: =Y164*Z164 -> 7952 | AB164: =IF(P164>0,0,AA164+W164*Z164)*Z164 -> 7952 | AC164: =IF(P164>0,(O164-AA164)/2,IF(AD164>=AG164,(((O164*V164)*Z164)-AB164)/2,((((O164*V164)*Z164)-AA164)+(((O164*V164)*Z164)-AB164))/2)) -> 1988 | AD164: =$F164+(($G164-1)/12) -> 1995.75 | AE164: =($Q$5+1)-($Q$2/12) -> 2017.75 | AF164: =$L164+(($G164-1)/12) -> 2002.75 | AG164: =$Q$4+($Q$3/12) -> 2016.75 | AH164: =$M164+(($N164-1)/12) -> -0.08333333333 | AJ164: =+IF((AF164-AG164)>3,((O164-Q164)/(AF164-AG164)),(O164-Q164)/3) -> 662.6666667 | AL164: =+AJ164+W164 -> 662.6666667 | AN164: =+IF(AF164<AG164,-AC164,0) -> -1988 | AP164: =+IF(AF164>AE164,IF(AJ164>0,IF(P164>0,(O164-AA164)/2,IF(AD164>=AG164,(((O164*V164)*Z164)-(AB164+AJ164))/2,((((O164*V164)*Z164)-AA164)+(((O164*V164)*Z164)-(AB164+AJ164)))/2)),0),0) -> 0 | AR164: =+AC164+AN164+(IF(AP164>0,(AP164-AC164),0)) -> 0 | BX164: matter what day of month put on
C166: TOTAL YARD WASTE | O166: =SUM(O162:O165) -> 15451.2 | Q166: =SUM(Q162:Q165) -> 12360.96 | R166: =SUM(R162:R165) -> 147.1542857 | S166: =SUM(S162:S165) -> 0 | W166: =SUM(W162:W165) -> 0 | AA166: =SUM(AA162:AA165) -> 12360.96 | AB166: =SUM(AB162:AB165) -> 12360.96 | AC166: =SUM(AC162:AC165) -> 3090.24 | AJ166: =SUM(AJ162:AJ165) -> 1030.08 | AL166: 1030.08 | AN166: -3090.24 | AP166: 0 | AR166: 0
C169: Commercial Recycling
A171: TRL | B171: 8707 | C171: S828 PEERLESS TRAILER | F171: 1997 | G171: 5 | H171: 0.2 | J171: S/L | K171: 7 | L171: =F171+K171 -> 2004 | O171: 3000 | Q171: =O171-O171*H171 -> 2400 | R171: =Q171/K171/12 -> 28.57142857 | S171: =IF(P171>0,0,IF(OR(AD171>AE171,AF171<AG171),0,IF(AND(AF171>=AG171,AF171<=AE171),R171*((AF171-AG171)*12),IF(AND(AG171<=AD171,AE171>=AD171),((AE171-AD171)*12)*R171,IF(AF171>AE171,12*R171,0))))) -> 0 | T171: =IF(P171=0,0,IF(AND(AH171>=AG171,AH171<=AF171),((AH171-AG171)*12)*R171,0)) -> 0 | U171: =IF(T171>0,T171,S171) -> 0 | V171: 1 | W171: =V171*SUM(S171:T171) -> 0 | X171: =IF(AD171>AE171,0,IF(AF171<AG171,Q171,IF(AND(AF171>=AG171,AF171<=AE171),(Q171-U171),IF(AND(AG171<=AD171,AE171>=AD171),0,IF(AF171>AE171,((AG171-AD171)*12)*R171,0))))) -> 2400 | Y171: =X171*V171 -> 2400 | Z171: 1 | AA171: =Y171*Z171 -> 2400 | AB171: =IF(P171>0,0,AA171+W171*Z171)*Z171 -> 2400 | AC171: =IF(P171>0,(O171-AA171)/2,IF(AD171>=AG171,(((O171*V171)*Z171)-AB171)/2,((((O171*V171)*Z171)-AA171)+(((O171*V171)*Z171)-AB171))/2)) -> 600 | AD171: =$F171+(($G171-1)/12) -> 1997.333333 | AE171: =($Q$5+1)-($Q$2/12) -> 2017.75 | AF171: =$L171+(($G171-1)/12) -> 2004.333333 | AG171: =$Q$4+($Q$3/12) -> 2016.75 | AH171: =$M171+(($N171-1)/12) -> -0.08333333333 | AJ171: =+IF((AF171-AG171)>3,((O171-Q171)/(AF171-AG171)),(O171-Q171)/3) -> 200 | AL171: =+AJ171+W171 -> 200 | AN171: =+IF(AF171<AG171,-AC171,0) -> -600 | AP171: =+IF(AF171>AE171,IF(AJ171>0,IF(P171>0,(O171-AA171)/2,IF(AD171>=AG171,(((O171*V171)*Z171)-(AB171+AJ171))/2,((((O171*V171)*Z171)-AA171)+(((O171*V171)*Z171)-(AB171+AJ171)))/2)),0),0) -> 0 | AR171: =+AC171+AN171+(IF(AP171>0,(AP171-AC171),0)) -> 0
B172: 8707 | C172: TAX ON #8707 | F172: 1997 | G172: 6 | H172: 0.2 | J172: S/L | K172: 7 | L172: 2004 | O172: 280 | Q172: 224 | R172: 2.666666667 | S172: 0 | T172: 0 | U172: 0 | V172: 1 | W172: 0 | X172: 224 | Y172: 224 | Z172: 1 | AA172: 224 | AB172: 224 | AC172: 56 | AD172: 1997.416667 | AE172: 2017.75 | AF172: 2004.416667 | AG172: 2016.75 | AH172: -0.08333333333 | AJ172: 18.66666667 | AL172: 18.66666667 | AN172: -56 | AP172: 0 | AR172: 0
B173: 8587 | C173: S837 PEERLESS DOLLY | F173: 1997 | G173: 5 | H173: 0.2 | J173: S/L | K173: 7 | L173: 2004 | O173: 3000 | Q173: 2400 | R173: 28.57142857 | S173: 0 | T173: 0 | U173: 0 | V173: 1 | W173: 0 | X173: =IF(AD173>AE173,0,IF(AF173<AG173,Q173,IF(AND(AF173>=AG173,AF173<=AE173),(Q173-U173),IF(AND(AG173<=AD173,AE173>=AD173),0,IF(AF173>AE173,((AG173-AD173)*12)*R173,0))))) -> 2400 | Y173: =X173*V173 -> 2400 | Z173: 1 | AA173: =Y173*Z173 -> 2400 | AB173: =IF(P173>0,0,AA173+W173*Z173)*Z173 -> 2400 | AC173: =IF(P173>0,(O173-AA173)/2,IF(AD173>=AG173,(((O173*V173)*Z173)-AB173)/2,((((O173*V173)*Z173)-AA173)+(((O173*V173)*Z173)-AB173))/2)) -> 600 | AD173: 1997.333333 | AE173: 2017.75 | AF173: 2004.333333 | AG173: 2016.75 | AH173: -0.08333333333 | AJ173: 200 | AL173: 200 | AN173: -600 | AP173: 0 | AR173: 0
B174: 8587 | C174: TAX ON #8587 | F174: 1997 | G174: 6 | H174: 0.2 | J174: S/L | K174: 7 | L174: 2004 | O174: 280 | Q174: 224 | R174: 2.666666667 | S174: 0 | T174: 0 | U174: 0 | V174: 1 | W174: 0 | X174: =IF(AD174>AE174,0,IF(AF174<AG174,Q174,IF(AND(AF174>=AG174,AF174<=AE174),(Q174-U174),IF(AND(AG174<=AD174,AE174>=AD174),0,IF(AF174>AE174,((AG174-AD174)*12)*R174,0))))) -> 224 | Y174: =X174*V174 -> 224 | Z174: 1 | AA174: =Y174*Z174 -> 224 | AB174: =IF(P174>0,0,AA174+W174*Z174)*Z174 -> 224 | AC174: =IF(P174>0,(O174-AA174)/2,IF(AD174>=AG174,(((O174*V174)*Z174)-AB174)/2,((((O174*V174)*Z174)-AA174)+(((O174*V174)*Z174)-AB174))/2)) -> 56 | AD174: 1997.416667 | AE174: 2017.75 | AF174: 2004.416667 | AG174: 2016.75 | AH174: -0.08333333333 | AJ174: 18.66666667 | AL174: 18.66666667 | AN174: -56 | AP174: 0 | AR174: 0
A175: TF Tractor SP | B175: 5576 | C175: '01 INT'L 9200I SBA 6X4 | F175: 2001 | G175: 5 | H175: 0.2 | J175: S/L | K175: 7 | L175: 2008 | O175: 82490.14 | Q175: 65992.112 | R175: 785.620381 | S175: 0 | T175: 0 | U175: 0 | V175: 1 | W175: 0 | X175: 65992.112 | Y175: 65992.112 | Z175: 1 | AA175: 65992.112 | AB175: 65992.112 | AC175: 16498.028 | AD175: 2001.333333 | AE175: 2017.75 | AF175: 2008.333333 | AG175: 2016.75 | AH175: -0.08333333333 | AJ175: 5499.342667 | AL175: 5499.342667 | AN175: -16498.028 | AP175: 0 | AR175: 0
B176: 5576 | C176: LIFT AXLE FOR 5576 | F176: 2001 | G176: 7 | H176: 0.2 | J176: S/L | K176: 7 | L176: 2008 | O176: 4218.86 | Q176: 3375.088 | R176: 40.17961905 | S176: 0 | T176: 0 | U176: 0 | V176: 1 | W176: 0 | X176: 3375.088 | Y176: 3375.088 | Z176: 1 | AA176: 3375.088 | AB176: 3375.088 | AC176: 843.772 | AD176: 2001.5 | AE176: 2017.75 | AF176: 2008.5 | AG176: 2016.75 | AH176: -0.08333333333 | AJ176: 281.2573333 | AL176: 281.2573333 | AN176: -843.772 | AP176: 0 | AR176: 0
C177: (6) TRUCK RADIOS | D177: 88724 | F177: 2011 | G177: 12 | H177: 0 | J177: S/L | K177: 5 | L177: 2016 | O177: =468.93*6 -> 2813.58 | Q177: 2813.58 | R177: 46.893 | S177: 93.786 | T177: 0 | U177: 93.786 | V177: 1 | W177: 93.786 | X177: 2719.794 | Y177: 2719.794 | Z177: 1 | AA177: 2719.794 | AB177: 2813.58 | AC177: 46.893 | AD177: 2011.916667 | AE177: 2017.75 | AF177: 2016.916667 | AG177: 2016.75 | AH177: -0.08333333333
C179: TOTAL COMMERCIAL RECYCLING | O179: =SUM(O171:O178) -> 96082.58 | Q179: =SUM(Q171:Q178) -> 77428.78 | R179: =SUM(R171:R178) -> 935.1691905 | S179: =SUM(S171:S178) -> 93.786 | W179: =SUM(W171:W178) -> 93.786 | AA179: =SUM(AA171:AA178) -> 77334.994 | AB179: =SUM(AB171:AB178) -> 77428.78 | AC179: =SUM(AC171:AC178) -> 18700.693 | AJ179: =SUM(AJ171:AJ178) -> 6217.933333 | AL179: 6217.933333 | AN179: -18653.8 | AP179: 0 | AR179: 0
C181: Container Delivery
A183: DEL | B183: 9388 | C183: 2012 Container Delivery Truck (U) | D183: 118080 | F183: 2014 | G183: 12 | H183: 0.33 | J183: S/L | K183: 5 | L183: =F183+K183 -> 2019 | O183: 144943.14 | Q183: =O183-O183*H183 -> 97111.9038 | R183: =Q183/K183/12 -> 1618.53173 | S183: =IF(P183>0,0,IF(OR(AD183>AE183,AF183<AG183),0,IF(AND(AF183>=AG183,AF183<=AE183),R183*((AF183-AG183)*12),IF(AND(AG183<=AD183,AE183>=AD183),((AE183-AD183)*12)*R183,IF(AF183>AE183,12*R183,0))))) -> 19422.38076 | T183: =IF(P183=0,0,IF(AND(AH183>=AG183,AH183<=AF183),((AH183-AG183)*12)*R183,0)) -> 0 | U183: =IF(T183>0,T183,S183) -> 19422.38076 | V183: 1 | W183: =V183*SUM(S183:T183) -> 19422.38076 | X183: =IF(AD183>AE183,0,IF(AF183<AG183,Q183,IF(AND(AF183>=AG183,AF183<=AE183),(Q183-U183),IF(AND(AG183<=AD183,AE183>=AD183),0,IF(AF183>AE183,((AG183-AD183)*12)*R183,0))))) -> 35607.69806 | Y183: =X183*V183 -> 35607.69806 | Z183: 1 | AA183: =Y183*Z183 -> 35607.69806 | AB183: =IF(P183>0,0,AA183+W183*Z183)*Z183 -> 55030.07882 | AC183: =IF(P183>0,(O183-AA183)/2,IF(AD183>=AG183,(((O183*V183)*Z183)-AB183)/2,((((O183*V183)*Z183)-AA183)+(((O183*V183)*Z183)-AB183))/2)) -> 99624.25156 | AD183: =$F183+(($G183-1)/12) -> 2014.916667 | AE183: =($Q$5+1)-($Q$2/12) -> 2017.75 | AF183: =$L183+(($G183-1)/12) -> 2019.916667 | AG183: =$Q$4+($Q$3/12) -> 2016.75 | AH183: =$M183+(($N183-1)/12) -> -0.08333333333 | AJ183: =+IF((AF183-AG183)>3,((O183-Q183)/(AF183-AG183)),(O183-Q183)/3) -> 15104.60091 | AL183: =+AJ183+W183 -> 34526.98167 | AN183: =+IF(AF183<AG183,-AC183,0) -> 0 | AP183: =+IF(AF183>AE183,IF(AJ183>0,IF(P183>0,(O183-AA183)/2,IF(AD183>=AG183,(((O183*V183)*Z183)-(AB183+AJ183))/2,((((O183*V183)*Z183)-AA183)+(((O183*V183)*Z183)-(AB183+AJ183)))/2)),0),0) -> 92071.95111 | AR183: =+AC183+AN183+(IF(AP183>0,(AP183-AC183),0)) -> 92071.95111
A184: DEL | B184: 9571 | C184: 2005 ISUZU DELIVERY TRUCK (U) | D184: 79653 | F184: 2007 | G184: 2 | H184: 0.33 | J184: S/L | K184: 5 | L184: =F184+K184 -> 2012 | O184: 30083.75 | Q184: =O184-O184*H184 -> 20156.1125 | R184: =Q184/K184/12 -> 335.9352083 | S184: =IF(P184>0,0,IF(OR(AD184>AE184,AF184<AG184),0,IF(AND(AF184>=AG184,AF184<=AE184),R184*((AF184-AG184)*12),IF(AND(AG184<=AD184,AE184>=AD184),((AE184-AD184)*12)*R184,IF(AF184>AE184,12*R184,0))))) -> 0 | T184: =IF(P184=0,0,IF(AND(AH184>=AG184,AH184<=AF184),((AH184-AG184)*12)*R184,0)) -> 0 | U184: =IF(T184>0,T184,S184) -> 0 | V184: 1 | W184: =V184*SUM(S184:T184) -> 0 | X184: =IF(AD184>AE184,0,IF(AF184<AG184,Q184,IF(AND(AF184>=AG184,AF184<=AE184),(Q184-U184),IF(AND(AG184<=AD184,AE184>=AD184),0,IF(AF184>AE184,((AG184-AD184)*12)*R184,0))))) -> 20156.1125 | Y184: =X184*V184 -> 20156.1125 | Z184: 1 | AA184: =Y184*Z184 -> 20156.1125 | AB184: =IF(P184>0,0,AA184+W184*Z184)*Z184 -> 20156.1125 | AC184: =IF(P184>0,(O184-AA184)/2,IF(AD184>=AG184,(((O184*V184)*Z184)-AB184)/2,((((O184*V184)*Z184)-AA184)+(((O184*V184)*Z184)-AB184))/2)) -> 9927.6375 | AD184: =$F184+(($G184-1)/12) -> 2007.083333 | AE184: =($Q$5+1)-($Q$2/12) -> 2017.75 | AF184: =$L184+(($G184-1)/12) -> 2012.083333 | AG184: =$Q$4+($Q$3/12) -> 2016.75 | AH184: =$M184+(($N184-1)/12) -> -0.08333333333 | AJ184: =+IF((AF184-AG184)>3,((O184-Q184)/(AF184-AG184)),(O184-Q184)/3) -> 3309.2125 | AL184: =+AJ184+W184 -> 3309.2125 | AN184: =+IF(AF184<AG184,-AC184,0) -> -9927.6375 | AP184: =+IF(AF184>AE184,IF(AJ184>0,IF(P184>0,(O184-AA184)/2,IF(AD184>=AG184,(((O184*V184)*Z184)-(AB184+AJ184))/2,((((O184*V184)*Z184)-AA184)+(((O184*V184)*Z184)-(AB184+AJ184)))/2)),0),0) -> 0 | AR184: =+AC184+AN184+(IF(AP184>0,(AP184-AC184),0)) -> 0
A185: DEL | B185: 5038 | C185: 1998 UD RECYCLE CURBSIDE | F185: 1999 | G185: 7 | H185: 0.2 | J185: S/L | K185: 7 | L185: =F185+K185 -> 2006 | O185: 50000 | Q185: =O185-O185*H185 -> 40000 | R185: =Q185/K185/12 -> 476.1904762 | S185: =IF(P185>0,0,IF(OR(AD185>AE185,AF185<AG185),0,IF(AND(AF185>=AG185,AF185<=AE185),R185*((AF185-AG185)*12),IF(AND(AG185<=AD185,AE185>=AD185),((AE185-AD185)*12)*R185,IF(AF185>AE185,12*R185,0))))) -> 0 | T185: =IF(P185=0,0,IF(AND(AH185>=AG185,AH185<=AF185),((AH185-AG185)*12)*R185,0)) -> 0 | U185: =IF(T185>0,T185,S185) -> 0 | V185: 1 | W185: =V185*SUM(S185:T185) -> 0 | X185: =IF(AD185>AE185,0,IF(AF185<AG185,Q185,IF(AND(AF185>=AG185,AF185<=AE185),(Q185-U185),IF(AND(AG185<=AD185,AE185>=AD185),0,IF(AF185>AE185,((AG185-AD185)*12)*R185,0))))) -> 40000 | Y185: =X185*V185 -> 40000 | Z185: 1 | AA185: =Y185*Z185 -> 40000 | AB185: =IF(P185>0,0,AA185+W185*Z185)*Z185 -> 40000 | AC185: =IF(P185>0,(O185-AA185)/2,IF(AD185>=AG185,(((O185*V185)*Z185)-AB185)/2,((((O185*V185)*Z185)-AA185)+(((O185*V185)*Z185)-AB185))/2)) -> 10000 | AD185: =$F185+(($G185-1)/12) -> 1999.5 | AE185: =($Q$5+1)-($Q$2/12) -> 2017.75 | AF185: =$L185+(($G185-1)/12) -> 2006.5 | AG185: =$Q$4+($Q$3/12) -> 2016.75 | AH185: =$M185+(($N185-1)/12) -> -0.08333333333 | AJ185: =+IF((AF185-AG185)>3,((O185-Q185)/(AF185-AG185)),(O185-Q185)/3) -> 3333.333333 | AL185: =+AJ185+W185 -> 3333.333333 | AN185: =+IF(AF185<AG185,-AC185,0) -> -10000 | AP185: =+IF(AF185>AE185,IF(AJ185>0,IF(P185>0,(O185-AA185)/2,IF(AD185>=AG185,(((O185*V185)*Z185)-(AB185+AJ185))/2,((((O185*V185)*Z185)-AA185)+(((O185*V185)*Z185)-(AB185+AJ185)))/2)),0),0) -> 0 | AR185: =+AC185+AN185+(IF(AP185>0,(AP185-AC185),0)) -> 0
A186: DEL | B186: 5038 | C186: USE TAX | F186: 1999 | G186: 7 | H186: 0.33 | J186: S/L | K186: 5 | L186: =F186+K186 -> 2004 | O186: 3950 | Q186: =O186-O186*H186 -> 2646.5 | R186: =Q186/K186/12 -> 44.10833333 | S186: =IF(P186>0,0,IF(OR(AD186>AE186,AF186<AG186),0,IF(AND(AF186>=AG186,AF186<=AE186),R186*((AF186-AG186)*12),IF(AND(AG186<=AD186,AE186>=AD186),((AE186-AD186)*12)*R186,IF(AF186>AE186,12*R186,0))))) -> 0 | T186: =IF(P186=0,0,IF(AND(AH186>=AG186,AH186<=AF186),((AH186-AG186)*12)*R186,0)) -> 0 | U186: =IF(T186>0,T186,S186) -> 0 | V186: 1 | W186: =V186*SUM(S186:T186) -> 0 | X186: =IF(AD186>AE186,0,IF(AF186<AG186,Q186,IF(AND(AF186>=AG186,AF186<=AE186),(Q186-U186),IF(AND(AG186<=AD186,AE186>=AD186),0,IF(AF186>AE186,((AG186-AD186)*12)*R186,0))))) -> 2646.5 | Y186: =X186*V186 -> 2646.5 | Z186: 1 | AA186: =Y186*Z186 -> 2646.5 | AB186: =IF(P186>0,0,AA186+W186*Z186)*Z186 -> 2646.5 | AC186: =IF(P186>0,(O186-AA186)/2,IF(AD186>=AG186,(((O186*V186)*Z186)-AB186)/2,((((O186*V186)*Z186)-AA186)+(((O186*V186)*Z186)-AB186))/2)) -> 1303.5 | AD186: =$F186+(($G186-1)/12) -> 1999.5 | AE186: =($Q$5+1)-($Q$2/12) -> 2017.75 | AF186: =$L186+(($G186-1)/12) -> 2004.5 | AG186: =$Q$4+($Q$3/12) -> 2016.75 | AH186: =$M186+(($N186-1)/12) -> -0.08333333333 | AJ186: =+IF((AF186-AG186)>3,((O186-Q186)/(AF186-AG186)),(O186-Q186)/3) -> 434.5 | AL186: =+AJ186+W186 -> 434.5 | AN186: =+IF(AF186<AG186,-AC186,0) -> -1303.5 | AP186: =+IF(AF186>AE186,IF(AJ186>0,IF(P186>0,(O186-AA186)/2,IF(AD186>=AG186,(((O186*V186)*Z186)-(AB186+AJ186))/2,((((O186*V186)*Z186)-AA186)+(((O186*V186)*Z186)-(AB186+AJ186)))/2)),0),0) -> 0 | AR186: =+AC186+AN186+(IF(AP186>0,(AP186-AC186),0)) -> 0
C188: TOTAL CONTAINER DELIVERY | O188: =SUM(O183:O187) -> 228976.89 | Q188: =SUM(Q183:Q187) -> 159914.5163 | R188: =SUM(R183:R187) -> 2474.765748 | S188: =SUM(S183:S187) -> 19422.38076 | W188: =SUM(W183:W187) -> 19422.38076 | AA188: =SUM(AA183:AA187) -> 98410.31056 | AB188: =SUM(AB183:AB187) -> 117832.6913 | AC188: =SUM(AC183:AC187) -> 120855.3891 | AJ188: =SUM(AJ183:AJ187) -> 22181.64674 | AL188: 41604.0275 | AN188: -21231.1375 | AP188: 92071.95111 | AR188: 92071.95111
C190: GRAND TOTAL | O190: =SUM(O166,O157,O148,O119,O85,O179,O188) -> 10075766.38 | Q190: =SUM(Q166,Q157,Q148,Q119,Q85,Q179,Q188) -> 8588419.757 | R190: =SUM(R166,R157,R148,R119,R85,R179,R188) -> 99756.16277 | S190: =SUM(S166,S157,S148,S119,S85,S179,S188) -> 401676.6408 | W190: =SUM(W166,W157,W148,W119,W85,W179,W188) -> 418225.2908 | AA190: =SUM(AA166,AA157,AA148,AA119,AA85,AA179,AA188) -> 6062220.871 | AB190: =SUM(AB166,AB157,AB148,AB119,AB85,AB179,AB188) -> 7850778.645 | AC190: =SUM(AC166,AC157,AC148,AC119,AC85,AC179,AC188) -> 28855852.14 | AJ190: =SUM(AJ166,AJ157,AJ148,AJ119,AJ85,AJ179,AJ188) -> 463563.6926 | AL190: 848597.8974 | AN190: -1035346.661 | AP190: 1106375.133 | AR190: 2043580.404
C201: RETIRED/TRANSFERRED 2011
A202: FL | B202: 2027 | C202: '05 AUTOCAR W/MCNEILUS F/L BODY | F202: 2006 | G202: 9 | H202: 0.2 | J202: S/L | K202: 7 | L202: =F202+K202 -> 2013 | M202: 2011 | N202: 9 | O202: 201740.62 | P202: 0 | Q202: =O202-O202*H202 -> 161392.496 | R202: =Q202/K202/12 -> 1921.339238 | S202: =IF(P202>0,0,IF(OR(AD202>AE202,AF202<AG202),0,IF(AND(AF202>=AG202,AF202<=AE202),R202*((AF202-AG202)*12),IF(AND(AG202<=AD202,AE202>=AD202),((AE202-AD202)*12)*R202,IF(AF202>AE202,12*R202,0))))) -> 0 | T202: =IF(P202=0,0,IF(AND(AH202>=AG202,AH202<=AF202),((AH202-AG202)*12)*R202,0)) -> 0 | U202: =IF(T202>0,T202,S202) -> 0 | V202: 1 | W202: =V202*SUM(S202:T202) -> 0 | X202: =IF(AD202>AE202,0,IF(AF202<AG202,Q202,IF(AND(AF202>=AG202,AF202<=AE202),(Q202-U202),IF(AND(AG202<=AD202,AE202>=AD202),0,IF(AF202>AE202,((AG202-AD202)*12)*R202,0))))) -> 161392.496 | Y202: =X202*V202 -> 161392.496 | Z202: 1 | AA202: =Y202*Z202 -> 161392.496 | AB202: =IF(P202>0,0,AA202+W202*Z202)*Z202 -> 161392.496 | AC202: =IF(P202>0,(O202-AA202)/2,IF(AD202>=AG202,(((O202*V202)*Z202)-AB202)/2,((((O202*V202)*Z202)-AA202)+(((O202*V202)*Z202)-AB202))/2)) -> 40348.124 | AD202: =$F202+(($G202-1)/12) -> 2006.666667 | AE202: =($Q$5+1)-($Q$2/12) -> 2017.75 | AF202: =$L202+(($G202-1)/12) -> 2013.666667 | AG202: =$Q$4+($Q$3/12) -> 2016.75 | AH202: =$M202+(($N202-1)/12) -> 2011.666667
C206: RETIRED/TRANSFERRED 2012
A207: FL | B207: 2036 | C207: 2011 PETERBUILT FEL W/MCNEILUS BODY (N) | D207: 88663 | E207: 2188 | F207: 2011 | G207: 12 | H207: 0.2 | J207: S/L | K207: 7 | L207: =F207+K207 -> 2018 | O207: 245480.55 | P207: 0 | Q207: =O207-O207*H207 -> 196384.44 | R207: =Q207/K207/12 -> 2337.91 | S207: =IF(P207>0,0,IF(OR(AD207>AE207,AF207<AG207),0,IF(AND(AF207>=AG207,AF207<=AE207),R207*((AF207-AG207)*12),IF(AND(AG207<=AD207,AE207>=AD207),((AE207-AD207)*12)*R207,IF(AF207>AE207,12*R207,0))))) -> 28054.92 | T207: =IF(P207=0,0,IF(AND(AH207>=AG207,AH207<=AF207),((AH207-AG207)*12)*R207,0)) -> 0 | U207: =IF(T207>0,T207,S207) -> 28054.92 | V207: 1 | W207: =V207*SUM(S207:T207) -> 28054.92 | X207: =IF(AD207>AE207,0,IF(AF207<AG207,Q207,IF(AND(AF207>=AG207,AF207<=AE207),(Q207-U207),IF(AND(AG207<=AD207,AE207>=AD207),0,IF(AF207>AE207,((AG207-AD207)*12)*R207,0))))) -> 135598.78 | Y207: =X207*V207 -> 135598.78 | Z207: 1 | AA207: =Y207*Z207 -> 135598.78 | AB207: =IF(P207>0,0,AA207+W207*Z207)*Z207 -> 163653.7 | AC207: =IF(P207>0,(O207-AA207)/2,IF(AD207>=AG207,(((O207*V207)*Z207)-AB207)/2,((((O207*V207)*Z207)-AA207)+(((O207*V207)*Z207)-AB207))/2)) -> 95854.31 | AD207: =$F207+(($G207-1)/12) -> 2011.916667 | AE207: =($Q$5+1)-($Q$2/12) -> 2017.75 | AF207: =$L207+(($G207-1)/12) -> 2018.916667 | AG207: =$Q$4+($Q$3/12) -> 2016.75 | AH207: =$M207+(($N207-1)/12) -> -0.08333333333
C210: RETIRED/TRANSFERRED 2013
A211: RO | B211: 4032 | C211: '02 INT'L 9200I W/DROP | F211: 2003 | G211: 7 | H211: 0.2 | J211: S/L | K211: 7 | L211: =F211+K211 -> 2010 | O211: 106113.75 | Q211: =O211-O211*H211 -> 84891 | R211: =Q211/K211/12 -> 1010.607143 | S211: =IF(P211>0,0,IF(OR(AD211>AE211,AF211<AG211),0,IF(AND(AF211>=AG211,AF211<=AE211),R211*((AF211-AG211)*12),IF(AND(AG211<=AD211,AE211>=AD211),((AE211-AD211)*12)*R211,IF(AF211>AE211,12*R211,0))))) -> 0 | T211: =IF(P211=0,0,IF(AND(AH211>=AG211,AH211<=AF211),((AH211-AG211)*12)*R211,0)) -> 0 | U211: =IF(T211>0,T211,S211) -> 0 | V211: 1 | W211: =V211*SUM(S211:T211) -> 0 | X211: =IF(AD211>AE211,0,IF(AF211<AG211,Q211,IF(AND(AF211>=AG211,AF211<=AE211),(Q211-U211),IF(AND(AG211<=AD211,AE211>=AD211),0,IF(AF211>AE211,((AG211-AD211)*12)*R211,0))))) -> 84891 | Y211: =X211*V211 -> 84891 | Z211: 1 | AA211: =Y211*Z211 -> 84891 | AB211: =IF(P211>0,0,AA211+W211*Z211)*Z211 -> 84891 | AC211: =IF(P211>0,(O211-AA211)/2,IF(AD211>=AG211,(((O211*V211)*Z211)-AB211)/2,((((O211*V211)*Z211)-AA211)+(((O211*V211)*Z211)-AB211))/2)) -> 21222.75 | AD211: =$F211+(($G211-1)/12) -> 2003.5 | AE211: =($Q$5+1)-($Q$2/12) -> 2017.75 | AF211: =$L211+(($G211-1)/12) -> 2010.5 | AG211: =$Q$4+($Q$3/12) -> 2016.75 | AH211: =$M211+(($N211-1)/12) -> -0.08333333333
C216: RETIRED/TRANSFERRED 2014
A217: FL | B217: 2502 | C217: 1996 MACK | F217: 1996 | G217: 4 | H217: 0.2 | J217: S/L | K217: 7 | L217: =F217+K217 -> 2003 | O217: 89610 | Q217: =O217-O217*H217 -> 71688 | R217: =Q217/K217/12 -> 853.4285714 | S217: =IF(P217>0,0,IF(OR(AD217>AE217,AF217<AG217),0,IF(AND(AF217>=AG217,AF217<=AE217),R217*((AF217-AG217)*12),IF(AND(AG217<=AD217,AE217>=AD217),((AE217-AD217)*12)*R217,IF(AF217>AE217,12*R217,0))))) -> 0 | T217: =IF(P217=0,0,IF(AND(AH217>=AG217,AH217<=AF217),((AH217-AG217)*12)*R217,0)) -> 0 | U217: =IF(T217>0,T217,S217) -> 0 | V217: 1 | W217: =V217*SUM(S217:T217) -> 0 | X217: =IF(AD217>AE217,0,IF(AF217<AG217,Q217,IF(AND(AF217>=AG217,AF217<=AE217),(Q217-U217),IF(AND(AG217<=AD217,AE217>=AD217),0,IF(AF217>AE217,((AG217-AD217)*12)*R217,0))))) -> 71688 | Y217: =X217*V217 -> 71688 | Z217: 1 | AA217: =Y217*Z217 -> 71688 | AB217: =IF(P217>0,0,AA217+W217*Z217)*Z217 -> 71688 | AC217: =IF(P217>0,(O217-AA217)/2,IF(AD217>=AG217,(((O217*V217)*Z217)-AB217)/2,((((O217*V217)*Z217)-AA217)+(((O217*V217)*Z217)-AB217))/2)) -> 17922 | AD217: =$F217+(($G217-1)/12) -> 1996.25 | AE217: =($Q$5+1)-($Q$2/12) -> 2017.75 | AF217: =$L217+(($G217-1)/12) -> 2003.25 | AG217: =$Q$4+($Q$3/12) -> 2016.75 | AH217: =$M217+(($N217-1)/12) -> -0.08333333333
A218: FL | B218: 2502 | C218: 40YD F/L PACKER | F218: 1996 | G218: 6 | H218: 0.2 | J218: S/L | K218: 7 | L218: 2003 | O218: 42120 | Q218: 33696 | R218: 401.1428571 | S218: 0 | T218: 0 | U218: 0 | V218: 1 | W218: 0 | X218: 33696 | Y218: 33696 | Z218: 1 | AA218: 33696 | AB218: 33696 | AC218: 8424 | AD218: 1996.416667 | AE218: 2017.75 | AF218: 2003.416667 | AG218: 2016.75 | AH218: -0.08333333333
A219: FL | B219: 2502 | C219: INSTALLATION FOR #2502 | F219: 1996 | G219: 6 | H219: 0.2 | J219: S/L | K219: 7 | L219: 2003 | O219: 15490 | Q219: 12392 | R219: 147.5238095 | S219: 0 | T219: 0 | U219: 0 | V219: 1 | W219: 0 | X219: 12392 | Y219: 12392 | Z219: 1 | AA219: 12392 | AB219: 12392 | AC219: 3098 | AD219: 1996.416667 | AE219: 2017.75 | AF219: 2003.416667 | AG219: 2016.75 | AH219: -0.08333333333
A220: FL | B220: 2502 | C220: FLEXARM | F220: 1999 | G220: 8 | H220: 0.2 | J220: S/L | K220: 7 | L220: 2006 | O220: 22752.08 | Q220: 18201.664 | R220: 216.6864762 | S220: 0 | T220: 0 | U220: 0 | V220: 1 | W220: 0 | X220: 18201.664 | Y220: 18201.664 | Z220: 1 | AA220: 18201.664 | AB220: 18201.664 | AC220: 4550.416 | AD220: 1999.583333 | AE220: 2017.75 | AF220: 2006.583333 | AG220: 2016.75 | AH220: -0.08333333333
A221: RL SP | B221: 1638 | C221: 1994 Type H Rear REL | F221: 2007 | G221: 2 | H221: 0.33 | J221: S/L | K221: 5 | L221: 2012 | O221: 0 | Q221: 0 | R221: 0 | S221: 0 | T221: 0 | U221: 0 | V221: 1 | W221: 0 | X221: 0 | Y221: 0 | Z221: 1 | AA221: 0 | AB221: 0 | AC221: 0 | AD221: 2007.083333 | AE221: 2017.75 | AF221: 2012.083333 | AG221: 2016.75 | AH221: -0.08333333333
B222: 1638 | C222: NEW TRANSMISSION. REL 1994 FREIGHTLINER. | F222: 2007 | G222: 2 | H222: 0 | J222: S/L | K222: 3 | L222: 2010 | O222: 7114.37 | Q222: 7114.37 | R222: 197.6213889 | S222: 0 | T222: 0 | U222: 0 | V222: 1 | W222: 0 | X222: 7114.37 | Y222: 7114.37 | Z222: 1 | AA222: 7114.37 | AB222: 7114.37 | AC222: 0 | AD222: 2007.083333 | AE222: 2017.75 | AF222: 2010.083333 | AG222: 2016.75 | AH222: -0.08333333333
C225: RETIRED/TRANSFERRED 2016
B226: 4022 | C226: 2000 INTERNATIONAL 9200I SBA 6X4 | F226: 1999 | G226: 12 | H226: 0.2 | J226: S/L | K226: 7 | L226: =F226+K226 -> 2006 | O226: 79524.98 | Q226: =O226-O226*H226 -> 63619.984 | R226: =Q226/K226/12 -> 757.3807619 | S226: =IF(P226>0,0,IF(OR(AD226>AE226,AF226<AG226),0,IF(AND(AF226>=AG226,AF226<=AE226),R226*((AF226-AG226)*12),IF(AND(AG226<=AD226,AE226>=AD226),((AE226-AD226)*12)*R226,IF(AF226>AE226,12*R226,0))))) -> 0 | T226: =IF(P226=0,0,IF(AND(AH226>=AG226,AH226<=AF226),((AH226-AG226)*12)*R226,0)) -> 0 | U226: =IF(T226>0,T226,S226) -> 0 | V226: 1 | W226: =V226*SUM(S226:T226) -> 0 | X226: =IF(AD226>AE226,0,IF(AF226<AG226,Q226,IF(AND(AF226>=AG226,AF226<=AE226),(Q226-U226),IF(AND(AG226<=AD226,AE226>=AD226),0,IF(AF226>AE226,((AG226-AD226)*12)*R226,0))))) -> 63619.984 | Y226: =X226*V226 -> 63619.984 | Z226: 1 | AA226: =Y226*Z226 -> 63619.984 | AB226: =IF(P226>0,0,AA226+W226*Z226)*Z226 -> 63619.984 | AC226: =IF(P226>0,(O226-AA226)/2,IF(AD226>=AG226,(((O226*V226)*Z226)-AB226)/2,((((O226*V226)*Z226)-AA226)+(((O226*V226)*Z226)-AB226))/2)) -> 15904.996 | AD226: =$F226+(($G226-1)/12) -> 1999.916667 | AE226: =($Q$5+1)-($Q$2/12) -> 2017.75 | AF226: =$L226+(($G226-1)/12) -> 2006.916667 | AG226: =$Q$4+($Q$3/12) -> 2016.75 | AH226: =$M226+(($N226-1)/12) -> -0.08333333333
A227: RO | B227: 4022 | C227: HY-TOWER TARPER | F227: 1999 | G227: 3 | H227: 0.33 | J227: S/L | K227: 5 | L227: 2004 | O227: 2470.69 | Q227: 1655.3623 | R227: 27.58937167 | S227: 0 | T227: 0 | U227: 0 | V227: 1 | W227: 0 | X227: 1655.3623 | Y227: 1655.3623 | Z227: 1 | AA227: 1655.3623 | AB227: 1655.3623 | AC227: 815.3277 | AD227: 1999.166667 | AE227: 2017.75 | AF227: 2004.166667 | AG227: 2016.75 | AH227: -0.08333333333
A228: RO | B228: 4022 | C228: LIFT AXLE | F228: 2000 | G228: 7 | H228: 0.2 | J228: S/L | K228: 7 | L228: 2007 | O228: 5662.21 | Q228: 4529.768 | R228: 53.92580952 | S228: 0 | T228: 0 | U228: 0 | V228: 1 | W228: 0 | X228: 4529.768 | Y228: 4529.768 | Z228: 1 | AA228: 4529.768 | AB228: 4529.768 | AC228: 1132.442 | AD228: 2000.5 | AE228: 2017.75 | AF228: 2007.5 | AG228: 2016.75 | AH228: -0.08333333333
A229: TF Tractor SP | B229: 4022 | C229: ROLL-OFF UNIT | F229: 2000 | G229: 9 | H229: 0.2 | J229: S/L | K229: 7 | L229: 2007 | O229: 6768.27 | Q229: 5414.616 | R229: 64.45971429 | S229: 0 | T229: 0 | U229: 0 | V229: 1 | W229: 0 | X229: 5414.616 | Y229: 5414.616 | Z229: 1 | AA229: 5414.616 | AB229: 5414.616 | AC229: 1353.654 | AD229: 2000.666667 | AE229: 2017.75 | AF229: 2007.666667 | AG229: 2016.75 | AH229: -0.08333333333
B230: 4022 | C230: FLUP 4022 | F230: 2009 | G230: 5 | H230: 0 | J230: S/L | K230: 3 | L230: 2012 | O230: 2957.15 | Q230: 2957.15 | R230: 82.14305556 | S230: 0 | T230: 0 | U230: 0 | V230: 1 | W230: 0 | X230: 2957.15 | Y230: 2957.15 | Z230: 1 | AA230: 2957.15 | AB230: 2957.15 | AC230: 0 | AD230: 2009.333333 | AE230: 2017.75 | AF230: 2012.333333 | AG230: 2016.75 | AH230: -0.08333333333
A231: ASL | B231: 3518 | C231: '00 PETE 320 W/24YD LEACH CURBTENDER | F231: 2000 | G231: 9 | H231: 0.2 | J231: S/L | K231: 7 | L231: 2007 | O231: 141947.68 | Q231: 113558.144 | R231: 1351.882667 | S231: 0 | T231: 0 | U231: 0 | V231: 1 | W231: 0 | X231: 113558.144 | Y231: 113558.144 | Z231: 1 | AA231: 113558.144 | AB231: 113558.144 | AC231: 28389.536 | AD231: 2000.666667 | AE231: 2017.75 | AF231: 2007.666667 | AG231: 2016.75 | AH231: -0.08333333333
A232: ASL | B232: 3518 | C232: Trans Replacement #3518 | D232: 118257 | F232: 2014 | G232: 10 | H232: 0 | J232: S/L | K232: 3 | L232: 2017 | O232: 6739.1 | Q232: 6739.1 | R232: 187.1972222 | S232: 2246.366667 | T232: 0 | U232: 2246.366667 | V232: 1 | W232: 2246.366667 | X232: 4492.733333 | Y232: 4492.733333 | Z232: 1 | AA232: 4492.733333 | AB232: 6739.1 | AC232: 1123.183333 | AD232: 2014.75 | AE232: 2017.75 | AF232: 2017.75 | AG232: 2016.75 | AH232: -0.08333333333
A233: ASL | B233: 3518 | C233: Improvement - ASL Auto Hopper Cover Kit | D233: 118256 | F233: 2014 | G233: 12 | H233: 0 | J233: S/L | K233: 3 | L233: 2017 | O233: 2532.61 | Q233: 2532.61 | R233: 70.35027778 | S233: 844.2033333 | T233: 0 | U233: 844.2033333 | V233: 1 | W233: 844.2033333 | X233: 1547.706111 | Y233: 1547.706111 | Z233: 1 | AA233: 1547.706111 | AB233: 2391.909444 | AC233: 562.8022222 | AD233: 2014.916667 | AE233: 2017.75 | AF233: 2017.916667 | AG233: 2016.75 | AH233: -0.08333333333
A234: SL | B234: 3514 | C234: 2000 PETERBILT | F234: 1999 | G234: 8 | H234: 0.2 | J234: S/L | K234: 7 | L234: 2006 | O234: 77645.95 | Q234: 62116.76 | R234: 739.4852381 | S234: 0 | T234: 0 | U234: 0 | V234: 1 | W234: 0 | X234: 62116.76 | Y234: 62116.76 | Z234: 1 | AA234: 62116.76 | AB234: 62116.76 | AC234: 15529.19 | AD234: 1999.583333 | AE234: 2017.75 | AF234: 2006.583333 | AG234: 2016.75 | AH234: -0.08333333333
A235: SL | B235: 3514 | C235: 24 CU YD LEACH CURBTENDER | F235: 1999 | G235: 10 | H235: 0.2 | J235: S/L | K235: 7 | L235: 2006 | O235: 61640.63 | Q235: 49312.504 | R235: 587.053619 | S235: 0 | T235: 0 | U235: 0 | V235: 1 | W235: 0 | X235: 49312.504 | Y235: 49312.504 | Z235: 1 | AA235: 49312.504 | AB235: 49312.504 | AC235: 12328.126 | AD235: 1999.75 | AE235: 2017.75 | AF235: 2006.75 | AG235: 2016.75 | AH235: -0.08333333333
A236: SL | B236: 3514 | C236: TRAVEL COSTS-3514 | F236: 1999 | G236: 11 | H236: 0.2 | J236: S/L | K236: 7 | L236: 2006 | O236: 1156.43 | Q236: 925.144 | R236: 11.01361905 | S236: 0 | T236: 0 | U236: 0 | V236: 1 | W236: 0 | X236: 925.144 | Y236: 925.144 | Z236: 1 | AA236: 925.144 | AB236: 925.144 | AC236: 231.286 | AD236: 1999.833333 | AE236: 2017.75 | AF236: 2006.833333 | AG236: 2016.75 | AH236: -0.08333333333
A237: SL | B237: 3514 | C237: FLUP - TRUCK 3514 | F237: 2009 | G237: 6 | H237: 0 | J237: S/L | K237: 3 | L237: 2012 | O237: 3470.7 | Q237: 3470.7 | R237: 96.40833333 | S237: 0 | T237: 0 | U237: 0 | V237: 1 | W237: 0 | X237: 3470.7 | Y237: 3470.7 | Z237: 1 | AA237: 3470.7 | AB237: 3470.7 | AC237: 0 | AD237: 2009.416667 | AE237: 2017.75 | AF237: 2012.416667 | AG237: 2016.75 | AH237: -0.08333333333
A238: SL | B238: 3514 | C238: Improvement - ASL Auto Hopper Cover Kit | D238: 118255 | F238: 2014 | G238: 12 | H238: 0 | J238: S/L | K238: 3 | L238: 2017 | O238: 2532.61 | Q238: 2532.61 | R238: 70.35027778 | S238: 844.2033333 | T238: 0 | U238: 844.2033333 | V238: 1 | W238: 844.2033333 | X238: 1547.706111 | Y238: 1547.706111 | Z238: 1 | AA238: 1547.706111 | AB238: 2391.909444 | AC238: 562.8022222 | AD238: 2014.916667 | AE238: 2017.75 | AF238: 2017.916667 | AG238: 2016.75 | AH238: -0.08333333333
A239: RL | B239: 1558 | C239: 1992 VOLVO REAR LOADER | F239: 2009 | G239: 6 | H239: 0.33 | J239: S/L | K239: 5 | L239: 2014 | O239: 0 | Q239: 0 | R239: 0 | S239: 0 | T239: 0 | U239: 0 | V239: 1 | W239: 0 | X239: 0 | Y239: 0 | Z239: 1 | AA239: 0 | AB239: 0 | AC239: 0 | AD239: 2009.416667 | AE239: 2017.75 | AF239: 2014.416667 | AG239: 2016.75 | AH239: -0.08333333333
B240: 1558 | C240: FLUP 1558 | F240: 2009 | G240: 6 | H240: 0.33 | J240: S/L | K240: 5 | L240: 2014 | O240: 20268.11 | Q240: 13579.6337 | R240: 226.3272283 | S240: 0 | T240: 0 | U240: 0 | V240: 1 | W240: 0 | X240: 13579.6337 | Y240: 13579.6337 | Z240: 1 | AA240: 13579.6337 | AB240: 13579.6337 | AC240: 6688.4763 | AD240: 2009.416667 | AE240: 2017.75 | AF240: 2014.416667 | AG240: 2016.75 | AH240: -0.08333333333
C242: RETIRED/TRANSFERRED 2018
A244: ASL | B244: 9610 | C244: 1990 ISUZU MPR S/L TRUCK | F244: 1999 | G244: 6 | H244: 0.33 | J244: S/L | K244: 5 | L244: =F244+K244 -> 2004 | O244: 5000 | Q244: =O244-O244*H244 -> 3350 | R244: =Q244/K244/12 -> 55.83333333 | S244: =IF(P244>0,0,IF(OR(AD244>AE244,AF244<AG244),0,IF(AND(AF244>=AG244,AF244<=AE244),R244*((AF244-AG244)*12),IF(AND(AG244<=AD244,AE244>=AD244),((AE244-AD244)*12)*R244,IF(AF244>AE244,12*R244,0))))) -> 0 | T244: =IF(P244=0,0,IF(AND(AH244>=AG244,AH244<=AF244),((AH244-AG244)*12)*R244,0)) -> 0 | U244: =IF(T244>0,T244,S244) -> 0 | V244: 1 | W244: =V244*SUM(S244:T244) -> 0 | X244: =IF(AD244>AE244,0,IF(AF244<AG244,Q244,IF(AND(AF244>=AG244,AF244<=AE244),(Q244-U244),IF(AND(AG244<=AD244,AE244>=AD244),0,IF(AF244>AE244,((AG244-AD244)*12)*R244,0))))) -> 3350 | Y244: =X244*V244 -> 3350 | Z244: 1 | AA244: =Y244*Z244 -> 3350 | AB244: =IF(P244>0,0,AA244+W244*Z244)*Z244 -> 3350 | AC244: =IF(P244>0,(O244-AA244)/2,IF(AD244>=AG244,(((O244*V244)*Z244)-AB244)/2,((((O244*V244)*Z244)-AA244)+(((O244*V244)*Z244)-AB244))/2)) -> 1650 | AD244: =$F244+(($G244-1)/12) -> 1999.416667 | AE244: =($Q$5+1)-($Q$2/12) -> 2017.75 | AF244: =$L244+(($G244-1)/12) -> 2004.416667 | AG244: =$Q$4+($Q$3/12) -> 2016.75 | AH244: =$M244+(($N244-1)/12) -> -0.08333333333 | AJ244: =+IF((AF244-AG244)>3,((O244-Q244)/(AF244-AG244)),(O244-Q244)/3) -> 550 | AL244: =+AJ244+W244 -> 550 | AN244: =+IF(AF244<AG244,-AC244,0) -> -1650 | AP244: =+IF(AF244>AE244,IF(AJ244>0,IF(P244>0,(O244-AA244)/2,IF(AD244>=AG244,(((O244*V244)*Z244)-(AB244+AJ244))/2,((((O244*V244)*Z244)-AA244)+(((O244*V244)*Z244)-(AB244+AJ244)))/2)),0),0) -> 0 | AR244: =+AC244+AN244+(IF(AP244>0,(AP244-AC244),0)) -> 0

Sheet Containers 2188 - Original
A1: 2188 Lewis County/Joe's Refuse | AC1: ='Summary 2188'!F6 -> 43617
A2: Depreciation Schedule | O2: ='Trucks 2188 - Original'!Q2 -> 3 | P2: Months in first year
A3: ='Summary 2188'!A3 -> 43982 | O3: ='Trucks 2188 - Original'!Q3 -> 9 | P3: Months in second year | AC3: A. | AD3: Purchase date
O4: ='Trucks 2188 - Original'!Q4 -> 2016 | P4: First year | AC4: B. | AD4: End of Test Period
O5: ='Trucks 2188 - Original'!Q5 -> 2017 | P5: Second year | AC5: C | AD5: Date fully Depr
AC6: D. | AD6: Beg of Test Period
AC7: E. | AD7: Disposition Date
R8: Disposal | U8: Total | V8: Beginning | W8: Ending | Y8: Beginning | Z8: Ending
D9: Date in | F9: Salvage | J9: Year | N9: Asset | Q9: Test | R9: Year | S9: Total | T9: % | U9: Allocated | V9: Accum | W9: Accum | X9: Branch | Y9: Accum. | Z9: Accum. | AA9: Average
B10: Quantity | D10: Service | F10: Value | H10: Method | I10: Life | J10: Fully | K10: Asset | L10: Mo. | M10: Asset | N10: Disposal | O10: Depr | P10: Monthly | Q10: Year | R10: Depn | S10: Test yr. | T10: Allo. | U10: Test year | V10: Depr | W10: Depr | X10: Allo. | Y10: Depr. | Z10: Depr. | AA10: Investment | AB10: A. | AC10: B | AD10: C. | AE10: D. | AF10: E.
A11: Codes | B11: No | C11: Asset Classification | D11: Year | E11: Mo | F11: % | G11: - | H11: M | I11: Years | J11: Depr | K11: Cost | L11: - | M11: Cost | N11: - | O11: Cost | P11: Depr | Q11: Depr | R11: - | S11: Depn. | T11: - | U11: Depr. | V11: =AC1 -> 43617 | W11: =+A3 -> 43982 | X11: % | Y11: =+V11 -> 43617 | Z11: =+A3 -> 43982 | AA11: =Z11 -> 43982
C13: GARBAGE CONTAINERS
B15: 10, 10 | C15: 1.5 YD & 2YD CONTAINERS | D15: 1997 | E15: 8 | F15: 0 | H15: S/L | I15: 10 | J15: =D15+I15 -> 2007 | M15: 6428.12 | O15: =M15-M15*F15 -> 6428.12 | P15: =O15/I15/12 -> 53.56766667 | Q15: =IF(N15>0,0,IF(OR(AB15>AC15,AD15<AE15),0,IF(AND(AD15>=AE15,AD15<=AC15),P15*((AD15-AE15)*12),IF(AND(AE15<=AB15,AC15>=AB15),((AC15-AB15)*12)*P15,IF(AD15>AC15,12*P15,0))))) -> 0 | R15: =IF(N15=0,0,IF(AND(AF15>=AE15,AF15<=AD15),((AF15-AE15)*12)*P15,0)) -> 0 | S15: =IF(R15>0,R15,Q15) -> 0 | T15: 1 | U15: =T15*SUM(Q15:R15) -> 0 | V15: =IF(AB15>AC15,0,IF(AD15<AE15,O15,IF(AND(AD15>=AE15,AD15<=AC15),(O15-S15),IF(AND(AE15<=AB15,AC15>=AB15),0,IF(AD15>AC15,((AE15-AB15)*12)*P15,0))))) -> 6428.12 | W15: =V15*T15 -> 6428.12 | X15: 1 | Y15: =W15*X15 -> 6428.12 | Z15: =IF(N15>0,0,Y15+U15*X15)*X15 -> 6428.12 | AA15: =IF(N15>0,(M15-Y15)/2,IF(AB15>=AE15,(((M15*T15)*X15)-Z15)/2,((((M15*T15)*X15)-Y15)+(((M15*T15)*X15)-Z15))/2)) -> 0 | AB15: =$D15+(($E15-1)/12) -> 1997.583333 | AC15: =($O$5+1)-($O$2/12) -> 2017.75 | AD15: =$J15+(($E15-1)/12) -> 2007.583333 | AE15: =$O$4+($O$3/12) -> 2016.75 | AF15: =$K15+(($L15-1)/12) -> -0.08333333333
B16: 600 | C16: FEL & REL CONTAINERS | D16: 1999 | E16: 6 | F16: 0 | H16: S/L | I16: 10 | J16: 2009 | M16: 36000 | O16: 36000 | P16: 300 | Q16: 0 | R16: 0 | S16: 0 | T16: 1 | U16: 0 | V16: 36000 | W16: 36000 | X16: 1 | Y16: 36000 | Z16: 36000 | AA16: 0 | AB16: 1999.416667 | AC16: 2017.75 | AD16: 2009.416667 | AE16: 2016.75 | AF16: -0.08333333333
B17: 3 | C17: 1.5 YD SELF DUMP HOPPER | D17: 1999 | E17: 10 | F17: 0 | H17: S/L | I17: 10 | J17: 2009 | M17: 1066.61 | O17: 1066.61 | P17: 8.888416667 | Q17: 0 | R17: 0 | S17: 0 | T17: 1 | U17: 0 | V17: 1066.61 | W17: 1066.61 | X17: 1 | Y17: 1066.61 | Z17: 1066.61 | AA17: 0 | AB17: 1999.75 | AC17: 2017.75 | AD17: 2009.75 | AE17: 2016.75 | AF17: -0.08333333333
B18: 34 | C18: 1.5 YD CONTAINER | D18: 2000 | E18: 4 | F18: 0 | H18: S/L | I18: 10 | J18: 2010 | M18: 10860 | O18: 10860 | P18: 90.5 | Q18: 0 | R18: 0 | S18: 0 | T18: 1 | U18: 0 | V18: 10860 | W18: 10860 | X18: 1 | Y18: 10860 | Z18: 10860 | AA18: 0 | AB18: 2000.25 | AC18: 2017.75 | AD18: 2010.25 | AE18: 2016.75 | AF18: -0.08333333333
B19: 6 | C19: 1.5 YD F/L CONTAINERS | D19: 2000 | E19: 5 | F19: 0 | H19: S/L | I19: 10 | J19: 2010 | M19: 2041.68 | O19: 2041.68 | P19: 17.014 | Q19: 0 | R19: 0 | S19: 0 | T19: 1 | U19: 0 | V19: 2041.68 | W19: 2041.68 | X19: 1 | Y19: 2041.68 | Z19: 2041.68 | AA19: 0 | AB19: 2000.333333 | AC19: 2017.75 | AD19: 2010.333333 | AE19: 2016.75 | AF19: -0.08333333333
B20: 8 | C20: 5 YD F/L CONTAINERS | D20: 2001 | E20: 2 | F20: 0 | H20: S/L | I20: 10 | J20: 2011 | M20: 3312.3 | O20: 3312.3 | P20: 27.6025 | Q20: 0 | R20: 0 | S20: 0 | T20: 1 | U20: 0 | V20: 3312.3 | W20: 3312.3 | X20: 1 | Y20: 3312.3 | Z20: 3312.3 | AA20: 0 | AB20: 2001.083333 | AC20: 2017.75 | AD20: 2011.083333 | AE20: 2016.75 | AF20: -0.08333333333
B21: 12 | C21: 1.5 YD F/L CONTAINERS | D21: 2001 | E21: 3 | F21: 0 | H21: S/L | I21: 10 | J21: 2011 | M21: 3692.4 | O21: 3692.4 | P21: 30.77 | Q21: 0 | R21: 0 | S21: 0 | T21: 1 | U21: 0 | V21: 3692.4 | W21: 3692.4 | X21: 1 | Y21: 3692.4 | Z21: 3692.4 | AA21: 0 | AB21: 2001.166667 | AC21: 2017.75 | AD21: 2011.166667 | AE21: 2016.75 | AF21: -0.08333333333
B22: 19 | C22: 1.5 YD F/L CONTAINERS | D22: 2001 | E22: 7 | F22: 0 | H22: S/L | I22: 10 | J22: 2011 | M22: 5956.8 | O22: 5956.8 | P22: 49.64 | Q22: 0 | R22: 0 | S22: 0 | T22: 1 | U22: 0 | V22: 5956.8 | W22: 5956.8 | X22: 1 | Y22: 5956.8 | Z22: 5956.8 | AA22: 0 | AB22: 2001.5 | AC22: 2017.75 | AD22: 2011.5 | AE22: 2016.75 | AF22: -0.08333333333
B23: 5 | C23: 2 YD R/L CONTAINERS W/ LIDS | D23: 2001 | E23: 8 | F23: 0 | H23: S/L | I23: 10 | J23: 2011 | M23: 1820.99 | O23: 1820.99 | P23: 15.17491667 | Q23: 0 | R23: 0 | S23: 0 | T23: 1 | U23: 0 | V23: 1820.99 | W23: 1820.99 | X23: 1 | Y23: 1820.99 | Z23: 1820.99 | AA23: 0 | AB23: 2001.583333 | AC23: 2017.75 | AD23: 2011.583333 | AE23: 2016.75 | AF23: -0.08333333333
B24: 9 | C24: 1 YD FL/RL COMBO COMMERCIAL CONTAINERS | D24: 2003 | E24: 6 | F24: 0 | H24: S/L | I24: 10 | J24: 2013 | M24: 3393.41 | O24: 3393.41 | P24: 28.27841667 | Q24: 0 | R24: 0 | S24: 0 | T24: 1 | U24: 0 | V24: 3393.41 | W24: 3393.41 | X24: 1 | Y24: 3393.41 | Z24: 3393.41 | AA24: 0 | AB24: 2003.416667 | AC24: 2017.75 | AD24: 2013.416667 | AE24: 2016.75 | AF24: -0.08333333333
B25: 4 | C25: 1.5 YD COMBO COMMERCIAL CONTAINERS | D25: 2003 | E25: 6 | F25: 0 | H25: S/L | I25: 10 | J25: 2013 | M25: 1601.24 | O25: 1601.24 | P25: 13.34366667 | Q25: 0 | R25: 0 | S25: 0 | T25: 1 | U25: 0 | V25: 1601.24 | W25: 1601.24 | X25: 1 | Y25: 1601.24 | Z25: 1601.24 | AA25: 0 | AB25: 2003.416667 | AC25: 2017.75 | AD25: 2013.416667 | AE25: 2016.75 | AF25: -0.08333333333
B26: 9 | C26: 2 YD FL/RL COMBO COMMERCIAL CONTAINERS | D26: 2003 | E26: 6 | F26: 0 | H26: S/L | I26: 10 | J26: 2013 | M26: 3874.69 | O26: 3874.69 | P26: 32.28908333 | Q26: 0 | R26: 0 | S26: 0 | T26: 1 | U26: 0 | V26: 3874.69 | W26: 3874.69 | X26: 1 | Y26: 3874.69 | Z26: 3874.69 | AA26: 0 | AB26: 2003.416667 | AC26: 2017.75 | AD26: 2013.416667 | AE26: 2016.75 | AF26: -0.08333333333
B27: 34 | C27: 1.5 YD CONTAINER | D27: 2003 | E27: 11 | F27: 0 | H27: S/L | I27: 10 | J27: 2013 | M27: 10820 | O27: 10820 | P27: 90.16666667 | Q27: 0 | R27: 0 | S27: 0 | T27: 1 | U27: 0 | V27: 10820 | W27: 10820 | X27: 1 | Y27: 10820 | Z27: 10820 | AA27: 0 | AB27: 2003.833333 | AC27: 2017.75 | AD27: 2013.833333 | AE27: 2016.75 | AF27: -0.08333333333
B28: 0 | C28: TAX - AUTOMATED CONTAINERS | D28: 2003 | E28: 12 | F28: 0 | H28: S/L | I28: 10 | J28: 2013 | M28: 39.13 | O28: 39.13 | P28: 0.3260833333 | Q28: 0 | R28: 0 | S28: 0 | T28: 1 | U28: 0 | V28: 39.13 | W28: 39.13 | X28: 1 | Y28: 39.13 | Z28: 39.13 | AA28: 0 | AB28: 2003.916667 | AC28: 2017.75 | AD28: 2013.916667 | AE28: 2016.75 | AF28: -0.08333333333
B29: 5 | C29: 1 YD RL CONTAINERS | D29: 2004 | E29: 3 | F29: 0 | H29: S/L | I29: 10 | J29: 2014 | M29: 1701.66 | O29: 1701.66 | P29: 14.1805 | Q29: 0 | R29: 0 | S29: 0 | T29: 1 | U29: 0 | V29: 1701.66 | W29: 1701.66 | X29: 1 | Y29: 1701.66 | Z29: 1701.66 | AA29: 0 | AB29: 2004.166667 | AC29: 2017.75 | AD29: 2014.166667 | AE29: 2016.75 | AF29: -0.08333333333
B30: 4 | C30: 1.5 YD RL CONTAINERS | D30: 2004 | E30: 3 | F30: 0 | H30: S/L | I30: 10 | J30: 2014 | M30: 1443.18 | O30: 1443.18 | P30: 12.0265 | Q30: 0 | R30: 0 | S30: 0 | T30: 1 | U30: 0 | V30: 1443.18 | W30: 1443.18 | X30: 1 | Y30: 1443.18 | Z30: 1443.18 | AA30: 0 | AB30: 2004.166667 | AC30: 2017.75 | AD30: 2014.166667 | AE30: 2016.75 | AF30: -0.08333333333
B31: 5 | C31: 2 YD R/L CONTAINERS | D31: 2004 | E31: 3 | F31: 0 | H31: S/L | I31: 10 | J31: 2014 | M31: 1922.45 | O31: 1922.45 | P31: 16.02041667 | Q31: 0 | R31: 0 | S31: 0 | T31: 1 | U31: 0 | V31: 1922.45 | W31: 1922.45 | X31: 1 | Y31: 1922.45 | Z31: 1922.45 | AA31: 0 | AB31: 2004.166667 | AC31: 2017.75 | AD31: 2014.166667 | AE31: 2016.75 | AF31: -0.08333333333
B32: 7 | C32: 2 YD FRONT/REAR LOAD CONTAINER | D32: 2005 | E32: 9 | F32: 0 | H32: S/L | I32: 10 | J32: 2015 | M32: 3164 | O32: 3164 | P32: 26.36666667 | Q32: 0 | R32: 0 | S32: 0 | T32: 1 | U32: 0 | V32: 3164 | W32: 3164 | X32: 1 | Y32: 3164 | Z32: 3164 | AA32: 0 | AB32: 2005.666667 | AC32: 2017.75 | AD32: 2015.666667 | AE32: 2016.75 | AF32: -0.08333333333
B33: 6 | C33: 5 YD F/L CONTAINERS | D33: 2006 | E33: 5 | F33: 0 | H33: S/L | I33: 10 | J33: 2016 | M33: 2562.24 | O33: 2562.24 | P33: 21.352 | Q33: 0 | R33: 0 | S33: 0 | T33: 1 | U33: 0 | V33: 2562.24 | W33: 2562.24 | X33: 1 | Y33: 2562.24 | Z33: 2562.24 | AA33: 0 | AB33: 2006.333333 | AC33: 2017.75 | AD33: 2016.333333 | AE33: 2016.75 | AF33: -0.08333333333
B34: 20 | C34: 1.5 YD F/L CONTAINERS | D34: 2006 | E34: 7 | F34: 0 | H34: S/L | I34: 10 | J34: 2016 | M34: 6201.6 | O34: 6201.6 | P34: 51.68 | Q34: 0 | R34: 0 | S34: 0 | T34: 1 | U34: 0 | V34: 6201.6 | W34: 6201.6 | X34: 1 | Y34: 6201.6 | Z34: 6201.6 | AA34: 0 | AB34: 2006.5 | AC34: 2017.75 | AD34: 2016.5 | AE34: 2016.75 | AF34: -0.08333333333
B35: 35 | C35: 4 YD F/L CONTAINERS | D35: 2006 | E35: 11 | F35: 0 | H35: S/L | I35: 10 | J35: 2016 | M35: 14187.52 | O35: 14187.52 | P35: 118.2293333 | Q35: 118.2293333 | R35: 0 | S35: 118.2293333 | T35: 1 | U35: 118.2293333 | V35: 14069.29067 | W35: 14069.29067 | X35: 1 | Y35: 14069.29067 | Z35: 14187.52 | AA35: 59.11466667 | AB35: 2006.833333 | AC35: 2017.75 | AD35: 2016.833333 | AE35: 2016.75 | AF35: -0.08333333333
B36: 46 | C36: 1 YD R/L CONTAINER | D36: 2007 | E36: 1 | F36: 0 | H36: S/L | I36: 10 | J36: 2017 | M36: 13221.38 | O36: 13221.38 | P36: 110.1781667 | Q36: 330.5345 | R36: 0 | S36: 330.5345 | T36: 1 | U36: 330.5345 | V36: 12890.8455 | W36: 12890.8455 | X36: 1 | Y36: 12890.8455 | Z36: 13221.38 | AA36: 165.26725 | AB36: 2007 | AC36: 2017.75 | AD36: 2017 | AE36: 2016.75 | AF36: -0.08333333333
B37: 26 | C37: 2 YD R/L CONTAINERS | D37: 2007 | E37: 2 | F37: 0 | H37: S/L | I37: 10 | J37: 2017 | M37: 8671.92 | O37: 8671.92 | P37: 72.266 | Q37: 289.064 | R37: 0 | S37: 289.064 | T37: 1 | U37: 289.064 | V37: 8382.856 | W37: 8382.856 | X37: 1 | Y37: 8382.856 | Z37: 8671.92 | AA37: 144.532 | AB37: 2007.083333 | AC37: 2017.75 | AD37: 2017.083333 | AE37: 2016.75 | AF37: -0.08333333333
B38: 19 | C38: 3 YD F/L CONTAINERS | D38: 2007 | E38: 3 | F38: 0 | H38: S/L | I38: 10 | J38: 2017 | M38: 7159.04 | O38: 7159.04 | P38: 59.65866667 | Q38: 298.2933333 | R38: 0 | S38: 298.2933333 | T38: 1 | U38: 298.2933333 | V38: 6860.746667 | W38: 6860.746667 | X38: 1 | Y38: 6860.746667 | Z38: 7159.04 | AA38: 149.1466667 | AB38: 2007.166667 | AC38: 2017.75 | AD38: 2017.166667 | AE38: 2016.75 | AF38: -0.08333333333
B39: 32 | C39: 2 YD F/L CONTAINERS | D39: 2007 | E39: 4 | F39: 0 | H39: S/L | I39: 10 | J39: 2017 | M39: 10998.9 | O39: 10998.9 | P39: 91.6575 | Q39: 549.945 | R39: 0 | S39: 549.945 | T39: 1 | U39: 549.945 | V39: 10448.955 | W39: 10448.955 | X39: 1 | Y39: 10448.955 | Z39: 10998.9 | AA39: 274.9725 | AB39: 2007.25 | AC39: 2017.75 | AD39: 2017.25 | AE39: 2016.75 | AF39: -0.08333333333
B40: 19 | C40: 4 YD AND 6 YD F/L CONTAINERS | D40: 2007 | E40: 4 | F40: 0 | H40: S/L | I40: 10 | J40: 2017 | M40: 7670.4 | O40: 7670.4 | P40: 63.92 | Q40: 383.52 | R40: 0 | S40: 383.52 | T40: 1 | U40: 383.52 | V40: 7286.88 | W40: 7286.88 | X40: 1 | Y40: 7286.88 | Z40: 7670.4 | AA40: 191.76 | AB40: 2007.25 | AC40: 2017.75 | AD40: 2017.25 | AE40: 2016.75 | AF40: -0.08333333333
B41: 52 | C41: 6 YD F/L CONTAINERS | D41: 2007 | E41: 4 | F41: 0 | H41: S/L | I41: 10 | J41: 2017 | M41: 23500.8 | O41: 23500.8 | P41: 195.84 | Q41: 1175.04 | R41: 0 | S41: 1175.04 | T41: 1 | U41: 1175.04 | V41: 22325.76 | W41: 22325.76 | X41: 1 | Y41: 22325.76 | Z41: 23500.8 | AA41: 587.52 | AB41: 2007.25 | AC41: 2017.75 | AD41: 2017.25 | AE41: 2016.75 | AF41: -0.08333333333
B42: 25 | C42: 1.5 YD F/L CONTAINERS | D42: 2007 | E42: 5 | F42: 0 | H42: S/L | I42: 10 | J42: 2017 | M42: 7759.13 | O42: 7759.13 | P42: 64.65941667 | Q42: 452.6159167 | R42: 0 | S42: 452.6159167 | T42: 1 | U42: 452.6159167 | V42: 7306.514083 | W42: 7306.514083 | X42: 1 | Y42: 7306.514083 | Z42: 7759.13 | AA42: 226.3079583 | AB42: 2007.333333 | AC42: 2017.75 | AD42: 2017.333333 | AE42: 2016.75 | AF42: -0.08333333333
B43: 26 | C43: 2 YD R/L CONTAINERS | D43: 2007 | E43: 5 | F43: 0 | H43: S/L | I43: 10 | J43: 2017 | M43: 8739.9 | O43: 8739.9 | P43: 72.8325 | Q43: 509.8275 | R43: 0 | S43: 509.8275 | T43: 1 | U43: 509.8275 | V43: 8230.0725 | W43: 8230.0725 | X43: 1 | Y43: 8230.0725 | Z43: 8739.9 | AA43: 254.91375 | AB43: 2007.333333 | AC43: 2017.75 | AD43: 2017.333333 | AE43: 2016.75 | AF43: -0.08333333333
B44: 43 | C44: 4 YD TIPPER CONTAINERS | D44: 2007 | E44: 5 | F44: 0 | H44: S/L | I44: 10 | J44: 2017 | M44: 17516.8 | O44: 17516.8 | P44: 145.9733333 | Q44: 1021.813333 | R44: 0 | S44: 1021.813333 | T44: 1 | U44: 1021.813333 | V44: 16494.98667 | W44: 16494.98667 | X44: 1 | Y44: 16494.98667 | Z44: 17516.8 | AA44: 510.9066667 | AB44: 2007.333333 | AC44: 2017.75 | AD44: 2017.333333 | AE44: 2016.75 | AF44: -0.08333333333
B45: 43 | C45: 1 YD F/L CONTAINERS | D45: 2007 | E45: 6 | F45: 0 | H45: S/L | I45: 10 | J45: 2017 | M45: 12115.12 | O45: 12115.12 | P45: 100.9593333 | Q45: 807.6746667 | R45: 0 | S45: 807.6746667 | T45: 1 | U45: 807.6746667 | V45: 11307.44533 | W45: 11307.44533 | X45: 1 | Y45: 11307.44533 | Z45: 12115.12 | AA45: 403.8373333 | AB45: 2007.416667 | AC45: 2017.75 | AD45: 2017.416667 | AE45: 2016.75 | AF45: -0.08333333333
B46: 26 | C46: 1 YD R/L CONTAINER | D46: 2007 | E46: 6 | F46: 0 | H46: S/L | I46: 10 | J46: 2017 | M46: 7361.64 | O46: 7361.64 | P46: 61.347 | Q46: 490.776 | R46: 0 | S46: 490.776 | T46: 1 | U46: 490.776 | V46: 6870.864 | W46: 6870.864 | X46: 1 | Y46: 6870.864 | Z46: 7361.64 | AA46: 245.388 | AB46: 2007.416667 | AC46: 2017.75 | AD46: 2017.416667 | AE46: 2016.75 | AF46: -0.08333333333
B47: 19 | C47: 2 YD F/L CONTAINERS | D47: 2007 | E47: 6 | F47: 0 | H47: S/L | I47: 10 | J47: 2017 | M47: 6573.2 | O47: 6573.2 | P47: 54.77666667 | Q47: 438.2133333 | R47: 0 | S47: 438.2133333 | T47: 1 | U47: 438.2133333 | V47: 6134.986667 | W47: 6134.986667 | X47: 1 | Y47: 6134.986667 | Z47: 6573.2 | AA47: 219.1066667 | AB47: 2007.416667 | AC47: 2017.75 | AD47: 2017.416667 | AE47: 2016.75 | AF47: -0.08333333333
B48: 39 | C48: 2 YD R/L CONTAINERS | D48: 2007 | E48: 6 | F48: 0 | H48: S/L | I48: 10 | J48: 2017 | M48: 13372.92 | O48: 13372.92 | P48: 111.441 | Q48: 891.528 | R48: 0 | S48: 891.528 | T48: 1 | U48: 891.528 | V48: 12481.392 | W48: 12481.392 | X48: 1 | Y48: 12481.392 | Z48: 13372.92 | AA48: 445.764 | AB48: 2007.416667 | AC48: 2017.75 | AD48: 2017.416667 | AE48: 2016.75 | AF48: -0.08333333333
B49: 33 | C49: 2 YD R/L CONTAINERS | D49: 2007 | E49: 6 | F49: 0 | H49: S/L | I49: 10 | J49: 2017 | M49: 11194.92 | O49: 11194.92 | P49: 93.291 | Q49: 746.328 | R49: 0 | S49: 746.328 | T49: 1 | U49: 746.328 | V49: 10448.592 | W49: 10448.592 | X49: 1 | Y49: 10448.592 | Z49: 11194.92 | AA49: 373.164 | AB49: 2007.416667 | AC49: 2017.75 | AD49: 2017.416667 | AE49: 2016.75 | AF49: -0.08333333333
B50: 21 | C50: 2 YD R/L CONTAINERS | D50: 2007 | E50: 6 | F50: 0 | H50: S/L | I50: 10 | J50: 2017 | M50: 6989.2 | O50: 6989.2 | P50: 58.24333333 | Q50: 465.9466667 | R50: 0 | S50: 465.9466667 | T50: 1 | U50: 465.9466667 | V50: 6523.253333 | W50: 6523.253333 | X50: 1 | Y50: 6523.253333 | Z50: 6989.2 | AA50: 232.9733333 | AB50: 2007.416667 | AC50: 2017.75 | AD50: 2017.416667 | AE50: 2016.75 | AF50: -0.08333333333
B51: 17 | C51: 3 YD F/L CONTAINERS | D51: 2007 | E51: 6 | F51: 0 | H51: S/L | I51: 10 | J51: 2017 | M51: 6501.33 | O51: 6501.33 | P51: 54.17775 | Q51: 433.422 | R51: 0 | S51: 433.422 | T51: 1 | U51: 433.422 | V51: 6067.908 | W51: 6067.908 | X51: 1 | Y51: 6067.908 | Z51: 6501.33 | AA51: 216.711 | AB51: 2007.416667 | AC51: 2017.75 | AD51: 2017.416667 | AE51: 2016.75 | AF51: -0.08333333333
B52: 19 | C52: 4 YD F/L CONTAINERS | D52: 2007 | E52: 6 | F52: 0 | H52: S/L | I52: 10 | J52: 2017 | M52: 7628.45 | O52: 7628.45 | P52: 63.57041667 | Q52: 508.5633333 | R52: 0 | S52: 508.5633333 | T52: 1 | U52: 508.5633333 | V52: 7119.886667 | W52: 7119.886667 | X52: 1 | Y52: 7119.886667 | Z52: 7628.45 | AA52: 254.2816667 | AB52: 2007.416667 | AC52: 2017.75 | AD52: 2017.416667 | AE52: 2016.75 | AF52: -0.08333333333
B53: 20 | C53: 6 YD F/L CONTAINERS | D53: 2007 | E53: 6 | F53: 0 | H53: S/L | I53: 10 | J53: 2017 | M53: 9011.48 | O53: 9011.48 | P53: 75.09566667 | Q53: 600.7653333 | R53: 0 | S53: 600.7653333 | T53: 1 | U53: 600.7653333 | V53: 8410.714667 | W53: 8410.714667 | X53: 1 | Y53: 8410.714667 | Z53: 9011.48 | AA53: 300.3826667 | AB53: 2007.416667 | AC53: 2017.75 | AD53: 2017.416667 | AE53: 2016.75 | AF53: -0.08333333333
B54: 9 | C54: 6 YD F/L CONTAINERS | D54: 2007 | E54: 6 | F54: 0 | H54: S/L | I54: 10 | J54: 2017 | M54: 3876.84 | O54: 3876.84 | P54: 32.307 | Q54: 258.456 | R54: 0 | S54: 258.456 | T54: 1 | U54: 258.456 | V54: 3618.384 | W54: 3618.384 | X54: 1 | Y54: 3618.384 | Z54: 3876.84 | AA54: 129.228 | AB54: 2007.416667 | AC54: 2017.75 | AD54: 2017.416667 | AE54: 2016.75 | AF54: -0.08333333333
